Workbook

Sheet Reg inflation
C1: Actual | D1: Actual | E1: Actual | F1: Actual | G1: Forecast | H1: Forecast | I1: Forecast | J1: Forecast | K1: Forecast | L1: Forecast
B2: 1-year lagged inflation (8 cities) | C2: 2021-22 | D2: 2022-23 | E2: 2023-24 | F2: 2024-25 | G2: 2025-26 | H2: 2026-27 | I2: 2027–28 | J2: 2028–29 | K2: 2029–30 | L2: 2030–31
B3: EDPR Inflation forecast - 5th cut | C3: 0.008605851979 | D3: 0.03498293515 | E3: 0.07831821929 | F3: 0.04051987768 | G3: 0.03 | H3: 0.025 | I3: 0.025 | J3: 0.025 | K3: 0.025 | L3: 0.025
B4: EDPR Inflation forecast - 3rd cut | C4: 0.008605851979 | D4: 0.03498293515 | E4: 0.07831821929 | F4: 0.045 | G4: 0.0325 | H4: 0.025 | I4: 0.025 | J4: 0.025 | K4: 0.025 | L4: 0.025
B5: EDPR Expected case | C5: 0.008605851979 | D5: 0.03498293515 | E5: 0.07831821929 | F5: 0.045 | G5: 0.0325 | H5: 0.025 | I5: 0.025 | J5: 0.025 | K5: 0.025 | L5: 0.025
B6: EDPR Inflation forecast - 2nd cut | C6: 0.008605851979 | D6: 0.03498293515 | E6: 0.08 | F6: 0.0475 | G6: 0.0325 | H6: 0.025 | I6: 0.025 | J6: 0.025 | K6: 0.025 | L6: 0.025
B7: EDPR Inflation forecast - 1st cut | C7: 0.008605851979 | D7: 0.03498293515 | E7: 0.0775 | F7: 0.0425 | G7: 0.03 | H7: 0.025 | I7: 0.025 | J7: 0.025 | K7: 0.025 | L7: 0.025
B9: Real $Jun 2022 to End Year Jun $Nominal
B10: EDPR Inflation forecast - 4th cut | C10: 1 | D10: =C10*(1+D3) -> 1.034982935 | E10: 1.116040956 | F10: 1.161262799 | G10: 1.196100683 | H10: 1.2260032 | I10: 1.25665328 | J10: 1.288069612
B11: EDPR Inflation forecast - 3rd cut | C11: 1 | D11: 1.034982935 | E11: 1.116040956 | F11: 1.166262799 | G11: 1.20416634 | H11: 1.234270498 | I11: 1.265127261 | J11: 1.296755442
B12: EDPR Expected case | C12: 1 | D12: 1.034982935 | E12: 1.116040956 | F12: 1.166262799 | G12: 1.20416634
B13: EDPR Inflation forecast - 2nd cut | C13: 1 | D13: 1.034982935 | E13: 1.11778157 | F13: 1.170876195 | G13: 1.208929671 | N13: 1.20416634
B14: EDPR Inflation forecast - 1st cut | C14: 1 | D14: 1.034982935 | E14: 1.115194113 | F14: 1.162589862 | G14: 1.197467558
B16: $Nominal to End-Year $Jun 2023 | C16: =(1+C3)*(1+D3)^0.5 -> 1.026096198 | D16: =(1+D3)^0.5 -> 1.017341111 | E16: =1/(1+E3)^0.5 -> 0.9630005351 | F16: =1/((1+F3)^0.5*(1+E3)) -> 0.9091339296 | G16: =1/((1+G3)^0.5*(1+F3)*(1+E3)) -> 0.8781810539 | H16: =1/((1+H3)^0.5*(1+G3)*(1+F3)*(1+E3)) -> 0.8546799546 | I16: =1/((1+I3)^0.5*(1+H3)*(1+G3)*(1+F3)*(1+E3)) -> 0.833834102 | J16: =1/((1+J3)^0.5*(1+I3)*(1+H3)*(1+G3)*(1+F3)*(1+E3)) -> 0.8134966849
B17: $Nominal to End-Year $Jun 2026 | C17: =D17*(1+D3) -> 1.196100683 | D17: =E17*(1+E3) -> 1.155671888 | E17: =F17*(1+F3) -> 1.071735474 | F17: =G17*(1+G3) -> 1.03 | G17: 1 | H17: =1/(1+H3) -> 0.9756097561 | I17: =H17/(1+I3) -> 0.9518143962 | J17: =I17/(1+J3) -> 0.9285994109
B19: Real $Jun-21 to End Year Jun $Nominal | C19: =1+C3 -> 1.008605852 | D19: =C19*(1+D3) -> 1.043889845 | E19: =D19*(1+E3) -> 1.125645439 | F19: 1.171256454 | G19: 1.206394148 | H19: 1.236554002 | I19: 1.267467852 | J19: 1.299154548 | K19: 1.331633412 | L19: 1.364924247
B21: $real $2024 to $Nominal | E21: 1 | F21: =E21*(1+F3) -> 1.040519878 | G21: =F21*(1+G3) -> 1.071735474
B23: CPI - 14 months (extropolated) | F23: =F21^(14/12) -> 1.047431052
B25: Nominal $Jun (End Year) to real $Jun 2024 | C25: 1.116040956 | D25: 1.078318219 | E25: 1 | F25: 0.9610580456 | G25: 0.9330660636 | H25: 0.8997744105 | I25: 0.8778286931 | J25: 0.8564182372 | K25: 0.8355299875 | L25: 0.8151512073

Sheet Cover
A4: AER REPEX Benchmark Model
C15: Version | D15: 1.1
C17: =TODAY() -> 2025-01-30
G21: Confidential
A29: Key
A30: Graphical Outputs
A31: Inputs
A32: Scenario Outputs
A34: Key Inputs

Sheet Graphs

Sheet Lines + OH Cons Charts
Q1: POLES | S1: =T1-1 -> -20 | T1: -19 | U1: -18 | V1: -17 | W1: -16 | X1: -15 | Y1: -14 | Z1: -13 | AA1: -12 | AB1: -11 | AC1: -10 | AD1: -9 | AE1: -8 | AF1: -7 | AG1: -6 | AH1: -5 | AI1: -4 | AJ1: -3 | AK1: -2 | AL1: =AM1-1 -> -1 | AM1: 0 | AN1: =AM1+1 -> 1 | AO1: =AN1+1 -> 2 | AP1: 3 | AQ1: 4 | AR1: 5 | AS1: 6 | AT1: 7 | AU1: 8 | AV1: 9 | AW1: 10 | AX1: 11 | AY1: 12 | AZ1: 13 | BA1: 14 | BB1: 15 | BC1: 16 | BD1: 17 | BE1: 18 | BF1: 19 | BG1: 20
Q2: Expenditure | S2: =T2-1 -> 2004 | T2: 2005 | U2: 2006 | V2: 2007 | W2: 2008 | X2: 2009 | Y2: 2010 | Z2: 2011 | AA2: 2012 | AB2: 2013 | AC2: 2014 | AD2: 2015 | AE2: 2016 | AF2: 2017 | AG2: 2018 | AH2: 2019 | AI2: 2020 | AJ2: =AK2-1 -> 2021 | AK2: =AL2-1 -> 2022 | AL2: =AM2-1 -> 2023 | AM2: 2024 | AN2: =AM2+1 -> 2025 | AO2: 2026 | AP2: 2027 | AQ2: 2028 | AR2: 2029 | AS2: 2030 | AT2: 2031 | AU2: 2032 | AV2: 2033 | AW2: 2034 | AX2: 2035 | AY2: 2036 | AZ2: 2037 | BA2: 2038 | BB2: 2039 | BC2: 2040 | BD2: 2041 | BE2: 2042 | BF2: 2043 | BG2: 2044
Q3: =R3&" (Historic)" -> POLES (Historic) | R3: POLES | S3: =SUM('Historical scenario - input'!DP14:DP30) -> 46487.30698 | T3: =SUM('Historical scenario - input'!DO14:DO30) -> 58706.17473 | U3: =SUM('Historical scenario - input'!DN14:DN30) -> 55644.27338 | V3: =SUM('Historical scenario - input'!DM14:DM30) -> 72090.44004 | W3: =SUM('Historical scenario - input'!DL14:DL30) -> 74431.03413 | X3: =SUM('Historical scenario - input'!DK14:DK30) -> 63353.58753 | Y3: =SUM('Historical scenario - input'!DJ14:DJ30) -> 54869.09067 | Z3: =SUM('Historical scenario - input'!DI14:DI30) -> 44938.79977 | AA3: =SUM('Historical scenario - input'!DH14:DH30) -> 42625.77339 | AB3: =SUM('Historical scenario - input'!DG14:DG30) -> 71434.45459 | AC3: =SUM('Historical scenario - input'!DF14:DF30) -> 100807.4664 | AD3: =SUM('Historical scenario - input'!DE14:DE30) -> 115288.5165 | AE3: =SUM('Historical scenario - input'!DD14:DD30) -> 85504.22559 | AF3: =SUM('Historical scenario - input'!DC14:DC30) -> 120962.3336 | AG3: =SUM('Historical scenario - input'!DB14:DB30) -> 114374.6082 | AH3: =SUM('Historical scenario - input'!DA14:DA30) -> 97594.22702 | AI3: =SUM('Historical scenario - input'!CZ14:CZ30) -> 53398.98675 | AJ3: =SUM('Historical scenario - input'!CY14:CY30) -> 51855.49398 | AK3: =SUM('Historical scenario - input'!CX14:CX30) -> 56309.1757 | AL3: =SUM('Historical scenario - input'!CW14:CW30) -> 52649.71097 | AM3: =SUM('Historical scenario - input'!CV14:CV30) -> 44463.75708 | AN3: =VLOOKUP($R3,'Historical scenario - output'!$B$6:$W$15,AN$1+2,FALSE) -> 51735.42128 | AO3: =VLOOKUP($R3,'Historical scenario - output'!$B$6:$W$15,AO$1+2,FALSE) -> 55151.01202 | AP3: =VLOOKUP($R3,'Historical scenario - output'!$B$6:$W$15,AP$1+2,FALSE) -> 59426.65012 | AQ3: =VLOOKUP($R3,'Historical scenario - output'!$B$6:$W$15,AQ$1+2,FALSE) -> 64445.47744 | AR3: =VLOOKUP($R3,'Historical scenario - output'!$B$6:$W$15,AR$1+2,FALSE) -> 70116.85879 | AS3: =VLOOKUP($R3,'Historical scenario - output'!$B$6:$W$15,AS$1+2,FALSE) -> 76350.17541 | AT3: =VLOOKUP($R3,'Historical scenario - output'!$B$6:$W$15,AT$1+2,FALSE) -> 83041.50964 | AU3: =VLOOKUP($R3,'Historical scenario - output'!$B$6:$W$15,AU$1+2,FALSE) -> 90068.2886 | AV3: =VLOOKUP($R3,'Historical scenario - output'!$B$6:$W$15,AV$1+2,FALSE) -> 97289.06292 | AW3: =VLOOKUP($R3,'Historical scenario - output'!$B$6:$W$15,AW$1+2,FALSE) -> 104546.7532 | AX3: =VLOOKUP($R3,'Historical scenario - output'!$B$6:$W$15,AX$1+2,FALSE) -> 111674.2887 | AY3: =VLOOKUP($R3,'Historical scenario - output'!$B$6:$W$15,AY$1+2,FALSE) -> 118501.8343 | AZ3: =VLOOKUP($R3,'Historical scenario - output'!$B$6:$W$15,AZ$1+2,FALSE) -> 124864.9085 | BA3: =VLOOKUP($R3,'Historical scenario - output'!$B$6:$W$15,BA$1+2,FALSE) -> 130612.7262 | BB3: =VLOOKUP($R3,'Historical scenario - output'!$B$6:$W$15,BB$1+2,FALSE) -> 135616.1182 | BC3: =VLOOKUP($R3,'Historical scenario - output'!$B$6:$W$15,BC$1+2,FALSE) -> 139774.4132 | BD3: =VLOOKUP($R3,'Historical scenario - output'!$B$6:$W$15,BD$1+2,FALSE) -> 143020.7379 | BE3: =VLOOKUP($R3,'Historical scenario - output'!$B$6:$W$15,BE$1+2,FALSE) -> 145325.3059 | BF3: =VLOOKUP($R3,'Historical scenario - output'!$B$6:$W$15,BF$1+2,FALSE) -> 146696.4177 | BG3: =VLOOKUP($R3,'Historical scenario - output'!$B$6:$W$15,BG$1+2,FALSE) -> 147179.078
Q4: =R4&" (Live)" -> POLES (Live) | R4: POLES | S4: =SUM('Lives scenario - input'!DR14:DR30) -> 46487.30698 | T4: =SUM('Lives scenario - input'!DQ14:DQ30) -> 58706.17473 | U4: =SUM('Lives scenario - input'!DP14:DP30) -> 55644.27338 | V4: =SUM('Lives scenario - input'!DO14:DO30) -> 72090.44004 | W4: =SUM('Lives scenario - input'!DN14:DN30) -> 74431.03413 | X4: =SUM('Lives scenario - input'!DM14:DM30) -> 63353.58753 | Y4: =SUM('Lives scenario - input'!DL14:DL30) -> 54869.09067 | Z4: =SUM('Lives scenario - input'!DK14:DK30) -> 44938.79977 | AA4: =SUM('Lives scenario - input'!DJ14:DJ30) -> 42625.77339 | AB4: =SUM('Lives scenario - input'!DI14:DI30) -> 71434.45459 | AC4: =SUM('Lives scenario - input'!DH14:DH30) -> 100807.4664 | AD4: =SUM('Lives scenario - input'!DG14:DG30) -> 115288.5165 | AE4: =SUM('Lives scenario - input'!DF14:DF30) -> 85504.22559 | AF4: =SUM('Lives scenario - input'!DE14:DE30) -> 120962.3336 | AG4: =SUM('Lives scenario - input'!DD14:DD30) -> 114374.6082 | AH4: =SUM('Lives scenario - input'!DC14:DC30) -> 97594.22702 | AI4: =SUM('Lives scenario - input'!DB14:DB30) -> 53398.98675 | AJ4: =SUM('Lives scenario - input'!DA14:DA30) -> 51855.49398 | AK4: =SUM('Lives scenario - input'!CZ14:CZ30) -> 56309.1757 | AL4: =SUM('Lives scenario - input'!CY14:CY30) -> 52649.71097 | AM4: =SUM('Lives scenario - input'!CX14:CX30) -> 44463.75708 | AN4: =VLOOKUP($R4,'Lives scenario - output'!$B$6:$W$15,AN$1+2,FALSE) -> 42844.26804 | AO4: =VLOOKUP($R4,'Lives scenario - output'!$B$6:$W$15,AO$1+2,FALSE) -> 45284.58757 | AP4: =VLOOKUP($R4,'Lives scenario - output'!$B$6:$W$15,AP$1+2,FALSE) -> 48503.79329 | AQ4: =VLOOKUP($R4,'Lives scenario - output'!$B$6:$W$15,AQ$1+2,FALSE) -> 52465.63601 | AR4: =VLOOKUP($R4,'Lives scenario - output'!$B$6:$W$15,AR$1+2,FALSE) -> 57148.10957 | AS4: =VLOOKUP($R4,'Lives scenario - output'!$B$6:$W$15,AS$1+2,FALSE) -> 62524.62314 | AT4: =VLOOKUP($R4,'Lives scenario - output'!$B$6:$W$15,AT$1+2,FALSE) -> 68552.40856 | AU4: =VLOOKUP($R4,'Lives scenario - output'!$B$6:$W$15,AU$1+2,FALSE) -> 75165.91039 | AV4: =VLOOKUP($R4,'Lives scenario - output'!$B$6:$W$15,AV$1+2,FALSE) -> 82273.83031 | AW4: =VLOOKUP($R4,'Lives scenario - output'!$B$6:$W$15,AW$1+2,FALSE) -> 89759.05091 | AX4: =VLOOKUP($R4,'Lives scenario - output'!$B$6:$W$15,AX$1+2,FALSE) -> 97480.96025 | AY4: =VLOOKUP($R4,'Lives scenario - output'!$B$6:$W$15,AY$1+2,FALSE) -> 105279.8235 | AZ4: =VLOOKUP($R4,'Lives scenario - output'!$B$6:$W$15,AZ$1+2,FALSE) -> 112982.8633 | BA4: =VLOOKUP($R4,'Lives scenario - output'!$B$6:$W$15,BA$1+2,FALSE) -> 120411.6634 | BB4: =VLOOKUP($R4,'Lives scenario - output'!$B$6:$W$15,BB$1+2,FALSE) -> 127390.4335 | BC4: =VLOOKUP($R4,'Lives scenario - output'!$B$6:$W$15,BC$1+2,FALSE) -> 133754.6001 | BD4: =VLOOKUP($R4,'Lives scenario - output'!$B$6:$W$15,BD$1+2,FALSE) -> 139359.1322 | BE4: =VLOOKUP($R4,'Lives scenario - output'!$B$6:$W$15,BE$1+2,FALSE) -> 144085.9998 | BF4: =VLOOKUP($R4,'Lives scenario - output'!$B$6:$W$15,BF$1+2,FALSE) -> 147850.1975 | BG4: =VLOOKUP($R4,'Lives scenario - output'!$B$6:$W$15,BG$1+2,FALSE) -> 150603.8564
Q5: =R5&" (Cost)" -> POLES (Cost) | R5: POLES | S5: =SUM('Cost scenario - input'!DS14:DS30) -> 24017.29979 | T5: =SUM('Cost scenario - input'!DR14:DR30) -> 31668.92523 | U5: =SUM('Cost scenario - input'!DQ14:DQ30) -> 29198.21198 | V5: =SUM('Cost scenario - input'!DP14:DP30) -> 38219.62068 | W5: =SUM('Cost scenario - input'!DO14:DO30) -> 39634.04391 | X5: =SUM('Cost scenario - input'!DN14:DN30) -> 34847.16343 | Y5: =SUM('Cost scenario - input'!DM14:DM30) -> 33412.08314 | Z5: =SUM('Cost scenario - input'!DL14:DL30) -> 25060.60856 | AA5: =SUM('Cost scenario - input'!DK14:DK30) -> 26408.40733 | AB5: =SUM('Cost scenario - input'!DJ14:DJ30) -> 43266.91291 | AC5: =SUM('Cost scenario - input'!DI14:DI30) -> 59179.111 | AD5: =SUM('Cost scenario - input'!DH14:DH30) -> 69017.63093 | AE5: =SUM('Cost scenario - input'!DG14:DG30) -> 48706.95511 | AF5: =SUM('Cost scenario - input'!DF14:DF30) -> 65787.68201 | AG5: =SUM('Cost scenario - input'!DE14:DE30) -> 64451.7949 | AH5: =SUM('Cost scenario - input'!DD14:DD30) -> 54040.94201 | AI5: =SUM('Cost scenario - input'!DC14:DC30) -> 30499.39929 | AJ5: =SUM('Cost scenario - input'!DB14:DB30) -> 29094.83226 | AK5: =SUM('Cost scenario - input'!DA14:DA30) -> 31398.05033 | AL5: =SUM('Cost scenario - input'!CZ14:CZ30) -> 30111.1231 | AM5: =SUM('Cost scenario - input'!CY14:CY30) -> 25281.3339 | AN5: =VLOOKUP($R5,'Cost scenario - output'!$B$6:$W$15,AN$1+2,FALSE) -> 29276.92887 | AO5: =VLOOKUP($R5,'Cost scenario - output'!$B$6:$W$15,AO$1+2,FALSE) -> 31452.51315 | AP5: =VLOOKUP($R5,'Cost scenario - output'!$B$6:$W$15,AP$1+2,FALSE) -> 34131.43729 | AQ5: =VLOOKUP($R5,'Cost scenario - output'!$B$6:$W$15,AQ$1+2,FALSE) -> 37240.1012 | AR5: =VLOOKUP($R5,'Cost scenario - output'!$B$6:$W$15,AR$1+2,FALSE) -> 40719.00571 | AS5: =VLOOKUP($R5,'Cost scenario - output'!$B$6:$W$15,AS$1+2,FALSE) -> 44508.15835 | AT5: =VLOOKUP($R5,'Cost scenario - output'!$B$6:$W$15,AT$1+2,FALSE) -> 48539.78901 | AU5: =VLOOKUP($R5,'Cost scenario - output'!$B$6:$W$15,AU$1+2,FALSE) -> 52735.60406 | AV5: =VLOOKUP($R5,'Cost scenario - output'!$B$6:$W$15,AV$1+2,FALSE) -> 57006.97781 | AW5: =VLOOKUP($R5,'Cost scenario - output'!$B$6:$W$15,AW$1+2,FALSE) -> 61257.12271 | AX5: =VLOOKUP($R5,'Cost scenario - output'!$B$6:$W$15,AX$1+2,FALSE) -> 65384.60946 | AY5: =VLOOKUP($R5,'Cost scenario - output'!$B$6:$W$15,AY$1+2,FALSE) -> 69287.7611 | AZ5: =VLOOKUP($R5,'Cost scenario - output'!$B$6:$W$15,AZ$1+2,FALSE) -> 72869.50719 | BA5: =VLOOKUP($R5,'Cost scenario - output'!$B$6:$W$15,BA$1+2,FALSE) -> 76042.30577 | BB5: =VLOOKUP($R5,'Cost scenario - output'!$B$6:$W$15,BB$1+2,FALSE) -> 78732.75458 | BC5: =VLOOKUP($R5,'Cost scenario - output'!$B$6:$W$15,BC$1+2,FALSE) -> 80885.53742 | BD5: =VLOOKUP($R5,'Cost scenario - output'!$B$6:$W$15,BD$1+2,FALSE) -> 82466.39554 | BE5: =VLOOKUP($R5,'Cost scenario - output'!$B$6:$W$15,BE$1+2,FALSE) -> 83463.88248 | BF5: =VLOOKUP($R5,'Cost scenario - output'!$B$6:$W$15,BF$1+2,FALSE) -> 83889.75047 | BG5: =VLOOKUP($R5,'Cost scenario - output'!$B$6:$W$15,BG$1+2,FALSE) -> 83777.92285
Q6: =R6&" (Combined)" -> POLES (Combined) | R6: POLES | S6: =SUM('Combined scenario - input'!DP14:DP30) -> 24017.29979 | T6: =SUM('Combined scenario - input'!DO14:DO30) -> 31668.92523 | U6: =SUM('Combined scenario - input'!DN14:DN30) -> 29198.21198 | V6: =SUM('Combined scenario - input'!DM14:DM30) -> 38219.62068 | W6: =SUM('Combined scenario - input'!DL14:DL30) -> 39634.04391 | X6: =SUM('Combined scenario - input'!DK14:DK30) -> 34847.16343 | Y6: =SUM('Combined scenario - input'!DJ14:DJ30) -> 33412.08314 | Z6: =SUM('Combined scenario - input'!DI14:DI30) -> 25060.60856 | AA6: =SUM('Combined scenario - input'!DH14:DH30) -> 26408.40733 | AB6: =SUM('Combined scenario - input'!DG14:DG30) -> 43266.91291 | AC6: =SUM('Combined scenario - input'!DF14:DF30) -> 59179.111 | AD6: =SUM('Combined scenario - input'!DE14:DE30) -> 69017.63093 | AE6: =SUM('Combined scenario - input'!DD14:DD30) -> 48706.95511 | AF6: =SUM('Combined scenario - input'!DC14:DC30) -> 65787.68201 | AG6: =SUM('Combined scenario - input'!DB14:DB30) -> 64451.7949 | AH6: =SUM('Combined scenario - input'!DA14:DA30) -> 54040.94201 | AI6: =SUM('Combined scenario - input'!CZ14:CZ30) -> 30499.39929 | AJ6: =SUM('Combined scenario - input'!CY14:CY30) -> 29094.83226 | AK6: =SUM('Combined scenario - input'!CX14:CX30) -> 31398.05033 | AL6: =SUM('Combined scenario - input'!CW14:CW30) -> 30111.1231 | AM6: =SUM('Combined scenario - input'!CV14:CV30) -> 25281.3339 | AN6: =VLOOKUP($R6,'Combined scenario - output'!$B$6:$W$15,AN$1+2,FALSE) -> 23532.76739 | AO6: =VLOOKUP($R6,'Combined scenario - output'!$B$6:$W$15,AO$1+2,FALSE) -> 25073.86153 | AP6: =VLOOKUP($R6,'Combined scenario - output'!$B$6:$W$15,AP$1+2,FALSE) -> 27070.23106 | AQ6: =VLOOKUP($R6,'Combined scenario - output'!$B$6:$W$15,AQ$1+2,FALSE) -> 29498.39841 | AR6: =VLOOKUP($R6,'Combined scenario - output'!$B$6:$W$15,AR$1+2,FALSE) -> 32342.57172 | AS6: =VLOOKUP($R6,'Combined scenario - output'!$B$6:$W$15,AS$1+2,FALSE) -> 35584.00641 | AT6: =VLOOKUP($R6,'Combined scenario - output'!$B$6:$W$15,AT$1+2,FALSE) -> 39194.42454 | AU6: =VLOOKUP($R6,'Combined scenario - output'!$B$6:$W$15,AU$1+2,FALSE) -> 43132.24577 | AV6: =VLOOKUP($R6,'Combined scenario - output'!$B$6:$W$15,AV$1+2,FALSE) -> 47340.90119 | AW6: =VLOOKUP($R6,'Combined scenario - output'!$B$6:$W$15,AW$1+2,FALSE) -> 51748.80998 | AX6: =VLOOKUP($R6,'Combined scenario - output'!$B$6:$W$15,AX$1+2,FALSE) -> 56270.76319 | AY6: =VLOOKUP($R6,'Combined scenario - output'!$B$6:$W$15,AY$1+2,FALSE) -> 60810.52448 | AZ6: =VLOOKUP($R6,'Combined scenario - output'!$B$6:$W$15,AZ$1+2,FALSE) -> 65264.46028 | BA6: =VLOOKUP($R6,'Combined scenario - output'!$B$6:$W$15,BA$1+2,FALSE) -> 69525.9776 | BB6: =VLOOKUP($R6,'Combined scenario - output'!$B$6:$W$15,BB$1+2,FALSE) -> 73490.49714 | BC6: =VLOOKUP($R6,'Combined scenario - output'!$B$6:$W$15,BC$1+2,FALSE) -> 77060.63895 | BD6: =VLOOKUP($R6,'Combined scenario - output'!$B$6:$W$15,BD$1+2,FALSE) -> 80151.26203 | BE6: =VLOOKUP($R6,'Combined scenario - output'!$B$6:$W$15,BE$1+2,FALSE) -> 82693.98756 | BF6: =VLOOKUP($R6,'Combined scenario - output'!$B$6:$W$15,BF$1+2,FALSE) -> 84640.85505 | BG6: =VLOOKUP($R6,'Combined scenario - output'!$B$6:$W$15,BG$1+2,FALSE) -> 85966.81425
Q7: =R7&" (AusNet Repex)" -> POLES (AusNet Repex) | R7: POLES | AP7: =SUM('Unit Cost - Forecast (ZIN)'!G5:G23)/1000 -> 42536.55066 | AQ7: =SUM('Unit Cost - Forecast (ZIN)'!H5:H23)/1000 -> 41998.87399 | AR7: =SUM('Unit Cost - Forecast (ZIN)'!I5:I23)/1000 -> 41614.49698 | AS7: =SUM('Unit Cost - Forecast (ZIN)'!J5:J23)/1000 -> 41429.24414 | AT7: =SUM('Unit Cost - Forecast (ZIN)'!K5:K23)/1000 -> 41266.64102
S15: =T15-1 -> -20 | T15: -19 | U15: -18 | V15: -17 | W15: -16 | X15: -15 | Y15: -14 | Z15: -13 | AA15: -12 | AB15: -11 | AC15: -10 | AD15: -9 | AE15: -8 | AF15: -7 | AG15: -6 | AH15: -5 | AI15: -4 | AJ15: -3 | AK15: -2 | AL15: =AM15-1 -> -1 | AM15: 0 | AN15: 21 | AO15: =AN15+1 -> 22 | AP15: 23 | AQ15: 24 | AR15: 25 | AS15: 26 | AT15: 27 | AU15: 28 | AV15: 29 | AW15: 30 | AX15: 31 | AY15: 32 | AZ15: 33 | BA15: 34 | BB15: 35 | BC15: 36 | BD15: 37 | BE15: 38 | BF15: 39 | BG15: 40
Q16: Volume | S16: =T16-1 -> 2004 | T16: 2005 | U16: 2006 | V16: 2007 | W16: 2008 | X16: 2009 | Y16: 2010 | Z16: 2011 | AA16: 2012 | AB16: 2013 | AC16: 2014 | AD16: 2015 | AE16: 2016 | AF16: 2017 | AG16: 2018 | AH16: 2019 | AI16: 2020 | AJ16: 2021 | AK16: 2022 | AL16: =AM16-1 -> 2023 | AM16: 2024 | AN16: =AM16+1 -> 2025 | AO16: 2026 | AP16: 2027 | AQ16: 2028 | AR16: 2029 | AS16: 2030 | AT16: 2031 | AU16: 2032 | AV16: 2033 | AW16: 2034 | AX16: 2035 | AY16: 2036 | AZ16: 2037 | BA16: 2038 | BB16: 2039 | BC16: 2040 | BD16: 2041 | BE16: 2042 | BF16: 2043 | BG16: 2044
Q17: =R17&" (Historic)" -> POLES (Historic) | R17: POLES | S17: =SUM('Historical scenario - input'!AB$14:AB$30) -> 1938.68484 | T17: =SUM('Historical scenario - input'!AA$14:AA$30) -> 2452.021358 | U17: =SUM('Historical scenario - input'!Z$14:Z$30) -> 2312.733648 | V17: =SUM('Historical scenario - input'!Y$14:Y$30) -> 2962.190889 | W17: =SUM('Historical scenario - input'!X$14:X$30) -> 3114.854364 | X17: =SUM('Historical scenario - input'!W$14:W$30) -> 2712.131517 | Y17: =SUM('Historical scenario - input'!V$14:V$30) -> 2460.59736 | Z17: =SUM('Historical scenario - input'!U$14:U$30) -> 1998.839777 | AA17: =SUM('Historical scenario - input'!T$14:T$30) -> 2071.230788 | AB17: =SUM('Historical scenario - input'!S$14:S$30) -> 3415.339893 | AC17: =SUM('Historical scenario - input'!R$14:R$30) -> 4766.153362 | AD17: =SUM('Historical scenario - input'!Q$14:Q$30) -> 5364.466808 | AE17: =SUM('Historical scenario - input'!P$14:P$30) -> 4018.036695 | AF17: =SUM('Historical scenario - input'!O$14:O$30) -> 5510.661046 | AG17: =SUM('Historical scenario - input'!N$14:N$30) -> 5469.364288 | AH17: =SUM('Historical scenario - input'!M$14:M$30) -> 4427.38678 | AI17: =SUM('Historical scenario - input'!L$14:L$30) -> 2542.310877 | AJ17: =SUM('Historical scenario - input'!K$14:K$30) -> 2448 | AK17: =SUM('Historical scenario - input'!J$14:J$30) -> 2594 | AL17: =SUM('Historical scenario - input'!I$14:I$30) -> 2500 | AM17: =SUM('Historical scenario - input'!H$14:H$30) -> 2124 | AN17: =VLOOKUP($R17,'Historical scenario - output'!$B$6:$AQ$15,AN$15+2,FALSE) -> 2441.660999 | AO17: =VLOOKUP($R17,'Historical scenario - output'!$B$6:$AQ$15,AO$15+2,FALSE) -> 2606.456459 | AP17: =VLOOKUP($R17,'Historical scenario - output'!$B$6:$AQ$15,AP$15+2,FALSE) -> 2811.425692 | AQ17: =VLOOKUP($R17,'Historical scenario - output'!$B$6:$AQ$15,AQ$15+2,FALSE) -> 3051.212949 | AR17: =VLOOKUP($R17,'Historical scenario - output'!$B$6:$AQ$15,AR$15+2,FALSE) -> 3321.574419 | AS17: =VLOOKUP($R17,'Historical scenario - output'!$B$6:$AQ$15,AS$15+2,FALSE) -> 3618.216089 | AT17: =VLOOKUP($R17,'Historical scenario - output'!$B$6:$AQ$15,AT$15+2,FALSE) -> 3936.201311 | AU17: =VLOOKUP($R17,'Historical scenario - output'!$B$6:$AQ$15,AU$15+2,FALSE) -> 4269.712296 | AV17: =VLOOKUP($R17,'Historical scenario - output'!$B$6:$AQ$15,AV$15+2,FALSE) -> 4612.041469 | AW17: =VLOOKUP($R17,'Historical scenario - output'!$B$6:$AQ$15,AW$15+2,FALSE) -> 4955.739328 | AX17: =VLOOKUP($R17,'Historical scenario - output'!$B$6:$AQ$15,AX$15+2,FALSE) -> 5292.871532 | AY17: =VLOOKUP($R17,'Historical scenario - output'!$B$6:$AQ$15,AY$15+2,FALSE) -> 5615.349983 | AZ17: =VLOOKUP($R17,'Historical scenario - output'!$B$6:$AQ$15,AZ$15+2,FALSE) -> 5915.307243 | BA17: =VLOOKUP($R17,'Historical scenario - output'!$B$6:$AQ$15,BA$15+2,FALSE) -> 6185.484853 | BB17: =VLOOKUP($R17,'Historical scenario - output'!$B$6:$AQ$15,BB$15+2,FALSE) -> 6419.606413 | BC17: =VLOOKUP($R17,'Historical scenario - output'!$B$6:$AQ$15,BC$15+2,FALSE) -> 6612.707375 | BD17: =VLOOKUP($R17,'Historical scenario - output'!$B$6:$AQ$15,BD$15+2,FALSE) -> 6761.396079 | BE17: =VLOOKUP($R17,'Historical scenario - output'!$B$6:$AQ$15,BE$15+2,FALSE) -> 6864.025169 | BF17: =VLOOKUP($R17,'Historical scenario - output'!$B$6:$AQ$15,BF$15+2,FALSE) -> 6920.759009 | BG17: =VLOOKUP($R17,'Historical scenario - output'!$B$6:$AQ$15,BG$15+2,FALSE) -> 6933.530731
Q18: =R18&" (Live)" -> POLES (Live) | R18: POLES | S18: =SUM('Lives scenario - input'!AD$14:AD$30) -> 1938.68484 | T18: =SUM('Lives scenario - input'!AC$14:AC$30) -> 2452.021358 | U18: =SUM('Lives scenario - input'!AB$14:AB$30) -> 2312.733648 | V18: =SUM('Lives scenario - input'!AA$14:AA$30) -> 2962.190889 | W18: =SUM('Lives scenario - input'!Z$14:Z$30) -> 3114.854364 | X18: =SUM('Lives scenario - input'!Y$14:Y$30) -> 2712.131517 | Y18: =SUM('Lives scenario - input'!X$14:X$30) -> 2460.59736 | Z18: =SUM('Lives scenario - input'!W$14:W$30) -> 1998.839777 | AA18: =SUM('Lives scenario - input'!V$14:V$30) -> 2071.230788 | AB18: =SUM('Lives scenario - input'!U$14:U$30) -> 3415.339893 | AC18: =SUM('Lives scenario - input'!T$14:T$30) -> 4766.153362 | AD18: =SUM('Lives scenario - input'!S$14:S$30) -> 5364.466808 | AE18: =SUM('Lives scenario - input'!R$14:R$30) -> 4018.036695 | AF18: =SUM('Lives scenario - input'!Q$14:Q$30) -> 5510.661046 | AG18: =SUM('Lives scenario - input'!P$14:P$30) -> 5469.364288 | AH18: =SUM('Lives scenario - input'!O$14:O$30) -> 4427.38678 | AI18: =SUM('Lives scenario - input'!N$14:N$30) -> 2542.310877 | AJ18: =SUM('Lives scenario - input'!M$14:M$30) -> 2448 | AK18: =SUM('Lives scenario - input'!L$14:L$30) -> 2594 | AL18: =SUM('Lives scenario - input'!K$14:K$30) -> 2500 | AM18: =SUM('Lives scenario - input'!J$14:J$30) -> 2124 | AN18: =VLOOKUP($R18,'Lives scenario - output'!$B$6:$AQ$15,AN$15+2,FALSE) -> 2037.126328 | AO18: =VLOOKUP($R18,'Lives scenario - output'!$B$6:$AQ$15,AO$15+2,FALSE) -> 2158.46054 | AP18: =VLOOKUP($R18,'Lives scenario - output'!$B$6:$AQ$15,AP$15+2,FALSE) -> 2316.272304 | AQ18: =VLOOKUP($R18,'Lives scenario - output'!$B$6:$AQ$15,AQ$15+2,FALSE) -> 2508.847473 | AR18: =VLOOKUP($R18,'Lives scenario - output'!$B$6:$AQ$15,AR$15+2,FALSE) -> 2735.042717 | AS18: =VLOOKUP($R18,'Lives scenario - output'!$B$6:$AQ$15,AS$15+2,FALSE) -> 2993.451035 | AT18: =VLOOKUP($R18,'Lives scenario - output'!$B$6:$AQ$15,AT$15+2,FALSE) -> 3281.887017 | AU18: =VLOOKUP($R18,'Lives scenario - output'!$B$6:$AQ$15,AU$15+2,FALSE) -> 3597.093555 | AV18: =VLOOKUP($R18,'Lives scenario - output'!$B$6:$AQ$15,AV$15+2,FALSE) -> 3934.611977 | AW18: =VLOOKUP($R18,'Lives scenario - output'!$B$6:$AQ$15,AW$15+2,FALSE) -> 4288.781953 | AX18: =VLOOKUP($R18,'Lives scenario - output'!$B$6:$AQ$15,AX$15+2,FALSE) -> 4652.850652 | AY18: =VLOOKUP($R18,'Lives scenario - output'!$B$6:$AQ$15,AY$15+2,FALSE) -> 5019.1762 | AZ18: =VLOOKUP($R18,'Lives scenario - output'!$B$6:$AQ$15,AZ$15+2,FALSE) -> 5379.511057 | BA18: =VLOOKUP($R18,'Lives scenario - output'!$B$6:$AQ$15,BA$15+2,FALSE) -> 5725.348557 | BB18: =VLOOKUP($R18,'Lives scenario - output'!$B$6:$AQ$15,BB$15+2,FALSE) -> 6048.312037 | BC18: =VLOOKUP($R18,'Lives scenario - output'!$B$6:$AQ$15,BC$15+2,FALSE) -> 6340.562038 | BD18: =VLOOKUP($R18,'Lives scenario - output'!$B$6:$AQ$15,BD$15+2,FALSE) -> 6595.194033 | BE18: =VLOOKUP($R18,'Lives scenario - output'!$B$6:$AQ$15,BE$15+2,FALSE) -> 6806.597931 | BF18: =VLOOKUP($R18,'Lives scenario - output'!$B$6:$AQ$15,BF$15+2,FALSE) -> 6970.751801 | BG18: =VLOOKUP($R18,'Lives scenario - output'!$B$6:$AQ$15,BG$15+2,FALSE) -> 7085.426067
Q19: =R19&" (Cost)" -> POLES (Cost) | R19: POLES | S19: =SUM('Cost scenario - input'!AE$14:AE$30) -> 1938.68484 | T19: =SUM('Cost scenario - input'!AD$14:AD$30) -> 2452.021358 | U19: =SUM('Cost scenario - input'!AC$14:AC$30) -> 2312.733648 | V19: =SUM('Cost scenario - input'!AB$14:AB$30) -> 2962.190889 | W19: =SUM('Cost scenario - input'!AA$14:AA$30) -> 3114.854364 | X19: =SUM('Cost scenario - input'!Z$14:Z$30) -> 2712.131517 | Y19: =SUM('Cost scenario - input'!Y$14:Y$30) -> 2460.59736 | Z19: =SUM('Cost scenario - input'!X$14:X$30) -> 1998.839777 | AA19: =SUM('Cost scenario - input'!W$14:W$30) -> 2071.230788 | AB19: =SUM('Cost scenario - input'!V$14:V$30) -> 3415.339893 | AC19: =SUM('Cost scenario - input'!U$14:U$30) -> 4766.153362 | AD19: =SUM('Cost scenario - input'!T$14:T$30) -> 5364.466808 | AE19: =SUM('Cost scenario - input'!S$14:S$30) -> 4018.036695 | AF19: =SUM('Cost scenario - input'!R$14:R$30) -> 5510.661046 | AG19: =SUM('Cost scenario - input'!Q$14:Q$30) -> 5469.364288 | AH19: =SUM('Cost scenario - input'!P$14:P$30) -> 4427.38678 | AI19: =SUM('Cost scenario - input'!O$14:O$30) -> 2542.310877 | AJ19: =SUM('Cost scenario - input'!N$14:N$30) -> 2448 | AK19: =SUM('Cost scenario - input'!M$14:M$30) -> 2594 | AL19: =SUM('Cost scenario - input'!L$14:L$30) -> 2500 | AM19: =SUM('Cost scenario - input'!K$14:K$30) -> 2124 | AN19: =VLOOKUP($R19,'Cost scenario - output'!$B$6:$AQ$15,AN$15+2,FALSE) -> 2441.660999 | AO19: =VLOOKUP($R19,'Cost scenario - output'!$B$6:$AQ$15,AO$15+2,FALSE) -> 2606.456459 | AP19: =VLOOKUP($R19,'Cost scenario - output'!$B$6:$AQ$15,AP$15+2,FALSE) -> 2811.425692 | AQ19: =VLOOKUP($R19,'Cost scenario - output'!$B$6:$AQ$15,AQ$15+2,FALSE) -> 3051.212949 | AR19: =VLOOKUP($R19,'Cost scenario - output'!$B$6:$AQ$15,AR$15+2,FALSE) -> 3321.574419 | AS19: =VLOOKUP($R19,'Cost scenario - output'!$B$6:$AQ$15,AS$15+2,FALSE) -> 3618.216089 | AT19: =VLOOKUP($R19,'Cost scenario - output'!$B$6:$AQ$15,AT$15+2,FALSE) -> 3936.201311 | AU19: =VLOOKUP($R19,'Cost scenario - output'!$B$6:$AQ$15,AU$15+2,FALSE) -> 4269.712296 | AV19: =VLOOKUP($R19,'Cost scenario - output'!$B$6:$AQ$15,AV$15+2,FALSE) -> 4612.041469 | AW19: =VLOOKUP($R19,'Cost scenario - output'!$B$6:$AQ$15,AW$15+2,FALSE) -> 4955.739328 | AX19: =VLOOKUP($R19,'Cost scenario - output'!$B$6:$AQ$15,AX$15+2,FALSE) -> 5292.871532 | AY19: =VLOOKUP($R19,'Cost scenario - output'!$B$6:$AQ$15,AY$15+2,FALSE) -> 5615.349983 | AZ19: =VLOOKUP($R19,'Cost scenario - output'!$B$6:$AQ$15,AZ$15+2,FALSE) -> 5915.307243 | BA19: =VLOOKUP($R19,'Cost scenario - output'!$B$6:$AQ$15,BA$15+2,FALSE) -> 6185.484853 | BB19: =VLOOKUP($R19,'Cost scenario - output'!$B$6:$AQ$15,BB$15+2,FALSE) -> 6419.606413 | BC19: =VLOOKUP($R19,'Cost scenario - output'!$B$6:$AQ$15,BC$15+2,FALSE) -> 6612.707375 | BD19: =VLOOKUP($R19,'Cost scenario - output'!$B$6:$AQ$15,BD$15+2,FALSE) -> 6761.396079 | BE19: =VLOOKUP($R19,'Cost scenario - output'!$B$6:$AQ$15,BE$15+2,FALSE) -> 6864.025169 | BF19: =VLOOKUP($R19,'Cost scenario - output'!$B$6:$AQ$15,BF$15+2,FALSE) -> 6920.759009 | BG19: =VLOOKUP($R19,'Cost scenario - output'!$B$6:$AQ$15,BG$15+2,FALSE) -> 6933.530731
Q20: =R20&" (Combined)" -> POLES (Combined) | R20: POLES | S20: =SUM('Combined scenario - input'!AB$14:AB$30) -> 1938.68484 | T20: =SUM('Combined scenario - input'!AA$14:AA$30) -> 2452.021358 | U20: =SUM('Combined scenario - input'!Z$14:Z$30) -> 2312.733648 | V20: =SUM('Combined scenario - input'!Y$14:Y$30) -> 2962.190889 | W20: =SUM('Combined scenario - input'!X$14:X$30) -> 3114.854364 | X20: =SUM('Combined scenario - input'!W$14:W$30) -> 2712.131517 | Y20: =SUM('Combined scenario - input'!V$14:V$30) -> 2460.59736 | Z20: =SUM('Combined scenario - input'!U$14:U$30) -> 1998.839777 | AA20: =SUM('Combined scenario - input'!T$14:T$30) -> 2071.230788 | AB20: =SUM('Combined scenario - input'!S$14:S$30) -> 3415.339893 | AC20: =SUM('Combined scenario - input'!R$14:R$30) -> 4766.153362 | AD20: =SUM('Combined scenario - input'!Q$14:Q$30) -> 5364.466808 | AE20: =SUM('Combined scenario - input'!P$14:P$30) -> 4018.036695 | AF20: =SUM('Combined scenario - input'!O$14:O$30) -> 5510.661046 | AG20: =SUM('Combined scenario - input'!N$14:N$30) -> 5469.364288 | AH20: =SUM('Combined scenario - input'!M$14:M$30) -> 4427.38678 | AI20: =SUM('Combined scenario - input'!L$14:L$30) -> 2542.310877 | AJ20: =SUM('Combined scenario - input'!K$14:K$30) -> 2448 | AK20: =SUM('Combined scenario - input'!J$14:J$30) -> 2594 | AL20: =SUM('Combined scenario - input'!I$14:I$30) -> 2500 | AM20: =SUM('Combined scenario - input'!H$14:H$30) -> 2124 | AN20: =VLOOKUP($R20,'Combined scenario - output'!$B$6:$AQ$15,AN$15+2,FALSE) -> 2037.126328 | AO20: =VLOOKUP($R20,'Combined scenario - output'!$B$6:$AQ$15,AO$15+2,FALSE) -> 2158.46054 | AP20: =VLOOKUP($R20,'Combined scenario - output'!$B$6:$AQ$15,AP$15+2,FALSE) -> 2316.272304 | AQ20: =VLOOKUP($R20,'Combined scenario - output'!$B$6:$AQ$15,AQ$15+2,FALSE) -> 2508.847473 | AR20: =VLOOKUP($R20,'Combined scenario - output'!$B$6:$AQ$15,AR$15+2,FALSE) -> 2735.042717 | AS20: =VLOOKUP($R20,'Combined scenario - output'!$B$6:$AQ$15,AS$15+2,FALSE) -> 2993.451035 | AT20: =VLOOKUP($R20,'Combined scenario - output'!$B$6:$AQ$15,AT$15+2,FALSE) -> 3281.887017 | AU20: =VLOOKUP($R20,'Combined scenario - output'!$B$6:$AQ$15,AU$15+2,FALSE) -> 3597.093555 | AV20: =VLOOKUP($R20,'Combined scenario - output'!$B$6:$AQ$15,AV$15+2,FALSE) -> 3934.611977 | AW20: =VLOOKUP($R20,'Combined scenario - output'!$B$6:$AQ$15,AW$15+2,FALSE) -> 4288.781953 | AX20: =VLOOKUP($R20,'Combined scenario - output'!$B$6:$AQ$15,AX$15+2,FALSE) -> 4652.850652 | AY20: =VLOOKUP($R20,'Combined scenario - output'!$B$6:$AQ$15,AY$15+2,FALSE) -> 5019.1762 | AZ20: =VLOOKUP($R20,'Combined scenario - output'!$B$6:$AQ$15,AZ$15+2,FALSE) -> 5379.511057 | BA20: =VLOOKUP($R20,'Combined scenario - output'!$B$6:$AQ$15,BA$15+2,FALSE) -> 5725.348557 | BB20: =VLOOKUP($R20,'Combined scenario - output'!$B$6:$AQ$15,BB$15+2,FALSE) -> 6048.312037 | BC20: =VLOOKUP($R20,'Combined scenario - output'!$B$6:$AQ$15,BC$15+2,FALSE) -> 6340.562038 | BD20: =VLOOKUP($R20,'Combined scenario - output'!$B$6:$AQ$15,BD$15+2,FALSE) -> 6595.194033 | BE20: =VLOOKUP($R20,'Combined scenario - output'!$B$6:$AQ$15,BE$15+2,FALSE) -> 6806.597931 | BF20: =VLOOKUP($R20,'Combined scenario - output'!$B$6:$AQ$15,BF$15+2,FALSE) -> 6970.751801 | BG20: =VLOOKUP($R20,'Combined scenario - output'!$B$6:$AQ$15,BG$15+2,FALSE) -> 7085.426067
Q21: =R21&" (AusNet Repex)" -> POLES (AusNet Repex) | R21: POLES | AP21: =SUM('Unit Cost - Forecast (ZIN)'!Q5:Q21) -> 2897.420624 | AQ21: =SUM('Unit Cost - Forecast (ZIN)'!R5:R21) -> 2860.698202 | AR21: =SUM('Unit Cost - Forecast (ZIN)'!S5:S21) -> 2825.994032 | AS21: =SUM('Unit Cost - Forecast (ZIN)'!T5:T21) -> 2793.272547 | AT21: =SUM('Unit Cost - Forecast (ZIN)'!U5:U21) -> 2765.527702
Q30: OVERHEAD CONDUCTORS | S30: =T30-1 -> -20 | T30: -19 | U30: -18 | V30: -17 | W30: -16 | X30: -15 | Y30: -14 | Z30: -13 | AA30: -12 | AB30: -11 | AC30: -10 | AD30: -9 | AE30: -8 | AF30: -7 | AG30: -6 | AH30: -5 | AI30: -4 | AJ30: -3 | AK30: -2 | AL30: =AM30-1 -> -1 | AM30: 0 | AN30: =AM30+1 -> 1 | AO30: =AN30+1 -> 2 | AP30: 3 | AQ30: 4 | AR30: 5 | AS30: 6 | AT30: 7 | AU30: 8 | AV30: 9 | AW30: 10 | AX30: 11 | AY30: 12 | AZ30: 13 | BA30: 14 | BB30: 15 | BC30: 16 | BD30: 17 | BE30: 18 | BF30: 19 | BG30: 20
Q31: Expenditure | S31: 2004 | T31: 2005 | U31: 2006 | V31: 2007 | W31: 2008 | X31: 2009 | Y31: 2010 | Z31: 2011 | AA31: 2012 | AB31: 2013 | AC31: 2014 | AD31: 2015 | AE31: 2016 | AF31: 2017 | AG31: 2018 | AH31: 2019 | AI31: 2020 | AJ31: 2021 | AK31: 2022 | AL31: =AM31-1 -> 2023 | AM31: 2024 | AN31: =AM31+1 -> 2025 | AO31: 2026 | AP31: 2027 | AQ31: 2028 | AR31: 2029 | AS31: 2030 | AT31: 2031 | AU31: 2032 | AV31: 2033 | AW31: 2034 | AX31: 2035 | AY31: 2036 | AZ31: 2037 | BA31: 2038 | BB31: 2039 | BC31: 2040 | BD31: 2041 | BE31: 2042 | BF31: 2043 | BG31: 2044
Q32: =R32&" (Historic)" -> OVERHEAD CONDUCTORS (Historic) | R32: OVERHEAD CONDUCTORS | S32: =SUM('Historical scenario - input'!DP1:DP13) -> 16017.62467 | T32: =SUM('Historical scenario - input'!DO1:DO13) -> 21495.36684 | U32: =SUM('Historical scenario - input'!DN1:DN13) -> 18272.89799 | V32: =SUM('Historical scenario - input'!DM1:DM13) -> 16529.35296 | W32: =SUM('Historical scenario - input'!DL1:DL13) -> 20023.12789 | X32: =SUM('Historical scenario - input'!DK1:DK13) -> 17652.80186 | Y32: =SUM('Historical scenario - input'!DJ1:DJ13) -> 18742.92696 | Z32: =SUM('Historical scenario - input'!DI1:DI13) -> 15052.31094 | AA32: =SUM('Historical scenario - input'!DH1:DH13) -> 31269.65027 | AB32: =SUM('Historical scenario - input'!DG1:DG13) -> 5026.406907 | AC32: =SUM('Historical scenario - input'!DF1:DF13) -> 49087.78807 | AD32: =SUM('Historical scenario - input'!DE1:DE13) -> 66221.60539 | AE32: =SUM('Historical scenario - input'!DD1:DD13) -> 6358.792299 | AF32: =SUM('Historical scenario - input'!DC1:DC13) -> 27544.80186 | AG32: =SUM('Historical scenario - input'!DB1:DB13) -> 27843.72239 | AH32: =SUM('Historical scenario - input'!DA1:DA13) -> 21029.6152 | AI32: =SUM('Historical scenario - input'!CZ1:CZ13) -> 21892.72816 | AJ32: =SUM('Historical scenario - input'!CY1:CY13) -> 24992.85006 | AK32: =SUM('Historical scenario - input'!CX1:CX13) -> 30301.7819 | AL32: =SUM('Historical scenario - input'!CW1:CW13) -> 19510.1159 | AM32: =SUM('Historical scenario - input'!CV1:CV13) -> 17799.62681 | AN32: =VLOOKUP($R32,'Historical scenario - output'!$B$6:$W$15,AN$30+2,FALSE) -> 20877.00843 | AO32: =VLOOKUP($R32,'Historical scenario - output'!$B$6:$W$15,AO$30+2,FALSE) -> 22358.50893 | AP32: =VLOOKUP($R32,'Historical scenario - output'!$B$6:$W$15,AP$30+2,FALSE) -> 23836.00432 | AQ32: =VLOOKUP($R32,'Historical scenario - output'!$B$6:$W$15,AQ$30+2,FALSE) -> 25297.68387 | AR32: =VLOOKUP($R32,'Historical scenario - output'!$B$6:$W$15,AR$30+2,FALSE) -> 26748.76077 | AS32: =VLOOKUP($R32,'Historical scenario - output'!$B$6:$W$15,AS$30+2,FALSE) -> 28207.491 | AT32: =VLOOKUP($R32,'Historical scenario - output'!$B$6:$W$15,AT$30+2,FALSE) -> 29696.49209 | AU32: =VLOOKUP($R32,'Historical scenario - output'!$B$6:$W$15,AU$30+2,FALSE) -> 31233.79765 | AV32: =VLOOKUP($R32,'Historical scenario - output'!$B$6:$W$15,AV$30+2,FALSE) -> 32827.28245 | AW32: =VLOOKUP($R32,'Historical scenario - output'!$B$6:$W$15,AW$30+2,FALSE) -> 34473.46925 | AX32: =VLOOKUP($R32,'Historical scenario - output'!$B$6:$W$15,AX$30+2,FALSE) -> 36159.34556 | AY32: =VLOOKUP($R32,'Historical scenario - output'!$B$6:$W$15,AY$30+2,FALSE) -> 37865.07501 | AZ32: =VLOOKUP($R32,'Historical scenario - output'!$B$6:$W$15,AZ$30+2,FALSE) -> 39566.27757 | BA32: =VLOOKUP($R32,'Historical scenario - output'!$B$6:$W$15,BA$30+2,FALSE) -> 41235.76689 | BB32: =VLOOKUP($R32,'Historical scenario - output'!$B$6:$W$15,BB$30+2,FALSE) -> 42845.26318 | BC32: =VLOOKUP($R32,'Historical scenario - output'!$B$6:$W$15,BC$30+2,FALSE) -> 44367.42104 | BD32: =VLOOKUP($R32,'Historical scenario - output'!$B$6:$W$15,BD$30+2,FALSE) -> 45777.97165 | BE32: =VLOOKUP($R32,'Historical scenario - output'!$B$6:$W$15,BE$30+2,FALSE) -> 47057.438 | BF32: =VLOOKUP($R32,'Historical scenario - output'!$B$6:$W$15,BF$30+2,FALSE) -> 48191.96993 | BG32: =VLOOKUP($R32,'Historical scenario - output'!$B$6:$W$15,BG$30+2,FALSE) -> 49173.21505
Q33: =R33&" (Live)" -> OVERHEAD CONDUCTORS (Live) | R33: OVERHEAD CONDUCTORS | S33: =SUM('Lives scenario - input'!DR1:DR13) -> 16017.62467 | T33: =SUM('Lives scenario - input'!DQ1:DQ13) -> 21495.36684 | U33: =SUM('Lives scenario - input'!DP1:DP13) -> 18272.89799 | V33: =SUM('Lives scenario - input'!DO1:DO13) -> 16529.35296 | W33: =SUM('Lives scenario - input'!DN1:DN13) -> 20023.12789 | X33: =SUM('Lives scenario - input'!DM1:DM13) -> 17652.80186 | Y33: =SUM('Lives scenario - input'!DL1:DL13) -> 18742.92696 | Z33: =SUM('Lives scenario - input'!DK1:DK13) -> 15052.31094 | AA33: =SUM('Lives scenario - input'!DJ1:DJ13) -> 31269.65027 | AB33: =SUM('Lives scenario - input'!DI1:DI13) -> 5026.406907 | AC33: =SUM('Lives scenario - input'!DH1:DH13) -> 49087.78807 | AD33: =SUM('Lives scenario - input'!DG1:DG13) -> 66221.60539 | AE33: =SUM('Lives scenario - input'!DF1:DF13) -> 6358.792299 | AF33: =SUM('Lives scenario - input'!DE1:DE13) -> 27544.80186 | AG33: =SUM('Lives scenario - input'!DD1:DD13) -> 27843.72239 | AH33: =SUM('Lives scenario - input'!DC1:DC13) -> 21029.6152 | AI33: =SUM('Lives scenario - input'!DB1:DB13) -> 21892.72816 | AJ33: =SUM('Lives scenario - input'!DA1:DA13) -> 24992.85006 | AK33: =SUM('Lives scenario - input'!CZ1:CZ13) -> 30301.7819 | AL33: =SUM('Lives scenario - input'!CY1:CY13) -> 19510.1159 | AM33: =SUM('Lives scenario - input'!CX1:CX13) -> 17799.62681 | AN33: =VLOOKUP($R33,'Lives scenario - output'!$B$6:$W$15,AN$30+2,FALSE) -> 19594.26058 | AO33: =VLOOKUP($R33,'Lives scenario - output'!$B$6:$W$15,AO$30+2,FALSE) -> 20850.67951 | AP33: =VLOOKUP($R33,'Lives scenario - output'!$B$6:$W$15,AP$30+2,FALSE) -> 22169.71304 | AQ33: =VLOOKUP($R33,'Lives scenario - output'!$B$6:$W$15,AQ$30+2,FALSE) -> 23553.2963 | AR33: =VLOOKUP($R33,'Lives scenario - output'!$B$6:$W$15,AR$30+2,FALSE) -> 25001.48413 | AS33: =VLOOKUP($R33,'Lives scenario - output'!$B$6:$W$15,AS$30+2,FALSE) -> 26512.13595 | AT33: =VLOOKUP($R33,'Lives scenario - output'!$B$6:$W$15,AT$30+2,FALSE) -> 28080.67441 | AU33: =VLOOKUP($R33,'Lives scenario - output'!$B$6:$W$15,AU$30+2,FALSE) -> 29699.93208 | AV33: =VLOOKUP($R33,'Lives scenario - output'!$B$6:$W$15,AV$30+2,FALSE) -> 31360.0989 | AW33: =VLOOKUP($R33,'Lives scenario - output'!$B$6:$W$15,AW$30+2,FALSE) -> 33048.78134 | AX33: =VLOOKUP($R33,'Lives scenario - output'!$B$6:$W$15,AX$30+2,FALSE) -> 34751.18129 | AY33: =VLOOKUP($R33,'Lives scenario - output'!$B$6:$W$15,AY$30+2,FALSE) -> 36450.39896 | AZ33: =VLOOKUP($R33,'Lives scenario - output'!$B$6:$W$15,AZ$30+2,FALSE) -> 38127.85891 | BA33: =VLOOKUP($R33,'Lives scenario - output'!$B$6:$W$15,BA$30+2,FALSE) -> 39763.85092 | BB33: =VLOOKUP($R33,'Lives scenario - output'!$B$6:$W$15,BB$30+2,FALSE) -> 41338.16948 | BC33: =VLOOKUP($R33,'Lives scenario - output'!$B$6:$W$15,BC$30+2,FALSE) -> 42830.82642 | BD33: =VLOOKUP($R33,'Lives scenario - output'!$B$6:$W$15,BD$30+2,FALSE) -> 44222.80244 | BE33: =VLOOKUP($R33,'Lives scenario - output'!$B$6:$W$15,BE$30+2,FALSE) -> 45496.79572 | BF33: =VLOOKUP($R33,'Lives scenario - output'!$B$6:$W$15,BF$30+2,FALSE) -> 46637.92102 | BG33: =VLOOKUP($R33,'Lives scenario - output'!$B$6:$W$15,BG$30+2,FALSE) -> 47634.3115
Q34: =R34&" (Cost)" -> OVERHEAD CONDUCTORS (Cost) | R34: OVERHEAD CONDUCTORS | S34: =SUM('Cost scenario - input'!DS1:DS13) -> 11986.21932 | T34: =SUM('Cost scenario - input'!DR1:DR13) -> 15875.28449 | U34: =SUM('Cost scenario - input'!DQ1:DQ13) -> 13570.27137 | V34: =SUM('Cost scenario - input'!DP1:DP13) -> 12397.42377 | W34: =SUM('Cost scenario - input'!DO1:DO13) -> 14654.28179 | X34: =SUM('Cost scenario - input'!DN1:DN13) -> 12827.25704 | Y34: =SUM('Cost scenario - input'!DM1:DM13) -> 13518.53935 | Z34: =SUM('Cost scenario - input'!DL1:DL13) -> 11154.54251 | AA34: =SUM('Cost scenario - input'!DK1:DK13) -> 23213.36255 | AB34: =SUM('Cost scenario - input'!DJ1:DJ13) -> 4120.59939 | AC34: =SUM('Cost scenario - input'!DI1:DI13) -> 37932.72197 | AD34: =SUM('Cost scenario - input'!DH1:DH13) -> 53307.65957 | AE34: =SUM('Cost scenario - input'!DG1:DG13) -> 6350.785511 | AF34: =SUM('Cost scenario - input'!DF1:DF13) -> 20812.0842 | AG34: =SUM('Cost scenario - input'!DE1:DE13) -> 21029.61826 | AH34: =SUM('Cost scenario - input'!DD1:DD13) -> 15527.68696 | AI34: =SUM('Cost scenario - input'!DC1:DC13) -> 16558.65985 | AJ34: =SUM('Cost scenario - input'!DB1:DB13) -> 18864.31331 | AK34: =SUM('Cost scenario - input'!DA1:DA13) -> 22468.69566 | AL34: =SUM('Cost scenario - input'!CZ1:CZ13) -> 15079.72222 | AM34: =SUM('Cost scenario - input'!CY1:CY13) -> 13292.28911 | AN34: =VLOOKUP($R34,'Cost scenario - output'!$B$6:$W$15,AN$30+2,FALSE) -> 15230.47172 | AO34: =VLOOKUP($R34,'Cost scenario - output'!$B$6:$W$15,AO$30+2,FALSE) -> 16389.87401 | AP34: =VLOOKUP($R34,'Cost scenario - output'!$B$6:$W$15,AP$30+2,FALSE) -> 17533.51254 | AQ34: =VLOOKUP($R34,'Cost scenario - output'!$B$6:$W$15,AQ$30+2,FALSE) -> 18648.76195 | AR34: =VLOOKUP($R34,'Cost scenario - output'!$B$6:$W$15,AR$30+2,FALSE) -> 19740.32671 | AS34: =VLOOKUP($R34,'Cost scenario - output'!$B$6:$W$15,AS$30+2,FALSE) -> 20826.34117 | AT34: =VLOOKUP($R34,'Cost scenario - output'!$B$6:$W$15,AT$30+2,FALSE) -> 21929.76075 | AU34: =VLOOKUP($R34,'Cost scenario - output'!$B$6:$W$15,AU$30+2,FALSE) -> 23069.47765 | AV34: =VLOOKUP($R34,'Cost scenario - output'!$B$6:$W$15,AV$30+2,FALSE) -> 24254.79279 | AW34: =VLOOKUP($R34,'Cost scenario - output'!$B$6:$W$15,AW$30+2,FALSE) -> 25484.25147 | AX34: =VLOOKUP($R34,'Cost scenario - output'!$B$6:$W$15,AX$30+2,FALSE) -> 26747.46699 | AY34: =VLOOKUP($R34,'Cost scenario - output'!$B$6:$W$15,AY$30+2,FALSE) -> 28027.81279 | AZ34: =VLOOKUP($R34,'Cost scenario - output'!$B$6:$W$15,AZ$30+2,FALSE) -> 29304.65357 | BA34: =VLOOKUP($R34,'Cost scenario - output'!$B$6:$W$15,BA$30+2,FALSE) -> 30555.00159 | BB34: =VLOOKUP($R34,'Cost scenario - output'!$B$6:$W$15,BB$30+2,FALSE) -> 31755.11619 | BC34: =VLOOKUP($R34,'Cost scenario - output'!$B$6:$W$15,BC$30+2,FALSE) -> 32882.38817 | BD34: =VLOOKUP($R34,'Cost scenario - output'!$B$6:$W$15,BD$30+2,FALSE) -> 33917.31413 | BE34: =VLOOKUP($R34,'Cost scenario - output'!$B$6:$W$15,BE$30+2,FALSE) -> 34845.02793 | BF34: =VLOOKUP($R34,'Cost scenario - output'!$B$6:$W$15,BF$30+2,FALSE) -> 35655.94714 | BG34: =VLOOKUP($R34,'Cost scenario - output'!$B$6:$W$15,BG$30+2,FALSE) -> 36345.46385
Q35: =R35&" (Combined)" -> OVERHEAD CONDUCTORS (Combined) | R35: OVERHEAD CONDUCTORS | S35: =SUM('Combined scenario - input'!DP1:DP13) -> 11986.21932 | T35: =SUM('Combined scenario - input'!DO1:DO13) -> 15875.28449 | U35: =SUM('Combined scenario - input'!DN1:DN13) -> 13570.27137 | V35: =SUM('Combined scenario - input'!DM1:DM13) -> 12397.42377 | W35: =SUM('Combined scenario - input'!DL1:DL13) -> 14654.28179 | X35: =SUM('Combined scenario - input'!DK1:DK13) -> 12827.25704 | Y35: =SUM('Combined scenario - input'!DJ1:DJ13) -> 13518.53935 | Z35: =SUM('Combined scenario - input'!DI1:DI13) -> 11154.54251 | AA35: =SUM('Combined scenario - input'!DH1:DH13) -> 23213.36255 | AB35: =SUM('Combined scenario - input'!DG1:DG13) -> 4120.59939 | AC35: =SUM('Combined scenario - input'!DF1:DF13) -> 37932.72197 | AD35: =SUM('Combined scenario - input'!DE1:DE13) -> 53307.65957 | AE35: =SUM('Combined scenario - input'!DD1:DD13) -> 6350.785511 | AF35: =SUM('Combined scenario - input'!DC1:DC13) -> 20812.0842 | AG35: =SUM('Combined scenario - input'!DB1:DB13) -> 21029.61826 | AH35: =SUM('Combined scenario - input'!DA1:DA13) -> 15527.68696 | AI35: =SUM('Combined scenario - input'!CZ1:CZ13) -> 16558.65985 | AJ35: =SUM('Combined scenario - input'!CY1:CY13) -> 18864.31331 | AK35: =SUM('Combined scenario - input'!CX1:CX13) -> 22468.69566 | AL35: =SUM('Combined scenario - input'!CW1:CW13) -> 15079.72222 | AM35: =SUM('Combined scenario - input'!CV1:CV13) -> 13292.28911 | AN35: =VLOOKUP($R35,'Combined scenario - output'!$B$6:$W$15,AN$30+2,FALSE) -> 13947.72387 | AO35: =VLOOKUP($R35,'Combined scenario - output'!$B$6:$W$15,AO$30+2,FALSE) -> 14882.04459 | AP35: =VLOOKUP($R35,'Combined scenario - output'!$B$6:$W$15,AP$30+2,FALSE) -> 15867.22126 | AQ35: =VLOOKUP($R35,'Combined scenario - output'!$B$6:$W$15,AQ$30+2,FALSE) -> 16904.37438 | AR35: =VLOOKUP($R35,'Combined scenario - output'!$B$6:$W$15,AR$30+2,FALSE) -> 17993.05007 | AS35: =VLOOKUP($R35,'Combined scenario - output'!$B$6:$W$15,AS$30+2,FALSE) -> 19130.98612 | AT35: =VLOOKUP($R35,'Combined scenario - output'!$B$6:$W$15,AT$30+2,FALSE) -> 20313.94307 | AU35: =VLOOKUP($R35,'Combined scenario - output'!$B$6:$W$15,AU$30+2,FALSE) -> 21535.61208 | AV35: =VLOOKUP($R35,'Combined scenario - output'!$B$6:$W$15,AV$30+2,FALSE) -> 22787.60924 | AW35: =VLOOKUP($R35,'Combined scenario - output'!$B$6:$W$15,AW$30+2,FALSE) -> 24059.56356 | AX35: =VLOOKUP($R35,'Combined scenario - output'!$B$6:$W$15,AX$30+2,FALSE) -> 25339.30272 | AY35: =VLOOKUP($R35,'Combined scenario - output'!$B$6:$W$15,AY$30+2,FALSE) -> 26613.13674 | AZ35: =VLOOKUP($R35,'Combined scenario - output'!$B$6:$W$15,AZ$30+2,FALSE) -> 27866.23491 | BA35: =VLOOKUP($R35,'Combined scenario - output'!$B$6:$W$15,BA$30+2,FALSE) -> 29083.08563 | BB35: =VLOOKUP($R35,'Combined scenario - output'!$B$6:$W$15,BB$30+2,FALSE) -> 30248.02249 | BC35: =VLOOKUP($R35,'Combined scenario - output'!$B$6:$W$15,BC$30+2,FALSE) -> 31345.79354 | BD35: =VLOOKUP($R35,'Combined scenario - output'!$B$6:$W$15,BD$30+2,FALSE) -> 32362.14492 | BE35: =VLOOKUP($R35,'Combined scenario - output'!$B$6:$W$15,BE$30+2,FALSE) -> 33284.38564 | BF35: =VLOOKUP($R35,'Combined scenario - output'!$B$6:$W$15,BF$30+2,FALSE) -> 34101.89823 | BG35: =VLOOKUP($R35,'Combined scenario - output'!$B$6:$W$15,BG$30+2,FALSE) -> 34806.56029
Q36: =R36&" (AusNet Repex)" -> OVERHEAD CONDUCTORS (AusNet Repex) | R36: OVERHEAD CONDUCTORS | AP36: =SUM('Unit Cost - Forecast (ZIN)'!G31:G39)/1000 -> 24516.34472 | AQ36: =SUM('Unit Cost - Forecast (ZIN)'!H31:H39)/1000 -> 24952.59609 | AR36: =SUM('Unit Cost - Forecast (ZIN)'!I31:I39)/1000 -> 25473.98071 | AS36: =SUM('Unit Cost - Forecast (ZIN)'!J31:J39)/1000 -> 25984.48201 | AT36: =SUM('Unit Cost - Forecast (ZIN)'!K31:K39)/1000 -> 26204.22748
S44: =T44-1 -> -20 | T44: -19 | U44: -18 | V44: -17 | W44: -16 | X44: -15 | Y44: -14 | Z44: -13 | AA44: -12 | AB44: -11 | AC44: -10 | AD44: -9 | AE44: -8 | AF44: -7 | AG44: -6 | AH44: -5 | AI44: -4 | AJ44: -3 | AK44: -2 | AL44: =AM44-1 -> -1 | AM44: 0 | AN44: 21 | AO44: =AN44+1 -> 22 | AP44: 23 | AQ44: 24 | AR44: 25 | AS44: 26 | AT44: 27 | AU44: 28 | AV44: 29 | AW44: 30 | AX44: 31 | AY44: 32 | AZ44: 33 | BA44: 34 | BB44: 35 | BC44: 36 | BD44: 37 | BE44: 38 | BF44: 39 | BG44: 40
Q45: Volume | S45: 2004 | T45: 2005 | U45: 2006 | V45: 2007 | W45: 2008 | X45: 2009 | Y45: 2010 | Z45: 2011 | AA45: 2012 | AB45: 2013 | AC45: 2014 | AD45: 2015 | AE45: 2016 | AF45: 2017 | AG45: 2018 | AH45: 2019 | AI45: 2020 | AJ45: 2021 | AK45: 2022 | AL45: =AM45-1 -> 2023 | AM45: 2024 | AN45: =AM45+1 -> 2025 | AO45: =AN45+1 -> 2026 | AP45: 2027 | AQ45: 2028 | AR45: 2029 | AS45: 2030 | AT45: 2031 | AU45: 2032 | AV45: 2033 | AW45: 2034 | AX45: 2035 | AY45: 2036 | AZ45: 2037 | BA45: 2038 | BB45: 2039 | BC45: 2040 | BD45: 2041 | BE45: 2042 | BF45: 2043 | BG45: 2044
Q46: =R46&" (Historic)" -> OVERHEAD CONDUCTORS (Historic) | R46: OVERHEAD CONDUCTORS | S46: =SUM('Historical scenario - input'!AB6:AB13) -> 154.3599176 | T46: =SUM('Historical scenario - input'!AA6:AA13) -> 215.5531163 | U46: =SUM('Historical scenario - input'!Z6:Z13) -> 178.2141562 | V46: =SUM('Historical scenario - input'!Y6:Y13) -> 160.6585452 | W46: =SUM('Historical scenario - input'!X6:X13) -> 192.8932427 | X46: =SUM('Historical scenario - input'!W6:W13) -> 161.6461102 | Y46: =SUM('Historical scenario - input'!V6:V13) -> 170.6861828 | Z46: =SUM('Historical scenario - input'!U6:U13) -> 139.3497133 | AA46: =SUM('Historical scenario - input'!T6:T13) -> 336.3728566 | AB46: =SUM('Historical scenario - input'!S6:S13) -> 31.74460072 | AC46: =SUM('Historical scenario - input'!R6:R13) -> 591.7571448 | AD46: =SUM('Historical scenario - input'!Q6:Q13) -> 837.0228935 | AE46: =SUM('Historical scenario - input'!P6:P13) -> 98.69681448 | AF46: =SUM('Historical scenario - input'!O6:O13) -> 285.8288777 | AG46: =SUM('Historical scenario - input'!N6:N13) -> 289.0534594 | AH46: =SUM('Historical scenario - input'!M6:M13) -> 202.6515932 | AI46: =SUM('Historical scenario - input'!L6:L13) -> 227.938486 | AJ46: =SUM('Historical scenario - input'!K6:K13) -> 260.1077822 | AK46: =SUM('Historical scenario - input'!J6:J13) -> 305.4652699 | AL46: =SUM('Historical scenario - input'!I6:I13) -> 194.5975325 | AM46: =SUM('Historical scenario - input'!H6:H13) -> 175.661014 | AN46: =VLOOKUP($R46,'Historical scenario - output'!$B$6:$AQ$15,AN$44+2,FALSE) -> 232.7517752 | AO46: =VLOOKUP($R46,'Historical scenario - output'!$B$6:$AQ$15,AO$44+2,FALSE) -> 251.3895301 | AP46: =VLOOKUP($R46,'Historical scenario - output'!$B$6:$AQ$15,AP$44+2,FALSE) -> 269.8665678 | AQ46: =VLOOKUP($R46,'Historical scenario - output'!$B$6:$AQ$15,AQ$44+2,FALSE) -> 287.9786444 | AR46: =VLOOKUP($R46,'Historical scenario - output'!$B$6:$AQ$15,AR$44+2,FALSE) -> 305.7912498 | AS46: =VLOOKUP($R46,'Historical scenario - output'!$B$6:$AQ$15,AS$44+2,FALSE) -> 323.5782792 | AT46: =VLOOKUP($R46,'Historical scenario - output'!$B$6:$AQ$15,AT$44+2,FALSE) -> 341.6868197 | AU46: =VLOOKUP($R46,'Historical scenario - output'!$B$6:$AQ$15,AU$44+2,FALSE) -> 360.3977749 | AV46: =VLOOKUP($R46,'Historical scenario - output'!$B$6:$AQ$15,AV$44+2,FALSE) -> 379.8394289 | AW46: =VLOOKUP($R46,'Historical scenario - output'!$B$6:$AQ$15,AW$44+2,FALSE) -> 399.9697798 | AX46: =VLOOKUP($R46,'Historical scenario - output'!$B$6:$AQ$15,AX$44+2,FALSE) -> 420.6059787 | AY46: =VLOOKUP($R46,'Historical scenario - output'!$B$6:$AQ$15,AY$44+2,FALSE) -> 441.4675028 | AZ46: =VLOOKUP($R46,'Historical scenario - output'!$B$6:$AQ$15,AZ$44+2,FALSE) -> 462.2121041 | BA46: =VLOOKUP($R46,'Historical scenario - output'!$B$6:$AQ$15,BA$44+2,FALSE) -> 482.4626807 | BB46: =VLOOKUP($R46,'Historical scenario - output'!$B$6:$AQ$15,BB$44+2,FALSE) -> 501.8331528 | BC46: =VLOOKUP($R46,'Historical scenario - output'!$B$6:$AQ$15,BC$44+2,FALSE) -> 519.9586635 | BD46: =VLOOKUP($R46,'Historical scenario - output'!$B$6:$AQ$15,BD$44+2,FALSE) -> 536.5269926 | BE46: =VLOOKUP($R46,'Historical scenario - output'!$B$6:$AQ$15,BE$44+2,FALSE) -> 551.30278 | BF46: =VLOOKUP($R46,'Historical scenario - output'!$B$6:$AQ$15,BF$44+2,FALSE) -> 564.1376021 | BG46: =VLOOKUP($R46,'Historical scenario - output'!$B$6:$AQ$15,BG$44+2,FALSE) -> 574.9647986
Q47: =R47&" (Live)" -> OVERHEAD CONDUCTORS (Live) | R47: OVERHEAD CONDUCTORS | S47: =SUM('Lives scenario - input'!AD6:AD13) -> 154.3599176 | T47: =SUM('Lives scenario - input'!AC6:AC13) -> 215.5531163 | U47: =SUM('Lives scenario - input'!AB6:AB13) -> 178.2141562 | V47: =SUM('Lives scenario - input'!AA6:AA13) -> 160.6585452 | W47: =SUM('Lives scenario - input'!Z6:Z13) -> 192.8932427 | X47: =SUM('Lives scenario - input'!Y6:Y13) -> 161.6461102 | Y47: =SUM('Lives scenario - input'!X6:X13) -> 170.6861828 | Z47: =SUM('Lives scenario - input'!W6:W13) -> 139.3497133 | AA47: =SUM('Lives scenario - input'!V6:V13) -> 336.3728566 | AB47: =SUM('Lives scenario - input'!U6:U13) -> 31.74460072 | AC47: =SUM('Lives scenario - input'!T6:T13) -> 591.7571448 | AD47: =SUM('Lives scenario - input'!S6:S13) -> 837.0228935 | AE47: =SUM('Lives scenario - input'!R6:R13) -> 98.69681448 | AF47: =SUM('Lives scenario - input'!Q6:Q13) -> 285.8288777 | AG47: =SUM('Lives scenario - input'!P6:P13) -> 289.0534594 | AH47: =SUM('Lives scenario - input'!O6:O13) -> 202.6515932 | AI47: =SUM('Lives scenario - input'!N6:N13) -> 227.938486 | AJ47: =SUM('Lives scenario - input'!M6:M13) -> 260.1077822 | AK47: =SUM('Lives scenario - input'!L6:L13) -> 305.4652699 | AL47: =SUM('Lives scenario - input'!K6:K13) -> 194.5975325 | AM47: =SUM('Lives scenario - input'!J6:J13) -> 175.661014 | AN47: =VLOOKUP($R47,'Lives scenario - output'!$B$6:$AQ$15,AN$44+2,FALSE) -> 212.5827394 | AO47: =VLOOKUP($R47,'Lives scenario - output'!$B$6:$AQ$15,AO$44+2,FALSE) -> 227.6814683 | AP47: =VLOOKUP($R47,'Lives scenario - output'!$B$6:$AQ$15,AP$44+2,FALSE) -> 243.6669618 | AQ47: =VLOOKUP($R47,'Lives scenario - output'!$B$6:$AQ$15,AQ$44+2,FALSE) -> 260.5511067 | AR47: =VLOOKUP($R47,'Lives scenario - output'!$B$6:$AQ$15,AR$44+2,FALSE) -> 278.3182863 | AS47: =VLOOKUP($R47,'Lives scenario - output'!$B$6:$AQ$15,AS$44+2,FALSE) -> 296.9216945 | AT47: =VLOOKUP($R47,'Lives scenario - output'!$B$6:$AQ$15,AT$44+2,FALSE) -> 316.2808255 | AU47: =VLOOKUP($R47,'Lives scenario - output'!$B$6:$AQ$15,AU$44+2,FALSE) -> 336.2803387 | AV47: =VLOOKUP($R47,'Lives scenario - output'!$B$6:$AQ$15,AV$44+2,FALSE) -> 356.7704544 | AW47: =VLOOKUP($R47,'Lives scenario - output'!$B$6:$AQ$15,AW$44+2,FALSE) -> 377.5689773 | AX47: =VLOOKUP($R47,'Lives scenario - output'!$B$6:$AQ$15,AX$44+2,FALSE) -> 398.4649824 | AY47: =VLOOKUP($R47,'Lives scenario - output'!$B$6:$AQ$15,AY$44+2,FALSE) -> 419.2241197 | AZ47: =VLOOKUP($R47,'Lives scenario - output'!$B$6:$AQ$15,AZ$44+2,FALSE) -> 439.5954088 | BA47: =VLOOKUP($R47,'Lives scenario - output'!$B$6:$AQ$15,BA$44+2,FALSE) -> 459.319297 | BB47: =VLOOKUP($R47,'Lives scenario - output'!$B$6:$AQ$15,BB$44+2,FALSE) -> 478.1366589 | BC47: =VLOOKUP($R47,'Lives scenario - output'!$B$6:$AQ$15,BC$44+2,FALSE) -> 495.7983176 | BD47: =VLOOKUP($R47,'Lives scenario - output'!$B$6:$AQ$15,BD$44+2,FALSE) -> 512.0745927 | BE47: =VLOOKUP($R47,'Lives scenario - output'!$B$6:$AQ$15,BE$44+2,FALSE) -> 526.7643254 | BF47: =VLOOKUP($R47,'Lives scenario - output'!$B$6:$AQ$15,BF$44+2,FALSE) -> 539.7028171 | BG47: =VLOOKUP($R47,'Lives scenario - output'!$B$6:$AQ$15,BG$44+2,FALSE) -> 550.7681486
Q48: =R48&" (Cost)" -> OVERHEAD CONDUCTORS (Cost) | R48: OVERHEAD CONDUCTORS | S48: =SUM('Cost scenario - input'!AE6:AE13) -> 154.3599176 | T48: =SUM('Cost scenario - input'!AD6:AD13) -> 215.5531163 | U48: =SUM('Cost scenario - input'!AC6:AC13) -> 178.2141562 | V48: =SUM('Cost scenario - input'!AB6:AB13) -> 160.6585452 | W48: =SUM('Cost scenario - input'!AA6:AA13) -> 192.8932427 | X48: =SUM('Cost scenario - input'!Z6:Z13) -> 161.6461102 | Y48: =SUM('Cost scenario - input'!Y6:Y13) -> 170.6861828 | Z48: =SUM('Cost scenario - input'!X6:X13) -> 139.3497133 | AA48: =SUM('Cost scenario - input'!W6:W13) -> 336.3728566 | AB48: =SUM('Cost scenario - input'!V6:V13) -> 31.74460072 | AC48: =SUM('Cost scenario - input'!U6:U13) -> 591.7571448 | AD48: =SUM('Cost scenario - input'!T6:T13) -> 837.0228935 | AE48: =SUM('Cost scenario - input'!S6:S13) -> 98.69681448 | AF48: =SUM('Cost scenario - input'!R6:R13) -> 285.8288777 | AG48: =SUM('Cost scenario - input'!Q6:Q13) -> 289.0534594 | AH48: =SUM('Cost scenario - input'!P6:P13) -> 202.6515932 | AI48: =SUM('Cost scenario - input'!O6:O13) -> 227.938486 | AJ48: =SUM('Cost scenario - input'!N6:N13) -> 260.1077822 | AK48: =SUM('Cost scenario - input'!M6:M13) -> 305.4652699 | AL48: =SUM('Cost scenario - input'!L6:L13) -> 194.5975325 | AM48: =SUM('Cost scenario - input'!K6:K13) -> 175.661014 | AN48: =VLOOKUP($R48,'Cost scenario - output'!$B$6:$AQ$15,AN$44+2,FALSE) -> 232.7517752 | AO48: =VLOOKUP($R48,'Cost scenario - output'!$B$6:$AQ$15,AO$44+2,FALSE) -> 251.3895301 | AP48: =VLOOKUP($R48,'Cost scenario - output'!$B$6:$AQ$15,AP$44+2,FALSE) -> 269.8665678 | AQ48: =VLOOKUP($R48,'Cost scenario - output'!$B$6:$AQ$15,AQ$44+2,FALSE) -> 287.9786444 | AR48: =VLOOKUP($R48,'Cost scenario - output'!$B$6:$AQ$15,AR$44+2,FALSE) -> 305.7912498 | AS48: =VLOOKUP($R48,'Cost scenario - output'!$B$6:$AQ$15,AS$44+2,FALSE) -> 323.5782792 | AT48: =VLOOKUP($R48,'Cost scenario - output'!$B$6:$AQ$15,AT$44+2,FALSE) -> 341.6868197 | AU48: =VLOOKUP($R48,'Cost scenario - output'!$B$6:$AQ$15,AU$44+2,FALSE) -> 360.3977749 | AV48: =VLOOKUP($R48,'Cost scenario - output'!$B$6:$AQ$15,AV$44+2,FALSE) -> 379.8394289 | AW48: =VLOOKUP($R48,'Cost scenario - output'!$B$6:$AQ$15,AW$44+2,FALSE) -> 399.9697798 | AX48: =VLOOKUP($R48,'Cost scenario - output'!$B$6:$AQ$15,AX$44+2,FALSE) -> 420.6059787 | AY48: =VLOOKUP($R48,'Cost scenario - output'!$B$6:$AQ$15,AY$44+2,FALSE) -> 441.4675028 | AZ48: =VLOOKUP($R48,'Cost scenario - output'!$B$6:$AQ$15,AZ$44+2,FALSE) -> 462.2121041 | BA48: =VLOOKUP($R48,'Cost scenario - output'!$B$6:$AQ$15,BA$44+2,FALSE) -> 482.4626807 | BB48: =VLOOKUP($R48,'Cost scenario - output'!$B$6:$AQ$15,BB$44+2,FALSE) -> 501.8331528 | BC48: =VLOOKUP($R48,'Cost scenario - output'!$B$6:$AQ$15,BC$44+2,FALSE) -> 519.9586635 | BD48: =VLOOKUP($R48,'Cost scenario - output'!$B$6:$AQ$15,BD$44+2,FALSE) -> 536.5269926 | BE48: =VLOOKUP($R48,'Cost scenario - output'!$B$6:$AQ$15,BE$44+2,FALSE) -> 551.30278 | BF48: =VLOOKUP($R48,'Cost scenario - output'!$B$6:$AQ$15,BF$44+2,FALSE) -> 564.1376021 | BG48: =VLOOKUP($R48,'Cost scenario - output'!$B$6:$AQ$15,BG$44+2,FALSE) -> 574.9647986
Q49: =R49&" (Combined)" -> OVERHEAD CONDUCTORS (Combined) | R49: OVERHEAD CONDUCTORS | S49: =SUM('Combined scenario - input'!AB6:AB13) -> 154.3599176 | T49: =SUM('Combined scenario - input'!AA6:AA13) -> 215.5531163 | U49: =SUM('Combined scenario - input'!Z6:Z13) -> 178.2141562 | V49: =SUM('Combined scenario - input'!Y6:Y13) -> 160.6585452 | W49: =SUM('Combined scenario - input'!X6:X13) -> 192.8932427 | X49: =SUM('Combined scenario - input'!W6:W13) -> 161.6461102 | Y49: =SUM('Combined scenario - input'!V6:V13) -> 170.6861828 | Z49: =SUM('Combined scenario - input'!U6:U13) -> 139.3497133 | AA49: =SUM('Combined scenario - input'!T6:T13) -> 336.3728566 | AB49: =SUM('Combined scenario - input'!S6:S13) -> 31.74460072 | AC49: =SUM('Combined scenario - input'!R6:R13) -> 591.7571448 | AD49: =SUM('Combined scenario - input'!Q6:Q13) -> 837.0228935 | AE49: =SUM('Combined scenario - input'!P6:P13) -> 98.69681448 | AF49: =SUM('Combined scenario - input'!O6:O13) -> 285.8288777 | AG49: =SUM('Combined scenario - input'!N6:N13) -> 289.0534594 | AH49: =SUM('Combined scenario - input'!M6:M13) -> 202.6515932 | AI49: =SUM('Combined scenario - input'!L6:L13) -> 227.938486 | AJ49: =SUM('Combined scenario - input'!K6:K13) -> 260.1077822 | AK49: =SUM('Combined scenario - input'!J6:J13) -> 305.4652699 | AL49: =SUM('Combined scenario - input'!I6:I13) -> 194.5975325 | AM49: =SUM('Combined scenario - input'!H6:H13) -> 175.661014 | AN49: =VLOOKUP($R49,'Combined scenario - output'!$B$6:$AQ$15,AN$44+2,FALSE) -> 212.5827394 | AO49: =VLOOKUP($R49,'Combined scenario - output'!$B$6:$AQ$15,AO$44+2,FALSE) -> 227.6814683 | AP49: =VLOOKUP($R49,'Combined scenario - output'!$B$6:$AQ$15,AP$44+2,FALSE) -> 243.6669618 | AQ49: =VLOOKUP($R49,'Combined scenario - output'!$B$6:$AQ$15,AQ$44+2,FALSE) -> 260.5511067 | AR49: =VLOOKUP($R49,'Combined scenario - output'!$B$6:$AQ$15,AR$44+2,FALSE) -> 278.3182863 | AS49: =VLOOKUP($R49,'Combined scenario - output'!$B$6:$AQ$15,AS$44+2,FALSE) -> 296.9216945 | AT49: =VLOOKUP($R49,'Combined scenario - output'!$B$6:$AQ$15,AT$44+2,FALSE) -> 316.2808255 | AU49: =VLOOKUP($R49,'Combined scenario - output'!$B$6:$AQ$15,AU$44+2,FALSE) -> 336.2803387 | AV49: =VLOOKUP($R49,'Combined scenario - output'!$B$6:$AQ$15,AV$44+2,FALSE) -> 356.7704544 | AW49: =VLOOKUP($R49,'Combined scenario - output'!$B$6:$AQ$15,AW$44+2,FALSE) -> 377.5689773 | AX49: =VLOOKUP($R49,'Combined scenario - output'!$B$6:$AQ$15,AX$44+2,FALSE) -> 398.4649824 | AY49: =VLOOKUP($R49,'Combined scenario - output'!$B$6:$AQ$15,AY$44+2,FALSE) -> 419.2241197 | AZ49: =VLOOKUP($R49,'Combined scenario - output'!$B$6:$AQ$15,AZ$44+2,FALSE) -> 439.5954088 | BA49: =VLOOKUP($R49,'Combined scenario - output'!$B$6:$AQ$15,BA$44+2,FALSE) -> 459.319297 | BB49: =VLOOKUP($R49,'Combined scenario - output'!$B$6:$AQ$15,BB$44+2,FALSE) -> 478.1366589 | BC49: =VLOOKUP($R49,'Combined scenario - output'!$B$6:$AQ$15,BC$44+2,FALSE) -> 495.7983176 | BD49: =VLOOKUP($R49,'Combined scenario - output'!$B$6:$AQ$15,BD$44+2,FALSE) -> 512.0745927 | BE49: =VLOOKUP($R49,'Combined scenario - output'!$B$6:$AQ$15,BE$44+2,FALSE) -> 526.7643254 | BF49: =VLOOKUP($R49,'Combined scenario - output'!$B$6:$AQ$15,BF$44+2,FALSE) -> 539.7028171 | BG49: =VLOOKUP($R49,'Combined scenario - output'!$B$6:$AQ$15,BG$44+2,FALSE) -> 550.7681486
Q50: =R50&" (AusNet Repex)" -> OVERHEAD CONDUCTORS (AusNet Repex) | R50: OVERHEAD CONDUCTORS | AP50: =SUM('Unit Cost - Forecast (ZIN)'!Q31:Q39) -> 180.4637314 | AQ50: =SUM('Unit Cost - Forecast (ZIN)'!R31:R39) -> 183.4597314 | AR50: =SUM('Unit Cost - Forecast (ZIN)'!S31:S39) -> 186.4597314 | AS50: =SUM('Unit Cost - Forecast (ZIN)'!T31:T39) -> 188.4597314 | AT50: =SUM('Unit Cost - Forecast (ZIN)'!U31:U39) -> 188.4597314
Q60: SERVICE LINES
Q61: Expenditure | S61: =T61-1 -> 2004 | T61: 2005 | U61: 2006 | V61: 2007 | W61: 2008 | X61: 2009 | Y61: 2010 | Z61: 2011 | AA61: 2012 | AB61: 2013 | AC61: 2014 | AD61: 2015 | AE61: 2016 | AF61: 2017 | AG61: 2018 | AH61: 2019 | AI61: 2020 | AJ61: 2021 | AK61: 2022 | AL61: 2023 | AM61: 2024 | AN61: =AM61+1 -> 2025 | AO61: 2026 | AP61: 2027 | AQ61: 2028 | AR61: 2029 | AS61: 2030 | AT61: 2031 | AU61: 2032 | AV61: 2033 | AW61: 2034 | AX61: 2035 | AY61: 2036 | AZ61: 2037 | BA61: 2038 | BB61: 2039 | BC61: 2040 | BD61: 2041 | BE61: 2042 | BF61: 2043 | BG61: 2044
Q62: =R62&" (Historic)" -> SERVICE LINES (Historic) | R62: SERVICE LINES | S62: =SUM('Historical scenario - input'!DP31:DP32) -> 4610.134231 | T62: =SUM('Historical scenario - input'!DO31:DO32) -> 4281.090617 | U62: =SUM('Historical scenario - input'!DN31:DN32) -> 4242.511993 | V62: =SUM('Historical scenario - input'!DM31:DM32) -> 4215.990765 | W62: =SUM('Historical scenario - input'!DL31:DL32) -> 6617.23302 | X62: =SUM('Historical scenario - input'!DK31:DK32) -> 22782.10539 | Y62: =SUM('Historical scenario - input'!DJ31:DJ32) -> 20681.23189 | Z62: =SUM('Historical scenario - input'!DI31:DI32) -> 20206.92636 | AA62: =SUM('Historical scenario - input'!DH31:DH32) -> 18726.70148 | AB62: =SUM('Historical scenario - input'!DG31:DG32) -> 22919.47547 | AC62: =SUM('Historical scenario - input'!DF31:DF32) -> 33106.57729 | AD62: =SUM('Historical scenario - input'!DE31:DE32) -> 23553.71668 | AE62: =SUM('Historical scenario - input'!DD31:DD32) -> 11156.66308 | AF62: =SUM('Historical scenario - input'!DC31:DC32) -> 18163.86714 | AG62: =SUM('Historical scenario - input'!DB31:DB32) -> 19850.91363 | AH62: =SUM('Historical scenario - input'!DA31:DA32) -> 12202.96957 | AI62: =SUM('Historical scenario - input'!CZ31:CZ32) -> 13525.96918 | AJ62: =SUM('Historical scenario - input'!CY31:CY32) -> 19779.88009 | AK62: =SUM('Historical scenario - input'!CX31:CX32) -> 14585.55276 | AL62: =SUM('Historical scenario - input'!CW31:CW32) -> 13049.45254 | AM62: =SUM('Historical scenario - input'!CV31:CV32) -> 11927.71461 | AN62: =VLOOKUP($R62,'Historical scenario - output'!$B$6:$W$15,AN$1+2,FALSE) -> 14573.61309 | AO62: =VLOOKUP($R62,'Historical scenario - output'!$B$6:$W$15,AO$1+2,FALSE) -> 14323.83238 | AP62: =VLOOKUP($R62,'Historical scenario - output'!$B$6:$W$15,AP$1+2,FALSE) -> 14128.4215 | AQ62: =VLOOKUP($R62,'Historical scenario - output'!$B$6:$W$15,AQ$1+2,FALSE) -> 13964.51378 | AR62: =VLOOKUP($R62,'Historical scenario - output'!$B$6:$W$15,AR$1+2,FALSE) -> 13807.79988 | AS62: =VLOOKUP($R62,'Historical scenario - output'!$B$6:$W$15,AS$1+2,FALSE) -> 13635.3257 | AT62: =VLOOKUP($R62,'Historical scenario - output'!$B$6:$W$15,AT$1+2,FALSE) -> 13427.75489 | AU62: =VLOOKUP($R62,'Historical scenario - output'!$B$6:$W$15,AU$1+2,FALSE) -> 13170.98205 | AV62: =VLOOKUP($R62,'Historical scenario - output'!$B$6:$W$15,AV$1+2,FALSE) -> 12857.07368 | AW62: =VLOOKUP($R62,'Historical scenario - output'!$B$6:$W$15,AW$1+2,FALSE) -> 12484.58258 | AX62: =VLOOKUP($R62,'Historical scenario - output'!$B$6:$W$15,AX$1+2,FALSE) -> 12058.32647 | AY62: =VLOOKUP($R62,'Historical scenario - output'!$B$6:$W$15,AY$1+2,FALSE) -> 11588.74365 | AZ62: =VLOOKUP($R62,'Historical scenario - output'!$B$6:$W$15,AZ$1+2,FALSE) -> 11090.94468 | BA62: =VLOOKUP($R62,'Historical scenario - output'!$B$6:$W$15,BA$1+2,FALSE) -> 10583.57264 | BB62: =VLOOKUP($R62,'Historical scenario - output'!$B$6:$W$15,BB$1+2,FALSE) -> 10087.5712 | BC62: =VLOOKUP($R62,'Historical scenario - output'!$B$6:$W$15,BC$1+2,FALSE) -> 9624.9418 | BD62: =VLOOKUP($R62,'Historical scenario - output'!$B$6:$W$15,BD$1+2,FALSE) -> 9217.550281 | BE62: =VLOOKUP($R62,'Historical scenario - output'!$B$6:$W$15,BE$1+2,FALSE) -> 8886.021963 | BF62: =VLOOKUP($R62,'Historical scenario - output'!$B$6:$W$15,BF$1+2,FALSE) -> 8648.743954 | BG62: =VLOOKUP($R62,'Historical scenario - output'!$B$6:$W$15,BG$1+2,FALSE) -> 8520.978656
Q63: =R63&" (Live)" -> SERVICE LINES (Live) | R63: SERVICE LINES | S63: =SUM('Lives scenario - input'!DR31:DR32) -> 4610.134231 | T63: =SUM('Lives scenario - input'!DQ31:DQ32) -> 4281.090617 | U63: =SUM('Lives scenario - input'!DP31:DP32) -> 4242.511993 | V63: =SUM('Lives scenario - input'!DO31:DO32) -> 4215.990765 | W63: =SUM('Lives scenario - input'!DN31:DN32) -> 6617.23302 | X63: =SUM('Lives scenario - input'!DM31:DM32) -> 22782.10539 | Y63: =SUM('Lives scenario - input'!DL31:DL32) -> 20681.23189 | Z63: =SUM('Lives scenario - input'!DK31:DK32) -> 20206.92636 | AA63: =SUM('Lives scenario - input'!DJ31:DJ32) -> 18726.70148 | AB63: =SUM('Lives scenario - input'!DI31:DI32) -> 22919.47547 | AC63: =SUM('Lives scenario - input'!DH31:DH32) -> 33106.57729 | AD63: =SUM('Lives scenario - input'!DG31:DG32) -> 23553.71668 | AE63: =SUM('Lives scenario - input'!DF31:DF32) -> 11156.66308 | AF63: =SUM('Lives scenario - input'!DE31:DE32) -> 18163.86714 | AG63: =SUM('Lives scenario - input'!DD31:DD32) -> 19850.91363 | AH63: =SUM('Lives scenario - input'!DC31:DC32) -> 12202.96957 | AI63: =SUM('Lives scenario - input'!DB31:DB32) -> 13525.96918 | AJ63: =SUM('Lives scenario - input'!DA31:DA32) -> 19779.88009 | AK63: =SUM('Lives scenario - input'!CZ31:CZ32) -> 14585.55276 | AL63: =SUM('Lives scenario - input'!CY31:CY32) -> 13049.45254 | AM63: =SUM('Lives scenario - input'!CX31:CX32) -> 11927.71461 | AN63: =VLOOKUP($R63,'Lives scenario - output'!$B$6:$W$15,AN$1+2,FALSE) -> 14573.61309 | AO63: =VLOOKUP($R63,'Lives scenario - output'!$B$6:$W$15,AO$1+2,FALSE) -> 14323.83238 | AP63: =VLOOKUP($R63,'Lives scenario - output'!$B$6:$W$15,AP$1+2,FALSE) -> 14128.4215 | AQ63: =VLOOKUP($R63,'Lives scenario - output'!$B$6:$W$15,AQ$1+2,FALSE) -> 13964.51378 | AR63: =VLOOKUP($R63,'Lives scenario - output'!$B$6:$W$15,AR$1+2,FALSE) -> 13807.79988 | AS63: =VLOOKUP($R63,'Lives scenario - output'!$B$6:$W$15,AS$1+2,FALSE) -> 13635.3257 | AT63: =VLOOKUP($R63,'Lives scenario - output'!$B$6:$W$15,AT$1+2,FALSE) -> 13427.75489 | AU63: =VLOOKUP($R63,'Lives scenario - output'!$B$6:$W$15,AU$1+2,FALSE) -> 13170.98205 | AV63: =VLOOKUP($R63,'Lives scenario - output'!$B$6:$W$15,AV$1+2,FALSE) -> 12857.07368 | AW63: =VLOOKUP($R63,'Lives scenario - output'!$B$6:$W$15,AW$1+2,FALSE) -> 12484.58258 | AX63: =VLOOKUP($R63,'Lives scenario - output'!$B$6:$W$15,AX$1+2,FALSE) -> 12058.32647 | AY63: =VLOOKUP($R63,'Lives scenario - output'!$B$6:$W$15,AY$1+2,FALSE) -> 11588.74365 | AZ63: =VLOOKUP($R63,'Lives scenario - output'!$B$6:$W$15,AZ$1+2,FALSE) -> 11090.94468 | BA63: =VLOOKUP($R63,'Lives scenario - output'!$B$6:$W$15,BA$1+2,FALSE) -> 10583.57264 | BB63: =VLOOKUP($R63,'Lives scenario - output'!$B$6:$W$15,BB$1+2,FALSE) -> 10087.5712 | BC63: =VLOOKUP($R63,'Lives scenario - output'!$B$6:$W$15,BC$1+2,FALSE) -> 9624.9418 | BD63: =VLOOKUP($R63,'Lives scenario - output'!$B$6:$W$15,BD$1+2,FALSE) -> 9217.550281 | BE63: =VLOOKUP($R63,'Lives scenario - output'!$B$6:$W$15,BE$1+2,FALSE) -> 8886.021963 | BF63: =VLOOKUP($R63,'Lives scenario - output'!$B$6:$W$15,BF$1+2,FALSE) -> 8648.743954 | BG63: =VLOOKUP($R63,'Lives scenario - output'!$B$6:$W$15,BG$1+2,FALSE) -> 8520.978656
Q64: =R64&" (Cost)" -> SERVICE LINES (Cost) | R64: SERVICE LINES | S64: =SUM('Cost scenario - input'!DS31:DS32) -> 1922.928504 | T64: =SUM('Cost scenario - input'!DR31:DR32) -> 1785.68145 | U64: =SUM('Cost scenario - input'!DQ31:DQ32) -> 1769.589958 | V64: =SUM('Cost scenario - input'!DP31:DP32) -> 1758.527715 | W64: =SUM('Cost scenario - input'!DO31:DO32) -> 2760.107484 | X64: =SUM('Cost scenario - input'!DN31:DN32) -> 9502.621324 | Y64: =SUM('Cost scenario - input'!DM31:DM32) -> 8626.328067 | Z64: =SUM('Cost scenario - input'!DL31:DL32) -> 8428.490958 | AA64: =SUM('Cost scenario - input'!DK31:DK32) -> 7811.075829 | AB64: =SUM('Cost scenario - input'!DJ31:DJ32) -> 9559.919618 | AC64: =SUM('Cost scenario - input'!DI31:DI32) -> 13809.05153 | AD64: =SUM('Cost scenario - input'!DH31:DH32) -> 9824.467338 | AE64: =SUM('Cost scenario - input'!DG31:DG32) -> 4653.544642 | AF64: =SUM('Cost scenario - input'!DF31:DF32) -> 7576.31256 | AG64: =SUM('Cost scenario - input'!DE31:DE32) -> 8279.994841 | AH64: =SUM('Cost scenario - input'!DD31:DD32) -> 5089.9685 | AI64: =SUM('Cost scenario - input'!DC31:DC32) -> 5641.803552 | AJ64: =SUM('Cost scenario - input'!DB31:DB32) -> 8250.366114 | AK64: =SUM('Cost scenario - input'!DA31:DA32) -> 6083.765406 | AL64: =SUM('Cost scenario - input'!CZ31:CZ32) -> 5443.044171 | AM64: =SUM('Cost scenario - input'!CY31:CY32) -> 4975.157181 | AN64: =VLOOKUP($R64,'Cost scenario - output'!$B$6:$W$15,AN$1+2,FALSE) -> 6078.769436 | AO64: =VLOOKUP($R64,'Cost scenario - output'!$B$6:$W$15,AO$1+2,FALSE) -> 5974.585596 | AP64: =VLOOKUP($R64,'Cost scenario - output'!$B$6:$W$15,AP$1+2,FALSE) -> 5893.079728 | AQ64: =VLOOKUP($R64,'Cost scenario - output'!$B$6:$W$15,AQ$1+2,FALSE) -> 5824.713996 | AR64: =VLOOKUP($R64,'Cost scenario - output'!$B$6:$W$15,AR$1+2,FALSE) -> 5759.348809 | AS64: =VLOOKUP($R64,'Cost scenario - output'!$B$6:$W$15,AS$1+2,FALSE) -> 5687.40983 | AT64: =VLOOKUP($R64,'Cost scenario - output'!$B$6:$W$15,AT$1+2,FALSE) -> 5600.831693 | AU64: =VLOOKUP($R64,'Cost scenario - output'!$B$6:$W$15,AU$1+2,FALSE) -> 5493.730905 | AV64: =VLOOKUP($R64,'Cost scenario - output'!$B$6:$W$15,AV$1+2,FALSE) -> 5362.798302 | AW64: =VLOOKUP($R64,'Cost scenario - output'!$B$6:$W$15,AW$1+2,FALSE) -> 5207.430219 | AX64: =VLOOKUP($R64,'Cost scenario - output'!$B$6:$W$15,AX$1+2,FALSE) -> 5029.636123 | AY64: =VLOOKUP($R64,'Cost scenario - output'!$B$6:$W$15,AY$1+2,FALSE) -> 4833.769894 | AZ64: =VLOOKUP($R64,'Cost scenario - output'!$B$6:$W$15,AZ$1+2,FALSE) -> 4626.134253 | BA64: =VLOOKUP($R64,'Cost scenario - output'!$B$6:$W$15,BA$1+2,FALSE) -> 4414.505372 | BB64: =VLOOKUP($R64,'Cost scenario - output'!$B$6:$W$15,BB$1+2,FALSE) -> 4207.619031 | BC64: =VLOOKUP($R64,'Cost scenario - output'!$B$6:$W$15,BC$1+2,FALSE) -> 4014.652223 | BD64: =VLOOKUP($R64,'Cost scenario - output'!$B$6:$W$15,BD$1+2,FALSE) -> 3844.725396 | BE64: =VLOOKUP($R64,'Cost scenario - output'!$B$6:$W$15,BE$1+2,FALSE) -> 3706.441571 | BF64: =VLOOKUP($R64,'Cost scenario - output'!$B$6:$W$15,BF$1+2,FALSE) -> 3607.470199 | BG64: =VLOOKUP($R64,'Cost scenario - output'!$B$6:$W$15,BG$1+2,FALSE) -> 3554.177396
Q65: =R65&" (Combined)" -> SERVICE LINES (Combined) | R65: SERVICE LINES | S65: =SUM('Combined scenario - input'!DP31:DP32) -> 1922.928504 | T65: =SUM('Combined scenario - input'!DO31:DO32) -> 1785.68145 | U65: =SUM('Combined scenario - input'!DN31:DN32) -> 1769.589958 | V65: =SUM('Combined scenario - input'!DM31:DM32) -> 1758.527715 | W65: =SUM('Combined scenario - input'!DL31:DL32) -> 2760.107484 | X65: =SUM('Combined scenario - input'!DK31:DK32) -> 9502.621324 | Y65: =SUM('Combined scenario - input'!DJ31:DJ32) -> 8626.328067 | Z65: =SUM('Combined scenario - input'!DI31:DI32) -> 8428.490958 | AA65: =SUM('Combined scenario - input'!DH31:DH32) -> 7811.075829 | AB65: =SUM('Combined scenario - input'!DG31:DG32) -> 9559.919618 | AC65: =SUM('Combined scenario - input'!DF31:DF32) -> 13809.05153 | AD65: =SUM('Combined scenario - input'!DE31:DE32) -> 9824.467338 | AE65: =SUM('Combined scenario - input'!DD31:DD32) -> 4653.544642 | AF65: =SUM('Combined scenario - input'!DC31:DC32) -> 7576.31256 | AG65: =SUM('Combined scenario - input'!DB31:DB32) -> 8279.994841 | AH65: =SUM('Combined scenario - input'!DA31:DA32) -> 5089.9685 | AI65: =SUM('Combined scenario - input'!CZ31:CZ32) -> 5641.803552 | AJ65: =SUM('Combined scenario - input'!CY31:CY32) -> 8250.366114 | AK65: =SUM('Combined scenario - input'!CX31:CX32) -> 6083.765406 | AL65: =SUM('Combined scenario - input'!CW31:CW32) -> 5443.044171 | AM65: =SUM('Combined scenario - input'!CV31:CV32) -> 4975.157181 | AN65: =VLOOKUP($R65,'Combined scenario - output'!$B$6:$W$15,AN$1+2,FALSE) -> 6078.769436 | AO65: =VLOOKUP($R65,'Combined scenario - output'!$B$6:$W$15,AO$1+2,FALSE) -> 5974.585596 | AP65: =VLOOKUP($R65,'Combined scenario - output'!$B$6:$W$15,AP$1+2,FALSE) -> 5893.079728 | AQ65: =VLOOKUP($R65,'Combined scenario - output'!$B$6:$W$15,AQ$1+2,FALSE) -> 5824.713996 | AR65: =VLOOKUP($R65,'Combined scenario - output'!$B$6:$W$15,AR$1+2,FALSE) -> 5759.348809 | AS65: =VLOOKUP($R65,'Combined scenario - output'!$B$6:$W$15,AS$1+2,FALSE) -> 5687.40983 | AT65: =VLOOKUP($R65,'Combined scenario - output'!$B$6:$W$15,AT$1+2,FALSE) -> 5600.831693 | AU65: =VLOOKUP($R65,'Combined scenario - output'!$B$6:$W$15,AU$1+2,FALSE) -> 5493.730905 | AV65: =VLOOKUP($R65,'Combined scenario - output'!$B$6:$W$15,AV$1+2,FALSE) -> 5362.798302 | AW65: =VLOOKUP($R65,'Combined scenario - output'!$B$6:$W$15,AW$1+2,FALSE) -> 5207.430219 | AX65: =VLOOKUP($R65,'Combined scenario - output'!$B$6:$W$15,AX$1+2,FALSE) -> 5029.636123 | AY65: =VLOOKUP($R65,'Combined scenario - output'!$B$6:$W$15,AY$1+2,FALSE) -> 4833.769894 | AZ65: =VLOOKUP($R65,'Combined scenario - output'!$B$6:$W$15,AZ$1+2,FALSE) -> 4626.134253 | BA65: =VLOOKUP($R65,'Combined scenario - output'!$B$6:$W$15,BA$1+2,FALSE) -> 4414.505372 | BB65: =VLOOKUP($R65,'Combined scenario - output'!$B$6:$W$15,BB$1+2,FALSE) -> 4207.619031 | BC65: =VLOOKUP($R65,'Combined scenario - output'!$B$6:$W$15,BC$1+2,FALSE) -> 4014.652223 | BD65: =VLOOKUP($R65,'Combined scenario - output'!$B$6:$W$15,BD$1+2,FALSE) -> 3844.725396 | BE65: =VLOOKUP($R65,'Combined scenario - output'!$B$6:$W$15,BE$1+2,FALSE) -> 3706.441571 | BF65: =VLOOKUP($R65,'Combined scenario - output'!$B$6:$W$15,BF$1+2,FALSE) -> 3607.470199 | BG65: =VLOOKUP($R65,'Combined scenario - output'!$B$6:$W$15,BG$1+2,FALSE) -> 3554.177396
Q66: =R66&" (AusNet Repex)" -> SERVICE LINES (AusNet Repex) | R66: SERVICE LINES | AP66: =SUM('Unit Cost - Forecast (ZIN)'!G48:G63)/1000 -> 3514.564659 | AQ66: =SUM('Unit Cost - Forecast (ZIN)'!H48:H63)/1000 -> 3551.4036 | AR66: =SUM('Unit Cost - Forecast (ZIN)'!I48:I63)/1000 -> 3593.946234 | AS66: =SUM('Unit Cost - Forecast (ZIN)'!J48:J63)/1000 -> 3635.474209 | AT66: =SUM('Unit Cost - Forecast (ZIN)'!K48:K63)/1000 -> 3674.968599
S74: =T74-1 -> -20 | T74: -19 | U74: -18 | V74: -17 | W74: -16 | X74: -15 | Y74: -14 | Z74: -13 | AA74: -12 | AB74: -11 | AC74: -10 | AD74: -9 | AE74: -8 | AF74: -7 | AG74: -6 | AH74: -5 | AI74: -4 | AJ74: -3 | AK74: -2 | AL74: -1 | AM74: 0 | AN74: 21 | AO74: =AN74+1 -> 22 | AP74: 23 | AQ74: 24 | AR74: 25 | AS74: 26 | AT74: 27 | AU74: 28 | AV74: 29 | AW74: 30 | AX74: 31 | AY74: 32 | AZ74: 33 | BA74: 34 | BB74: 35 | BC74: 36 | BD74: 37 | BE74: 38 | BF74: 39 | BG74: 40
Q75: Volume | S75: =T75-1 -> 2004 | T75: 2005 | U75: 2006 | V75: 2007 | W75: 2008 | X75: 2009 | Y75: 2010 | Z75: 2011 | AA75: 2012 | AB75: 2013 | AC75: 2014 | AD75: 2015 | AE75: 2016 | AF75: 2017 | AG75: 2018 | AH75: 2019 | AI75: 2020 | AJ75: 2021 | AK75: 2022 | AL75: 2023 | AM75: 2024 | AN75: =AM75+1 -> 2025 | AO75: =AN75+1 -> 2026 | AP75: 2027 | AQ75: 2028 | AR75: 2029 | AS75: 2030 | AT75: 2031 | AU75: 2032 | AV75: 2033 | AW75: 2034 | AX75: 2035 | AY75: 2036 | AZ75: 2037 | BA75: 2038 | BB75: 2039 | BC75: 2040 | BD75: 2041 | BE75: 2042 | BF75: 2043 | BG75: 2044
Q76: =R76&" (Historic)" -> SERVICE LINES (Historic) | R76: SERVICE LINES | S76: =SUM('Historical scenario - input'!AB31:AB32) -> 1557.619506 | T76: =SUM('Historical scenario - input'!AA31:AA32) -> 1446.446008 | U76: =SUM('Historical scenario - input'!Z31:Z32) -> 1433.411503 | V76: =SUM('Historical scenario - input'!Y31:Y32) -> 1424.450813 | W76: =SUM('Historical scenario - input'!X31:X32) -> 2235.755124 | X76: =SUM('Historical scenario - input'!W31:W32) -> 7697.3576 | Y76: =SUM('Historical scenario - input'!V31:V32) -> 6987.538453 | Z76: =SUM('Historical scenario - input'!U31:U32) -> 6827.285516 | AA76: =SUM('Historical scenario - input'!T31:T32) -> 6327.164037 | AB76: =SUM('Historical scenario - input'!S31:S32) -> 7743.770631 | AC76: =SUM('Historical scenario - input'!R31:R32) -> 11185.67226 | AD76: =SUM('Historical scenario - input'!Q31:Q32) -> 7958.060808 | AE76: =SUM('Historical scenario - input'!P31:P32) -> 3769.485913 | AF76: =SUM('Historical scenario - input'!O31:O32) -> 6137 | AG76: =SUM('Historical scenario - input'!N31:N32) -> 6707 | AH76: =SUM('Historical scenario - input'!M31:M32) -> 4123 | AI76: =SUM('Historical scenario - input'!L31:L32) -> 4570 | AJ76: =SUM('Historical scenario - input'!K31:K32) -> 6683 | AK76: =SUM('Historical scenario - input'!J31:J32) -> 4928 | AL76: =SUM('Historical scenario - input'!I31:I32) -> 4409 | AM76: =SUM('Historical scenario - input'!H31:H32) -> 4030 | AN76: =VLOOKUP($R76,'Historical scenario - output'!$B$6:$AQ$15,AN$15+2,FALSE) -> 4923.953081 | AO76: =VLOOKUP($R76,'Historical scenario - output'!$B$6:$AQ$15,AO$15+2,FALSE) -> 4839.561609 | AP76: =VLOOKUP($R76,'Historical scenario - output'!$B$6:$AQ$15,AP$15+2,FALSE) -> 4773.539853 | AQ76: =VLOOKUP($R76,'Historical scenario - output'!$B$6:$AQ$15,AQ$15+2,FALSE) -> 4718.161931 | AR76: =VLOOKUP($R76,'Historical scenario - output'!$B$6:$AQ$15,AR$15+2,FALSE) -> 4665.214523 | AS76: =VLOOKUP($R76,'Historical scenario - output'!$B$6:$AQ$15,AS$15+2,FALSE) -> 4606.942182 | AT76: =VLOOKUP($R76,'Historical scenario - output'!$B$6:$AQ$15,AT$15+2,FALSE) -> 4536.811762 | AU76: =VLOOKUP($R76,'Historical scenario - output'!$B$6:$AQ$15,AU$15+2,FALSE) -> 4450.057488 | AV76: =VLOOKUP($R76,'Historical scenario - output'!$B$6:$AQ$15,AV$15+2,FALSE) -> 4343.998856 | AW76: =VLOOKUP($R76,'Historical scenario - output'!$B$6:$AQ$15,AW$15+2,FALSE) -> 4218.146882 | AX76: =VLOOKUP($R76,'Historical scenario - output'!$B$6:$AQ$15,AX$15+2,FALSE) -> 4074.129285 | AY76: =VLOOKUP($R76,'Historical scenario - output'!$B$6:$AQ$15,AY$15+2,FALSE) -> 3915.472813 | AZ76: =VLOOKUP($R76,'Historical scenario - output'!$B$6:$AQ$15,AZ$15+2,FALSE) -> 3747.282827 | BA76: =VLOOKUP($R76,'Historical scenario - output'!$B$6:$AQ$15,BA$15+2,FALSE) -> 3575.858217 | BB76: =VLOOKUP($R76,'Historical scenario - output'!$B$6:$AQ$15,BB$15+2,FALSE) -> 3408.275181 | BC76: =VLOOKUP($R76,'Historical scenario - output'!$B$6:$AQ$15,BC$15+2,FALSE) -> 3251.967308 | BD76: =VLOOKUP($R76,'Historical scenario - output'!$B$6:$AQ$15,BD$15+2,FALSE) -> 3114.322387 | BE76: =VLOOKUP($R76,'Historical scenario - output'!$B$6:$AQ$15,BE$15+2,FALSE) -> 3002.309077 | BF76: =VLOOKUP($R76,'Historical scenario - output'!$B$6:$AQ$15,BF$15+2,FALSE) -> 2922.139823 | BG76: =VLOOKUP($R76,'Historical scenario - output'!$B$6:$AQ$15,BG$15+2,FALSE) -> 2878.971336
Q77: =R77&" (Live)" -> SERVICE LINES (Live) | R77: SERVICE LINES | S77: =SUM('Lives scenario - input'!AD31:AD32) -> 1557.619506 | T77: =SUM('Lives scenario - input'!AC31:AC32) -> 1446.446008 | U77: =SUM('Lives scenario - input'!AB31:AB32) -> 1433.411503 | V77: =SUM('Lives scenario - input'!AA31:AA32) -> 1424.450813 | W77: =SUM('Lives scenario - input'!Z31:Z32) -> 2235.755124 | X77: =SUM('Lives scenario - input'!Y31:Y32) -> 7697.3576 | Y77: =SUM('Lives scenario - input'!X31:X32) -> 6987.538453 | Z77: =SUM('Lives scenario - input'!W31:W32) -> 6827.285516 | AA77: =SUM('Lives scenario - input'!V31:V32) -> 6327.164037 | AB77: =SUM('Lives scenario - input'!U31:U32) -> 7743.770631 | AC77: =SUM('Lives scenario - input'!T31:T32) -> 11185.67226 | AD77: =SUM('Lives scenario - input'!S31:S32) -> 7958.060808 | AE77: =SUM('Lives scenario - input'!R31:R32) -> 3769.485913 | AF77: =SUM('Lives scenario - input'!Q31:Q32) -> 6137 | AG77: =SUM('Lives scenario - input'!P31:P32) -> 6707 | AH77: =SUM('Lives scenario - input'!O31:O32) -> 4123 | AI77: =SUM('Lives scenario - input'!N31:N32) -> 4570 | AJ77: =SUM('Lives scenario - input'!M31:M32) -> 6683 | AK77: =SUM('Lives scenario - input'!L31:L32) -> 4928 | AL77: =SUM('Lives scenario - input'!K31:K32) -> 4409 | AM77: =SUM('Lives scenario - input'!J31:J32) -> 4030 | AN77: =VLOOKUP($R77,'Lives scenario - output'!$B$6:$AQ$15,AN$15+2,FALSE) -> 4923.953081 | AO77: =VLOOKUP($R77,'Lives scenario - output'!$B$6:$AQ$15,AO$15+2,FALSE) -> 4839.561609 | AP77: =VLOOKUP($R77,'Lives scenario - output'!$B$6:$AQ$15,AP$15+2,FALSE) -> 4773.539853 | AQ77: =VLOOKUP($R77,'Lives scenario - output'!$B$6:$AQ$15,AQ$15+2,FALSE) -> 4718.161931 | AR77: =VLOOKUP($R77,'Lives scenario - output'!$B$6:$AQ$15,AR$15+2,FALSE) -> 4665.214523 | AS77: =VLOOKUP($R77,'Lives scenario - output'!$B$6:$AQ$15,AS$15+2,FALSE) -> 4606.942182 | AT77: =VLOOKUP($R77,'Lives scenario - output'!$B$6:$AQ$15,AT$15+2,FALSE) -> 4536.811762 | AU77: =VLOOKUP($R77,'Lives scenario - output'!$B$6:$AQ$15,AU$15+2,FALSE) -> 4450.057488 | AV77: =VLOOKUP($R77,'Lives scenario - output'!$B$6:$AQ$15,AV$15+2,FALSE) -> 4343.998856 | AW77: =VLOOKUP($R77,'Lives scenario - output'!$B$6:$AQ$15,AW$15+2,FALSE) -> 4218.146882 | AX77: =VLOOKUP($R77,'Lives scenario - output'!$B$6:$AQ$15,AX$15+2,FALSE) -> 4074.129285 | AY77: =VLOOKUP($R77,'Lives scenario - output'!$B$6:$AQ$15,AY$15+2,FALSE) -> 3915.472813 | AZ77: =VLOOKUP($R77,'Lives scenario - output'!$B$6:$AQ$15,AZ$15+2,FALSE) -> 3747.282827 | BA77: =VLOOKUP($R77,'Lives scenario - output'!$B$6:$AQ$15,BA$15+2,FALSE) -> 3575.858217 | BB77: =VLOOKUP($R77,'Lives scenario - output'!$B$6:$AQ$15,BB$15+2,FALSE) -> 3408.275181 | BC77: =VLOOKUP($R77,'Lives scenario - output'!$B$6:$AQ$15,BC$15+2,FALSE) -> 3251.967308 | BD77: =VLOOKUP($R77,'Lives scenario - output'!$B$6:$AQ$15,BD$15+2,FALSE) -> 3114.322387 | BE77: =VLOOKUP($R77,'Lives scenario - output'!$B$6:$AQ$15,BE$15+2,FALSE) -> 3002.309077 | BF77: =VLOOKUP($R77,'Lives scenario - output'!$B$6:$AQ$15,BF$15+2,FALSE) -> 2922.139823 | BG77: =VLOOKUP($R77,'Lives scenario - output'!$B$6:$AQ$15,BG$15+2,FALSE) -> 2878.971336
Q78: =R78&" (Cost)" -> SERVICE LINES (Cost) | R78: SERVICE LINES | S78: =SUM('Cost scenario - input'!AE31:AE32) -> 1557.619506 | T78: =SUM('Cost scenario - input'!AD31:AD32) -> 1446.446008 | U78: =SUM('Cost scenario - input'!AC31:AC32) -> 1433.411503 | V78: =SUM('Cost scenario - input'!AB31:AB32) -> 1424.450813 | W78: =SUM('Cost scenario - input'!AA31:AA32) -> 2235.755124 | X78: =SUM('Cost scenario - input'!Z31:Z32) -> 7697.3576 | Y78: =SUM('Cost scenario - input'!Y31:Y32) -> 6987.538453 | Z78: =SUM('Cost scenario - input'!X31:X32) -> 6827.285516 | AA78: =SUM('Cost scenario - input'!W31:W32) -> 6327.164037 | AB78: =SUM('Cost scenario - input'!V31:V32) -> 7743.770631 | AC78: =SUM('Cost scenario - input'!U31:U32) -> 11185.67226 | AD78: =SUM('Cost scenario - input'!T31:T32) -> 7958.060808 | AE78: =SUM('Cost scenario - input'!S31:S32) -> 3769.485913 | AF78: =SUM('Cost scenario - input'!R31:R32) -> 6137 | AG78: =SUM('Cost scenario - input'!Q31:Q32) -> 6707 | AH78: =SUM('Cost scenario - input'!P31:P32) -> 4123 | AI78: =SUM('Cost scenario - input'!O31:O32) -> 4570 | AJ78: =SUM('Cost scenario - input'!N31:N32) -> 6683 | AK78: =SUM('Cost scenario - input'!M31:M32) -> 4928 | AL78: =SUM('Cost scenario - input'!L31:L32) -> 4409 | AM78: =SUM('Cost scenario - input'!K31:K32) -> 4030 | AN78: =VLOOKUP($R78,'Cost scenario - output'!$B$6:$AQ$15,AN$15+2,FALSE) -> 4923.953081 | AO78: =VLOOKUP($R78,'Cost scenario - output'!$B$6:$AQ$15,AO$15+2,FALSE) -> 4839.561609 | AP78: =VLOOKUP($R78,'Cost scenario - output'!$B$6:$AQ$15,AP$15+2,FALSE) -> 4773.539853 | AQ78: =VLOOKUP($R78,'Cost scenario - output'!$B$6:$AQ$15,AQ$15+2,FALSE) -> 4718.161931 | AR78: =VLOOKUP($R78,'Cost scenario - output'!$B$6:$AQ$15,AR$15+2,FALSE) -> 4665.214523 | AS78: =VLOOKUP($R78,'Cost scenario - output'!$B$6:$AQ$15,AS$15+2,FALSE) -> 4606.942182 | AT78: =VLOOKUP($R78,'Cost scenario - output'!$B$6:$AQ$15,AT$15+2,FALSE) -> 4536.811762 | AU78: =VLOOKUP($R78,'Cost scenario - output'!$B$6:$AQ$15,AU$15+2,FALSE) -> 4450.057488 | AV78: =VLOOKUP($R78,'Cost scenario - output'!$B$6:$AQ$15,AV$15+2,FALSE) -> 4343.998856 | AW78: =VLOOKUP($R78,'Cost scenario - output'!$B$6:$AQ$15,AW$15+2,FALSE) -> 4218.146882 | AX78: =VLOOKUP($R78,'Cost scenario - output'!$B$6:$AQ$15,AX$15+2,FALSE) -> 4074.129285 | AY78: =VLOOKUP($R78,'Cost scenario - output'!$B$6:$AQ$15,AY$15+2,FALSE) -> 3915.472813 | AZ78: =VLOOKUP($R78,'Cost scenario - output'!$B$6:$AQ$15,AZ$15+2,FALSE) -> 3747.282827 | BA78: =VLOOKUP($R78,'Cost scenario - output'!$B$6:$AQ$15,BA$15+2,FALSE) -> 3575.858217 | BB78: =VLOOKUP($R78,'Cost scenario - output'!$B$6:$AQ$15,BB$15+2,FALSE) -> 3408.275181 | BC78: =VLOOKUP($R78,'Cost scenario - output'!$B$6:$AQ$15,BC$15+2,FALSE) -> 3251.967308 | BD78: =VLOOKUP($R78,'Cost scenario - output'!$B$6:$AQ$15,BD$15+2,FALSE) -> 3114.322387 | BE78: =VLOOKUP($R78,'Cost scenario - output'!$B$6:$AQ$15,BE$15+2,FALSE) -> 3002.309077 | BF78: =VLOOKUP($R78,'Cost scenario - output'!$B$6:$AQ$15,BF$15+2,FALSE) -> 2922.139823 | BG78: =VLOOKUP($R78,'Cost scenario - output'!$B$6:$AQ$15,BG$15+2,FALSE) -> 2878.971336
Q79: =R79&" (Combined)" -> SERVICE LINES (Combined) | R79: SERVICE LINES | S79: =SUM('Combined scenario - input'!AB31:AB32) -> 1557.619506 | T79: =SUM('Combined scenario - input'!AA31:AA32) -> 1446.446008 | U79: =SUM('Combined scenario - input'!Z31:Z32) -> 1433.411503 | V79: =SUM('Combined scenario - input'!Y31:Y32) -> 1424.450813 | W79: =SUM('Combined scenario - input'!X31:X32) -> 2235.755124 | X79: =SUM('Combined scenario - input'!W31:W32) -> 7697.3576 | Y79: =SUM('Combined scenario - input'!V31:V32) -> 6987.538453 | Z79: =SUM('Combined scenario - input'!U31:U32) -> 6827.285516 | AA79: =SUM('Combined scenario - input'!T31:T32) -> 6327.164037 | AB79: =SUM('Combined scenario - input'!S31:S32) -> 7743.770631 | AC79: =SUM('Combined scenario - input'!R31:R32) -> 11185.67226 | AD79: =SUM('Combined scenario - input'!Q31:Q32) -> 7958.060808 | AE79: =SUM('Combined scenario - input'!P31:P32) -> 3769.485913 | AF79: =SUM('Combined scenario - input'!O31:O32) -> 6137 | AG79: =SUM('Combined scenario - input'!N31:N32) -> 6707 | AH79: =SUM('Combined scenario - input'!M31:M32) -> 4123 | AI79: =SUM('Combined scenario - input'!L31:L32) -> 4570 | AJ79: =SUM('Combined scenario - input'!K31:K32) -> 6683 | AK79: =SUM('Combined scenario - input'!J31:J32) -> 4928 | AL79: =SUM('Combined scenario - input'!I31:I32) -> 4409 | AM79: =SUM('Combined scenario - input'!H31:H32) -> 4030 | AN79: =VLOOKUP($R79,'Combined scenario - output'!$B$6:$AQ$15,AN$15+2,FALSE) -> 4923.953081 | AO79: =VLOOKUP($R79,'Combined scenario - output'!$B$6:$AQ$15,AO$15+2,FALSE) -> 4839.561609 | AP79: =VLOOKUP($R79,'Combined scenario - output'!$B$6:$AQ$15,AP$15+2,FALSE) -> 4773.539853 | AQ79: =VLOOKUP($R79,'Combined scenario - output'!$B$6:$AQ$15,AQ$15+2,FALSE) -> 4718.161931 | AR79: =VLOOKUP($R79,'Combined scenario - output'!$B$6:$AQ$15,AR$15+2,FALSE) -> 4665.214523 | AS79: =VLOOKUP($R79,'Combined scenario - output'!$B$6:$AQ$15,AS$15+2,FALSE) -> 4606.942182 | AT79: =VLOOKUP($R79,'Combined scenario - output'!$B$6:$AQ$15,AT$15+2,FALSE) -> 4536.811762 | AU79: =VLOOKUP($R79,'Combined scenario - output'!$B$6:$AQ$15,AU$15+2,FALSE) -> 4450.057488 | AV79: =VLOOKUP($R79,'Combined scenario - output'!$B$6:$AQ$15,AV$15+2,FALSE) -> 4343.998856 | AW79: =VLOOKUP($R79,'Combined scenario - output'!$B$6:$AQ$15,AW$15+2,FALSE) -> 4218.146882 | AX79: =VLOOKUP($R79,'Combined scenario - output'!$B$6:$AQ$15,AX$15+2,FALSE) -> 4074.129285 | AY79: =VLOOKUP($R79,'Combined scenario - output'!$B$6:$AQ$15,AY$15+2,FALSE) -> 3915.472813 | AZ79: =VLOOKUP($R79,'Combined scenario - output'!$B$6:$AQ$15,AZ$15+2,FALSE) -> 3747.282827 | BA79: =VLOOKUP($R79,'Combined scenario - output'!$B$6:$AQ$15,BA$15+2,FALSE) -> 3575.858217 | BB79: =VLOOKUP($R79,'Combined scenario - output'!$B$6:$AQ$15,BB$15+2,FALSE) -> 3408.275181 | BC79: =VLOOKUP($R79,'Combined scenario - output'!$B$6:$AQ$15,BC$15+2,FALSE) -> 3251.967308 | BD79: =VLOOKUP($R79,'Combined scenario - output'!$B$6:$AQ$15,BD$15+2,FALSE) -> 3114.322387 | BE79: =VLOOKUP($R79,'Combined scenario - output'!$B$6:$AQ$15,BE$15+2,FALSE) -> 3002.309077 | BF79: =VLOOKUP($R79,'Combined scenario - output'!$B$6:$AQ$15,BF$15+2,FALSE) -> 2922.139823 | BG79: =VLOOKUP($R79,'Combined scenario - output'!$B$6:$AQ$15,BG$15+2,FALSE) -> 2878.971336
Q80: =R80&" (AusNet Repex)" -> SERVICE LINES (AusNet Repex) | R80: SERVICE LINES | AP80: =SUM('Unit Cost - Forecast (ZIN)'!Q48:Q63) -> 2056 | AQ80: =SUM('Unit Cost - Forecast (ZIN)'!R48:R63) -> 2075 | AR80: =SUM('Unit Cost - Forecast (ZIN)'!S48:S63) -> 2090 | AS80: =SUM('Unit Cost - Forecast (ZIN)'!T48:T63) -> 2095 | AT80: =SUM('Unit Cost - Forecast (ZIN)'!U48:U63) -> 2100
Q90: SWITCHGEAR
Q91: Expenditure | S91: =T91-1 -> 2004 | T91: 2005 | U91: 2006 | V91: 2007 | W91: 2008 | X91: 2009 | Y91: 2010 | Z91: 2011 | AA91: 2012 | AB91: 2013 | AC91: 2014 | AD91: 2015 | AE91: 2016 | AF91: 2017 | AG91: 2018 | AH91: 2019 | AI91: 2020 | AJ91: 2021 | AK91: 2022 | AL91: 2023 | AM91: 2024 | AN91: =AM91+1 -> 2025 | AO91: 2026 | AP91: 2027 | AQ91: 2028 | AR91: 2029 | AS91: 2030 | AT91: 2031 | AU91: 2032 | AV91: 2033 | AW91: 2034 | AX91: 2035 | AY91: 2036 | AZ91: 2037 | BA91: 2038 | BB91: 2039 | BC91: 2040 | BD91: 2041 | BE91: 2042 | BF91: 2043 | BG91: 2044
Q92: =R92&" (Historic)" -> SWITCHGEAR (Historic) | R92: SWITCHGEAR | S92: =SUM('Historical scenario - input'!DP33:DP43) -> 10734.57172 | T92: =SUM('Historical scenario - input'!DO33:DO43) -> 25944.72986 | U92: =SUM('Historical scenario - input'!DN33:DN43) -> 27457.76113 | V92: =SUM('Historical scenario - input'!DM33:DM43) -> 19424.93951 | W92: =SUM('Historical scenario - input'!DL33:DL43) -> 27173.2074 | X92: =SUM('Historical scenario - input'!DK33:DK43) -> 25922.67527 | Y92: =SUM('Historical scenario - input'!DJ33:DJ43) -> 37061.5775 | Z92: =SUM('Historical scenario - input'!DI33:DI43) -> 28760.74795 | AA92: =SUM('Historical scenario - input'!DH33:DH43) -> 36547.36677 | AB92: =SUM('Historical scenario - input'!DG33:DG43) -> 38740.98239 | AC92: =SUM('Historical scenario - input'!DF33:DF43) -> 70679.47237 | AD92: =SUM('Historical scenario - input'!DE33:DE43) -> 100232.1254 | AE92: =SUM('Historical scenario - input'!DD33:DD43) -> 65852.44986 | AF92: =SUM('Historical scenario - input'!DC33:DC43) -> 141635.3559 | AG92: =SUM('Historical scenario - input'!DB33:DB43) -> 100704.7007 | AH92: =SUM('Historical scenario - input'!DA33:DA43) -> 47718.62784 | AI92: =SUM('Historical scenario - input'!CZ33:CZ43) -> 60210.01844 | AJ92: =SUM('Historical scenario - input'!CY33:CY43) -> 65519.04775 | AK92: =SUM('Historical scenario - input'!CX33:CX43) -> 41527.95935 | AL92: =SUM('Historical scenario - input'!CW33:CW43) -> 57187.17198 | AM92: =SUM('Historical scenario - input'!CV33:CV43) -> 73331.55534 | AN92: =VLOOKUP($R92,'Historical scenario - output'!$B$6:$W$15,AN$1+2,FALSE) -> 59909.68361 | AO92: =VLOOKUP($R92,'Historical scenario - output'!$B$6:$W$15,AO$1+2,FALSE) -> 42868.60354 | AP92: =VLOOKUP($R92,'Historical scenario - output'!$B$6:$W$15,AP$1+2,FALSE) -> 35186.10002 | AQ92: =VLOOKUP($R92,'Historical scenario - output'!$B$6:$W$15,AQ$1+2,FALSE) -> 31515.69062 | AR92: =VLOOKUP($R92,'Historical scenario - output'!$B$6:$W$15,AR$1+2,FALSE) -> 29720.78289 | AS92: =VLOOKUP($R92,'Historical scenario - output'!$B$6:$W$15,AS$1+2,FALSE) -> 28857.81384 | AT92: =VLOOKUP($R92,'Historical scenario - output'!$B$6:$W$15,AT$1+2,FALSE) -> 28478.20902 | AU92: =VLOOKUP($R92,'Historical scenario - output'!$B$6:$W$15,AU$1+2,FALSE) -> 28355.1366 | AV92: =VLOOKUP($R92,'Historical scenario - output'!$B$6:$W$15,AV$1+2,FALSE) -> 28373.68527 | AW92: =VLOOKUP($R92,'Historical scenario - output'!$B$6:$W$15,AW$1+2,FALSE) -> 28480.17647 | AX92: =VLOOKUP($R92,'Historical scenario - output'!$B$6:$W$15,AX$1+2,FALSE) -> 28654.85222 | AY92: =VLOOKUP($R92,'Historical scenario - output'!$B$6:$W$15,AY$1+2,FALSE) -> 28895.91866 | AZ92: =VLOOKUP($R92,'Historical scenario - output'!$B$6:$W$15,AZ$1+2,FALSE) -> 29209.56128 | BA92: =VLOOKUP($R92,'Historical scenario - output'!$B$6:$W$15,BA$1+2,FALSE) -> 29603.84517 | BB92: =VLOOKUP($R92,'Historical scenario - output'!$B$6:$W$15,BB$1+2,FALSE) -> 30085.48217 | BC92: =VLOOKUP($R92,'Historical scenario - output'!$B$6:$W$15,BC$1+2,FALSE) -> 30658.61065 | BD92: =VLOOKUP($R92,'Historical scenario - output'!$B$6:$W$15,BD$1+2,FALSE) -> 31324.74047 | BE92: =VLOOKUP($R92,'Historical scenario - output'!$B$6:$W$15,BE$1+2,FALSE) -> 32083.02962 | BF92: =VLOOKUP($R92,'Historical scenario - output'!$B$6:$W$15,BF$1+2,FALSE) -> 32930.23859 | BG92: =VLOOKUP($R92,'Historical scenario - output'!$B$6:$W$15,BG$1+2,FALSE) -> 33860.06554
Q93: =R93&" (Live)" -> SWITCHGEAR (Live) | R93: SWITCHGEAR | S93: =SUM('Lives scenario - input'!DR33:DR43) -> 10734.57172 | T93: =SUM('Lives scenario - input'!DQ33:DQ43) -> 25944.72986 | U93: =SUM('Lives scenario - input'!DP33:DP43) -> 27457.76113 | V93: =SUM('Lives scenario - input'!DO33:DO43) -> 19424.93951 | W93: =SUM('Lives scenario - input'!DN33:DN43) -> 27173.2074 | X93: =SUM('Lives scenario - input'!DM33:DM43) -> 25922.67527 | Y93: =SUM('Lives scenario - input'!DL33:DL43) -> 37061.5775 | Z93: =SUM('Lives scenario - input'!DK33:DK43) -> 28760.74795 | AA93: =SUM('Lives scenario - input'!DJ33:DJ43) -> 36547.36677 | AB93: =SUM('Lives scenario - input'!DI33:DI43) -> 38740.98239 | AC93: =SUM('Lives scenario - input'!DH33:DH43) -> 70679.47237 | AD93: =SUM('Lives scenario - input'!DG33:DG43) -> 100232.1254 | AE93: =SUM('Lives scenario - input'!DF33:DF43) -> 65852.44986 | AF93: =SUM('Lives scenario - input'!DE33:DE43) -> 141635.3559 | AG93: =SUM('Lives scenario - input'!DD33:DD43) -> 100704.7007 | AH93: =SUM('Lives scenario - input'!DC33:DC43) -> 47718.62784 | AI93: =SUM('Lives scenario - input'!DB33:DB43) -> 60210.01844 | AJ93: =SUM('Lives scenario - input'!DA33:DA43) -> 65519.04775 | AK93: =SUM('Lives scenario - input'!CZ33:CZ43) -> 41527.95935 | AL93: =SUM('Lives scenario - input'!CY33:CY43) -> 57187.17198 | AM93: =SUM('Lives scenario - input'!CX33:CX43) -> 73331.55534 | AN93: =VLOOKUP($R93,'Lives scenario - output'!$B$6:$W$15,AN$1+2,FALSE) -> 38109.04708 | AO93: =VLOOKUP($R93,'Lives scenario - output'!$B$6:$W$15,AO$1+2,FALSE) -> 34060.04512 | AP93: =VLOOKUP($R93,'Lives scenario - output'!$B$6:$W$15,AP$1+2,FALSE) -> 31325.92873 | AQ93: =VLOOKUP($R93,'Lives scenario - output'!$B$6:$W$15,AQ$1+2,FALSE) -> 29457.29156 | AR93: =VLOOKUP($R93,'Lives scenario - output'!$B$6:$W$15,AR$1+2,FALSE) -> 28138.23459 | AS93: =VLOOKUP($R93,'Lives scenario - output'!$B$6:$W$15,AS$1+2,FALSE) -> 27144.02975 | AT93: =VLOOKUP($R93,'Lives scenario - output'!$B$6:$W$15,AT$1+2,FALSE) -> 26316.599 | AU93: =VLOOKUP($R93,'Lives scenario - output'!$B$6:$W$15,AU$1+2,FALSE) -> 25549.38573 | AV93: =VLOOKUP($R93,'Lives scenario - output'!$B$6:$W$15,AV$1+2,FALSE) -> 24776.70469 | AW93: =VLOOKUP($R93,'Lives scenario - output'!$B$6:$W$15,AW$1+2,FALSE) -> 23965.7545 | AX93: =VLOOKUP($R93,'Lives scenario - output'!$B$6:$W$15,AX$1+2,FALSE) -> 23109.72305 | AY93: =VLOOKUP($R93,'Lives scenario - output'!$B$6:$W$15,AY$1+2,FALSE) -> 22221.71015 | AZ93: =VLOOKUP($R93,'Lives scenario - output'!$B$6:$W$15,AZ$1+2,FALSE) -> 21329.16142 | BA93: =VLOOKUP($R93,'Lives scenario - output'!$B$6:$W$15,BA$1+2,FALSE) -> 20468.84693 | BB93: =VLOOKUP($R93,'Lives scenario - output'!$B$6:$W$15,BB$1+2,FALSE) -> 19682.54734 | BC93: =VLOOKUP($R93,'Lives scenario - output'!$B$6:$W$15,BC$1+2,FALSE) -> 19013.56144 | BD93: =VLOOKUP($R93,'Lives scenario - output'!$B$6:$W$15,BD$1+2,FALSE) -> 18504.11256 | BE93: =VLOOKUP($R93,'Lives scenario - output'!$B$6:$W$15,BE$1+2,FALSE) -> 18193.61261 | BF93: =VLOOKUP($R93,'Lives scenario - output'!$B$6:$W$15,BF$1+2,FALSE) -> 18117.62395 | BG93: =VLOOKUP($R93,'Lives scenario - output'!$B$6:$W$15,BG$1+2,FALSE) -> 18307.26082
Q94: =R94&" (Cost)" -> SWITCHGEAR (Cost) | R94: SWITCHGEAR | S94: =SUM('Cost scenario - input'!DS33:DS43) -> 7375.023006 | T94: =SUM('Cost scenario - input'!DR33:DR43) -> 14571.83842 | U94: =SUM('Cost scenario - input'!DQ33:DQ43) -> 13832.61063 | V94: =SUM('Cost scenario - input'!DP33:DP43) -> 12081.5393 | W94: =SUM('Cost scenario - input'!DO33:DO43) -> 21748.20223 | X94: =SUM('Cost scenario - input'!DN33:DN43) -> 18177.8507 | Y94: =SUM('Cost scenario - input'!DM33:DM43) -> 19992.42063 | Z94: =SUM('Cost scenario - input'!DL33:DL43) -> 17549.47141 | AA94: =SUM('Cost scenario - input'!DK33:DK43) -> 19411.55125 | AB94: =SUM('Cost scenario - input'!DJ33:DJ43) -> 22840.58207 | AC94: =SUM('Cost scenario - input'!DI33:DI43) -> 37864.56082 | AD94: =SUM('Cost scenario - input'!DH33:DH43) -> 74894.72605 | AE94: =SUM('Cost scenario - input'!DG33:DG43) -> 58586.41764 | AF94: =SUM('Cost scenario - input'!DF33:DF43) -> 124290.3153 | AG94: =SUM('Cost scenario - input'!DE33:DE43) -> 81166.72921 | AH94: =SUM('Cost scenario - input'!DD33:DD43) -> 31847.73504 | AI94: =SUM('Cost scenario - input'!DC33:DC43) -> 34457.13612 | AJ94: =SUM('Cost scenario - input'!DB33:DB43) -> 34143.2003 | AK94: =SUM('Cost scenario - input'!DA33:DA43) -> 26433.60657 | AL94: =SUM('Cost scenario - input'!CZ33:CZ43) -> 33968.13441 | AM94: =SUM('Cost scenario - input'!CY33:CY43) -> 46038.32428 | AN94: =VLOOKUP($R94,'Cost scenario - output'!$B$6:$W$15,AN$1+2,FALSE) -> 35247.95917 | AO94: =VLOOKUP($R94,'Cost scenario - output'!$B$6:$W$15,AO$1+2,FALSE) -> 28446.10772 | AP94: =VLOOKUP($R94,'Cost scenario - output'!$B$6:$W$15,AP$1+2,FALSE) -> 25054.84134 | AQ94: =VLOOKUP($R94,'Cost scenario - output'!$B$6:$W$15,AQ$1+2,FALSE) -> 23243.85958 | AR94: =VLOOKUP($R94,'Cost scenario - output'!$B$6:$W$15,AR$1+2,FALSE) -> 22214.93577 | AS94: =VLOOKUP($R94,'Cost scenario - output'!$B$6:$W$15,AS$1+2,FALSE) -> 21573.88707 | AT94: =VLOOKUP($R94,'Cost scenario - output'!$B$6:$W$15,AT$1+2,FALSE) -> 21108.50839 | AU94: =VLOOKUP($R94,'Cost scenario - output'!$B$6:$W$15,AU$1+2,FALSE) -> 20699.41026 | AV94: =VLOOKUP($R94,'Cost scenario - output'!$B$6:$W$15,AV$1+2,FALSE) -> 20282.24813 | AW94: =VLOOKUP($R94,'Cost scenario - output'!$B$6:$W$15,AW$1+2,FALSE) -> 19828.94145 | AX94: =VLOOKUP($R94,'Cost scenario - output'!$B$6:$W$15,AX$1+2,FALSE) -> 19336.15208 | AY94: =VLOOKUP($R94,'Cost scenario - output'!$B$6:$W$15,AY$1+2,FALSE) -> 18817.30385 | AZ94: =VLOOKUP($R94,'Cost scenario - output'!$B$6:$W$15,AZ$1+2,FALSE) -> 18296.39731 | BA94: =VLOOKUP($R94,'Cost scenario - output'!$B$6:$W$15,BA$1+2,FALSE) -> 17803.0979 | BB94: =VLOOKUP($R94,'Cost scenario - output'!$B$6:$W$15,BB$1+2,FALSE) -> 17368.98079 | BC94: =VLOOKUP($R94,'Cost scenario - output'!$B$6:$W$15,BC$1+2,FALSE) -> 17024.82624 | BD94: =VLOOKUP($R94,'Cost scenario - output'!$B$6:$W$15,BD$1+2,FALSE) -> 16798.82542 | BE94: =VLOOKUP($R94,'Cost scenario - output'!$B$6:$W$15,BE$1+2,FALSE) -> 16715.47194 | BF94: =VLOOKUP($R94,'Cost scenario - output'!$B$6:$W$15,BF$1+2,FALSE) -> 16794.87672 | BG94: =VLOOKUP($R94,'Cost scenario - output'!$B$6:$W$15,BG$1+2,FALSE) -> 17052.27376
Q95: =R95&" (Combined)" -> SWITCHGEAR (Combined) | R95: SWITCHGEAR | S95: =SUM('Combined scenario - input'!DP33:DP43) -> 7375.023006 | T95: =SUM('Combined scenario - input'!DO33:DO43) -> 14571.83842 | U95: =SUM('Combined scenario - input'!DN33:DN43) -> 13832.61063 | V95: =SUM('Combined scenario - input'!DM33:DM43) -> 12081.5393 | W95: =SUM('Combined scenario - input'!DL33:DL43) -> 21748.20223 | X95: =SUM('Combined scenario - input'!DK33:DK43) -> 18177.8507 | Y95: =SUM('Combined scenario - input'!DJ33:DJ43) -> 19992.42063 | Z95: =SUM('Combined scenario - input'!DI33:DI43) -> 17549.47141 | AA95: =SUM('Combined scenario - input'!DH33:DH43) -> 19411.55125 | AB95: =SUM('Combined scenario - input'!DG33:DG43) -> 22840.58207 | AC95: =SUM('Combined scenario - input'!DF33:DF43) -> 37864.56082 | AD95: =SUM('Combined scenario - input'!DE33:DE43) -> 74894.72605 | AE95: =SUM('Combined scenario - input'!DD33:DD43) -> 58586.41764 | AF95: =SUM('Combined scenario - input'!DC33:DC43) -> 124290.3153 | AG95: =SUM('Combined scenario - input'!DB33:DB43) -> 81166.72921 | AH95: =SUM('Combined scenario - input'!DA33:DA43) -> 31847.73504 | AI95: =SUM('Combined scenario - input'!CZ33:CZ43) -> 34457.13612 | AJ95: =SUM('Combined scenario - input'!CY33:CY43) -> 34143.2003 | AK95: =SUM('Combined scenario - input'!CX33:CX43) -> 26433.60657 | AL95: =SUM('Combined scenario - input'!CW33:CW43) -> 33968.13441 | AM95: =SUM('Combined scenario - input'!CV33:CV43) -> 46038.32428 | AN95: =VLOOKUP($R95,'Combined scenario - output'!$B$6:$W$15,AN$1+2,FALSE) -> 28726.82556 | AO95: =VLOOKUP($R95,'Combined scenario - output'!$B$6:$W$15,AO$1+2,FALSE) -> 25811.24033 | AP95: =VLOOKUP($R95,'Combined scenario - output'!$B$6:$W$15,AP$1+2,FALSE) -> 23900.16438 | AQ95: =VLOOKUP($R95,'Combined scenario - output'!$B$6:$W$15,AQ$1+2,FALSE) -> 22628.13925 | AR95: =VLOOKUP($R95,'Combined scenario - output'!$B$6:$W$15,AR$1+2,FALSE) -> 21741.55469 | AS95: =VLOOKUP($R95,'Combined scenario - output'!$B$6:$W$15,AS$1+2,FALSE) -> 21061.24997 | AT95: =VLOOKUP($R95,'Combined scenario - output'!$B$6:$W$15,AT$1+2,FALSE) -> 20461.91498 | AU95: =VLOOKUP($R95,'Combined scenario - output'!$B$6:$W$15,AU$1+2,FALSE) -> 19860.13769 | AV95: =VLOOKUP($R95,'Combined scenario - output'!$B$6:$W$15,AV$1+2,FALSE) -> 19206.29831 | AW95: =VLOOKUP($R95,'Combined scenario - output'!$B$6:$W$15,AW$1+2,FALSE) -> 18478.56121 | AX95: =VLOOKUP($R95,'Combined scenario - output'!$B$6:$W$15,AX$1+2,FALSE) -> 17677.46068 | AY95: =VLOOKUP($R95,'Combined scenario - output'!$B$6:$W$15,AY$1+2,FALSE) -> 16820.87566 | AZ95: =VLOOKUP($R95,'Combined scenario - output'!$B$6:$W$15,AZ$1+2,FALSE) -> 15939.16612 | BA95: =VLOOKUP($R95,'Combined scenario - output'!$B$6:$W$15,BA$1+2,FALSE) -> 15070.58392 | BB95: =VLOOKUP($R95,'Combined scenario - output'!$B$6:$W$15,BB$1+2,FALSE) -> 14257.19422 | BC95: =VLOOKUP($R95,'Combined scenario - output'!$B$6:$W$15,BC$1+2,FALSE) -> 13541.49117 | BD95: =VLOOKUP($R95,'Combined scenario - output'!$B$6:$W$15,BD$1+2,FALSE) -> 12963.84439 | BE95: =VLOOKUP($R95,'Combined scenario - output'!$B$6:$W$15,BE$1+2,FALSE) -> 12560.78848 | BF95: =VLOOKUP($R95,'Combined scenario - output'!$B$6:$W$15,BF$1+2,FALSE) -> 12364.04099 | BG95: =VLOOKUP($R95,'Combined scenario - output'!$B$6:$W$15,BG$1+2,FALSE) -> 12400.02806
Q96: =R96&" (AusNet Repex)" -> SWITCHGEAR (AusNet Repex) | R96: SWITCHGEAR | AP96: =SUM('Unit Cost - Forecast (ZIN)'!G93:G106)/1000 -> 10746.49475 | AQ96: =SUM('Unit Cost - Forecast (ZIN)'!H93:H106)/1000 -> 14905.70059 | AR96: =SUM('Unit Cost - Forecast (ZIN)'!I93:I106)/1000 -> 19729.7925 | AS96: =SUM('Unit Cost - Forecast (ZIN)'!J93:J106)/1000 -> 26974.10655 | AT96: =SUM('Unit Cost - Forecast (ZIN)'!K93:K106)/1000 -> 30558.07131
S104: =T104-1 -> -20 | T104: -19 | U104: -18 | V104: -17 | W104: -16 | X104: -15 | Y104: -14 | Z104: -13 | AA104: -12 | AB104: -11 | AC104: -10 | AD104: -9 | AE104: -8 | AF104: -7 | AG104: -6 | AH104: -5 | AI104: -4 | AJ104: -3 | AK104: -2 | AL104: -1 | AM104: 0 | AN104: 21 | AO104: =AN104+1 -> 22 | AP104: 23 | AQ104: 24 | AR104: 25 | AS104: 26 | AT104: 27 | AU104: 28 | AV104: 29 | AW104: 30 | AX104: 31 | AY104: 32 | AZ104: 33 | BA104: 34 | BB104: 35 | BC104: 36 | BD104: 37 | BE104: 38 | BF104: 39 | BG104: 40
Q105: Volume | S105: =T105-1 -> 2004 | T105: 2005 | U105: 2006 | V105: 2007 | W105: 2008 | X105: 2009 | Y105: 2010 | Z105: 2011 | AA105: 2012 | AB105: 2013 | AC105: 2014 | AD105: 2015 | AE105: 2016 | AF105: 2017 | AG105: 2018 | AH105: 2019 | AI105: 2020 | AJ105: 2021 | AK105: 2022 | AL105: 2023 | AM105: 2024 | AN105: =AM105+1 -> 2025 | AO105: =AN105+1 -> 2026 | AP105: 2027 | AQ105: 2028 | AR105: 2029 | AS105: 2030 | AT105: 2031 | AU105: 2032 | AV105: 2033 | AW105: 2034 | AX105: 2035 | AY105: 2036 | AZ105: 2037 | BA105: 2038 | BB105: 2039 | BC105: 2040 | BD105: 2041 | BE105: 2042 | BF105: 2043 | BG105: 2044
Q106: =R106&" (Historic)" -> SWITCHGEAR (Historic) | R106: SWITCHGEAR | S106: =SUM('Historical scenario - input'!AB33:AB43) -> 1360.052414 | T106: =SUM('Historical scenario - input'!AA33:AA43) -> 1726.180237 | U106: =SUM('Historical scenario - input'!Z33:Z43) -> 2095.757928 | V106: =SUM('Historical scenario - input'!Y33:Y43) -> 1876.692553 | W106: =SUM('Historical scenario - input'!X33:X43) -> 4419.501393 | X106: =SUM('Historical scenario - input'!W33:W43) -> 3261.456512 | Y106: =SUM('Historical scenario - input'!V33:V43) -> 2597.188422 | Z106: =SUM('Historical scenario - input'!U33:U43) -> 2873.922216 | AA106: =SUM('Historical scenario - input'!T33:T43) -> 3140.56991 | AB106: =SUM('Historical scenario - input'!S33:S43) -> 3895.053188 | AC106: =SUM('Historical scenario - input'!R33:R43) -> 5532.758705 | AD106: =SUM('Historical scenario - input'!Q33:Q43) -> 15276.83198 | AE106: =SUM('Historical scenario - input'!P33:P43) -> 12823.69257 | AF106: =SUM('Historical scenario - input'!O33:O43) -> 27649.31916 | AG106: =SUM('Historical scenario - input'!N33:N43) -> 17369.04201 | AH106: =SUM('Historical scenario - input'!M33:M43) -> 5599.209739 | AI106: =SUM('Historical scenario - input'!L33:L43) -> 5435.328976 | AJ106: =SUM('Historical scenario - input'!K33:K43) -> 4919.997524 | AK106: =SUM('Historical scenario - input'!J33:J43) -> 4573.452507 | AL106: =SUM('Historical scenario - input'!I33:I43) -> 5590.717545 | AM106: =SUM('Historical scenario - input'!H33:H43) -> 7700 | AN106: =VLOOKUP($R106,'Historical scenario - output'!$B$6:$AQ$15,AN$15+2,FALSE) -> 5645.074464 | AO106: =VLOOKUP($R106,'Historical scenario - output'!$B$6:$AQ$15,AO$15+2,FALSE) -> 5056.263501 | AP106: =VLOOKUP($R106,'Historical scenario - output'!$B$6:$AQ$15,AP$15+2,FALSE) -> 4709.142534 | AQ106: =VLOOKUP($R106,'Historical scenario - output'!$B$6:$AQ$15,AQ$15+2,FALSE) -> 4499.903888 | AR106: =VLOOKUP($R106,'Historical scenario - output'!$B$6:$AQ$15,AR$15+2,FALSE) -> 4366.653273 | AS106: =VLOOKUP($R106,'Historical scenario - output'!$B$6:$AQ$15,AS$15+2,FALSE) -> 4269.031576 | AT106: =VLOOKUP($R106,'Historical scenario - output'!$B$6:$AQ$15,AT$15+2,FALSE) -> 4179.934675 | AU106: =VLOOKUP($R106,'Historical scenario - output'!$B$6:$AQ$15,AU$15+2,FALSE) -> 4081.744157 | AV106: =VLOOKUP($R106,'Historical scenario - output'!$B$6:$AQ$15,AV$15+2,FALSE) -> 3964.308971 | AW106: =VLOOKUP($R106,'Historical scenario - output'!$B$6:$AQ$15,AW$15+2,FALSE) -> 3823.635087 | AX106: =VLOOKUP($R106,'Historical scenario - output'!$B$6:$AQ$15,AX$15+2,FALSE) -> 3660.7314 | AY106: =VLOOKUP($R106,'Historical scenario - output'!$B$6:$AQ$15,AY$15+2,FALSE) -> 3480.514571 | AZ106: =VLOOKUP($R106,'Historical scenario - output'!$B$6:$AQ$15,AZ$15+2,FALSE) -> 3290.709712 | BA106: =VLOOKUP($R106,'Historical scenario - output'!$B$6:$AQ$15,BA$15+2,FALSE) -> 3100.782016 | BB106: =VLOOKUP($R106,'Historical scenario - output'!$B$6:$AQ$15,BB$15+2,FALSE) -> 2920.967653 | BC106: =VLOOKUP($R106,'Historical scenario - output'!$B$6:$AQ$15,BC$15+2,FALSE) -> 2761.458306 | BD106: =VLOOKUP($R106,'Historical scenario - output'!$B$6:$AQ$15,BD$15+2,FALSE) -> 2631.779677 | BE106: =VLOOKUP($R106,'Historical scenario - output'!$B$6:$AQ$15,BE$15+2,FALSE) -> 2540.372623 | BF106: =VLOOKUP($R106,'Historical scenario - output'!$B$6:$AQ$15,BF$15+2,FALSE) -> 2494.354051 | BG106: =VLOOKUP($R106,'Historical scenario - output'!$B$6:$AQ$15,BG$15+2,FALSE) -> 2499.409354
Q107: =R107&" (Live)" -> SWITCHGEAR (Live) | R107: SWITCHGEAR | S107: =SUM('Lives scenario - input'!AD33:AD43) -> 1360.052414 | T107: =SUM('Lives scenario - input'!AC33:AC43) -> 1726.180237 | U107: =SUM('Lives scenario - input'!AB33:AB43) -> 2095.757928 | V107: =SUM('Lives scenario - input'!AA33:AA43) -> 1876.692553 | W107: =SUM('Lives scenario - input'!Z33:Z43) -> 4419.501393 | X107: =SUM('Lives scenario - input'!Y33:Y43) -> 3261.456512 | Y107: =SUM('Lives scenario - input'!X33:X43) -> 2597.188422 | Z107: =SUM('Lives scenario - input'!W33:W43) -> 2873.922216 | AA107: =SUM('Lives scenario - input'!V33:V43) -> 3140.56991 | AB107: =SUM('Lives scenario - input'!U33:U43) -> 3895.053188 | AC107: =SUM('Lives scenario - input'!T33:T43) -> 5532.758705 | AD107: =SUM('Lives scenario - input'!S33:S43) -> 15276.83198 | AE107: =SUM('Lives scenario - input'!R33:R43) -> 12823.69257 | AF107: =SUM('Lives scenario - input'!Q33:Q43) -> 27649.31916 | AG107: =SUM('Lives scenario - input'!P33:P43) -> 17369.04201 | AH107: =SUM('Lives scenario - input'!O33:O43) -> 5599.209739 | AI107: =SUM('Lives scenario - input'!N33:N43) -> 5435.328976 | AJ107: =SUM('Lives scenario - input'!M33:M43) -> 4919.997524 | AK107: =SUM('Lives scenario - input'!L33:L43) -> 4573.452507 | AL107: =SUM('Lives scenario - input'!K33:K43) -> 5590.717545 | AM107: =SUM('Lives scenario - input'!J33:J43) -> 7700 | AN107: =VLOOKUP($R107,'Lives scenario - output'!$B$6:$AQ$15,AN$15+2,FALSE) -> 5505.362884 | AO107: =VLOOKUP($R107,'Lives scenario - output'!$B$6:$AQ$15,AO$15+2,FALSE) -> 4999.812965 | AP107: =VLOOKUP($R107,'Lives scenario - output'!$B$6:$AQ$15,AP$15+2,FALSE) -> 4684.404236 | AQ107: =VLOOKUP($R107,'Lives scenario - output'!$B$6:$AQ$15,AQ$15+2,FALSE) -> 4486.71243 | AR107: =VLOOKUP($R107,'Lives scenario - output'!$B$6:$AQ$15,AR$15+2,FALSE) -> 4356.511352 | AS107: =VLOOKUP($R107,'Lives scenario - output'!$B$6:$AQ$15,AS$15+2,FALSE) -> 4258.048617 | AT107: =VLOOKUP($R107,'Lives scenario - output'!$B$6:$AQ$15,AT$15+2,FALSE) -> 4166.081779 | AU107: =VLOOKUP($R107,'Lives scenario - output'!$B$6:$AQ$15,AU$15+2,FALSE) -> 4063.763219 | AV107: =VLOOKUP($R107,'Lives scenario - output'!$B$6:$AQ$15,AV$15+2,FALSE) -> 3941.257358 | AW107: =VLOOKUP($R107,'Lives scenario - output'!$B$6:$AQ$15,AW$15+2,FALSE) -> 3794.703958 | AX107: =VLOOKUP($R107,'Lives scenario - output'!$B$6:$AQ$15,AX$15+2,FALSE) -> 3625.19488 | AY107: =VLOOKUP($R107,'Lives scenario - output'!$B$6:$AQ$15,AY$15+2,FALSE) -> 3437.742232 | AZ107: =VLOOKUP($R107,'Lives scenario - output'!$B$6:$AQ$15,AZ$15+2,FALSE) -> 3240.207374 | BA107: =VLOOKUP($R107,'Lives scenario - output'!$B$6:$AQ$15,BA$15+2,FALSE) -> 3042.239458 | BB107: =VLOOKUP($R107,'Lives scenario - output'!$B$6:$AQ$15,BB$15+2,FALSE) -> 2854.299395 | BC107: =VLOOKUP($R107,'Lives scenario - output'!$B$6:$AQ$15,BC$15+2,FALSE) -> 2686.829832 | BD107: =VLOOKUP($R107,'Lives scenario - output'!$B$6:$AQ$15,BD$15+2,FALSE) -> 2549.617389 | BE107: =VLOOKUP($R107,'Lives scenario - output'!$B$6:$AQ$15,BE$15+2,FALSE) -> 2451.360892 | BF107: =VLOOKUP($R107,'Lives scenario - output'!$B$6:$AQ$15,BF$15+2,FALSE) -> 2399.425915 | BG107: =VLOOKUP($R107,'Lives scenario - output'!$B$6:$AQ$15,BG$15+2,FALSE) -> 2399.737635
Q108: =R108&" (Cost)" -> SWITCHGEAR (Cost) | R108: SWITCHGEAR | S108: =SUM('Cost scenario - input'!AE33:AE43) -> 1360.052414 | T108: =SUM('Cost scenario - input'!AD33:AD43) -> 1726.180237 | U108: =SUM('Cost scenario - input'!AC33:AC43) -> 2095.757928 | V108: =SUM('Cost scenario - input'!AB33:AB43) -> 1876.692553 | W108: =SUM('Cost scenario - input'!AA33:AA43) -> 4419.501393 | X108: =SUM('Cost scenario - input'!Z33:Z43) -> 3261.456512 | Y108: =SUM('Cost scenario - input'!Y33:Y43) -> 2597.188422 | Z108: =SUM('Cost scenario - input'!X33:X43) -> 2873.922216 | AA108: =SUM('Cost scenario - input'!W33:W43) -> 3140.56991 | AB108: =SUM('Cost scenario - input'!V33:V43) -> 3895.053188 | AC108: =SUM('Cost scenario - input'!U33:U43) -> 5532.758705 | AD108: =SUM('Cost scenario - input'!T33:T43) -> 15276.83198 | AE108: =SUM('Cost scenario - input'!S33:S43) -> 12823.69257 | AF108: =SUM('Cost scenario - input'!R33:R43) -> 27649.31916 | AG108: =SUM('Cost scenario - input'!Q33:Q43) -> 17369.04201 | AH108: =SUM('Cost scenario - input'!P33:P43) -> 5599.209739 | AI108: =SUM('Cost scenario - input'!O33:O43) -> 5435.328976 | AJ108: =SUM('Cost scenario - input'!N33:N43) -> 4919.997524 | AK108: =SUM('Cost scenario - input'!M33:M43) -> 4573.452507 | AL108: =SUM('Cost scenario - input'!L33:L43) -> 5590.717545 | AM108: =SUM('Cost scenario - input'!K33:K43) -> 7700 | AN108: =VLOOKUP($R108,'Cost scenario - output'!$B$6:$AQ$15,AN$15+2,FALSE) -> 5645.074464 | AO108: =VLOOKUP($R108,'Cost scenario - output'!$B$6:$AQ$15,AO$15+2,FALSE) -> 5056.263501 | AP108: =VLOOKUP($R108,'Cost scenario - output'!$B$6:$AQ$15,AP$15+2,FALSE) -> 4709.142534 | AQ108: =VLOOKUP($R108,'Cost scenario - output'!$B$6:$AQ$15,AQ$15+2,FALSE) -> 4499.903888 | AR108: =VLOOKUP($R108,'Cost scenario - output'!$B$6:$AQ$15,AR$15+2,FALSE) -> 4366.653273 | AS108: =VLOOKUP($R108,'Cost scenario - output'!$B$6:$AQ$15,AS$15+2,FALSE) -> 4269.031576 | AT108: =VLOOKUP($R108,'Cost scenario - output'!$B$6:$AQ$15,AT$15+2,FALSE) -> 4179.934675 | AU108: =VLOOKUP($R108,'Cost scenario - output'!$B$6:$AQ$15,AU$15+2,FALSE) -> 4081.744157 | AV108: =VLOOKUP($R108,'Cost scenario - output'!$B$6:$AQ$15,AV$15+2,FALSE) -> 3964.308971 | AW108: =VLOOKUP($R108,'Cost scenario - output'!$B$6:$AQ$15,AW$15+2,FALSE) -> 3823.635087 | AX108: =VLOOKUP($R108,'Cost scenario - output'!$B$6:$AQ$15,AX$15+2,FALSE) -> 3660.7314 | AY108: =VLOOKUP($R108,'Cost scenario - output'!$B$6:$AQ$15,AY$15+2,FALSE) -> 3480.514571 | AZ108: =VLOOKUP($R108,'Cost scenario - output'!$B$6:$AQ$15,AZ$15+2,FALSE) -> 3290.709712 | BA108: =VLOOKUP($R108,'Cost scenario - output'!$B$6:$AQ$15,BA$15+2,FALSE) -> 3100.782016 | BB108: =VLOOKUP($R108,'Cost scenario - output'!$B$6:$AQ$15,BB$15+2,FALSE) -> 2920.967653 | BC108: =VLOOKUP($R108,'Cost scenario - output'!$B$6:$AQ$15,BC$15+2,FALSE) -> 2761.458306 | BD108: =VLOOKUP($R108,'Cost scenario - output'!$B$6:$AQ$15,BD$15+2,FALSE) -> 2631.779677 | BE108: =VLOOKUP($R108,'Cost scenario - output'!$B$6:$AQ$15,BE$15+2,FALSE) -> 2540.372623 | BF108: =VLOOKUP($R108,'Cost scenario - output'!$B$6:$AQ$15,BF$15+2,FALSE) -> 2494.354051 | BG108: =VLOOKUP($R108,'Cost scenario - output'!$B$6:$AQ$15,BG$15+2,FALSE) -> 2499.409354
Q109: =R109&" (Combined)" -> SWITCHGEAR (Combined) | R109: SWITCHGEAR | S109: =SUM('Combined scenario - input'!AB33:AB43) -> 1360.052414 | T109: =SUM('Combined scenario - input'!AA33:AA43) -> 1726.180237 | U109: =SUM('Combined scenario - input'!Z33:Z43) -> 2095.757928 | V109: =SUM('Combined scenario - input'!Y33:Y43) -> 1876.692553 | W109: =SUM('Combined scenario - input'!X33:X43) -> 4419.501393 | X109: =SUM('Combined scenario - input'!W33:W43) -> 3261.456512 | Y109: =SUM('Combined scenario - input'!V33:V43) -> 2597.188422 | Z109: =SUM('Combined scenario - input'!U33:U43) -> 2873.922216 | AA109: =SUM('Combined scenario - input'!T33:T43) -> 3140.56991 | AB109: =SUM('Combined scenario - input'!S33:S43) -> 3895.053188 | AC109: =SUM('Combined scenario - input'!R33:R43) -> 5532.758705 | AD109: =SUM('Combined scenario - input'!Q33:Q43) -> 15276.83198 | AE109: =SUM('Combined scenario - input'!P33:P43) -> 12823.69257 | AF109: =SUM('Combined scenario - input'!O33:O43) -> 27649.31916 | AG109: =SUM('Combined scenario - input'!N33:N43) -> 17369.04201 | AH109: =SUM('Combined scenario - input'!M33:M43) -> 5599.209739 | AI109: =SUM('Combined scenario - input'!L33:L43) -> 5435.328976 | AJ109: =SUM('Combined scenario - input'!K33:K43) -> 4919.997524 | AK109: =SUM('Combined scenario - input'!J33:J43) -> 4573.452507 | AL109: =SUM('Combined scenario - input'!I33:I43) -> 5590.717545 | AM109: =SUM('Combined scenario - input'!H33:H43) -> 7700 | AN109: =VLOOKUP($R109,'Combined scenario - output'!$B$6:$AQ$15,AN$15+2,FALSE) -> 5505.362884 | AO109: =VLOOKUP($R109,'Combined scenario - output'!$B$6:$AQ$15,AO$15+2,FALSE) -> 4999.812965 | AP109: =VLOOKUP($R109,'Combined scenario - output'!$B$6:$AQ$15,AP$15+2,FALSE) -> 4684.404236 | AQ109: =VLOOKUP($R109,'Combined scenario - output'!$B$6:$AQ$15,AQ$15+2,FALSE) -> 4486.71243 | AR109: =VLOOKUP($R109,'Combined scenario - output'!$B$6:$AQ$15,AR$15+2,FALSE) -> 4356.511352 | AS109: =VLOOKUP($R109,'Combined scenario - output'!$B$6:$AQ$15,AS$15+2,FALSE) -> 4258.048617 | AT109: =VLOOKUP($R109,'Combined scenario - output'!$B$6:$AQ$15,AT$15+2,FALSE) -> 4166.081779 | AU109: =VLOOKUP($R109,'Combined scenario - output'!$B$6:$AQ$15,AU$15+2,FALSE) -> 4063.763219 | AV109: =VLOOKUP($R109,'Combined scenario - output'!$B$6:$AQ$15,AV$15+2,FALSE) -> 3941.257358 | AW109: =VLOOKUP($R109,'Combined scenario - output'!$B$6:$AQ$15,AW$15+2,FALSE) -> 3794.703958 | AX109: =VLOOKUP($R109,'Combined scenario - output'!$B$6:$AQ$15,AX$15+2,FALSE) -> 3625.19488 | AY109: =VLOOKUP($R109,'Combined scenario - output'!$B$6:$AQ$15,AY$15+2,FALSE) -> 3437.742232 | AZ109: =VLOOKUP($R109,'Combined scenario - output'!$B$6:$AQ$15,AZ$15+2,FALSE) -> 3240.207374 | BA109: =VLOOKUP($R109,'Combined scenario - output'!$B$6:$AQ$15,BA$15+2,FALSE) -> 3042.239458 | BB109: =VLOOKUP($R109,'Combined scenario - output'!$B$6:$AQ$15,BB$15+2,FALSE) -> 2854.299395 | BC109: =VLOOKUP($R109,'Combined scenario - output'!$B$6:$AQ$15,BC$15+2,FALSE) -> 2686.829832 | BD109: =VLOOKUP($R109,'Combined scenario - output'!$B$6:$AQ$15,BD$15+2,FALSE) -> 2549.617389 | BE109: =VLOOKUP($R109,'Combined scenario - output'!$B$6:$AQ$15,BE$15+2,FALSE) -> 2451.360892 | BF109: =VLOOKUP($R109,'Combined scenario - output'!$B$6:$AQ$15,BF$15+2,FALSE) -> 2399.425915 | BG109: =VLOOKUP($R109,'Combined scenario - output'!$B$6:$AQ$15,BG$15+2,FALSE) -> 2399.737635
Q110: =R110&" (AusNet Repex)" -> SWITCHGEAR (AusNet Repex) | R110: SWITCHGEAR | AP110: =SUM('Unit Cost - Forecast (ZIN)'!Q93:Q106) -> 775 | AQ110: =SUM('Unit Cost - Forecast (ZIN)'!R93:R106) -> 752 | AR110: =SUM('Unit Cost - Forecast (ZIN)'!S93:S106) -> 872 | AS110: =SUM('Unit Cost - Forecast (ZIN)'!T93:T106) -> 1141 | AT110: =SUM('Unit Cost - Forecast (ZIN)'!U93:U106) -> 1238
Q120: TRANSFORMERS
Q121: Expenditure | S121: =T121-1 -> 2004 | T121: 2005 | U121: 2006 | V121: 2007 | W121: 2008 | X121: 2009 | Y121: 2010 | Z121: 2011 | AA121: 2012 | AB121: 2013 | AC121: 2014 | AD121: 2015 | AE121: 2016 | AF121: 2017 | AG121: 2018 | AH121: 2019 | AI121: 2020 | AJ121: 2021 | AK121: 2022 | AL121: 2023 | AM121: 2024 | AN121: =AM121+1 -> 2025 | AO121: 2026 | AP121: 2027 | AQ121: 2028 | AR121: 2029 | AS121: 2030 | AT121: 2031 | AU121: 2032 | AV121: 2033 | AW121: 2034 | AX121: 2035 | AY121: 2036 | AZ121: 2037 | BA121: 2038 | BB121: 2039 | BC121: 2040 | BD121: 2041 | BE121: 2042 | BF121: 2043 | BG121: 2044
Q122: =R122&" (Historic)" -> TRANSFORMERS (Historic) | R122: TRANSFORMERS | S122: =SUM('Historical scenario - input'!DP44:DP65) -> 7565.995058 | T122: =SUM('Historical scenario - input'!DO44:DO65) -> 15515.6556 | U122: =SUM('Historical scenario - input'!DN44:DN65) -> 21013.20262 | V122: =SUM('Historical scenario - input'!DM44:DM65) -> 19205.98028 | W122: =SUM('Historical scenario - input'!DL44:DL65) -> 12688.74062 | X122: =SUM('Historical scenario - input'!DK44:DK65) -> 20992.53688 | Y122: =SUM('Historical scenario - input'!DJ44:DJ65) -> 27331.81481 | Z122: =SUM('Historical scenario - input'!DI44:DI65) -> 22419.04803 | AA122: =SUM('Historical scenario - input'!DH44:DH65) -> 18601.40794 | AB122: =SUM('Historical scenario - input'!DG44:DG65) -> 17586.24965 | AC122: =SUM('Historical scenario - input'!DF44:DF65) -> 18109.06356 | AD122: =SUM('Historical scenario - input'!DE44:DE65) -> 18006.07184 | AE122: =SUM('Historical scenario - input'!DD44:DD65) -> 23341.39082 | AF122: =SUM('Historical scenario - input'!DC44:DC65) -> 13475.74613 | AG122: =SUM('Historical scenario - input'!DB44:DB65) -> 15085.72607 | AH122: =SUM('Historical scenario - input'!DA44:DA65) -> 20372.06455 | AI122: =SUM('Historical scenario - input'!CZ44:CZ65) -> 19739.7664 | AJ122: =SUM('Historical scenario - input'!CY44:CY65) -> 17580.46138 | AK122: =SUM('Historical scenario - input'!CX44:CX65) -> 13641.88269 | AL122: =SUM('Historical scenario - input'!CW44:CW65) -> 13660.90629 | AM122: =SUM('Historical scenario - input'!CV44:CV65) -> 14734.95143 | AN122: =VLOOKUP($R122,'Historical scenario - output'!$B$6:$W$15,AN$1+2,FALSE) -> 15760.47841 | AO122: =VLOOKUP($R122,'Historical scenario - output'!$B$6:$W$15,AO$1+2,FALSE) -> 13798.21828 | AP122: =VLOOKUP($R122,'Historical scenario - output'!$B$6:$W$15,AP$1+2,FALSE) -> 12627.37197 | AQ122: =VLOOKUP($R122,'Historical scenario - output'!$B$6:$W$15,AQ$1+2,FALSE) -> 11964.39371 | AR122: =VLOOKUP($R122,'Historical scenario - output'!$B$6:$W$15,AR$1+2,FALSE) -> 11667.25571 | AS122: =VLOOKUP($R122,'Historical scenario - output'!$B$6:$W$15,AS$1+2,FALSE) -> 11645.53272 | AT122: =VLOOKUP($R122,'Historical scenario - output'!$B$6:$W$15,AT$1+2,FALSE) -> 11838.19213 | AU122: =VLOOKUP($R122,'Historical scenario - output'!$B$6:$W$15,AU$1+2,FALSE) -> 12200.60172 | AV122: =VLOOKUP($R122,'Historical scenario - output'!$B$6:$W$15,AV$1+2,FALSE) -> 12696.85102 | AW122: =VLOOKUP($R122,'Historical scenario - output'!$B$6:$W$15,AW$1+2,FALSE) -> 13295.27566 | AX122: =VLOOKUP($R122,'Historical scenario - output'!$B$6:$W$15,AX$1+2,FALSE) -> 13966.06186 | AY122: =VLOOKUP($R122,'Historical scenario - output'!$B$6:$W$15,AY$1+2,FALSE) -> 14680.32386 | AZ122: =VLOOKUP($R122,'Historical scenario - output'!$B$6:$W$15,AZ$1+2,FALSE) -> 15410.2668 | BA122: =VLOOKUP($R122,'Historical scenario - output'!$B$6:$W$15,BA$1+2,FALSE) -> 16130.08962 | BB122: =VLOOKUP($R122,'Historical scenario - output'!$B$6:$W$15,BB$1+2,FALSE) -> 16817.24536 | BC122: =VLOOKUP($R122,'Historical scenario - output'!$B$6:$W$15,BC$1+2,FALSE) -> 17453.64528 | BD122: =VLOOKUP($R122,'Historical scenario - output'!$B$6:$W$15,BD$1+2,FALSE) -> 18026.42831 | BE122: =VLOOKUP($R122,'Historical scenario - output'!$B$6:$W$15,BE$1+2,FALSE) -> 18528.04311 | BF122: =VLOOKUP($R122,'Historical scenario - output'!$B$6:$W$15,BF$1+2,FALSE) -> 18955.5816 | BG122: =VLOOKUP($R122,'Historical scenario - output'!$B$6:$W$15,BG$1+2,FALSE) -> 19309.50842
Q123: =R123&" (Live)" -> TRANSFORMERS (Live) | R123: TRANSFORMERS | S123: =SUM('Lives scenario - input'!DR44:DR65) -> 7565.995058 | T123: =SUM('Lives scenario - input'!DQ44:DQ65) -> 15515.6556 | U123: =SUM('Lives scenario - input'!DP44:DP65) -> 21013.20262 | V123: =SUM('Lives scenario - input'!DO44:DO65) -> 19205.98028 | W123: =SUM('Lives scenario - input'!DN44:DN65) -> 12688.74062 | X123: =SUM('Lives scenario - input'!DM44:DM65) -> 20992.53688 | Y123: =SUM('Lives scenario - input'!DL44:DL65) -> 27331.81481 | Z123: =SUM('Lives scenario - input'!DK44:DK65) -> 22419.04803 | AA123: =SUM('Lives scenario - input'!DJ44:DJ65) -> 18601.40794 | AB123: =SUM('Lives scenario - input'!DI44:DI65) -> 17586.24965 | AC123: =SUM('Lives scenario - input'!DH44:DH65) -> 18109.06356 | AD123: =SUM('Lives scenario - input'!DG44:DG65) -> 18006.07184 | AE123: =SUM('Lives scenario - input'!DF44:DF65) -> 23341.39082 | AF123: =SUM('Lives scenario - input'!DE44:DE65) -> 13475.74613 | AG123: =SUM('Lives scenario - input'!DD44:DD65) -> 15085.72607 | AH123: =SUM('Lives scenario - input'!DC44:DC65) -> 20372.06455 | AI123: =SUM('Lives scenario - input'!DB44:DB65) -> 19739.7664 | AJ123: =SUM('Lives scenario - input'!DA44:DA65) -> 17580.46138 | AK123: =SUM('Lives scenario - input'!CZ44:CZ65) -> 13641.88269 | AL123: =SUM('Lives scenario - input'!CY44:CY65) -> 13660.90629 | AM123: =SUM('Lives scenario - input'!CX44:CX65) -> 14734.95143 | AN123: =VLOOKUP($R123,'Lives scenario - output'!$B$6:$W$15,AN$1+2,FALSE) -> 6796.563782 | AO123: =VLOOKUP($R123,'Lives scenario - output'!$B$6:$W$15,AO$1+2,FALSE) -> 6890.492813 | AP123: =VLOOKUP($R123,'Lives scenario - output'!$B$6:$W$15,AP$1+2,FALSE) -> 7009.934647 | AQ123: =VLOOKUP($R123,'Lives scenario - output'!$B$6:$W$15,AQ$1+2,FALSE) -> 7152.618501 | AR123: =VLOOKUP($R123,'Lives scenario - output'!$B$6:$W$15,AR$1+2,FALSE) -> 7319.780347 | AS123: =VLOOKUP($R123,'Lives scenario - output'!$B$6:$W$15,AS$1+2,FALSE) -> 7514.31104 | AT123: =VLOOKUP($R123,'Lives scenario - output'!$B$6:$W$15,AT$1+2,FALSE) -> 7739.892175 | AU123: =VLOOKUP($R123,'Lives scenario - output'!$B$6:$W$15,AU$1+2,FALSE) -> 8000.543743 | AV123: =VLOOKUP($R123,'Lives scenario - output'!$B$6:$W$15,AV$1+2,FALSE) -> 8300.306636 | AW123: =VLOOKUP($R123,'Lives scenario - output'!$B$6:$W$15,AW$1+2,FALSE) -> 8642.940382 | AX123: =VLOOKUP($R123,'Lives scenario - output'!$B$6:$W$15,AX$1+2,FALSE) -> 9031.598505 | AY123: =VLOOKUP($R123,'Lives scenario - output'!$B$6:$W$15,AY$1+2,FALSE) -> 9468.484861 | AZ123: =VLOOKUP($R123,'Lives scenario - output'!$B$6:$W$15,AZ$1+2,FALSE) -> 9954.512311 | BA123: =VLOOKUP($R123,'Lives scenario - output'!$B$6:$W$15,BA$1+2,FALSE) -> 10488.99054 | BB123: =VLOOKUP($R123,'Lives scenario - output'!$B$6:$W$15,BB$1+2,FALSE) -> 11069.36911 | BC123: =VLOOKUP($R123,'Lives scenario - output'!$B$6:$W$15,BC$1+2,FALSE) -> 11691.05914 | BD123: =VLOOKUP($R123,'Lives scenario - output'!$B$6:$W$15,BD$1+2,FALSE) -> 12347.35446 | BE123: =VLOOKUP($R123,'Lives scenario - output'!$B$6:$W$15,BE$1+2,FALSE) -> 13029.47003 | BF123: =VLOOKUP($R123,'Lives scenario - output'!$B$6:$W$15,BF$1+2,FALSE) -> 13726.71138 | BG123: =VLOOKUP($R123,'Lives scenario - output'!$B$6:$W$15,BG$1+2,FALSE) -> 14426.78009
Q124: =R124&" (Cost)" -> TRANSFORMERS (Cost) | R124: TRANSFORMERS | S124: =SUM('Cost scenario - input'!DS44:DS65) -> 7316.420219 | T124: =SUM('Cost scenario - input'!DR44:DR65) -> 13473.45491 | U124: =SUM('Cost scenario - input'!DQ44:DQ65) -> 17303.70091 | V124: =SUM('Cost scenario - input'!DP44:DP65) -> 16143.02037 | W124: =SUM('Cost scenario - input'!DO44:DO65) -> 12145.12182 | X124: =SUM('Cost scenario - input'!DN44:DN65) -> 18823.62104 | Y124: =SUM('Cost scenario - input'!DM44:DM65) -> 22730.61775 | Z124: =SUM('Cost scenario - input'!DL44:DL65) -> 20027.69308 | AA124: =SUM('Cost scenario - input'!DK44:DK65) -> 16410.72477 | AB124: =SUM('Cost scenario - input'!DJ44:DJ65) -> 15235.34586 | AC124: =SUM('Cost scenario - input'!DI44:DI65) -> 14810.98816 | AD124: =SUM('Cost scenario - input'!DH44:DH65) -> 15536.1714 | AE124: =SUM('Cost scenario - input'!DG44:DG65) -> 18638.0035 | AF124: =SUM('Cost scenario - input'!DF44:DF65) -> 12696.78286 | AG124: =SUM('Cost scenario - input'!DE44:DE65) -> 14309.67924 | AH124: =SUM('Cost scenario - input'!DD44:DD65) -> 18778.30555 | AI124: =SUM('Cost scenario - input'!DC44:DC65) -> 17739.3437 | AJ124: =SUM('Cost scenario - input'!DB44:DB65) -> 15594.24586 | AK124: =SUM('Cost scenario - input'!DA44:DA65) -> 12928.51706 | AL124: =SUM('Cost scenario - input'!CZ44:CZ65) -> 12810.35605 | AM124: =SUM('Cost scenario - input'!CY44:CY65) -> 13805.04548 | AN124: =VLOOKUP($R124,'Cost scenario - output'!$B$6:$W$15,AN$1+2,FALSE) -> 14491.82493 | AO124: =VLOOKUP($R124,'Cost scenario - output'!$B$6:$W$15,AO$1+2,FALSE) -> 12656.40249 | AP124: =VLOOKUP($R124,'Cost scenario - output'!$B$6:$W$15,AP$1+2,FALSE) -> 11552.20635 | AQ124: =VLOOKUP($R124,'Cost scenario - output'!$B$6:$W$15,AQ$1+2,FALSE) -> 10920.99331 | AR124: =VLOOKUP($R124,'Cost scenario - output'!$B$6:$W$15,AR$1+2,FALSE) -> 10633.21322 | AS124: =VLOOKUP($R124,'Cost scenario - output'!$B$6:$W$15,AS$1+2,FALSE) -> 10604.8877 | AT124: =VLOOKUP($R124,'Cost scenario - output'!$B$6:$W$15,AT$1+2,FALSE) -> 10778.63478 | AU124: =VLOOKUP($R124,'Cost scenario - output'!$B$6:$W$15,AU$1+2,FALSE) -> 11112.20906 | AV124: =VLOOKUP($R124,'Cost scenario - output'!$B$6:$W$15,AV$1+2,FALSE) -> 11571.56054 | AW124: =VLOOKUP($R124,'Cost scenario - output'!$B$6:$W$15,AW$1+2,FALSE) -> 12126.72552 | AX124: =VLOOKUP($R124,'Cost scenario - output'!$B$6:$W$15,AX$1+2,FALSE) -> 12749.61158 | AY124: =VLOOKUP($R124,'Cost scenario - output'!$B$6:$W$15,AY$1+2,FALSE) -> 13413.14095 | AZ124: =VLOOKUP($R124,'Cost scenario - output'!$B$6:$W$15,AZ$1+2,FALSE) -> 14091.39059 | BA124: =VLOOKUP($R124,'Cost scenario - output'!$B$6:$W$15,BA$1+2,FALSE) -> 14760.39897 | BB124: =VLOOKUP($R124,'Cost scenario - output'!$B$6:$W$15,BB$1+2,FALSE) -> 15399.27946 | BC124: =VLOOKUP($R124,'Cost scenario - output'!$B$6:$W$15,BC$1+2,FALSE) -> 15991.26069 | BD124: =VLOOKUP($R124,'Cost scenario - output'!$B$6:$W$15,BD$1+2,FALSE) -> 16524.31644 | BE124: =VLOOKUP($R124,'Cost scenario - output'!$B$6:$W$15,BE$1+2,FALSE) -> 16991.16922 | BF124: =VLOOKUP($R124,'Cost scenario - output'!$B$6:$W$15,BF$1+2,FALSE) -> 17388.63025 | BG124: =VLOOKUP($R124,'Cost scenario - output'!$B$6:$W$15,BG$1+2,FALSE) -> 17716.42389
Q125: =R125&" (Combined)" -> TRANSFORMERS (Combined) | R125: TRANSFORMERS | S125: =SUM('Combined scenario - input'!DP44:DP65) -> 7316.420219 | T125: =SUM('Combined scenario - input'!DO44:DO65) -> 13473.45491 | U125: =SUM('Combined scenario - input'!DN44:DN65) -> 17303.70091 | V125: =SUM('Combined scenario - input'!DM44:DM65) -> 16143.02037 | W125: =SUM('Combined scenario - input'!DL44:DL65) -> 12145.12182 | X125: =SUM('Combined scenario - input'!DK44:DK65) -> 18823.62104 | Y125: =SUM('Combined scenario - input'!DJ44:DJ65) -> 22730.61775 | Z125: =SUM('Combined scenario - input'!DI44:DI65) -> 20027.69308 | AA125: =SUM('Combined scenario - input'!DH44:DH65) -> 16410.72477 | AB125: =SUM('Combined scenario - input'!DG44:DG65) -> 15235.34586 | AC125: =SUM('Combined scenario - input'!DF44:DF65) -> 14810.98816 | AD125: =SUM('Combined scenario - input'!DE44:DE65) -> 15536.1714 | AE125: =SUM('Combined scenario - input'!DD44:DD65) -> 18638.0035 | AF125: =SUM('Combined scenario - input'!DC44:DC65) -> 12696.78286 | AG125: =SUM('Combined scenario - input'!DB44:DB65) -> 14309.67924 | AH125: =SUM('Combined scenario - input'!DA44:DA65) -> 18778.30555 | AI125: =SUM('Combined scenario - input'!CZ44:CZ65) -> 17739.3437 | AJ125: =SUM('Combined scenario - input'!CY44:CY65) -> 15594.24586 | AK125: =SUM('Combined scenario - input'!CX44:CX65) -> 12928.51706 | AL125: =SUM('Combined scenario - input'!CW44:CW65) -> 12810.35605 | AM125: =SUM('Combined scenario - input'!CV44:CV65) -> 13805.04548 | AN125: =VLOOKUP($R125,'Combined scenario - output'!$B$6:$W$15,AN$1+2,FALSE) -> 6338.29157 | AO125: =VLOOKUP($R125,'Combined scenario - output'!$B$6:$W$15,AO$1+2,FALSE) -> 6428.83141 | AP125: =VLOOKUP($R125,'Combined scenario - output'!$B$6:$W$15,AP$1+2,FALSE) -> 6541.35665 | AQ125: =VLOOKUP($R125,'Combined scenario - output'!$B$6:$W$15,AQ$1+2,FALSE) -> 6673.508021 | AR125: =VLOOKUP($R125,'Combined scenario - output'!$B$6:$W$15,AR$1+2,FALSE) -> 6826.455538 | AS125: =VLOOKUP($R125,'Combined scenario - output'!$B$6:$W$15,AS$1+2,FALSE) -> 7003.044928 | AT125: =VLOOKUP($R125,'Combined scenario - output'!$B$6:$W$15,AT$1+2,FALSE) -> 7206.933636 | AU125: =VLOOKUP($R125,'Combined scenario - output'!$B$6:$W$15,AU$1+2,FALSE) -> 7442.138627 | AV125: =VLOOKUP($R125,'Combined scenario - output'!$B$6:$W$15,AV$1+2,FALSE) -> 7712.717819 | AW125: =VLOOKUP($R125,'Combined scenario - output'!$B$6:$W$15,AW$1+2,FALSE) -> 8022.465224 | AX125: =VLOOKUP($R125,'Combined scenario - output'!$B$6:$W$15,AX$1+2,FALSE) -> 8374.582773 | AY125: =VLOOKUP($R125,'Combined scenario - output'!$B$6:$W$15,AY$1+2,FALSE) -> 8771.333523 | AZ125: =VLOOKUP($R125,'Combined scenario - output'!$B$6:$W$15,AZ$1+2,FALSE) -> 9213.699439 | BA125: =VLOOKUP($R125,'Combined scenario - output'!$B$6:$W$15,BA$1+2,FALSE) -> 9701.072441 | BB125: =VLOOKUP($R125,'Combined scenario - output'!$B$6:$W$15,BB$1+2,FALSE) -> 10231.00635 | BC125: =VLOOKUP($R125,'Combined scenario - output'!$B$6:$W$15,BC$1+2,FALSE) -> 10799.05397 | BD125: =VLOOKUP($R125,'Combined scenario - output'!$B$6:$W$15,BD$1+2,FALSE) -> 11398.7097 | BE125: =VLOOKUP($R125,'Combined scenario - output'!$B$6:$W$15,BE$1+2,FALSE) -> 12021.47433 | BF125: =VLOOKUP($R125,'Combined scenario - output'!$B$6:$W$15,BF$1+2,FALSE) -> 12657.05267 | BG125: =VLOOKUP($R125,'Combined scenario - output'!$B$6:$W$15,BG$1+2,FALSE) -> 13293.68609
Q126: =R126&" (AusNet Repex)" -> TRANSFORMERS (AusNet Repex) | R126: TRANSFORMERS | AP126: =SUM('Unit Cost - Forecast (ZIN)'!G64:G92)/1000 -> 7823.280278 | AQ126: =SUM('Unit Cost - Forecast (ZIN)'!H64:H92)/1000 -> 12353.33799 | AR126: =SUM('Unit Cost - Forecast (ZIN)'!I64:I92)/1000 -> 15566.56226 | AS126: =SUM('Unit Cost - Forecast (ZIN)'!J64:J92)/1000 -> 11380.44781 | AT126: =SUM('Unit Cost - Forecast (ZIN)'!K64:K92)/1000 -> 11511.58525
S134: =T134-1 -> -20 | T134: -19 | U134: -18 | V134: -17 | W134: -16 | X134: -15 | Y134: -14 | Z134: -13 | AA134: -12 | AB134: -11 | AC134: -10 | AD134: -9 | AE134: -8 | AF134: -7 | AG134: -6 | AH134: -5 | AI134: -4 | AJ134: -3 | AK134: -2 | AL134: -1 | AM134: 0 | AN134: 21 | AO134: =AN134+1 -> 22 | AP134: 23 | AQ134: 24 | AR134: 25 | AS134: 26 | AT134: 27 | AU134: 28 | AV134: 29 | AW134: 30 | AX134: 31 | AY134: 32 | AZ134: 33 | BA134: 34 | BB134: 35 | BC134: 36 | BD134: 37 | BE134: 38 | BF134: 39 | BG134: 40
Q135: Volume | S135: =T135-1 -> 2004 | T135: 2005 | U135: 2006 | V135: 2007 | W135: 2008 | X135: 2009 | Y135: 2010 | Z135: 2011 | AA135: 2012 | AB135: 2013 | AC135: 2014 | AD135: 2015 | AE135: 2016 | AF135: 2017 | AG135: 2018 | AH135: 2019 | AI135: 2020 | AJ135: 2021 | AK135: 2022 | AL135: 2023 | AM135: 2024 | AN135: =AM135+1 -> 2025 | AO135: =AN135+1 -> 2026 | AP135: 2027 | AQ135: 2028 | AR135: 2029 | AS135: 2030 | AT135: 2031 | AU135: 2032 | AV135: 2033 | AW135: 2034 | AX135: 2035 | AY135: 2036 | AZ135: 2037 | BA135: 2038 | BB135: 2039 | BC135: 2040 | BD135: 2041 | BE135: 2042 | BF135: 2043 | BG135: 2044
Q136: =R136&" (Historic)" -> TRANSFORMERS (Historic) | R136: TRANSFORMERS | S136: =SUM('Historical scenario - input'!AB44:AB65) -> 721.557083 | T136: =SUM('Historical scenario - input'!AA44:AA65) -> 887.5841714 | U136: =SUM('Historical scenario - input'!Z44:Z65) -> 777.6322577 | V136: =SUM('Historical scenario - input'!Y44:Y65) -> 764.6693052 | W136: =SUM('Historical scenario - input'!X44:X65) -> 771.1567921 | X136: =SUM('Historical scenario - input'!W44:W65) -> 874.9310791 | Y136: =SUM('Historical scenario - input'!V44:V65) -> 849.6559507 | Z136: =SUM('Historical scenario - input'!U44:U65) -> 894.1968805 | AA136: =SUM('Historical scenario - input'!T44:T65) -> 714.8359464 | AB136: =SUM('Historical scenario - input'!S44:S65) -> 661.8189563 | AC136: =SUM('Historical scenario - input'!R44:R65) -> 584.945051 | AD136: =SUM('Historical scenario - input'!Q44:Q65) -> 639.3657468 | AE136: =SUM('Historical scenario - input'!P44:P65) -> 597.8148466 | AF136: =SUM('Historical scenario - input'!O44:O65) -> 611.3484186 | AG136: =SUM('Historical scenario - input'!N44:N65) -> 708.060167 | AH136: =SUM('Historical scenario - input'!M44:M65) -> 870.3946629 | AI136: =SUM('Historical scenario - input'!L44:L65) -> 755.2199762 | AJ136: =SUM('Historical scenario - input'!K44:K65) -> 659.5021356 | AK136: =SUM('Historical scenario - input'!J44:J65) -> 773.5993815 | AL136: =SUM('Historical scenario - input'!I44:I65) -> 626 | AM136: =SUM('Historical scenario - input'!H44:H65) -> 707 | AN136: =VLOOKUP($R136,'Historical scenario - output'!$B$6:$AQ$15,AN$15+2,FALSE) -> 699.1695658 | AO136: =VLOOKUP($R136,'Historical scenario - output'!$B$6:$AQ$15,AO$15+2,FALSE) -> 682.0597113 | AP136: =VLOOKUP($R136,'Historical scenario - output'!$B$6:$AQ$15,AP$15+2,FALSE) -> 678.7660359 | AQ136: =VLOOKUP($R136,'Historical scenario - output'!$B$6:$AQ$15,AQ$15+2,FALSE) -> 684.6501552 | AR136: =VLOOKUP($R136,'Historical scenario - output'!$B$6:$AQ$15,AR$15+2,FALSE) -> 697.4977557 | AS136: =VLOOKUP($R136,'Historical scenario - output'!$B$6:$AQ$15,AS$15+2,FALSE) -> 715.9557232 | AT136: =VLOOKUP($R136,'Historical scenario - output'!$B$6:$AQ$15,AT$15+2,FALSE) -> 739.174512 | AU136: =VLOOKUP($R136,'Historical scenario - output'!$B$6:$AQ$15,AU$15+2,FALSE) -> 766.5698012 | AV136: =VLOOKUP($R136,'Historical scenario - output'!$B$6:$AQ$15,AV$15+2,FALSE) -> 797.6611796 | AW136: =VLOOKUP($R136,'Historical scenario - output'!$B$6:$AQ$15,AW$15+2,FALSE) -> 831.9643159 | AX136: =VLOOKUP($R136,'Historical scenario - output'!$B$6:$AQ$15,AX$15+2,FALSE) -> 868.9240071 | AY136: =VLOOKUP($R136,'Historical scenario - output'!$B$6:$AQ$15,AY$15+2,FALSE) -> 907.881178 | AZ136: =VLOOKUP($R136,'Historical scenario - output'!$B$6:$AQ$15,AZ$15+2,FALSE) -> 948.0688045 | BA136: =VLOOKUP($R136,'Historical scenario - output'!$B$6:$AQ$15,BA$15+2,FALSE) -> 988.6311921 | BB136: =VLOOKUP($R136,'Historical scenario - output'!$B$6:$AQ$15,BB$15+2,FALSE) -> 1028.659483 | BC136: =VLOOKUP($R136,'Historical scenario - output'!$B$6:$AQ$15,BC$15+2,FALSE) -> 1067.235056 | BD136: =VLOOKUP($R136,'Historical scenario - output'!$B$6:$AQ$15,BD$15+2,FALSE) -> 1103.472586 | BE136: =VLOOKUP($R136,'Historical scenario - output'!$B$6:$AQ$15,BE$15+2,FALSE) -> 1136.556311 | BF136: =VLOOKUP($R136,'Historical scenario - output'!$B$6:$AQ$15,BF$15+2,FALSE) -> 1165.766086 | BG136: =VLOOKUP($R136,'Historical scenario - output'!$B$6:$AQ$15,BG$15+2,FALSE) -> 1190.493138
Q137: =R137&" (Live)" -> TRANSFORMERS (Live) | R137: TRANSFORMERS | S137: =SUM('Lives scenario - input'!AD44:AD65) -> 721.557083 | T137: =SUM('Lives scenario - input'!AC44:AC65) -> 887.5841714 | U137: =SUM('Lives scenario - input'!AB44:AB65) -> 777.6322577 | V137: =SUM('Lives scenario - input'!AA44:AA65) -> 764.6693052 | W137: =SUM('Lives scenario - input'!Z44:Z65) -> 771.1567921 | X137: =SUM('Lives scenario - input'!Y44:Y65) -> 874.9310791 | Y137: =SUM('Lives scenario - input'!X44:X65) -> 849.6559507 | Z137: =SUM('Lives scenario - input'!W44:W65) -> 894.1968805 | AA137: =SUM('Lives scenario - input'!V44:V65) -> 714.8359464 | AB137: =SUM('Lives scenario - input'!U44:U65) -> 661.8189563 | AC137: =SUM('Lives scenario - input'!T44:T65) -> 584.945051 | AD137: =SUM('Lives scenario - input'!S44:S65) -> 639.3657468 | AE137: =SUM('Lives scenario - input'!R44:R65) -> 597.8148466 | AF137: =SUM('Lives scenario - input'!Q44:Q65) -> 611.3484186 | AG137: =SUM('Lives scenario - input'!P44:P65) -> 708.060167 | AH137: =SUM('Lives scenario - input'!O44:O65) -> 870.3946629 | AI137: =SUM('Lives scenario - input'!N44:N65) -> 755.2199762 | AJ137: =SUM('Lives scenario - input'!M44:M65) -> 659.5021356 | AK137: =SUM('Lives scenario - input'!L44:L65) -> 773.5993815 | AL137: =SUM('Lives scenario - input'!K44:K65) -> 626 | AM137: =SUM('Lives scenario - input'!J44:J65) -> 707 | AN137: =VLOOKUP($R137,'Lives scenario - output'!$B$6:$AQ$15,AN$15+2,FALSE) -> 549.4042767 | AO137: =VLOOKUP($R137,'Lives scenario - output'!$B$6:$AQ$15,AO$15+2,FALSE) -> 568.16236 | AP137: =VLOOKUP($R137,'Lives scenario - output'!$B$6:$AQ$15,AP$15+2,FALSE) -> 587.6319053 | AQ137: =VLOOKUP($R137,'Lives scenario - output'!$B$6:$AQ$15,AQ$15+2,FALSE) -> 607.8470634 | AR137: =VLOOKUP($R137,'Lives scenario - output'!$B$6:$AQ$15,AR$15+2,FALSE) -> 628.9901086 | AS137: =VLOOKUP($R137,'Lives scenario - output'!$B$6:$AQ$15,AS$15+2,FALSE) -> 651.3274751 | AT137: =VLOOKUP($R137,'Lives scenario - output'!$B$6:$AQ$15,AT$15+2,FALSE) -> 675.1597313 | AU137: =VLOOKUP($R137,'Lives scenario - output'!$B$6:$AQ$15,AU$15+2,FALSE) -> 700.776851 | AV137: =VLOOKUP($R137,'Lives scenario - output'!$B$6:$AQ$15,AV$15+2,FALSE) -> 728.416486 | AW137: =VLOOKUP($R137,'Lives scenario - output'!$B$6:$AQ$15,AW$15+2,FALSE) -> 758.2261603 | AX137: =VLOOKUP($R137,'Lives scenario - output'!$B$6:$AQ$15,AX$15+2,FALSE) -> 790.2316747 | AY137: =VLOOKUP($R137,'Lives scenario - output'!$B$6:$AQ$15,AY$15+2,FALSE) -> 824.3142405 | AZ137: =VLOOKUP($R137,'Lives scenario - output'!$B$6:$AQ$15,AZ$15+2,FALSE) -> 860.1983715 | BA137: =VLOOKUP($R137,'Lives scenario - output'!$B$6:$AQ$15,BA$15+2,FALSE) -> 897.4516723 | BB137: =VLOOKUP($R137,'Lives scenario - output'!$B$6:$AQ$15,BB$15+2,FALSE) -> 935.4966029 | BC137: =VLOOKUP($R137,'Lives scenario - output'!$B$6:$AQ$15,BC$15+2,FALSE) -> 973.6332793 | BD137: =VLOOKUP($R137,'Lives scenario - output'!$B$6:$AQ$15,BD$15+2,FALSE) -> 1011.071514 | BE137: =VLOOKUP($R137,'Lives scenario - output'!$B$6:$AQ$15,BE$15+2,FALSE) -> 1046.969687 | BF137: =VLOOKUP($R137,'Lives scenario - output'!$B$6:$AQ$15,BF$15+2,FALSE) -> 1080.47766 | BG137: =VLOOKUP($R137,'Lives scenario - output'!$B$6:$AQ$15,BG$15+2,FALSE) -> 1110.780774
Q138: =R138&" (Cost)" -> TRANSFORMERS (Cost) | R138: TRANSFORMERS | S138: =SUM('Cost scenario - input'!AE44:AE65) -> 721.557083 | T138: =SUM('Cost scenario - input'!AD44:AD65) -> 887.5841714 | U138: =SUM('Cost scenario - input'!AC44:AC65) -> 777.6322577 | V138: =SUM('Cost scenario - input'!AB44:AB65) -> 764.6693052 | W138: =SUM('Cost scenario - input'!AA44:AA65) -> 771.1567921 | X138: =SUM('Cost scenario - input'!Z44:Z65) -> 874.9310791 | Y138: =SUM('Cost scenario - input'!Y44:Y65) -> 849.6559507 | Z138: =SUM('Cost scenario - input'!X44:X65) -> 894.1968805 | AA138: =SUM('Cost scenario - input'!W44:W65) -> 714.8359464 | AB138: =SUM('Cost scenario - input'!V44:V65) -> 661.8189563 | AC138: =SUM('Cost scenario - input'!U44:U65) -> 584.945051 | AD138: =SUM('Cost scenario - input'!T44:T65) -> 639.3657468 | AE138: =SUM('Cost scenario - input'!S44:S65) -> 597.8148466 | AF138: =SUM('Cost scenario - input'!R44:R65) -> 611.3484186 | AG138: =SUM('Cost scenario - input'!Q44:Q65) -> 708.060167 | AH138: =SUM('Cost scenario - input'!P44:P65) -> 870.3946629 | AI138: =SUM('Cost scenario - input'!O44:O65) -> 755.2199762 | AJ138: =SUM('Cost scenario - input'!N44:N65) -> 659.5021356 | AK138: =SUM('Cost scenario - input'!M44:M65) -> 773.5993815 | AL138: =SUM('Cost scenario - input'!L44:L65) -> 626 | AM138: =SUM('Cost scenario - input'!K44:K65) -> 707 | AN138: =VLOOKUP($R138,'Cost scenario - output'!$B$6:$AQ$15,AN$15+2,FALSE) -> 699.1695658 | AO138: =VLOOKUP($R138,'Cost scenario - output'!$B$6:$AQ$15,AO$15+2,FALSE) -> 682.0597113 | AP138: =VLOOKUP($R138,'Cost scenario - output'!$B$6:$AQ$15,AP$15+2,FALSE) -> 678.7660359 | AQ138: =VLOOKUP($R138,'Cost scenario - output'!$B$6:$AQ$15,AQ$15+2,FALSE) -> 684.6501552 | AR138: =VLOOKUP($R138,'Cost scenario - output'!$B$6:$AQ$15,AR$15+2,FALSE) -> 697.4977557 | AS138: =VLOOKUP($R138,'Cost scenario - output'!$B$6:$AQ$15,AS$15+2,FALSE) -> 715.9557232 | AT138: =VLOOKUP($R138,'Cost scenario - output'!$B$6:$AQ$15,AT$15+2,FALSE) -> 739.174512 | AU138: =VLOOKUP($R138,'Cost scenario - output'!$B$6:$AQ$15,AU$15+2,FALSE) -> 766.5698012 | AV138: =VLOOKUP($R138,'Cost scenario - output'!$B$6:$AQ$15,AV$15+2,FALSE) -> 797.6611796 | AW138: =VLOOKUP($R138,'Cost scenario - output'!$B$6:$AQ$15,AW$15+2,FALSE) -> 831.9643159 | AX138: =VLOOKUP($R138,'Cost scenario - output'!$B$6:$AQ$15,AX$15+2,FALSE) -> 868.9240071 | AY138: =VLOOKUP($R138,'Cost scenario - output'!$B$6:$AQ$15,AY$15+2,FALSE) -> 907.881178 | AZ138: =VLOOKUP($R138,'Cost scenario - output'!$B$6:$AQ$15,AZ$15+2,FALSE) -> 948.0688045 | BA138: =VLOOKUP($R138,'Cost scenario - output'!$B$6:$AQ$15,BA$15+2,FALSE) -> 988.6311921 | BB138: =VLOOKUP($R138,'Cost scenario - output'!$B$6:$AQ$15,BB$15+2,FALSE) -> 1028.659483 | BC138: =VLOOKUP($R138,'Cost scenario - output'!$B$6:$AQ$15,BC$15+2,FALSE) -> 1067.235056 | BD138: =VLOOKUP($R138,'Cost scenario - output'!$B$6:$AQ$15,BD$15+2,FALSE) -> 1103.472586 | BE138: =VLOOKUP($R138,'Cost scenario - output'!$B$6:$AQ$15,BE$15+2,FALSE) -> 1136.556311 | BF138: =VLOOKUP($R138,'Cost scenario - output'!$B$6:$AQ$15,BF$15+2,FALSE) -> 1165.766086 | BG138: =VLOOKUP($R138,'Cost scenario - output'!$B$6:$AQ$15,BG$15+2,FALSE) -> 1190.493138
Q139: =R139&" (Combined)" -> TRANSFORMERS (Combined) | R139: TRANSFORMERS | S139: =SUM('Combined scenario - input'!AB44:AB65) -> 721.557083 | T139: =SUM('Combined scenario - input'!AA44:AA65) -> 887.5841714 | U139: =SUM('Combined scenario - input'!Z44:Z65) -> 777.6322577 | V139: =SUM('Combined scenario - input'!Y44:Y65) -> 764.6693052 | W139: =SUM('Combined scenario - input'!X44:X65) -> 771.1567921 | X139: =SUM('Combined scenario - input'!W44:W65) -> 874.9310791 | Y139: =SUM('Combined scenario - input'!V44:V65) -> 849.6559507 | Z139: =SUM('Combined scenario - input'!U44:U65) -> 894.1968805 | AA139: =SUM('Combined scenario - input'!T44:T65) -> 714.8359464 | AB139: =SUM('Combined scenario - input'!S44:S65) -> 661.8189563 | AC139: =SUM('Combined scenario - input'!R44:R65) -> 584.945051 | AD139: =SUM('Combined scenario - input'!Q44:Q65) -> 639.3657468 | AE139: =SUM('Combined scenario - input'!P44:P65) -> 597.8148466 | AF139: =SUM('Combined scenario - input'!O44:O65) -> 611.3484186 | AG139: =SUM('Combined scenario - input'!N44:N65) -> 708.060167 | AH139: =SUM('Combined scenario - input'!M44:M65) -> 870.3946629 | AI139: =SUM('Combined scenario - input'!L44:L65) -> 755.2199762 | AJ139: =SUM('Combined scenario - input'!K44:K65) -> 659.5021356 | AK139: =SUM('Combined scenario - input'!J44:J65) -> 773.5993815 | AL139: =SUM('Combined scenario - input'!I44:I65) -> 626 | AM139: =SUM('Combined scenario - input'!H44:H65) -> 707 | AN139: =VLOOKUP($R139,'Combined scenario - output'!$B$6:$AQ$15,AN$15+2,FALSE) -> 549.4042767 | AO139: =VLOOKUP($R139,'Combined scenario - output'!$B$6:$AQ$15,AO$15+2,FALSE) -> 568.16236 | AP139: =VLOOKUP($R139,'Combined scenario - output'!$B$6:$AQ$15,AP$15+2,FALSE) -> 587.6319053 | AQ139: =VLOOKUP($R139,'Combined scenario - output'!$B$6:$AQ$15,AQ$15+2,FALSE) -> 607.8470634 | AR139: =VLOOKUP($R139,'Combined scenario - output'!$B$6:$AQ$15,AR$15+2,FALSE) -> 628.9901086 | AS139: =VLOOKUP($R139,'Combined scenario - output'!$B$6:$AQ$15,AS$15+2,FALSE) -> 651.3274751 | AT139: =VLOOKUP($R139,'Combined scenario - output'!$B$6:$AQ$15,AT$15+2,FALSE) -> 675.1597313 | AU139: =VLOOKUP($R139,'Combined scenario - output'!$B$6:$AQ$15,AU$15+2,FALSE) -> 700.776851 | AV139: =VLOOKUP($R139,'Combined scenario - output'!$B$6:$AQ$15,AV$15+2,FALSE) -> 728.416486 | AW139: =VLOOKUP($R139,'Combined scenario - output'!$B$6:$AQ$15,AW$15+2,FALSE) -> 758.2261603 | AX139: =VLOOKUP($R139,'Combined scenario - output'!$B$6:$AQ$15,AX$15+2,FALSE) -> 790.2316747 | AY139: =VLOOKUP($R139,'Combined scenario - output'!$B$6:$AQ$15,AY$15+2,FALSE) -> 824.3142405 | AZ139: =VLOOKUP($R139,'Combined scenario - output'!$B$6:$AQ$15,AZ$15+2,FALSE) -> 860.1983715 | BA139: =VLOOKUP($R139,'Combined scenario - output'!$B$6:$AQ$15,BA$15+2,FALSE) -> 897.4516723 | BB139: =VLOOKUP($R139,'Combined scenario - output'!$B$6:$AQ$15,BB$15+2,FALSE) -> 935.4966029 | BC139: =VLOOKUP($R139,'Combined scenario - output'!$B$6:$AQ$15,BC$15+2,FALSE) -> 973.6332793 | BD139: =VLOOKUP($R139,'Combined scenario - output'!$B$6:$AQ$15,BD$15+2,FALSE) -> 1011.071514 | BE139: =VLOOKUP($R139,'Combined scenario - output'!$B$6:$AQ$15,BE$15+2,FALSE) -> 1046.969687 | BF139: =VLOOKUP($R139,'Combined scenario - output'!$B$6:$AQ$15,BF$15+2,FALSE) -> 1080.47766 | BG139: =VLOOKUP($R139,'Combined scenario - output'!$B$6:$AQ$15,BG$15+2,FALSE) -> 1110.780774
Q140: =R140&" (AusNet Repex)" -> TRANSFORMERS (AusNet Repex) | R140: TRANSFORMERS | AP140: =SUM('Unit Cost - Forecast (ZIN)'!Q64:Q92) -> 169 | AQ140: =SUM('Unit Cost - Forecast (ZIN)'!R64:R92) -> 176 | AR140: =SUM('Unit Cost - Forecast (ZIN)'!S64:S92) -> 179 | AS140: =SUM('Unit Cost - Forecast (ZIN)'!T64:T92) -> 184 | AT140: =SUM('Unit Cost - Forecast (ZIN)'!U64:U92) -> 186
Q150: UNDERGROUND CABLES
Q151: Expenditure | S151: =T151-1 -> 2004 | T151: 2005 | U151: 2006 | V151: 2007 | W151: 2008 | X151: 2009 | Y151: 2010 | Z151: 2011 | AA151: 2012 | AB151: 2013 | AC151: 2014 | AD151: 2015 | AE151: 2016 | AF151: 2017 | AG151: 2018 | AH151: 2019 | AI151: 2020 | AJ151: 2021 | AK151: 2022 | AL151: 2023 | AM151: 2024 | AN151: =AM151+1 -> 2025 | AO151: 2026 | AP151: 2027 | AQ151: 2028 | AR151: 2029 | AS151: 2030 | AT151: 2031 | AU151: 2032 | AV151: 2033 | AW151: 2034 | AX151: 2035 | AY151: 2036 | AZ151: 2037 | BA151: 2038 | BB151: 2039 | BC151: 2040 | BD151: 2041 | BE151: 2042 | BF151: 2043 | BG151: 2044
Q152: =R152&" (Historic)" -> UNDERGROUND CABLES (Historic) | R152: UNDERGROUND CABLES | S152: =SUM('Historical scenario - input'!DP66:DP71) -> 9205.203464 | T152: =SUM('Historical scenario - input'!DO66:DO71) -> 7935.825732 | U152: =SUM('Historical scenario - input'!DN66:DN71) -> 5896.419863 | V152: =SUM('Historical scenario - input'!DM66:DM71) -> 6606.731851 | W152: =SUM('Historical scenario - input'!DL66:DL71) -> 6248.662397 | X152: =SUM('Historical scenario - input'!DK66:DK71) -> 8574.270279 | Y152: =SUM('Historical scenario - input'!DJ66:DJ71) -> 9612.402057 | Z152: =SUM('Historical scenario - input'!DI66:DI71) -> 14264.03395 | AA152: =SUM('Historical scenario - input'!DH66:DH71) -> 17530.38141 | AB152: =SUM('Historical scenario - input'!DG66:DG71) -> 11962.89071 | AC152: =SUM('Historical scenario - input'!DF66:DF71) -> 16502.425 | AD152: =SUM('Historical scenario - input'!DE66:DE71) -> 18010.36005 | AE152: =SUM('Historical scenario - input'!DD66:DD71) -> 20534.15379 | AF152: =SUM('Historical scenario - input'!DC66:DC71) -> 22490.82182 | AG152: =SUM('Historical scenario - input'!DB66:DB71) -> 27915.36605 | AH152: =SUM('Historical scenario - input'!DA66:DA71) -> 25770.68931 | AI152: =SUM('Historical scenario - input'!CZ66:CZ71) -> 17801.08111 | AJ152: =SUM('Historical scenario - input'!CY66:CY71) -> 8074.984251 | AK152: =SUM('Historical scenario - input'!CX66:CX71) -> 13150.90946 | AL152: =SUM('Historical scenario - input'!CW66:CW71) -> 13961.57911 | AM152: =SUM('Historical scenario - input'!CV66:CV71) -> 16471.3721 | AN152: =VLOOKUP($R152,'Historical scenario - output'!$B$6:$W$15,AN$1+2,FALSE) -> 13685.29308 | AO152: =VLOOKUP($R152,'Historical scenario - output'!$B$6:$W$15,AO$1+2,FALSE) -> 13503.70486 | AP152: =VLOOKUP($R152,'Historical scenario - output'!$B$6:$W$15,AP$1+2,FALSE) -> 13182.52668 | AQ152: =VLOOKUP($R152,'Historical scenario - output'!$B$6:$W$15,AQ$1+2,FALSE) -> 12728.78 | AR152: =VLOOKUP($R152,'Historical scenario - output'!$B$6:$W$15,AR$1+2,FALSE) -> 12156.46155 | AS152: =VLOOKUP($R152,'Historical scenario - output'!$B$6:$W$15,AS$1+2,FALSE) -> 11486.30077 | AT152: =VLOOKUP($R152,'Historical scenario - output'!$B$6:$W$15,AT$1+2,FALSE) -> 10744.82565 | AU152: =VLOOKUP($R152,'Historical scenario - output'!$B$6:$W$15,AU$1+2,FALSE) -> 9962.821897 | AV152: =VLOOKUP($R152,'Historical scenario - output'!$B$6:$W$15,AV$1+2,FALSE) -> 9173.351725 | AW152: =VLOOKUP($R152,'Historical scenario - output'!$B$6:$W$15,AW$1+2,FALSE) -> 8409.550252 | AX152: =VLOOKUP($R152,'Historical scenario - output'!$B$6:$W$15,AX$1+2,FALSE) -> 7702.434249 | AY152: =VLOOKUP($R152,'Historical scenario - output'!$B$6:$W$15,AY$1+2,FALSE) -> 7078.941395 | AZ152: =VLOOKUP($R152,'Historical scenario - output'!$B$6:$W$15,AZ$1+2,FALSE) -> 6560.375252 | BA152: =VLOOKUP($R152,'Historical scenario - output'!$B$6:$W$15,BA$1+2,FALSE) -> 6161.372393 | BB152: =VLOOKUP($R152,'Historical scenario - output'!$B$6:$W$15,BB$1+2,FALSE) -> 5889.444554 | BC152: =VLOOKUP($R152,'Historical scenario - output'!$B$6:$W$15,BC$1+2,FALSE) -> 5745.089541 | BD152: =VLOOKUP($R152,'Historical scenario - output'!$B$6:$W$15,BD$1+2,FALSE) -> 5722.415978 | BE152: =VLOOKUP($R152,'Historical scenario - output'!$B$6:$W$15,BE$1+2,FALSE) -> 5810.191439 | BF152: =VLOOKUP($R152,'Historical scenario - output'!$B$6:$W$15,BF$1+2,FALSE) -> 5993.200658 | BG152: =VLOOKUP($R152,'Historical scenario - output'!$B$6:$W$15,BG$1+2,FALSE) -> 6253.788385
Q153: =R153&" (Live)" -> UNDERGROUND CABLES (Live) | R153: UNDERGROUND CABLES | S153: =SUM('Lives scenario - input'!DR66:DR71) -> 9205.203464 | T153: =SUM('Lives scenario - input'!DQ66:DQ71) -> 7935.825732 | U153: =SUM('Lives scenario - input'!DP66:DP71) -> 5896.419863 | V153: =SUM('Lives scenario - input'!DO66:DO71) -> 6606.731851 | W153: =SUM('Lives scenario - input'!DN66:DN71) -> 6248.662397 | X153: =SUM('Lives scenario - input'!DM66:DM71) -> 8574.270279 | Y153: =SUM('Lives scenario - input'!DL66:DL71) -> 9612.402057 | Z153: =SUM('Lives scenario - input'!DK66:DK71) -> 14264.03395 | AA153: =SUM('Lives scenario - input'!DJ66:DJ71) -> 17530.38141 | AB153: =SUM('Lives scenario - input'!DI66:DI71) -> 11962.89071 | AC153: =SUM('Lives scenario - input'!DH66:DH71) -> 16502.425 | AD153: =SUM('Lives scenario - input'!DG66:DG71) -> 18010.36005 | AE153: =SUM('Lives scenario - input'!DF66:DF71) -> 20534.15379 | AF153: =SUM('Lives scenario - input'!DE66:DE71) -> 22490.82182 | AG153: =SUM('Lives scenario - input'!DD66:DD71) -> 27915.36605 | AH153: =SUM('Lives scenario - input'!DC66:DC71) -> 25770.68931 | AI153: =SUM('Lives scenario - input'!DB66:DB71) -> 17801.08111 | AJ153: =SUM('Lives scenario - input'!DA66:DA71) -> 8074.984251 | AK153: =SUM('Lives scenario - input'!CZ66:CZ71) -> 13150.90946 | AL153: =SUM('Lives scenario - input'!CY66:CY71) -> 13961.57911 | AM153: =SUM('Lives scenario - input'!CX66:CX71) -> 16471.3721 | AN153: =VLOOKUP($R153,'Lives scenario - output'!$B$6:$W$15,AN$1+2,FALSE) -> 10271.51088 | AO153: =VLOOKUP($R153,'Lives scenario - output'!$B$6:$W$15,AO$1+2,FALSE) -> 10464.26228 | AP153: =VLOOKUP($R153,'Lives scenario - output'!$B$6:$W$15,AP$1+2,FALSE) -> 10583.36625 | AQ153: =VLOOKUP($R153,'Lives scenario - output'!$B$6:$W$15,AQ$1+2,FALSE) -> 10613.56976 | AR153: =VLOOKUP($R153,'Lives scenario - output'!$B$6:$W$15,AR$1+2,FALSE) -> 10543.44907 | AS153: =VLOOKUP($R153,'Lives scenario - output'!$B$6:$W$15,AS$1+2,FALSE) -> 10367.1976 | AT153: =VLOOKUP($R153,'Lives scenario - output'!$B$6:$W$15,AT$1+2,FALSE) -> 10085.84437 | AU153: =VLOOKUP($R153,'Lives scenario - output'!$B$6:$W$15,AU$1+2,FALSE) -> 9707.746616 | AV153: =VLOOKUP($R153,'Lives scenario - output'!$B$6:$W$15,AV$1+2,FALSE) -> 9248.301653 | AW153: =VLOOKUP($R153,'Lives scenario - output'!$B$6:$W$15,AW$1+2,FALSE) -> 8728.926191 | AX153: =VLOOKUP($R153,'Lives scenario - output'!$B$6:$W$15,AX$1+2,FALSE) -> 8175.44105 | AY153: =VLOOKUP($R153,'Lives scenario - output'!$B$6:$W$15,AY$1+2,FALSE) -> 7616.062487 | AZ153: =VLOOKUP($R153,'Lives scenario - output'!$B$6:$W$15,AZ$1+2,FALSE) -> 7079.232628 | BA153: =VLOOKUP($R153,'Lives scenario - output'!$B$6:$W$15,BA$1+2,FALSE) -> 6591.519917 | BB153: =VLOOKUP($R153,'Lives scenario - output'!$B$6:$W$15,BB$1+2,FALSE) -> 6175.790932 | BC153: =VLOOKUP($R153,'Lives scenario - output'!$B$6:$W$15,BC$1+2,FALSE) -> 5849.805839 | BD153: =VLOOKUP($R153,'Lives scenario - output'!$B$6:$W$15,BD$1+2,FALSE) -> 5625.330727 | BE153: =VLOOKUP($R153,'Lives scenario - output'!$B$6:$W$15,BE$1+2,FALSE) -> 5507.800317 | BF153: =VLOOKUP($R153,'Lives scenario - output'!$B$6:$W$15,BF$1+2,FALSE) -> 5496.511005 | BG153: =VLOOKUP($R153,'Lives scenario - output'!$B$6:$W$15,BG$1+2,FALSE) -> 5585.281035
Q154: =R154&" (Cost)" -> UNDERGROUND CABLES (Cost) | R154: UNDERGROUND CABLES | S154: =SUM('Cost scenario - input'!DS66:DS71) -> 9205.203464 | T154: =SUM('Cost scenario - input'!DR66:DR71) -> 7935.825732 | U154: =SUM('Cost scenario - input'!DQ66:DQ71) -> 5896.419863 | V154: =SUM('Cost scenario - input'!DP66:DP71) -> 6606.731851 | W154: =SUM('Cost scenario - input'!DO66:DO71) -> 6248.662397 | X154: =SUM('Cost scenario - input'!DN66:DN71) -> 8574.270279 | Y154: =SUM('Cost scenario - input'!DM66:DM71) -> 9612.402057 | Z154: =SUM('Cost scenario - input'!DL66:DL71) -> 14264.03395 | AA154: =SUM('Cost scenario - input'!DK66:DK71) -> 17530.38141 | AB154: =SUM('Cost scenario - input'!DJ66:DJ71) -> 11962.89071 | AC154: =SUM('Cost scenario - input'!DI66:DI71) -> 16502.425 | AD154: =SUM('Cost scenario - input'!DH66:DH71) -> 18010.36005 | AE154: =SUM('Cost scenario - input'!DG66:DG71) -> 20534.15379 | AF154: =SUM('Cost scenario - input'!DF66:DF71) -> 22490.82182 | AG154: =SUM('Cost scenario - input'!DE66:DE71) -> 27915.36605 | AH154: =SUM('Cost scenario - input'!DD66:DD71) -> 25770.68931 | AI154: =SUM('Cost scenario - input'!DC66:DC71) -> 17801.08111 | AJ154: =SUM('Cost scenario - input'!DB66:DB71) -> 8074.984251 | AK154: =SUM('Cost scenario - input'!DA66:DA71) -> 13150.90946 | AL154: =SUM('Cost scenario - input'!CZ66:CZ71) -> 13961.57911 | AM154: =SUM('Cost scenario - input'!CY66:CY71) -> 16471.3721 | AN154: =VLOOKUP($R154,'Cost scenario - output'!$B$6:$W$15,AN$1+2,FALSE) -> 13685.29308 | AO154: =VLOOKUP($R154,'Cost scenario - output'!$B$6:$W$15,AO$1+2,FALSE) -> 13503.70486 | AP154: =VLOOKUP($R154,'Cost scenario - output'!$B$6:$W$15,AP$1+2,FALSE) -> 13182.52668 | AQ154: =VLOOKUP($R154,'Cost scenario - output'!$B$6:$W$15,AQ$1+2,FALSE) -> 12728.78 | AR154: =VLOOKUP($R154,'Cost scenario - output'!$B$6:$W$15,AR$1+2,FALSE) -> 12156.46155 | AS154: =VLOOKUP($R154,'Cost scenario - output'!$B$6:$W$15,AS$1+2,FALSE) -> 11486.30077 | AT154: =VLOOKUP($R154,'Cost scenario - output'!$B$6:$W$15,AT$1+2,FALSE) -> 10744.82565 | AU154: =VLOOKUP($R154,'Cost scenario - output'!$B$6:$W$15,AU$1+2,FALSE) -> 9962.821897 | AV154: =VLOOKUP($R154,'Cost scenario - output'!$B$6:$W$15,AV$1+2,FALSE) -> 9173.351725 | AW154: =VLOOKUP($R154,'Cost scenario - output'!$B$6:$W$15,AW$1+2,FALSE) -> 8409.550252 | AX154: =VLOOKUP($R154,'Cost scenario - output'!$B$6:$W$15,AX$1+2,FALSE) -> 7702.434249 | AY154: =VLOOKUP($R154,'Cost scenario - output'!$B$6:$W$15,AY$1+2,FALSE) -> 7078.941395 | AZ154: =VLOOKUP($R154,'Cost scenario - output'!$B$6:$W$15,AZ$1+2,FALSE) -> 6560.375252 | BA154: =VLOOKUP($R154,'Cost scenario - output'!$B$6:$W$15,BA$1+2,FALSE) -> 6161.372393 | BB154: =VLOOKUP($R154,'Cost scenario - output'!$B$6:$W$15,BB$1+2,FALSE) -> 5889.444554 | BC154: =VLOOKUP($R154,'Cost scenario - output'!$B$6:$W$15,BC$1+2,FALSE) -> 5745.089541 | BD154: =VLOOKUP($R154,'Cost scenario - output'!$B$6:$W$15,BD$1+2,FALSE) -> 5722.415978 | BE154: =VLOOKUP($R154,'Cost scenario - output'!$B$6:$W$15,BE$1+2,FALSE) -> 5810.191439 | BF154: =VLOOKUP($R154,'Cost scenario - output'!$B$6:$W$15,BF$1+2,FALSE) -> 5993.200658 | BG154: =VLOOKUP($R154,'Cost scenario - output'!$B$6:$W$15,BG$1+2,FALSE) -> 6253.788385
Q155: =R155&" (Combined)" -> UNDERGROUND CABLES (Combined) | R155: UNDERGROUND CABLES | S155: =SUM('Combined scenario - input'!DP66:DP71) -> 9205.203464 | T155: =SUM('Combined scenario - input'!DO66:DO71) -> 7935.825732 | U155: =SUM('Combined scenario - input'!DN66:DN71) -> 5896.419863 | V155: =SUM('Combined scenario - input'!DM66:DM71) -> 6606.731851 | W155: =SUM('Combined scenario - input'!DL66:DL71) -> 6248.662397 | X155: =SUM('Combined scenario - input'!DK66:DK71) -> 8574.270279 | Y155: =SUM('Combined scenario - input'!DJ66:DJ71) -> 9612.402057 | Z155: =SUM('Combined scenario - input'!DI66:DI71) -> 14264.03395 | AA155: =SUM('Combined scenario - input'!DH66:DH71) -> 17530.38141 | AB155: =SUM('Combined scenario - input'!DG66:DG71) -> 11962.89071 | AC155: =SUM('Combined scenario - input'!DF66:DF71) -> 16502.425 | AD155: =SUM('Combined scenario - input'!DE66:DE71) -> 18010.36005 | AE155: =SUM('Combined scenario - input'!DD66:DD71) -> 20534.15379 | AF155: =SUM('Combined scenario - input'!DC66:DC71) -> 22490.82182 | AG155: =SUM('Combined scenario - input'!DB66:DB71) -> 27915.36605 | AH155: =SUM('Combined scenario - input'!DA66:DA71) -> 25770.68931 | AI155: =SUM('Combined scenario - input'!CZ66:CZ71) -> 17801.08111 | AJ155: =SUM('Combined scenario - input'!CY66:CY71) -> 8074.984251 | AK155: =SUM('Combined scenario - input'!CX66:CX71) -> 13150.90946 | AL155: =SUM('Combined scenario - input'!CW66:CW71) -> 13961.57911 | AM155: =SUM('Combined scenario - input'!CV66:CV71) -> 16471.3721 | AN155: =VLOOKUP($R155,'Combined scenario - output'!$B$6:$W$15,AN$1+2,FALSE) -> 10271.51088 | AO155: =VLOOKUP($R155,'Combined scenario - output'!$B$6:$W$15,AO$1+2,FALSE) -> 10464.26228 | AP155: =VLOOKUP($R155,'Combined scenario - output'!$B$6:$W$15,AP$1+2,FALSE) -> 10583.36625 | AQ155: =VLOOKUP($R155,'Combined scenario - output'!$B$6:$W$15,AQ$1+2,FALSE) -> 10613.56976 | AR155: =VLOOKUP($R155,'Combined scenario - output'!$B$6:$W$15,AR$1+2,FALSE) -> 10543.44907 | AS155: =VLOOKUP($R155,'Combined scenario - output'!$B$6:$W$15,AS$1+2,FALSE) -> 10367.1976 | AT155: =VLOOKUP($R155,'Combined scenario - output'!$B$6:$W$15,AT$1+2,FALSE) -> 10085.84437 | AU155: =VLOOKUP($R155,'Combined scenario - output'!$B$6:$W$15,AU$1+2,FALSE) -> 9707.746616 | AV155: =VLOOKUP($R155,'Combined scenario - output'!$B$6:$W$15,AV$1+2,FALSE) -> 9248.301653 | AW155: =VLOOKUP($R155,'Combined scenario - output'!$B$6:$W$15,AW$1+2,FALSE) -> 8728.926191 | AX155: =VLOOKUP($R155,'Combined scenario - output'!$B$6:$W$15,AX$1+2,FALSE) -> 8175.44105 | AY155: =VLOOKUP($R155,'Combined scenario - output'!$B$6:$W$15,AY$1+2,FALSE) -> 7616.062487 | AZ155: =VLOOKUP($R155,'Combined scenario - output'!$B$6:$W$15,AZ$1+2,FALSE) -> 7079.232628 | BA155: =VLOOKUP($R155,'Combined scenario - output'!$B$6:$W$15,BA$1+2,FALSE) -> 6591.519917 | BB155: =VLOOKUP($R155,'Combined scenario - output'!$B$6:$W$15,BB$1+2,FALSE) -> 6175.790932 | BC155: =VLOOKUP($R155,'Combined scenario - output'!$B$6:$W$15,BC$1+2,FALSE) -> 5849.805839 | BD155: =VLOOKUP($R155,'Combined scenario - output'!$B$6:$W$15,BD$1+2,FALSE) -> 5625.330727 | BE155: =VLOOKUP($R155,'Combined scenario - output'!$B$6:$W$15,BE$1+2,FALSE) -> 5507.800317 | BF155: =VLOOKUP($R155,'Combined scenario - output'!$B$6:$W$15,BF$1+2,FALSE) -> 5496.511005 | BG155: =VLOOKUP($R155,'Combined scenario - output'!$B$6:$W$15,BG$1+2,FALSE) -> 5585.281035
Q156: =R156&" (AusNet Repex)" -> UNDERGROUND CABLES (AusNet Repex) | R156: UNDERGROUND CABLES | AP156: =SUM('Unit Cost - Forecast (ZIN)'!G40:G47)/1000 -> 3450.746366 | AQ156: =SUM('Unit Cost - Forecast (ZIN)'!H40:H47)/1000 -> 5758.313309 | AR156: =SUM('Unit Cost - Forecast (ZIN)'!I40:I47)/1000 -> 9256.752112 | AS156: =SUM('Unit Cost - Forecast (ZIN)'!J40:J47)/1000 -> 8173.695185 | AT156: =SUM('Unit Cost - Forecast (ZIN)'!K40:K47)/1000 -> 4710.181978
S164: =T164-1 -> -20 | T164: -19 | U164: -18 | V164: -17 | W164: -16 | X164: -15 | Y164: -14 | Z164: -13 | AA164: -12 | AB164: -11 | AC164: -10 | AD164: -9 | AE164: -8 | AF164: -7 | AG164: -6 | AH164: -5 | AI164: -4 | AJ164: -3 | AK164: -2 | AL164: -1 | AM164: 0 | AN164: 21 | AO164: =AN164+1 -> 22 | AP164: 23 | AQ164: 24 | AR164: 25 | AS164: 26 | AT164: 27 | AU164: 28 | AV164: 29 | AW164: 30 | AX164: 31 | AY164: 32 | AZ164: 33 | BA164: 34 | BB164: 35 | BC164: 36 | BD164: 37 | BE164: 38 | BF164: 39 | BG164: 40
Q165: Volume | S165: =T165-1 -> 2004 | T165: 2005 | U165: 2006 | V165: 2007 | W165: 2008 | X165: 2009 | Y165: 2010 | Z165: 2011 | AA165: 2012 | AB165: 2013 | AC165: 2014 | AD165: 2015 | AE165: 2016 | AF165: 2017 | AG165: 2018 | AH165: 2019 | AI165: 2020 | AJ165: 2021 | AK165: 2022 | AL165: 2023 | AM165: 2024 | AN165: =AM165+1 -> 2025 | AO165: =AN165+1 -> 2026 | AP165: 2027 | AQ165: 2028 | AR165: 2029 | AS165: 2030 | AT165: 2031 | AU165: 2032 | AV165: 2033 | AW165: 2034 | AX165: 2035 | AY165: 2036 | AZ165: 2037 | BA165: 2038 | BB165: 2039 | BC165: 2040 | BD165: 2041 | BE165: 2042 | BF165: 2043 | BG165: 2044
Q166: =R166&" (Historic)" -> UNDERGROUND CABLES (Historic) | R166: UNDERGROUND CABLES | S166: =SUM('Historical scenario - input'!AB66:AB71) -> 175.9398097 | T166: =SUM('Historical scenario - input'!AA66:AA71) -> 107.4523676 | U166: =SUM('Historical scenario - input'!Z66:Z71) -> 89.15195876 | V166: =SUM('Historical scenario - input'!Y66:Y71) -> 82.36365966 | W166: =SUM('Historical scenario - input'!X66:X71) -> 80.90734873 | X166: =SUM('Historical scenario - input'!W66:W71) -> 130.3546617 | Y166: =SUM('Historical scenario - input'!V66:V71) -> 156.6275964 | Z166: =SUM('Historical scenario - input'!U66:U71) -> 265.7021498 | AA166: =SUM('Historical scenario - input'!T66:T71) -> 261.2906224 | AB166: =SUM('Historical scenario - input'!S66:S71) -> 182.1118512 | AC166: =SUM('Historical scenario - input'!R66:R71) -> 225.3204835 | AD166: =SUM('Historical scenario - input'!Q66:Q71) -> 244.1286392 | AE166: =SUM('Historical scenario - input'!P66:P71) -> 326.5960216 | AF166: =SUM('Historical scenario - input'!O66:O71) -> 308.0859975 | AG166: =SUM('Historical scenario - input'!N66:N71) -> 333.70109 | AH166: =SUM('Historical scenario - input'!M66:M71) -> 396.94 | AI166: =SUM('Historical scenario - input'!L66:L71) -> 279.23 | AJ166: =SUM('Historical scenario - input'!K66:K71) -> 147.32472 | AK166: =SUM('Historical scenario - input'!J66:J71) -> 225.12694 | AL166: =SUM('Historical scenario - input'!I66:I71) -> 279.022979 | AM166: =SUM('Historical scenario - input'!H66:H71) -> 304.204495 | AN166: =VLOOKUP($R166,'Historical scenario - output'!$B$6:$AQ$15,AN$15+2,FALSE) -> 246.9093955 | AO166: =VLOOKUP($R166,'Historical scenario - output'!$B$6:$AQ$15,AO$15+2,FALSE) -> 232.2545976 | AP166: =VLOOKUP($R166,'Historical scenario - output'!$B$6:$AQ$15,AP$15+2,FALSE) -> 218.2176625 | AQ166: =VLOOKUP($R166,'Historical scenario - output'!$B$6:$AQ$15,AQ$15+2,FALSE) -> 204.749487 | AR166: =VLOOKUP($R166,'Historical scenario - output'!$B$6:$AQ$15,AR$15+2,FALSE) -> 191.7454204 | AS166: =VLOOKUP($R166,'Historical scenario - output'!$B$6:$AQ$15,AS$15+2,FALSE) -> 179.0971017 | AT166: =VLOOKUP($R166,'Historical scenario - output'!$B$6:$AQ$15,AT$15+2,FALSE) -> 166.7358884 | AU166: =VLOOKUP($R166,'Historical scenario - output'!$B$6:$AQ$15,AU$15+2,FALSE) -> 154.6623748 | AV166: =VLOOKUP($R166,'Historical scenario - output'!$B$6:$AQ$15,AV$15+2,FALSE) -> 142.9593232 | AW166: =VLOOKUP($R166,'Historical scenario - output'!$B$6:$AQ$15,AW$15+2,FALSE) -> 131.7881755 | AX166: =VLOOKUP($R166,'Historical scenario - output'!$B$6:$AQ$15,AX$15+2,FALSE) -> 121.3717122 | AY166: =VLOOKUP($R166,'Historical scenario - output'!$B$6:$AQ$15,AY$15+2,FALSE) -> 111.9670864 | AZ166: =VLOOKUP($R166,'Historical scenario - output'!$B$6:$AQ$15,AZ$15+2,FALSE) -> 103.8342326 | BA166: =VLOOKUP($R166,'Historical scenario - output'!$B$6:$AQ$15,BA$15+2,FALSE) -> 97.20459429 | BB166: =VLOOKUP($R166,'Historical scenario - output'!$B$6:$AQ$15,BB$15+2,FALSE) -> 92.25437107 | BC166: =VLOOKUP($R166,'Historical scenario - output'!$B$6:$AQ$15,BC$15+2,FALSE) -> 89.08531327 | BD166: =VLOOKUP($R166,'Historical scenario - output'!$B$6:$AQ$15,BD$15+2,FALSE) -> 87.71473024 | BE166: =VLOOKUP($R166,'Historical scenario - output'!$B$6:$AQ$15,BE$15+2,FALSE) -> 88.07505141 | BF166: =VLOOKUP($R166,'Historical scenario - output'!$B$6:$AQ$15,BF$15+2,FALSE) -> 90.02214562 | BG166: =VLOOKUP($R166,'Historical scenario - output'!$B$6:$AQ$15,BG$15+2,FALSE) -> 93.35075148
Q167: =R167&" (Live)" -> UNDERGROUND CABLES (Live) | R167: UNDERGROUND CABLES | S167: =SUM('Lives scenario - input'!AD66:AD71) -> 175.9398097 | T167: =SUM('Lives scenario - input'!AC66:AC71) -> 107.4523676 | U167: =SUM('Lives scenario - input'!AB66:AB71) -> 89.15195876 | V167: =SUM('Lives scenario - input'!AA66:AA71) -> 82.36365966 | W167: =SUM('Lives scenario - input'!Z66:Z71) -> 80.90734873 | X167: =SUM('Lives scenario - input'!Y66:Y71) -> 130.3546617 | Y167: =SUM('Lives scenario - input'!X66:X71) -> 156.6275964 | Z167: =SUM('Lives scenario - input'!W66:W71) -> 265.7021498 | AA167: =SUM('Lives scenario - input'!V66:V71) -> 261.2906224 | AB167: =SUM('Lives scenario - input'!U66:U71) -> 182.1118512 | AC167: =SUM('Lives scenario - input'!T66:T71) -> 225.3204835 | AD167: =SUM('Lives scenario - input'!S66:S71) -> 244.1286392 | AE167: =SUM('Lives scenario - input'!R66:R71) -> 326.5960216 | AF167: =SUM('Lives scenario - input'!Q66:Q71) -> 308.0859975 | AG167: =SUM('Lives scenario - input'!P66:P71) -> 333.70109 | AH167: =SUM('Lives scenario - input'!O66:O71) -> 396.94 | AI167: =SUM('Lives scenario - input'!N66:N71) -> 279.23 | AJ167: =SUM('Lives scenario - input'!M66:M71) -> 147.32472 | AK167: =SUM('Lives scenario - input'!L66:L71) -> 225.12694 | AL167: =SUM('Lives scenario - input'!K66:K71) -> 279.022979 | AM167: =SUM('Lives scenario - input'!J66:J71) -> 304.204495 | AN167: =VLOOKUP($R167,'Lives scenario - output'!$B$6:$AQ$15,AN$15+2,FALSE) -> 225.6711134 | AO167: =VLOOKUP($R167,'Lives scenario - output'!$B$6:$AQ$15,AO$15+2,FALSE) -> 213.3452076 | AP167: =VLOOKUP($R167,'Lives scenario - output'!$B$6:$AQ$15,AP$15+2,FALSE) -> 202.0474152 | AQ167: =VLOOKUP($R167,'Lives scenario - output'!$B$6:$AQ$15,AQ$15+2,FALSE) -> 191.5900558 | AR167: =VLOOKUP($R167,'Lives scenario - output'!$B$6:$AQ$15,AR$15+2,FALSE) -> 181.7103297 | AS167: =VLOOKUP($R167,'Lives scenario - output'!$B$6:$AQ$15,AS$15+2,FALSE) -> 172.1347861 | AT167: =VLOOKUP($R167,'Lives scenario - output'!$B$6:$AQ$15,AT$15+2,FALSE) -> 162.6361451 | AU167: =VLOOKUP($R167,'Lives scenario - output'!$B$6:$AQ$15,AU$15+2,FALSE) -> 153.075466 | AV167: =VLOOKUP($R167,'Lives scenario - output'!$B$6:$AQ$15,AV$15+2,FALSE) -> 143.4256118 | AW167: =VLOOKUP($R167,'Lives scenario - output'!$B$6:$AQ$15,AW$15+2,FALSE) -> 133.7751201 | AX167: =VLOOKUP($R167,'Lives scenario - output'!$B$6:$AQ$15,AX$15+2,FALSE) -> 124.3144459 | AY167: =VLOOKUP($R167,'Lives scenario - output'!$B$6:$AQ$15,AY$15+2,FALSE) -> 115.3086965 | AZ167: =VLOOKUP($R167,'Lives scenario - output'!$B$6:$AQ$15,AZ$15+2,FALSE) -> 107.062218 | BA167: =VLOOKUP($R167,'Lives scenario - output'!$B$6:$AQ$15,BA$15+2,FALSE) -> 99.88068607 | BB167: =VLOOKUP($R167,'Lives scenario - output'!$B$6:$AQ$15,BB$15+2,FALSE) -> 94.03582777 | BC167: =VLOOKUP($R167,'Lives scenario - output'!$B$6:$AQ$15,BC$15+2,FALSE) -> 89.73678842 | BD167: =VLOOKUP($R167,'Lives scenario - output'!$B$6:$AQ$15,BD$15+2,FALSE) -> 87.11073039 | BE167: =VLOOKUP($R167,'Lives scenario - output'!$B$6:$AQ$15,BE$15+2,FALSE) -> 86.19377499 | BF167: =VLOOKUP($R167,'Lives scenario - output'!$B$6:$AQ$15,BF$15+2,FALSE) -> 86.93207297 | BG167: =VLOOKUP($R167,'Lives scenario - output'!$B$6:$AQ$15,BG$15+2,FALSE) -> 89.19174341
Q168: =R168&" (Cost)" -> UNDERGROUND CABLES (Cost) | R168: UNDERGROUND CABLES | S168: =SUM('Cost scenario - input'!AE66:AE71) -> 175.9398097 | T168: =SUM('Cost scenario - input'!AD66:AD71) -> 107.4523676 | U168: =SUM('Cost scenario - input'!AC66:AC71) -> 89.15195876 | V168: =SUM('Cost scenario - input'!AB66:AB71) -> 82.36365966 | W168: =SUM('Cost scenario - input'!AA66:AA71) -> 80.90734873 | X168: =SUM('Cost scenario - input'!Z66:Z71) -> 130.3546617 | Y168: =SUM('Cost scenario - input'!Y66:Y71) -> 156.6275964 | Z168: =SUM('Cost scenario - input'!X66:X71) -> 265.7021498 | AA168: =SUM('Cost scenario - input'!W66:W71) -> 261.2906224 | AB168: =SUM('Cost scenario - input'!V66:V71) -> 182.1118512 | AC168: =SUM('Cost scenario - input'!U66:U71) -> 225.3204835 | AD168: =SUM('Cost scenario - input'!T66:T71) -> 244.1286392 | AE168: =SUM('Cost scenario - input'!S66:S71) -> 326.5960216 | AF168: =SUM('Cost scenario - input'!R66:R71) -> 308.0859975 | AG168: =SUM('Cost scenario - input'!Q66:Q71) -> 333.70109 | AH168: =SUM('Cost scenario - input'!P66:P71) -> 396.94 | AI168: =SUM('Cost scenario - input'!O66:O71) -> 279.23 | AJ168: =SUM('Cost scenario - input'!N66:N71) -> 147.32472 | AK168: =SUM('Cost scenario - input'!M66:M71) -> 225.12694 | AL168: =SUM('Cost scenario - input'!L66:L71) -> 279.022979 | AM168: =SUM('Cost scenario - input'!K66:K71) -> 304.204495 | AN168: =VLOOKUP($R168,'Cost scenario - output'!$B$6:$AQ$15,AN$15+2,FALSE) -> 246.9093955 | AO168: =VLOOKUP($R168,'Cost scenario - output'!$B$6:$AQ$15,AO$15+2,FALSE) -> 232.2545976 | AP168: =VLOOKUP($R168,'Cost scenario - output'!$B$6:$AQ$15,AP$15+2,FALSE) -> 218.2176625 | AQ168: =VLOOKUP($R168,'Cost scenario - output'!$B$6:$AQ$15,AQ$15+2,FALSE) -> 204.749487 | AR168: =VLOOKUP($R168,'Cost scenario - output'!$B$6:$AQ$15,AR$15+2,FALSE) -> 191.7454204 | AS168: =VLOOKUP($R168,'Cost scenario - output'!$B$6:$AQ$15,AS$15+2,FALSE) -> 179.0971017 | AT168: =VLOOKUP($R168,'Cost scenario - output'!$B$6:$AQ$15,AT$15+2,FALSE) -> 166.7358884 | AU168: =VLOOKUP($R168,'Cost scenario - output'!$B$6:$AQ$15,AU$15+2,FALSE) -> 154.6623748 | AV168: =VLOOKUP($R168,'Cost scenario - output'!$B$6:$AQ$15,AV$15+2,FALSE) -> 142.9593232 | AW168: =VLOOKUP($R168,'Cost scenario - output'!$B$6:$AQ$15,AW$15+2,FALSE) -> 131.7881755 | AX168: =VLOOKUP($R168,'Cost scenario - output'!$B$6:$AQ$15,AX$15+2,FALSE) -> 121.3717122 | AY168: =VLOOKUP($R168,'Cost scenario - output'!$B$6:$AQ$15,AY$15+2,FALSE) -> 111.9670864 | AZ168: =VLOOKUP($R168,'Cost scenario - output'!$B$6:$AQ$15,AZ$15+2,FALSE) -> 103.8342326 | BA168: =VLOOKUP($R168,'Cost scenario - output'!$B$6:$AQ$15,BA$15+2,FALSE) -> 97.20459429 | BB168: =VLOOKUP($R168,'Cost scenario - output'!$B$6:$AQ$15,BB$15+2,FALSE) -> 92.25437107 | BC168: =VLOOKUP($R168,'Cost scenario - output'!$B$6:$AQ$15,BC$15+2,FALSE) -> 89.08531327 | BD168: =VLOOKUP($R168,'Cost scenario - output'!$B$6:$AQ$15,BD$15+2,FALSE) -> 87.71473024 | BE168: =VLOOKUP($R168,'Cost scenario - output'!$B$6:$AQ$15,BE$15+2,FALSE) -> 88.07505141 | BF168: =VLOOKUP($R168,'Cost scenario - output'!$B$6:$AQ$15,BF$15+2,FALSE) -> 90.02214562 | BG168: =VLOOKUP($R168,'Cost scenario - output'!$B$6:$AQ$15,BG$15+2,FALSE) -> 93.35075148
Q169: =R169&" (Combined)" -> UNDERGROUND CABLES (Combined) | R169: UNDERGROUND CABLES | S169: =SUM('Combined scenario - input'!AB66:AB71) -> 175.9398097 | T169: =SUM('Combined scenario - input'!AA66:AA71) -> 107.4523676 | U169: =SUM('Combined scenario - input'!Z66:Z71) -> 89.15195876 | V169: =SUM('Combined scenario - input'!Y66:Y71) -> 82.36365966 | W169: =SUM('Combined scenario - input'!X66:X71) -> 80.90734873 | X169: =SUM('Combined scenario - input'!W66:W71) -> 130.3546617 | Y169: =SUM('Combined scenario - input'!V66:V71) -> 156.6275964 | Z169: =SUM('Combined scenario - input'!U66:U71) -> 265.7021498 | AA169: =SUM('Combined scenario - input'!T66:T71) -> 261.2906224 | AB169: =SUM('Combined scenario - input'!S66:S71) -> 182.1118512 | AC169: =SUM('Combined scenario - input'!R66:R71) -> 225.3204835 | AD169: =SUM('Combined scenario - input'!Q66:Q71) -> 244.1286392 | AE169: =SUM('Combined scenario - input'!P66:P71) -> 326.5960216 | AF169: =SUM('Combined scenario - input'!O66:O71) -> 308.0859975 | AG169: =SUM('Combined scenario - input'!N66:N71) -> 333.70109 | AH169: =SUM('Combined scenario - input'!M66:M71) -> 396.94 | AI169: =SUM('Combined scenario - input'!L66:L71) -> 279.23 | AJ169: =SUM('Combined scenario - input'!K66:K71) -> 147.32472 | AK169: =SUM('Combined scenario - input'!J66:J71) -> 225.12694 | AL169: =SUM('Combined scenario - input'!I66:I71) -> 279.022979 | AM169: =SUM('Combined scenario - input'!H66:H71) -> 304.204495 | AN169: =VLOOKUP($R169,'Combined scenario - output'!$B$6:$AQ$15,AN$15+2,FALSE) -> 225.6711134 | AO169: =VLOOKUP($R169,'Combined scenario - output'!$B$6:$AQ$15,AO$15+2,FALSE) -> 213.3452076 | AP169: =VLOOKUP($R169,'Combined scenario - output'!$B$6:$AQ$15,AP$15+2,FALSE) -> 202.0474152 | AQ169: =VLOOKUP($R169,'Combined scenario - output'!$B$6:$AQ$15,AQ$15+2,FALSE) -> 191.5900558 | AR169: =VLOOKUP($R169,'Combined scenario - output'!$B$6:$AQ$15,AR$15+2,FALSE) -> 181.7103297 | AS169: =VLOOKUP($R169,'Combined scenario - output'!$B$6:$AQ$15,AS$15+2,FALSE) -> 172.1347861 | AT169: =VLOOKUP($R169,'Combined scenario - output'!$B$6:$AQ$15,AT$15+2,FALSE) -> 162.6361451 | AU169: =VLOOKUP($R169,'Combined scenario - output'!$B$6:$AQ$15,AU$15+2,FALSE) -> 153.075466 | AV169: =VLOOKUP($R169,'Combined scenario - output'!$B$6:$AQ$15,AV$15+2,FALSE) -> 143.4256118 | AW169: =VLOOKUP($R169,'Combined scenario - output'!$B$6:$AQ$15,AW$15+2,FALSE) -> 133.7751201 | AX169: =VLOOKUP($R169,'Combined scenario - output'!$B$6:$AQ$15,AX$15+2,FALSE) -> 124.3144459 | AY169: =VLOOKUP($R169,'Combined scenario - output'!$B$6:$AQ$15,AY$15+2,FALSE) -> 115.3086965 | AZ169: =VLOOKUP($R169,'Combined scenario - output'!$B$6:$AQ$15,AZ$15+2,FALSE) -> 107.062218 | BA169: =VLOOKUP($R169,'Combined scenario - output'!$B$6:$AQ$15,BA$15+2,FALSE) -> 99.88068607 | BB169: =VLOOKUP($R169,'Combined scenario - output'!$B$6:$AQ$15,BB$15+2,FALSE) -> 94.03582777 | BC169: =VLOOKUP($R169,'Combined scenario - output'!$B$6:$AQ$15,BC$15+2,FALSE) -> 89.73678842 | BD169: =VLOOKUP($R169,'Combined scenario - output'!$B$6:$AQ$15,BD$15+2,FALSE) -> 87.11073039 | BE169: =VLOOKUP($R169,'Combined scenario - output'!$B$6:$AQ$15,BE$15+2,FALSE) -> 86.19377499 | BF169: =VLOOKUP($R169,'Combined scenario - output'!$B$6:$AQ$15,BF$15+2,FALSE) -> 86.93207297 | BG169: =VLOOKUP($R169,'Combined scenario - output'!$B$6:$AQ$15,BG$15+2,FALSE) -> 89.19174341
Q170: =R170&" (AusNet Repex)" -> UNDERGROUND CABLES (AusNet Repex) | R170: UNDERGROUND CABLES | AP170: =SUM('Unit Cost - Forecast (ZIN)'!Q40:Q47) -> 3 | AQ170: =SUM('Unit Cost - Forecast (ZIN)'!R40:R47) -> 5 | AR170: =SUM('Unit Cost - Forecast (ZIN)'!S40:S47) -> 8 | AS170: =SUM('Unit Cost - Forecast (ZIN)'!T40:T47) -> 7 | AT170: =SUM('Unit Cost - Forecast (ZIN)'!U40:U47) -> 4

Sheet Repex categories (hidden)
C1: (i) a description of the asset category, including: | G1: (ii) an estimate of the proportion of assets replaced for each year of the current regulatory period, due to
A2: ASSET GROUP | B2: ASSET CATEGORY | C2: (A) the assets included and any boundary issues (i.e. with other asset categories); | D2: (B) an explanation of how these matters have been accounted for in determining quantities in the age profile; | E2: (C) an explanation of the main drivers for replacement (e.g. condition, etc.); | F2: (D) an explanation of whether the replacement unit cost provides for a complete replacement of the asset, or some other activity, including an extension of the asset’s life and whether the costs of this extension or other activity are capitalised or not. Note: replacement unit costs are not actually required by the reset RIN template. | G2: (A)aging of existing assets (e.g. condition, obsolesce, etc) that should be largely captured by this form of replacement modelling | H2: (B) replacements due to other factors (and a description of those factors) | I2: (C) additional assets due to the augmentation, extension, development of the network; and | J2: (D) additional assets due to other factors (and a description of those factors).
A3: POLES BY: HIGHEST OPERATING VOLTAGE; MATERIAL TYPE | B3: ˂ = 1 kV; Concrete | C3: Tower or pole structures. These physical assets are reported directly here, financials are allocated from rolled up financial register on a line-section basis. | D3: Age profile is not required for RESET RIN. See Section 5.2 of the Basis of Preparation for CA RIN. | E3: * Condition (rot, termites, strength deterioration, corrosion) as assessed by routine inspection and testing and field staff identification. * Assisted failures e.g. storms, fire, third party damage * Ground clearance * Vehicle blackspot areas * Insufficient strength with new installations e.g. new conductor, pole top transformers, pole tops | F3: *Expenditure and units are for complete replacements, which infers unit rates are for complete replacement *All replacement tasks are capitalised. | G3: 1
B4: ˂ = 1 kV; Steel
B5: ˂ = 1 kV; Wood
B6: ˃ 11 kV & < = 22 kV; Concrete
B7: ˃ 11 kV & < = 22 kV; Steel
B8: ˃ 11 kV & < = 22 kV; Wood
B9: > 1 kV & < = 11 kV; Concrete
B10: > 1 kV & < = 11 kV; Steel
B11: > 1 kV & < = 11 kV; Wood
B12: > 132 kV; Concrete
B13: > 132 kV; Steel
B14: > 132 kV; Wood
B15: > 22 kV & < = 66 kV; Concrete
B16: > 22 kV & < = 66 kV; Steel
B17: > 22 kV & < = 66 kV; Wood
B18: > 66 kV & < = 132 kV; Concrete
B19: > 66 kV & < = 132 kV; Steel
B20: > 66 kV & < = 132 kV; Wood
B21: Other
B22: Staking of a wooden pole
A23: POLE TOP STRUCTURES BY: HIGHEST OPERATING VOLTAGE | B23: ˂ = 1 kV | C23: Crossarms. These physical assets are reported directly here, financials are allocated from rolled up financial register on a line-section basis. | D23: Not required for Age Profile | E23: *Condition (rot, termites, corrosion) as assessed by routine inspection and testing, field staff identification and aerial photography. * Assisted failures e.g. storms, fire, third party damage * Ground clearance * Insufficient strength with new installations e.g. pole top transformers * Pole replacement | F23: *Expenditure includes full replacements, kingbolt replacements and insulator changes, therefore the unit rate cannot be accurately calculated by dividing expenditure by units *All replacement tasks are capitalised. | G23: 1
B24: > 1 kV & < = 11 kV
B25: ˃ 11 kV & < = 22 kV
B26: > 22 kV & < = 66 kV
B27: > 66 kV & < = 132 kV
B28: > 132 kV
B29: Other
A30: STAKING WOODEN POLES BY: HIGHEST OPERATING VOLTAGE | B30: ˂ = 1 Kv | C30: The number of stakes/reinforcements installed on timber poles. These physical assets are reported directly here, financials are allocated from rolled up financial register on a line-section basis. | E30: *Condition (rot, termite, strength deterioration) as assessed by routine inspection and testing | F30: * Project relate to life extension work and is capitalised to the pole asset. * All tasks are capitalised | G30: 1
B31: > 1 kV & < = 11 kV
B32: ˃ 11 kV & < = 22 kV
B33: > 22 kV & < = 66 kV
B34: > 66 kV & < = 132 kV
B35: > 132 kV
A36: OVERHEAD CONDUCTORS BY: Highest operating voltage; Number of phases (at HV) | B36: ˂ = 1 kV | C36: Overhead conductors (Does not include service connections). These physical assets are reported directly here, financials are allocated from rolled up financial register on a line-section basis. | D36: Age profile is not required for RESET RIN. See Section 5.2 of the Basis of Preparation for CA RIN. | E36: *Condition (mechanical stress/fatigue, strength degradation, corrosion) as assessed by routine inspection and testing and aerial imagery. * Assisted failures e.g. storms, vegetation, third party damage * Insufficient current carrying capacity for growing loads (incl. thermal and voltage constraints) * Insufficient fault level for protection | F36: *Expenditure can be split between augmentation and replacement for a single project, therefore the unit rate cannot be accurately calculated by dividing expenditure by units *All replacement tasks are capitalised. | G36: 1
B37: > 1 kV & < = 11 kV
B38: ˃ 11 kV & < = 22 kV ; SWER
B39: ˃ 11 kV & < = 22 kV; Single-Phase
B40: ˃ 11 kV & < = 22 kV; Multiple-Phase
B41: > 22 kV & < = 66 kV
B42: > 66 kV & < = 132 kV
B43: > 132 kV
B44: Other
A45: UNDERGROUND CABLES BY: Highest operating voltage | B45: ˂ = 1 kV | C45: Underground cables: includes terminations, does not include service lines. | E45: *Condition (mechanical stress/fatigue, insulation degradation, corrosion) as assessed by routine inspection and testing and aerial imagery. * Assisted failures e.g. vegetation, third party damage * insufficient current carrying capacity for growing loads (incl. thermal and voltage constraints) | F45: *Expenditure includes full replacements,termiations, joins and pits, therefore the unit rate cannot be accurately calculated by dividing expenditure by units *All replacement tasks are capitalised. | G45: 1
B46: > 1 kV & < = 11 kV
B47: > 11 kV & < = 22 kV
B48: > 22 kV & < = 33 kV
B49: > 33 kV & < = 66 kV
B50: > 66 kV & < = 132 kV
B51: > 132 kV
B52: Other
A53: SERVICE LINES BY: Connection voltage; Customer type; Connection complexity | B53: ˂ = 11 kV; Residential; Simple Type | C53: Underground and overhead service connections | E53: *Condition (insulation degradation - UV, corrosion) as assessed by routine inspection and customer reporting. * Assisted failures e.g. vegetation, third party damage | F53: *Expenditure and units are for complete replacements, which infers unit rates are for complete replacement *All replacement tasks are capitalised. | G53: 1
B54: ˂ = 11 kV; Commercial & Industrial; Simple Type
B55: ˂ = 11 kV; Residential; Complex Type
B56: ˂ = 11 kV; Commercial & Industrial; Complex Type
B57: ˂ = 11 kV; Subdivision; Complex Type
B58: > 11 kV & < = 22 kV; Commercial & Industrial
B59: > 11 kV & < = 22 kV; Subdivision
B60: > 22 kV & < = 33 kV; Commercial & Industrial
B61: > 22 kV & < = 33 kV; Subdivision
B62: > 33 kV & < = 66 kV; Commercial & Industrial
B63: > 33 kV & < = 66 kV; Subdivision
B64: > 66 kV & < = 132 kV; Commercial & Industrial
B65: > 66 kV & < = 132 kV; Subdivision
B66: > 132 kV; Commercial & Industrial
B67: > 132 kV; Subdivision
B68: Other
A69: TRANSFORMERS BY: Mounting type; Highest operating voltage; Ampere rating; Number of phases (at LV) | B69: Pole Mounted; < = 22kV; < = 60 kVA; Single Phase | C69: Poletop transformers, regulators and zone substation and distribution kiosk, chamber and outdoor transformers. | E69: *Condition (insulation degredation, corrosion) as assessed by routine inspection and testing, and customer reporting. * Insufficient rating for growing loads * Assisted failures e.g. lightning | F69: *Expenditure includes full replacements and refurbishments, therefore the unit rate cannot be accurately calculated by dividing expenditure by units *All replacement tasks are capitalised. | G69: 1
B70: Pole Mounted; < = 22kV; > 60 kVA and < = 600 kVA; Single Phase
B71: Pole Mounted; < = 22kV; > 600 kVA; Single Phase
B72: Pole Mounted; < = 22kV; < = 60 kVA ; Multiple Phase
B73: Pole Mounted; < = 22kV; > 60 kVA and < = 600 kVA ; Multiple Phase
B74: Pole Mounted; < = 22kV; > 600 kVA ; Multiple Phase
B75: Kiosk Mounted; < = 22kV; < = 60 kVA; Single Phase
B76: Kiosk Mounted; < = 22kV; > 60 kVA and < = 600 kVA; Single Phase
B77: Kiosk Mounted; < = 22kV; > 600 kVA; Single Phase
B78: Kiosk Mounted; < = 22kV; < = 60 kVA ; Multiple Phase
B79: Kiosk Mounted; < = 22kV; > 60 kVA and < = 600 kVA ; Multiple Phase
B80: Kiosk Mounted; < = 22kV; > 600 kVA ; Multiple Phase
B81: Ground Outdoor / Indoor Chamber Mounted; ˂ 22 kV; < = 60 kVA; Single Phase
B82: Ground Outdoor / Indoor Chamber Mounted; ˂ 22 kV; > 60 kVA and < = 600 kVA; Single Phase
B83: Ground Outdoor / Indoor Chamber Mounted; ˂ 22 kV; > 600 kVA; Single Phase
B84: Ground Outdoor / Indoor Chamber Mounted; ˂ 22 kV; < = 60 kVA; Multiple Phase
B85: Ground Outdoor / Indoor Chamber Mounted; ˂ 22 kV; > 60 kVA and < = 600 kVA; Multiple Phase
B86: Ground Outdoor / Indoor Chamber Mounted; ˂ 22 kV; > 600 kVA; Multiple Phase
B87: Ground Outdoor / Indoor Chamber Mounted; > = 22 kV & < = 33 kV; < = 15 MVA
B88: Ground Outdoor / Indoor Chamber Mounted; > = 22 kV & < = 33 kV; > 15 MVA and < = 40 MVA
B89: Ground Outdoor / Indoor Chamber Mounted; > = 22 kV & < = 33 kV; > 40 MVA
B90: Ground Outdoor / Indoor Chamber Mounted; > 33 kV & < = 66 kV; < = 15 MVA
B91: Ground Outdoor / Indoor Chamber Mounted; > 33 kV & < = 66 kV; > 15 MVA and < = 40 MVA
B92: Ground Outdoor / Indoor Chamber Mounted; > 33 kV & < = 66 kV; > 40 MVA
B93: Ground Outdoor / Indoor Chamber Mounted; > 66 kV & < = 132 kV; < = 100 MVA
B94: Ground Outdoor / Indoor Chamber Mounted; > 66 kV & < = 132 kV; > 100 MVA
B95: Ground Outdoor / Indoor Chamber Mounted; > 132 kV; < = 100 MVA
B96: Ground Outdoor / Indoor Chamber Mounted; > 132 kV; > 100 MVA
B97: Other
A98: SWITCHGEAR BY: Highest operating voltage; Switch function | B98: ˂ = 11 kV; Fuse | C98: Fuses, links, air break switches, gas switches, reclosers, indoor and outdoor circuit breakers | E98: *Condition (insulation degradation, corrosion, breakdown of components, moisture ingress) as assessed by routine inspection and testing and field crews. * Obsolescence - no spare parts available * Assisted failures e.g. lightning, vegetation | F98: *Expenditure includes full replacements, refurbishments, obsolescent replacements whilst units for fuses are estimated, therefore the unit rate cannot be accurately calculated by dividing expenditure by units *All replacement tasks are capitalised. | G98: 1
B99: ˂ = 11 kV ; Switch
B100: ˂ = 11 kV; Circuit Breaker
B101: > 11 kV & < = 22 kV ; Switch
B102: > 11 kV & < = 22 kV ; Circuit Breaker
B103: > 22 kV & < = 33 kV; Switch
B104: > 22 kV & < = 33 kV; Circuit Breaker
B105: > 33 kV & < = 66 kV; Switch
B106: > 33 kV & < = 66 kV; Circuit Breaker
B107: > 66 kV & < = 132 kV; Switch
B108: > 66 kV & < = 132 kV ; Circuit Breaker
B109: > 132 kV; Switch
B110: > 132 kV; Circuit Breaker
B111: Other
A112: PUBLIC LIGHTING BY: Asset type; Lighting obligation | B112: Brackets; Major Road | C112: Dedicated streetlight columns, luminaires and lamps. | E112: *Condition (corrosion, breakdown of components) as assessed by routine inspection and testing, the public and field crews. * Assisted failures e.g. storms, third party damage * Technological obsolescence e.g. due to move to LED | F112: *Expenditure includes full and partial replacements, therefore the unit rate cannot be accurately calculated by dividing expenditure by units *All replacement tasks are capitalised. | G112: 1
B113: Brackets; Minor Road
B114: Lamps; Major Road
B115: Lamps; Minor Road
B116: Luminaires; Major Road
B117: Luminaires; Minor Road
B118: Other
B119: Poles / Columns; Major Road
B120: Poles / Columns; Minor Road
A121: SCADA, NETWORK CONTROL AND PROTECTION SYSTEMS BY: Function | B121: Field Devices | C121: Load control plant and controllers, RTUs and radio infrastructure and equipment. | E121: *Condition (corrosion, breakdown of components) as assessed by routine inspection and field staff. * Assisted failures e.g. lightning * Obsolescence - software and technology capability | F121: *Expenditure includes full replacements, refurbishments and obsolescent replacements, therefore the unit rate cannot be accurately calculated by dividing expenditure by units *All replacement tasks are capitalised. | G121: 1
B122: Local Network Wiring Assets
B123: Communications Network Assets
B124: Master Station Assets
B125: Communications Site Infrastructure
B126: Communications Linear Assets
B127: AFLC
B128: Other
A129: OTHER BY: enter DNSP defined asset group here | B129: OTHER - EARTHING | C129: Zone substation building, fences, batteries, current and voltage transformers, surge diverters, protection relays, earthing system and capacitor banks; frequency injection relays and generation. | D129: Not required for Age Profile | E129: *Condition (corrosion, breakdown of components) as assessed by routine inspection and field staff. * Assisted failures e.g. lightning * Obsolescence - software and technology capability | F129: *Expenditure includes full replacements and refurbishments, therefore the unit rate cannot be accurately calculated by dividing expenditure by units *All replacement tasks are capitalised. | G129: 1
B130: OTHER - MEASURING TRANSFORMERS
B131: OTHER - REGULATORS
B132: OTHER - SITE REPAIRS REFURBISHMENTS
B133: OTHER - SURGE DIVERTERS

Sheet Historical scenario - input
B1: Unit cost - historical | C1: Calibration period: 2017-18 to 2021-22 | H1: 0 | I1: =H1-1 -> -1 | J1: =I1-1 -> -2 | K1: -3 | L1: -4 | M1: -5 | N1: -6 | O1: -7 | P1: -8 | Q1: -9 | R1: -10 | S1: -11 | T1: -12 | U1: -13 | V1: -14 | W1: -15 | X1: -16 | Y1: -17 | Z1: -18 | AA1: -19 | AB1: -20 | AC1: -21
B2: Replacement lives - calibrated
D3: Unit cost | E3: Replacement life | G3: Method | H3: Volume | CV3: Replacement Cost (NOT depreciated)
H4: Installation date (FY) | CV4: Installation date
A5: ID | B5: Asset group | C5: Asset category | D5: $ ('000) | E5: μ | F5: σ | G5: # | H5: 2024 | I5: =H5-1 -> 2023 | J5: =I5-1 -> 2022 | K5: 2021 | L5: 2020 | M5: 2019 | N5: 2018 | O5: 2017 | P5: 2016 | Q5: 2015 | R5: 2014 | S5: 2013 | T5: 2012 | U5: 2011 | V5: 2010 | W5: 2009 | X5: 2008 | Y5: 2007 | Z5: 2006 | AA5: 2005 | AB5: 2004 | AC5: 2003 | AD5: 2002 | AE5: 2001 | AF5: 2000 | AG5: 1999 | AH5: 1998 | AI5: 1997 | AJ5: 1996 | AK5: 1995 | AL5: 1994 | AM5: 1993 | AN5: 1992 | AO5: 1991 | AP5: 1990 | AQ5: 1989 | AR5: 1988 | AS5: 1987 | AT5: 1986 | AU5: 1985 | AV5: 1984 | AW5: 1983 | AX5: 1982 | AY5: 1981 | AZ5: 1980 | BA5: 1979 | BB5: 1978 | BC5: 1977 | BD5: 1976 | BE5: 1975 | BF5: 1974 | BG5: 1973 | BH5: 1972 | BI5: 1971 | BJ5: 1970 | BK5: 1969 | BL5: 1968 | BM5: 1967 | BN5: 1966 | BO5: 1965 | BP5: 1964 | BQ5: 1963 | BR5: 1962 | BS5: 1961 | BT5: 1960 | BU5: 1959 | BV5: =BU5-1 -> 1958 | BW5: 1957 | BX5: 1956 | BY5: 1955 | BZ5: 1954 | CA5: 1953 | CB5: 1952 | CC5: 1951 | CD5: 1950 | CE5: 1949 | CF5: 1948 | CG5: 1947 | CH5: 1946 | CI5: 1945 | CJ5: 1944 | CK5: 1943 | CL5: 1942 | CM5: 1941 | CN5: 1940 | CO5: 1939 | CP5: 1938 | CQ5: 1937 | CR5: 1936 | CS5: 1935 | CT5: 1934 | CV5: =H5 -> 2024 | CW5: =I5 -> 2023 | CX5: 2022 | CY5: 2021 | CZ5: 2020 | DA5: 2019 | DB5: 2018 | DC5: 2017 | DD5: 2016 | DE5: 2015 | DF5: 2014 | DG5: 2013 | DH5: 2012 | DI5: 2011 | DJ5: 2010 | DK5: 2009 | DL5: 2008 | DM5: 2007 | DN5: 2006 | DO5: 2005 | DP5: 2004 | DQ5: 2003 | DR5: 2002 | DS5: 2001 | DT5: 2000 | DU5: 1999 | DV5: 1998 | DW5: 1997 | DX5: 1996 | DY5: 1995 | DZ5: 1994 | EA5: 1993 | EB5: 1992 | EC5: 1991 | ED5: 1990 | EE5: 1989 | EF5: 1988 | EG5: 1987 | EH5: 1986 | EI5: 1985 | EJ5: 1984 | EK5: 1983 | EL5: 1982 | EM5: 1981 | EN5: 1980 | EO5: 1979 | EP5: 1978 | EQ5: 1977 | ER5: 1976 | ES5: 1975 | ET5: 1974 | EU5: 1973 | EV5: 1972 | EW5: 1971 | EX5: 1970 | EY5: 1969 | EZ5: 1968 | FA5: 1967 | FB5: 1966 | FC5: 1965 | FD5: 1964 | FE5: 1963 | FF5: 1962 | FG5: 1961 | FH5: 1960 | FI5: =BU5 -> 1959 | FJ5: 1958 | FK5: 1957 | FL5: 1956 | FM5: 1955 | FN5: 1954 | FO5: 1953 | FP5: 1952 | FQ5: 1951 | FR5: 1950 | FS5: 1949 | FT5: 1948 | FU5: 1947 | FV5: 1946 | FW5: 1945 | FX5: 1944 | FY5: 1943 | FZ5: 1942 | GA5: 1941 | GB5: 1940 | GC5: 1939 | GD5: 1938 | GE5: 1937 | GF5: 1936 | GG5: 1935 | GH5: 1934 | GI5: Match
A6: 1 | B6: OVERHEAD CONDUCTORS | C6: ˂ = 1 kV | D6: =IFERROR(IF(ISBLANK(INDEX('Unit Cost - Historical'!C:C,MATCH('Historical scenario - input'!GI6,'Unit Cost - Historical'!D:D,0))),INDEX('Cost scenario - input'!$E$6:$E$71,MATCH('Historical scenario - input'!GI6,'Cost scenario - input'!$GL$6:$GL$71,0)),INDEX('Unit Cost - Historical'!C:C,MATCH('Historical scenario - input'!GI6,'Unit Cost - Historical'!D:D,0))),"") -> 63.59986016 | E6: =INDEX('Mean Life - Calibrated'!E:E,MATCH('Historical scenario - input'!GI6,'Mean Life - Calibrated'!G:G,0)) -> 11.886 | F6: =INDEX('Mean Life - Calibrated'!F:F,MATCH('Historical scenario - input'!GI6,'Mean Life - Calibrated'!G:G,0)) -> 3.447607866 | G6: 2 | H6: =INDEX('Age Profile-24RIN'!K:K,MATCH('Historical scenario - input'!$GI6,'Age Profile-24RIN'!$J:$J,0)) -> 15.380875 | I6: =INDEX('Age Profile-24RIN'!L:L,MATCH('Historical scenario - input'!$GI6,'Age Profile-24RIN'!$J:$J,0)) -> 16.08792478 | J6: =INDEX('Age Profile-24RIN'!M:M,MATCH('Historical scenario - input'!$GI6,'Age Profile-24RIN'!$J:$J,0)) -> 25.87828949 | K6: =INDEX('Age Profile-24RIN'!N:N,MATCH('Historical scenario - input'!$GI6,'Age Profile-24RIN'!$J:$J,0)) -> 25.30174466 | L6: =INDEX('Age Profile-24RIN'!O:O,MATCH('Historical scenario - input'!$GI6,'Age Profile-24RIN'!$J:$J,0)) -> 18.21224633 | M6: =INDEX('Age Profile-24RIN'!P:P,MATCH('Historical scenario - input'!$GI6,'Age Profile-24RIN'!$J:$J,0)) -> 16.96418081 | N6: =INDEX('Age Profile-24RIN'!Q:Q,MATCH('Historical scenario - input'!$GI6,'Age Profile-24RIN'!$J:$J,0)) -> 22.09943146 | O6: =INDEX('Age Profile-24RIN'!R:R,MATCH('Historical scenario - input'!$GI6,'Age Profile-24RIN'!$J:$J,0)) -> 21.96303036 | P6: =INDEX('Age Profile-24RIN'!S:S,MATCH('Historical scenario - input'!$GI6,'Age Profile-24RIN'!$J:$J,0)) -> 0 | Q6: =INDEX('Age Profile-24RIN'!T:T,MATCH('Historical scenario - input'!$GI6,'Age Profile-24RIN'!$J:$J,0)) -> 102.7929479 | R6: =INDEX('Age Profile-24RIN'!U:U,MATCH('Historical scenario - input'!$GI6,'Age Profile-24RIN'!$J:$J,0)) -> 17.66707423 | S6: =INDEX('Age Profile-24RIN'!V:V,MATCH('Historical scenario - input'!$GI6,'Age Profile-24RIN'!$J:$J,0)) -> 0 | T6: =INDEX('Age Profile-24RIN'!W:W,MATCH('Historical scenario - input'!$GI6,'Age Profile-24RIN'!$J:$J,0)) -> 0 | U6: =INDEX('Age Profile-24RIN'!X:X,MATCH('Historical scenario - input'!$GI6,'Age Profile-24RIN'!$J:$J,0)) -> 0 | V6: =INDEX('Age Profile-24RIN'!Y:Y,MATCH('Historical scenario - input'!$GI6,'Age Profile-24RIN'!$J:$J,0)) -> 0 | W6: =INDEX('Age Profile-24RIN'!Z:Z,MATCH('Historical scenario - input'!$GI6,'Age Profile-24RIN'!$J:$J,0)) -> 0 | X6: =INDEX('Age Profile-24RIN'!AA:AA,MATCH('Historical scenario - input'!$GI6,'Age Profile-24RIN'!$J:$J,0)) -> 0 | Y6: =INDEX('Age Profile-24RIN'!AB:AB,MATCH('Historical scenario - input'!$GI6,'Age Profile-24RIN'!$J:$J,0)) -> 0 | Z6: =INDEX('Age Profile-24RIN'!AC:AC,MATCH('Historical scenario - input'!$GI6,'Age Profile-24RIN'!$J:$J,0)) -> 0 | AA6: =INDEX('Age Profile-24RIN'!AD:AD,MATCH('Historical scenario - input'!$GI6,'Age Profile-24RIN'!$J:$J,0)) -> 0 | AB6: =INDEX('Age Profile-24RIN'!AE:AE,MATCH('Historical scenario - input'!$GI6,'Age Profile-24RIN'!$J:$J,0)) -> 0 | AC6: =INDEX('Age Profile-24RIN'!AF:AF,MATCH('Historical scenario - input'!$GI6,'Age Profile-24RIN'!$J:$J,0)) -> 0 | AD6: =INDEX('Age Profile-24RIN'!AG:AG,MATCH('Historical scenario - input'!$GI6,'Age Profile-24RIN'!$J:$J,0)) -> 0 | AE6: =INDEX('Age Profile-24RIN'!AH:AH,MATCH('Historical scenario - input'!$GI6,'Age Profile-24RIN'!$J:$J,0)) -> 0 | AF6: =INDEX('Age Profile-24RIN'!AI:AI,MATCH('Historical scenario - input'!$GI6,'Age Profile-24RIN'!$J:$J,0)) -> 0 | AG6: =INDEX('Age Profile-24RIN'!AJ:AJ,MATCH('Historical scenario - input'!$GI6,'Age Profile-24RIN'!$J:$J,0)) -> 0 | AH6: =INDEX('Age Profile-24RIN'!AK:AK,MATCH('Historical scenario - input'!$GI6,'Age Profile-24RIN'!$J:$J,0)) -> 0 | AI6: =INDEX('Age Profile-24RIN'!AL:AL,MATCH('Historical scenario - input'!$GI6,'Age Profile-24RIN'!$J:$J,0)) -> 0 | AJ6: =INDEX('Age Profile-24RIN'!AM:AM,MATCH('Historical scenario - input'!$GI6,'Age Profile-24RIN'!$J:$J,0)) -> 0 | AK6: =INDEX('Age Profile-24RIN'!AN:AN,MATCH('Historical scenario - input'!$GI6,'Age Profile-24RIN'!$J:$J,0)) -> 0 | AL6: =INDEX('Age Profile-24RIN'!AO:AO,MATCH('Historical scenario - input'!$GI6,'Age Profile-24RIN'!$J:$J,0)) -> 0 | AM6: =INDEX('Age Profile-24RIN'!AP:AP,MATCH('Historical scenario - input'!$GI6,'Age Profile-24RIN'!$J:$J,0)) -> 0 | AN6: =INDEX('Age Profile-24RIN'!AQ:AQ,MATCH('Historical scenario - input'!$GI6,'Age Profile-24RIN'!$J:$J,0)) -> 0 | AO6: =INDEX('Age Profile-24RIN'!AR:AR,MATCH('Historical scenario - input'!$GI6,'Age Profile-24RIN'!$J:$J,0)) -> 0 | AP6: =INDEX('Age Profile-24RIN'!AS:AS,MATCH('Historical scenario - input'!$GI6,'Age Profile-24RIN'!$J:$J,0)) -> 0 | AQ6: =INDEX('Age Profile-24RIN'!AT:AT,MATCH('Historical scenario - input'!$GI6,'Age Profile-24RIN'!$J:$J,0)) -> 0 | AR6: =INDEX('Age Profile-24RIN'!AU:AU,MATCH('Historical scenario - input'!$GI6,'Age Profile-24RIN'!$J:$J,0)) -> 0 | AS6: =INDEX('Age Profile-24RIN'!AV:AV,MATCH('Historical scenario - input'!$GI6,'Age Profile-24RIN'!$J:$J,0)) -> 0 | AT6: =INDEX('Age Profile-24RIN'!AW:AW,MATCH('Historical scenario - input'!$GI6,'Age Profile-24RIN'!$J:$J,0)) -> 0 | AU6: =INDEX('Age Profile-24RIN'!AX:AX,MATCH('Historical scenario - input'!$GI6,'Age Profile-24RIN'!$J:$J,0)) -> 0 | AV6: =INDEX('Age Profile-24RIN'!AY:AY,MATCH('Historical scenario - input'!$GI6,'Age Profile-24RIN'!$J:$J,0)) -> 0 | AW6: =INDEX('Age Profile-24RIN'!AZ:AZ,MATCH('Historical scenario - input'!$GI6,'Age Profile-24RIN'!$J:$J,0)) -> 0 | AX6: =INDEX('Age Profile-24RIN'!BA:BA,MATCH('Historical scenario - input'!$GI6,'Age Profile-24RIN'!$J:$J,0)) -> 0 | AY6: =INDEX('Age Profile-24RIN'!BB:BB,MATCH('Historical scenario - input'!$GI6,'Age Profile-24RIN'!$J:$J,0)) -> 0 | AZ6: =INDEX('Age Profile-24RIN'!BC:BC,MATCH('Historical scenario - input'!$GI6,'Age Profile-24RIN'!$J:$J,0)) -> 0 | BA6: =INDEX('Age Profile-24RIN'!BD:BD,MATCH('Historical scenario - input'!$GI6,'Age Profile-24RIN'!$J:$J,0)) -> 0 | BB6: =INDEX('Age Profile-24RIN'!BE:BE,MATCH('Historical scenario - input'!$GI6,'Age Profile-24RIN'!$J:$J,0)) -> 0 | BC6: =INDEX('Age Profile-24RIN'!BF:BF,MATCH('Historical scenario - input'!$GI6,'Age Profile-24RIN'!$J:$J,0)) -> 0 | BD6: =INDEX('Age Profile-24RIN'!BG:BG,MATCH('Historical scenario - input'!$GI6,'Age Profile-24RIN'!$J:$J,0)) -> 0 | BE6: =INDEX('Age Profile-24RIN'!BH:BH,MATCH('Historical scenario - input'!$GI6,'Age Profile-24RIN'!$J:$J,0)) -> 0 | BF6: =INDEX('Age Profile-24RIN'!BI:BI,MATCH('Historical scenario - input'!$GI6,'Age Profile-24RIN'!$J:$J,0)) -> 0 | BG6: =INDEX('Age Profile-24RIN'!BJ:BJ,MATCH('Historical scenario - input'!$GI6,'Age Profile-24RIN'!$J:$J,0)) -> 0 | BH6: =INDEX('Age Profile-24RIN'!BK:BK,MATCH('Historical scenario - input'!$GI6,'Age Profile-24RIN'!$J:$J,0)) -> 0 | BI6: =INDEX('Age Profile-24RIN'!BL:BL,MATCH('Historical scenario - input'!$GI6,'Age Profile-24RIN'!$J:$J,0)) -> 0 | BJ6: =INDEX('Age Profile-24RIN'!BM:BM,MATCH('Historical scenario - input'!$GI6,'Age Profile-24RIN'!$J:$J,0)) -> 0 | BK6: =INDEX('Age Profile-24RIN'!BN:BN,MATCH('Historical scenario - input'!$GI6,'Age Profile-24RIN'!$J:$J,0)) -> 0 | BL6: =INDEX('Age Profile-24RIN'!BO:BO,MATCH('Historical scenario - input'!$GI6,'Age Profile-24RIN'!$J:$J,0)) -> 0 | BM6: =INDEX('Age Profile-24RIN'!BP:BP,MATCH('Historical scenario - input'!$GI6,'Age Profile-24RIN'!$J:$J,0)) -> 0 | BN6: =INDEX('Age Profile-24RIN'!BQ:BQ,MATCH('Historical scenario - input'!$GI6,'Age Profile-24RIN'!$J:$J,0)) -> 0 | BO6: =INDEX('Age Profile-24RIN'!BR:BR,MATCH('Historical scenario - input'!$GI6,'Age Profile-24RIN'!$J:$J,0)) -> 0 | BP6: =INDEX('Age Profile-24RIN'!BS:BS,MATCH('Historical scenario - input'!$GI6,'Age Profile-24RIN'!$J:$J,0)) -> 0 | BQ6: =INDEX('Age Profile-24RIN'!BT:BT,MATCH('Historical scenario - input'!$GI6,'Age Profile-24RIN'!$J:$J,0)) -> 0 | BR6: =INDEX('Age Profile-24RIN'!BU:BU,MATCH('Historical scenario - input'!$GI6,'Age Profile-24RIN'!$J:$J,0)) -> 0 | BS6: =INDEX('Age Profile-24RIN'!BV:BV,MATCH('Historical scenario - input'!$GI6,'Age Profile-24RIN'!$J:$J,0)) -> 0 | BT6: =INDEX('Age Profile-24RIN'!BW:BW,MATCH('Historical scenario - input'!$GI6,'Age Profile-24RIN'!$J:$J,0)) -> 0 | BU6: =INDEX('Age Profile-24RIN'!BX:BX,MATCH('Historical scenario - input'!$GI6,'Age Profile-24RIN'!$J:$J,0)) -> 0 | BV6: =INDEX('Age Profile-24RIN'!BY:BY,MATCH('Historical scenario - input'!$GI6,'Age Profile-24RIN'!$J:$J,0)) -> 0 | BW6: =INDEX('Age Profile-24RIN'!BZ:BZ,MATCH('Historical scenario - input'!$GI6,'Age Profile-24RIN'!$J:$J,0)) -> 0 | BX6: =INDEX('Age Profile-24RIN'!CA:CA,MATCH('Historical scenario - input'!$GI6,'Age Profile-24RIN'!$J:$J,0)) -> 0 | BY6: =INDEX('Age Profile-24RIN'!CB:CB,MATCH('Historical scenario - input'!$GI6,'Age Profile-24RIN'!$J:$J,0)) -> 0 | BZ6: =INDEX('Age Profile-24RIN'!CC:CC,MATCH('Historical scenario - input'!$GI6,'Age Profile-24RIN'!$J:$J,0)) -> 0 | CA6: =INDEX('Age Profile-24RIN'!CD:CD,MATCH('Historical scenario - input'!$GI6,'Age Profile-24RIN'!$J:$J,0)) -> 0 | CB6: =INDEX('Age Profile-24RIN'!CE:CE,MATCH('Historical scenario - input'!$GI6,'Age Profile-24RIN'!$J:$J,0)) -> 0 | CC6: =INDEX('Age Profile-24RIN'!CF:CF,MATCH('Historical scenario - input'!$GI6,'Age Profile-24RIN'!$J:$J,0)) -> 0 | CD6: =INDEX('Age Profile-24RIN'!CG:CG,MATCH('Historical scenario - input'!$GI6,'Age Profile-24RIN'!$J:$J,0)) -> 0 | CE6: =INDEX('Age Profile-24RIN'!CH:CH,MATCH('Historical scenario - input'!$GI6,'Age Profile-24RIN'!$J:$J,0)) -> 0 | CF6: =INDEX('Age Profile-24RIN'!CI:CI,MATCH('Historical scenario - input'!$GI6,'Age Profile-24RIN'!$J:$J,0)) -> 0 | CG6: =INDEX('Age Profile-24RIN'!CJ:CJ,MATCH('Historical scenario - input'!$GI6,'Age Profile-24RIN'!$J:$J,0)) -> 0 | CH6: =INDEX('Age Profile-24RIN'!CK:CK,MATCH('Historical scenario - input'!$GI6,'Age Profile-24RIN'!$J:$J,0)) -> 0 | CI6: =INDEX('Age Profile-24RIN'!CL:CL,MATCH('Historical scenario - input'!$GI6,'Age Profile-24RIN'!$J:$J,0)) -> 0 | CJ6: =INDEX('Age Profile-24RIN'!CM:CM,MATCH('Historical scenario - input'!$GI6,'Age Profile-24RIN'!$J:$J,0)) -> 0 | CK6: =INDEX('Age Profile-24RIN'!CN:CN,MATCH('Historical scenario - input'!$GI6,'Age Profile-24RIN'!$J:$J,0)) -> 0 | CL6: =INDEX('Age Profile-24RIN'!CO:CO,MATCH('Historical scenario - input'!$GI6,'Age Profile-24RIN'!$J:$J,0)) -> 0 | CM6: =INDEX('Age Profile-24RIN'!CP:CP,MATCH('Historical scenario - input'!$GI6,'Age Profile-24RIN'!$J:$J,0)) -> 0 | CN6: =INDEX('Age Profile-24RIN'!CQ:CQ,MATCH('Historical scenario - input'!$GI6,'Age Profile-24RIN'!$J:$J,0)) -> 0 | CO6: =INDEX('Age Profile-24RIN'!CR:CR,MATCH('Historical scenario - input'!$GI6,'Age Profile-24RIN'!$J:$J,0)) -> 0 | CP6: =INDEX('Age Profile-24RIN'!CS:CS,MATCH('Historical scenario - input'!$GI6,'Age Profile-24RIN'!$J:$J,0)) -> 0 | CQ6: =INDEX('Age Profile-24RIN'!CT:CT,MATCH('Historical scenario - input'!$GI6,'Age Profile-24RIN'!$J:$J,0)) -> 0 | CR6: =INDEX('Age Profile-24RIN'!CU:CU,MATCH('Historical scenario - input'!$GI6,'Age Profile-24RIN'!$J:$J,0)) -> 0 | CS6: =INDEX('Age Profile-24RIN'!CV:CV,MATCH('Historical scenario - input'!$GI6,'Age Profile-24RIN'!$J:$J,0)) -> 0 | CT6: =INDEX('Age Profile-24RIN'!CW:CW,MATCH('Historical scenario - input'!$GI6,'Age Profile-24RIN'!$J:$J,0)) -> 0 | CV6: =IFERROR($D6*H6,0) -> 978.2214991 | CW6: =IFERROR($D6*I6,0) -> 1023.189766 | CX6: =IFERROR($D6*J6,0) -> 1645.855593 | CY6: =IFERROR($D6*K6,0) -> 1609.187422 | CZ6: =IFERROR($D6*L6,0) -> 1158.29632 | DA6: =IFERROR($D6*M6,0) -> 1078.919527 | DB6: =IFERROR($D6*N6,0) -> 1405.52075 | DC6: =IFERROR($D6*O6,0) -> 1396.845659 | DD6: =IFERROR($D6*P6,0) -> 0 | DE6: =IFERROR($D6*Q6,0) -> 6537.617112 | DF6: =IFERROR($D6*R6,0) -> 1123.62345 | DG6: =IFERROR($D6*S6,0) -> 0 | DH6: =IFERROR($D6*T6,0) -> 0 | DI6: =IFERROR($D6*U6,0) -> 0 | DJ6: =IFERROR($D6*V6,0) -> 0 | DK6: =IFERROR($D6*W6,0) -> 0 | DL6: =IFERROR($D6*X6,0) -> 0 | DM6: =IFERROR($D6*Y6,0) -> 0 | DN6: =IFERROR($D6*Z6,0) -> 0 | DO6: =IFERROR($D6*AA6,0) -> 0 | DP6: =IFERROR($D6*AB6,0) -> 0 | DQ6: =IFERROR($D6*AC6,0) -> 0 | DR6: =IFERROR($D6*AD6,0) -> 0 | DS6: =IFERROR($D6*AE6,0) -> 0 | DT6: =IFERROR($D6*AF6,0) -> 0 | DU6: =IFERROR($D6*AG6,0) -> 0 | DV6: =IFERROR($D6*AH6,0) -> 0 | DW6: =IFERROR($D6*AI6,0) -> 0 | DX6: =IFERROR($D6*AJ6,0) -> 0 | DY6: =IFERROR($D6*AK6,0) -> 0 | DZ6: =IFERROR($D6*AL6,0) -> 0 | EA6: =IFERROR($D6*AM6,0) -> 0 | EB6: =IFERROR($D6*AN6,0) -> 0 | EC6: =IFERROR($D6*AO6,0) -> 0 | ED6: =IFERROR($D6*AP6,0) -> 0 | EE6: =IFERROR($D6*AQ6,0) -> 0 | EF6: =IFERROR($D6*AR6,0) -> 0 | EG6: =IFERROR($D6*AS6,0) -> 0 | EH6: =IFERROR($D6*AT6,0) -> 0 | EI6: =IFERROR($D6*AU6,0) -> 0 | EJ6: =IFERROR($D6*AV6,0) -> 0 | EK6: =IFERROR($D6*AW6,0) -> 0 | EL6: =IFERROR($D6*AX6,0) -> 0 | EM6: =IFERROR($D6*AY6,0) -> 0 | EN6: =IFERROR($D6*AZ6,0) -> 0 | EO6: =IFERROR($D6*BA6,0) -> 0 | EP6: =IFERROR($D6*BB6,0) -> 0 | EQ6: =IFERROR($D6*BC6,0) -> 0 | ER6: =IFERROR($D6*BD6,0) -> 0 | ES6: =IFERROR($D6*BE6,0) -> 0 | ET6: =IFERROR($D6*BF6,0) -> 0 | EU6: =IFERROR($D6*BG6,0) -> 0 | EV6: =IFERROR($D6*BH6,0) -> 0 | EW6: =IFERROR($D6*BI6,0) -> 0 | EX6: =IFERROR($D6*BJ6,0) -> 0 | EY6: =IFERROR($D6*BK6,0) -> 0 | EZ6: =IFERROR($D6*BL6,0) -> 0 | FA6: =IFERROR($D6*BM6,0) -> 0 | FB6: =IFERROR($D6*BN6,0) -> 0 | FC6: =IFERROR($D6*BO6,0) -> 0 | FD6: =IFERROR($D6*BP6,0) -> 0 | FE6: =IFERROR($D6*BQ6,0) -> 0 | FF6: =IFERROR($D6*BR6,0) -> 0 | FG6: =IFERROR($D6*BS6,0) -> 0 | FH6: =IFERROR($D6*BT6,0) -> 0 | FI6: =IFERROR($D6*BU6,0) -> 0 | FJ6: =IFERROR($D6*BV6,0) -> 0 | FK6: =IFERROR($D6*BW6,0) -> 0 | FL6: =IFERROR($D6*BX6,0) -> 0 | FM6: =IFERROR($D6*BY6,0) -> 0 | FN6: =IFERROR($D6*BZ6,0) -> 0 | FO6: =IFERROR($D6*CA6,0) -> 0 | FP6: =IFERROR($D6*CB6,0) -> 0 | FQ6: =IFERROR($D6*CC6,0) -> 0 | FR6: =IFERROR($D6*CD6,0) -> 0 | FS6: =IFERROR($D6*CE6,0) -> 0 | FT6: =IFERROR($D6*CF6,0) -> 0 | FU6: =IFERROR($D6*CG6,0) -> 0 | FV6: =IFERROR($D6*CH6,0) -> 0 | FW6: =IFERROR($D6*CI6,0) -> 0 | FX6: =IFERROR($D6*CJ6,0) -> 0 | FY6: =IFERROR($D6*CK6,0) -> 0 | FZ6: =IFERROR($D6*CL6,0) -> 0 | GA6: =IFERROR($D6*CM6,0) -> 0 | GB6: =IFERROR($D6*CN6,0) -> 0 | GC6: =IFERROR($D6*CO6,0) -> 0 | GD6: =IFERROR($D6*CP6,0) -> 0 | GE6: =IFERROR($D6*CQ6,0) -> 0 | GF6: =IFERROR($D6*CR6,0) -> 0 | GG6: =IFERROR($D6*CS6,0) -> 0 | GH6: =IFERROR($D6*CT6,0) -> 0 | GI6: =B6&" - "&C6 -> OVERHEAD CONDUCTORS - ˂ = 1 kV
A7: 1 | B7: OVERHEAD CONDUCTORS | C7: ˃ 11 kV & < = 22 kV; multiple-phase | D7: =IFERROR(IF(ISBLANK(INDEX('Unit Cost - Historical'!C:C,MATCH('Historical scenario - input'!GI7,'Unit Cost - Historical'!D:D,0))),INDEX('Cost scenario - input'!$E$6:$E$71,MATCH('Historical scenario - input'!GI7,'Cost scenario - input'!$GL$6:$GL$71,0)),INDEX('Unit Cost - Historical'!C:C,MATCH('Historical scenario - input'!GI7,'Unit Cost - Historical'!D:D,0))),"") -> 99.68324947 | E7: =INDEX('Mean Life - Calibrated'!E:E,MATCH('Historical scenario - input'!GI7,'Mean Life - Calibrated'!G:G,0)) -> 78.849 | F7: =INDEX('Mean Life - Calibrated'!F:F,MATCH('Historical scenario - input'!GI7,'Mean Life - Calibrated'!G:G,0)) -> 8.879695941 | G7: =IFERROR(IF($B7="","",2),"") -> 2 | H7: =INDEX('Age Profile-24RIN'!K:K,MATCH('Historical scenario - input'!$GI7,'Age Profile-24RIN'!$J:$J,0)) -> 63.040922 | I7: =INDEX('Age Profile-24RIN'!L:L,MATCH('Historical scenario - input'!$GI7,'Age Profile-24RIN'!$J:$J,0)) -> 110.2544349 | J7: =INDEX('Age Profile-24RIN'!M:M,MATCH('Historical scenario - input'!$GI7,'Age Profile-24RIN'!$J:$J,0)) -> 159.1307394 | K7: =INDEX('Age Profile-24RIN'!N:N,MATCH('Historical scenario - input'!$GI7,'Age Profile-24RIN'!$J:$J,0)) -> 115.2472499 | L7: =INDEX('Age Profile-24RIN'!O:O,MATCH('Historical scenario - input'!$GI7,'Age Profile-24RIN'!$J:$J,0)) -> 90.84370338 | M7: =INDEX('Age Profile-24RIN'!P:P,MATCH('Historical scenario - input'!$GI7,'Age Profile-24RIN'!$J:$J,0)) -> 99.71881314 | N7: =INDEX('Age Profile-24RIN'!Q:Q,MATCH('Historical scenario - input'!$GI7,'Age Profile-24RIN'!$J:$J,0)) -> 139.4202471 | O7: =INDEX('Age Profile-24RIN'!R:R,MATCH('Historical scenario - input'!$GI7,'Age Profile-24RIN'!$J:$J,0)) -> 137.5920227 | P7: =INDEX('Age Profile-24RIN'!S:S,MATCH('Historical scenario - input'!$GI7,'Age Profile-24RIN'!$J:$J,0)) -> 0 | Q7: =INDEX('Age Profile-24RIN'!T:T,MATCH('Historical scenario - input'!$GI7,'Age Profile-24RIN'!$J:$J,0)) -> 253.1252784 | R7: =INDEX('Age Profile-24RIN'!U:U,MATCH('Historical scenario - input'!$GI7,'Age Profile-24RIN'!$J:$J,0)) -> 190.5610289 | S7: =INDEX('Age Profile-24RIN'!V:V,MATCH('Historical scenario - input'!$GI7,'Age Profile-24RIN'!$J:$J,0)) -> 16.13115514 | T7: =INDEX('Age Profile-24RIN'!W:W,MATCH('Historical scenario - input'!$GI7,'Age Profile-24RIN'!$J:$J,0)) -> 142.1887 | U7: =INDEX('Age Profile-24RIN'!X:X,MATCH('Historical scenario - input'!$GI7,'Age Profile-24RIN'!$J:$J,0)) -> 69.63130357 | V7: =INDEX('Age Profile-24RIN'!Y:Y,MATCH('Historical scenario - input'!$GI7,'Age Profile-24RIN'!$J:$J,0)) -> 93.74209905 | W7: =INDEX('Age Profile-24RIN'!Z:Z,MATCH('Historical scenario - input'!$GI7,'Age Profile-24RIN'!$J:$J,0)) -> 86.46033745 | X7: =INDEX('Age Profile-24RIN'!AA:AA,MATCH('Historical scenario - input'!$GI7,'Age Profile-24RIN'!$J:$J,0)) -> 95.81636462 | Y7: =INDEX('Age Profile-24RIN'!AB:AB,MATCH('Historical scenario - input'!$GI7,'Age Profile-24RIN'!$J:$J,0)) -> 72.76672795 | Z7: =INDEX('Age Profile-24RIN'!AC:AC,MATCH('Historical scenario - input'!$GI7,'Age Profile-24RIN'!$J:$J,0)) -> 83.30147564 | AA7: =INDEX('Age Profile-24RIN'!AD:AD,MATCH('Historical scenario - input'!$GI7,'Age Profile-24RIN'!$J:$J,0)) -> 100.0668325 | AB7: =INDEX('Age Profile-24RIN'!AE:AE,MATCH('Historical scenario - input'!$GI7,'Age Profile-24RIN'!$J:$J,0)) -> 71.30103277 | AC7: =INDEX('Age Profile-24RIN'!AF:AF,MATCH('Historical scenario - input'!$GI7,'Age Profile-24RIN'!$J:$J,0)) -> 181.4969529 | AD7: =INDEX('Age Profile-24RIN'!AG:AG,MATCH('Historical scenario - input'!$GI7,'Age Profile-24RIN'!$J:$J,0)) -> 116.1399292 | AE7: =INDEX('Age Profile-24RIN'!AH:AH,MATCH('Historical scenario - input'!$GI7,'Age Profile-24RIN'!$J:$J,0)) -> 89.26030701 | AF7: =INDEX('Age Profile-24RIN'!AI:AI,MATCH('Historical scenario - input'!$GI7,'Age Profile-24RIN'!$J:$J,0)) -> 128.6212138 | AG7: =INDEX('Age Profile-24RIN'!AJ:AJ,MATCH('Historical scenario - input'!$GI7,'Age Profile-24RIN'!$J:$J,0)) -> 174.2807411 | AH7: =INDEX('Age Profile-24RIN'!AK:AK,MATCH('Historical scenario - input'!$GI7,'Age Profile-24RIN'!$J:$J,0)) -> 167.6542642 | AI7: =INDEX('Age Profile-24RIN'!AL:AL,MATCH('Historical scenario - input'!$GI7,'Age Profile-24RIN'!$J:$J,0)) -> 250.0560745 | AJ7: =INDEX('Age Profile-24RIN'!AM:AM,MATCH('Historical scenario - input'!$GI7,'Age Profile-24RIN'!$J:$J,0)) -> 57.48269123 | AK7: =INDEX('Age Profile-24RIN'!AN:AN,MATCH('Historical scenario - input'!$GI7,'Age Profile-24RIN'!$J:$J,0)) -> 71.50148161 | AL7: =INDEX('Age Profile-24RIN'!AO:AO,MATCH('Historical scenario - input'!$GI7,'Age Profile-24RIN'!$J:$J,0)) -> 108.9925314 | AM7: =INDEX('Age Profile-24RIN'!AP:AP,MATCH('Historical scenario - input'!$GI7,'Age Profile-24RIN'!$J:$J,0)) -> 148.9451529 | AN7: =INDEX('Age Profile-24RIN'!AQ:AQ,MATCH('Historical scenario - input'!$GI7,'Age Profile-24RIN'!$J:$J,0)) -> 149.1818281 | AO7: =INDEX('Age Profile-24RIN'!AR:AR,MATCH('Historical scenario - input'!$GI7,'Age Profile-24RIN'!$J:$J,0)) -> 149.1820957 | AP7: =INDEX('Age Profile-24RIN'!AS:AS,MATCH('Historical scenario - input'!$GI7,'Age Profile-24RIN'!$J:$J,0)) -> 223.1943247 | AQ7: =INDEX('Age Profile-24RIN'!AT:AT,MATCH('Historical scenario - input'!$GI7,'Age Profile-24RIN'!$J:$J,0)) -> 246.864304 | AR7: =INDEX('Age Profile-24RIN'!AU:AU,MATCH('Historical scenario - input'!$GI7,'Age Profile-24RIN'!$J:$J,0)) -> 228.9178187 | AS7: =INDEX('Age Profile-24RIN'!AV:AV,MATCH('Historical scenario - input'!$GI7,'Age Profile-24RIN'!$J:$J,0)) -> 219.0900465 | AT7: =INDEX('Age Profile-24RIN'!AW:AW,MATCH('Historical scenario - input'!$GI7,'Age Profile-24RIN'!$J:$J,0)) -> 251.7335092 | AU7: =INDEX('Age Profile-24RIN'!AX:AX,MATCH('Historical scenario - input'!$GI7,'Age Profile-24RIN'!$J:$J,0)) -> 271.3263398 | AV7: =INDEX('Age Profile-24RIN'!AY:AY,MATCH('Historical scenario - input'!$GI7,'Age Profile-24RIN'!$J:$J,0)) -> 306.7142286 | AW7: =INDEX('Age Profile-24RIN'!AZ:AZ,MATCH('Historical scenario - input'!$GI7,'Age Profile-24RIN'!$J:$J,0)) -> 186.3701713 | AX7: =INDEX('Age Profile-24RIN'!BA:BA,MATCH('Historical scenario - input'!$GI7,'Age Profile-24RIN'!$J:$J,0)) -> 128.3961503 | AY7: =INDEX('Age Profile-24RIN'!BB:BB,MATCH('Historical scenario - input'!$GI7,'Age Profile-24RIN'!$J:$J,0)) -> 369.4565882 | AZ7: =INDEX('Age Profile-24RIN'!BC:BC,MATCH('Historical scenario - input'!$GI7,'Age Profile-24RIN'!$J:$J,0)) -> 276.063375 | BA7: =INDEX('Age Profile-24RIN'!BD:BD,MATCH('Historical scenario - input'!$GI7,'Age Profile-24RIN'!$J:$J,0)) -> 100.4209088 | BB7: =INDEX('Age Profile-24RIN'!BE:BE,MATCH('Historical scenario - input'!$GI7,'Age Profile-24RIN'!$J:$J,0)) -> 212.4462323 | BC7: =INDEX('Age Profile-24RIN'!BF:BF,MATCH('Historical scenario - input'!$GI7,'Age Profile-24RIN'!$J:$J,0)) -> 273.7522738 | BD7: =INDEX('Age Profile-24RIN'!BG:BG,MATCH('Historical scenario - input'!$GI7,'Age Profile-24RIN'!$J:$J,0)) -> 274.0901365 | BE7: =INDEX('Age Profile-24RIN'!BH:BH,MATCH('Historical scenario - input'!$GI7,'Age Profile-24RIN'!$J:$J,0)) -> 248.8673476 | BF7: =INDEX('Age Profile-24RIN'!BI:BI,MATCH('Historical scenario - input'!$GI7,'Age Profile-24RIN'!$J:$J,0)) -> 219.9335262 | BG7: =INDEX('Age Profile-24RIN'!BJ:BJ,MATCH('Historical scenario - input'!$GI7,'Age Profile-24RIN'!$J:$J,0)) -> 172.0740916 | BH7: =INDEX('Age Profile-24RIN'!BK:BK,MATCH('Historical scenario - input'!$GI7,'Age Profile-24RIN'!$J:$J,0)) -> 175.1314447 | BI7: =INDEX('Age Profile-24RIN'!BL:BL,MATCH('Historical scenario - input'!$GI7,'Age Profile-24RIN'!$J:$J,0)) -> 243.8498125 | BJ7: =INDEX('Age Profile-24RIN'!BM:BM,MATCH('Historical scenario - input'!$GI7,'Age Profile-24RIN'!$J:$J,0)) -> 277.1553022 | BK7: =INDEX('Age Profile-24RIN'!BN:BN,MATCH('Historical scenario - input'!$GI7,'Age Profile-24RIN'!$J:$J,0)) -> 341.8110225 | BL7: =INDEX('Age Profile-24RIN'!BO:BO,MATCH('Historical scenario - input'!$GI7,'Age Profile-24RIN'!$J:$J,0)) -> 377.1780958 | BM7: =INDEX('Age Profile-24RIN'!BP:BP,MATCH('Historical scenario - input'!$GI7,'Age Profile-24RIN'!$J:$J,0)) -> 363.8359942 | BN7: =INDEX('Age Profile-24RIN'!BQ:BQ,MATCH('Historical scenario - input'!$GI7,'Age Profile-24RIN'!$J:$J,0)) -> 342.1767105 | BO7: =INDEX('Age Profile-24RIN'!BR:BR,MATCH('Historical scenario - input'!$GI7,'Age Profile-24RIN'!$J:$J,0)) -> 370.0683692 | BP7: =INDEX('Age Profile-24RIN'!BS:BS,MATCH('Historical scenario - input'!$GI7,'Age Profile-24RIN'!$J:$J,0)) -> 268.8471098 | BQ7: =INDEX('Age Profile-24RIN'!BT:BT,MATCH('Historical scenario - input'!$GI7,'Age Profile-24RIN'!$J:$J,0)) -> 160.4109764 | BR7: =INDEX('Age Profile-24RIN'!BU:BU,MATCH('Historical scenario - input'!$GI7,'Age Profile-24RIN'!$J:$J,0)) -> 151.2809759 | BS7: =INDEX('Age Profile-24RIN'!BV:BV,MATCH('Historical scenario - input'!$GI7,'Age Profile-24RIN'!$J:$J,0)) -> 211.846063 | BT7: =INDEX('Age Profile-24RIN'!BW:BW,MATCH('Historical scenario - input'!$GI7,'Age Profile-24RIN'!$J:$J,0)) -> 144.4519632 | BU7: =INDEX('Age Profile-24RIN'!BX:BX,MATCH('Historical scenario - input'!$GI7,'Age Profile-24RIN'!$J:$J,0)) -> 103.5147559 | BV7: =INDEX('Age Profile-24RIN'!BY:BY,MATCH('Historical scenario - input'!$GI7,'Age Profile-24RIN'!$J:$J,0)) -> 104.1387372 | BW7: =INDEX('Age Profile-24RIN'!BZ:BZ,MATCH('Historical scenario - input'!$GI7,'Age Profile-24RIN'!$J:$J,0)) -> 166.4743665 | BX7: =INDEX('Age Profile-24RIN'!CA:CA,MATCH('Historical scenario - input'!$GI7,'Age Profile-24RIN'!$J:$J,0)) -> 145.7370618 | BY7: =INDEX('Age Profile-24RIN'!CB:CB,MATCH('Historical scenario - input'!$GI7,'Age Profile-24RIN'!$J:$J,0)) -> 170.8492454 | BZ7: =INDEX('Age Profile-24RIN'!CC:CC,MATCH('Historical scenario - input'!$GI7,'Age Profile-24RIN'!$J:$J,0)) -> 160.8184558 | CA7: =INDEX('Age Profile-24RIN'!CD:CD,MATCH('Historical scenario - input'!$GI7,'Age Profile-24RIN'!$J:$J,0)) -> 126.6571255 | CB7: =INDEX('Age Profile-24RIN'!CE:CE,MATCH('Historical scenario - input'!$GI7,'Age Profile-24RIN'!$J:$J,0)) -> 92.35570584 | CC7: =INDEX('Age Profile-24RIN'!CF:CF,MATCH('Historical scenario - input'!$GI7,'Age Profile-24RIN'!$J:$J,0)) -> 55.71145336 | CD7: =INDEX('Age Profile-24RIN'!CG:CG,MATCH('Historical scenario - input'!$GI7,'Age Profile-24RIN'!$J:$J,0)) -> 72.56772388 | CE7: =INDEX('Age Profile-24RIN'!CH:CH,MATCH('Historical scenario - input'!$GI7,'Age Profile-24RIN'!$J:$J,0)) -> 79.1953245 | CF7: =INDEX('Age Profile-24RIN'!CI:CI,MATCH('Historical scenario - input'!$GI7,'Age Profile-24RIN'!$J:$J,0)) -> 105.242597 | CG7: =INDEX('Age Profile-24RIN'!CJ:CJ,MATCH('Historical scenario - input'!$GI7,'Age Profile-24RIN'!$J:$J,0)) -> 66.69322443 | CH7: =INDEX('Age Profile-24RIN'!CK:CK,MATCH('Historical scenario - input'!$GI7,'Age Profile-24RIN'!$J:$J,0)) -> 46.93215806 | CI7: =INDEX('Age Profile-24RIN'!CL:CL,MATCH('Historical scenario - input'!$GI7,'Age Profile-24RIN'!$J:$J,0)) -> 17.44397196 | CJ7: =INDEX('Age Profile-24RIN'!CM:CM,MATCH('Historical scenario - input'!$GI7,'Age Profile-24RIN'!$J:$J,0)) -> 11.02864592 | CK7: =INDEX('Age Profile-24RIN'!CN:CN,MATCH('Historical scenario - input'!$GI7,'Age Profile-24RIN'!$J:$J,0)) -> 7.61133032 | CL7: =INDEX('Age Profile-24RIN'!CO:CO,MATCH('Historical scenario - input'!$GI7,'Age Profile-24RIN'!$J:$J,0)) -> 13.06989575 | CM7: =INDEX('Age Profile-24RIN'!CP:CP,MATCH('Historical scenario - input'!$GI7,'Age Profile-24RIN'!$J:$J,0)) -> 28.68125377 | CN7: =INDEX('Age Profile-24RIN'!CQ:CQ,MATCH('Historical scenario - input'!$GI7,'Age Profile-24RIN'!$J:$J,0)) -> 90.93854431 | CO7: =INDEX('Age Profile-24RIN'!CR:CR,MATCH('Historical scenario - input'!$GI7,'Age Profile-24RIN'!$J:$J,0)) -> 3.727246106 | CP7: =INDEX('Age Profile-24RIN'!CS:CS,MATCH('Historical scenario - input'!$GI7,'Age Profile-24RIN'!$J:$J,0)) -> 15.80683042 | CQ7: =INDEX('Age Profile-24RIN'!CT:CT,MATCH('Historical scenario - input'!$GI7,'Age Profile-24RIN'!$J:$J,0)) -> 5.389911974 | CR7: =INDEX('Age Profile-24RIN'!CU:CU,MATCH('Historical scenario - input'!$GI7,'Age Profile-24RIN'!$J:$J,0)) -> 8.891452473 | CS7: =INDEX('Age Profile-24RIN'!CV:CV,MATCH('Historical scenario - input'!$GI7,'Age Profile-24RIN'!$J:$J,0)) -> 14.50578581 | CT7: =INDEX('Age Profile-24RIN'!CW:CW,MATCH('Historical scenario - input'!$GI7,'Age Profile-24RIN'!$J:$J,0)) -> 5.733232784 | CV7: =IFERROR($D7*H7,0) -> 6284.123955 | CW7: 10990.52034 | CX7: 15862.66919 | CY7: 11488.22036 | CZ7: 9055.595547 | DA7: 9940.295328 | DB7: 13897.86327 | DC7: 13715.61992 | DD7: 0 | DE7: 25232.35028 | DF7: 18995.74259 | DG7: 1608.005962 | DH7: 14173.83165 | DI7: 6941.074604 | DJ7: 9344.517046 | DK7: 8618.647387 | DL7: 9551.286578 | DM7: 7253.623896 | DN7: 8303.761777 | DO7: 9974.987028 | DP7: 7107.518637 | DQ7: 18092.20603 | DR7: 11577.20553 | DS7: 8897.757451 | DT7: 12821.38054 | DU7: 17372.8706 | DV7: 16712.32185 | DW7: 24926.40206 | DX7: 5730.06145 | DY7: 7127.500029 | DZ7: 10864.7297 | EA7: 14847.33684 | EB7: 14870.92939 | EC7: 14870.95606 | ED7: 22248.73555 | EE7: 24608.236 | EF7: 22819.27203 | EG7: 21839.60776 | EH7: 25093.6142 | EI7: 27046.69122 | EJ7: 30574.27097 | EK7: 18577.98428 | EL7: 12798.94548 | EM7: 36828.63325 | EN7: 27518.89428 | EO7: 10010.28251 | EP7: 21177.33077 | EQ7: 27288.5162 | ER7: 27322.19546 | ES7: 24807.9059 | ET7: 21923.68856 | EU7: 17152.9046 | EV7: 17457.6715 | EW7: 24307.74169 | EX7: 27627.74113 | EY7: 34072.83342 | EZ7: 37598.33822 | FA7: 36268.35418 | FB7: 34109.2864 | FC7: 36889.61757 | FD7: 26799.55352 | FE7: 15990.28738 | FF7: 15080.17926 | FG7: 21117.50395 | FH7: 14399.44109 | FI7: 10318.68723 | FJ7: 10380.88772 | FK7: 16594.70581 | FL7: 14527.54389 | FM7: 17030.80795 | FN7: 16030.90625 | FO7: 12625.59384 | FP7: 9206.316865 | FQ7: 5553.498704 | FR7: 7233.786524 | FS7: 7894.447289 | FT7: 10490.92406 | FU7: 6648.197329 | FV7: 4678.35002 | FW7: 1738.871809 | FX7: 1099.371263 | FY7: 758.7221391 | FZ7: 1302.849679 | GA7: 2859.040575 | GB7: 9065.0496 | GC7: 371.5440035 | GD7: 1575.67622 | GE7: 537.28394 | GF7: 886.3288751 | GG7: 1445.983866 | GH7: 571.5072739 | GI7: OVERHEAD CONDUCTORS - ˃ 11 kV & < = 22 kV; multiple-phase
A8: 1 | B8: OVERHEAD CONDUCTORS | C8: ˃ 11 kV & < = 22 kV; single-phase | D8: =IFERROR(IF(ISBLANK(INDEX('Unit Cost - Historical'!C:C,MATCH('Historical scenario - input'!GI8,'Unit Cost - Historical'!D:D,0))),INDEX('Cost scenario - input'!$E$6:$E$71,MATCH('Historical scenario - input'!GI8,'Cost scenario - input'!$GL$6:$GL$71,0)),INDEX('Unit Cost - Historical'!C:C,MATCH('Historical scenario - input'!GI8,'Unit Cost - Historical'!D:D,0))),"") -> 104.5109916 | E8: =INDEX('Mean Life - Calibrated'!E:E,MATCH('Historical scenario - input'!GI8,'Mean Life - Calibrated'!G:G,0)) -> 79.98 | F8: =INDEX('Mean Life - Calibrated'!F:F,MATCH('Historical scenario - input'!GI8,'Mean Life - Calibrated'!G:G,0)) -> 8.943153806 | G8: 2 | H8: =INDEX('Age Profile-24RIN'!K:K,MATCH('Historical scenario - input'!$GI8,'Age Profile-24RIN'!$J:$J,0)) -> 63.755164 | I8: =INDEX('Age Profile-24RIN'!L:L,MATCH('Historical scenario - input'!$GI8,'Age Profile-24RIN'!$J:$J,0)) -> 34.91215129 | J8: =INDEX('Age Profile-24RIN'!M:M,MATCH('Historical scenario - input'!$GI8,'Age Profile-24RIN'!$J:$J,0)) -> 83.9004838 | K8: =INDEX('Age Profile-24RIN'!N:N,MATCH('Historical scenario - input'!$GI8,'Age Profile-24RIN'!$J:$J,0)) -> 70.83206121 | L8: =INDEX('Age Profile-24RIN'!O:O,MATCH('Historical scenario - input'!$GI8,'Age Profile-24RIN'!$J:$J,0)) -> 66.25614178 | M8: =INDEX('Age Profile-24RIN'!P:P,MATCH('Historical scenario - input'!$GI8,'Age Profile-24RIN'!$J:$J,0)) -> 66.37146128 | N8: =INDEX('Age Profile-24RIN'!Q:Q,MATCH('Historical scenario - input'!$GI8,'Age Profile-24RIN'!$J:$J,0)) -> 70.56013485 | O8: =INDEX('Age Profile-24RIN'!R:R,MATCH('Historical scenario - input'!$GI8,'Age Profile-24RIN'!$J:$J,0)) -> 69.79893798 | P8: =INDEX('Age Profile-24RIN'!S:S,MATCH('Historical scenario - input'!$GI8,'Age Profile-24RIN'!$J:$J,0)) -> 0 | Q8: =INDEX('Age Profile-24RIN'!T:T,MATCH('Historical scenario - input'!$GI8,'Age Profile-24RIN'!$J:$J,0)) -> 124.2446249 | R8: =INDEX('Age Profile-24RIN'!U:U,MATCH('Historical scenario - input'!$GI8,'Age Profile-24RIN'!$J:$J,0)) -> 129.7987212 | S8: =INDEX('Age Profile-24RIN'!V:V,MATCH('Historical scenario - input'!$GI8,'Age Profile-24RIN'!$J:$J,0)) -> 10.98757348 | T8: =INDEX('Age Profile-24RIN'!W:W,MATCH('Historical scenario - input'!$GI8,'Age Profile-24RIN'!$J:$J,0)) -> 96.85039764 | U8: =INDEX('Age Profile-24RIN'!X:X,MATCH('Historical scenario - input'!$GI8,'Age Profile-24RIN'!$J:$J,0)) -> 47.42865951 | V8: =INDEX('Age Profile-24RIN'!Y:Y,MATCH('Historical scenario - input'!$GI8,'Age Profile-24RIN'!$J:$J,0)) -> 63.85148446 | W8: =INDEX('Age Profile-24RIN'!Z:Z,MATCH('Historical scenario - input'!$GI8,'Age Profile-24RIN'!$J:$J,0)) -> 58.89158605 | X8: =INDEX('Age Profile-24RIN'!AA:AA,MATCH('Historical scenario - input'!$GI8,'Age Profile-24RIN'!$J:$J,0)) -> 65.26434951 | Y8: =INDEX('Age Profile-24RIN'!AB:AB,MATCH('Historical scenario - input'!$GI8,'Age Profile-24RIN'!$J:$J,0)) -> 49.56432218 | Z8: =INDEX('Age Profile-24RIN'!AC:AC,MATCH('Historical scenario - input'!$GI8,'Age Profile-24RIN'!$J:$J,0)) -> 56.73995922 | AA8: =INDEX('Age Profile-24RIN'!AD:AD,MATCH('Historical scenario - input'!$GI8,'Age Profile-24RIN'!$J:$J,0)) -> 68.1595128 | AB8: =INDEX('Age Profile-24RIN'!AE:AE,MATCH('Historical scenario - input'!$GI8,'Age Profile-24RIN'!$J:$J,0)) -> 48.5659787 | AC8: =INDEX('Age Profile-24RIN'!AF:AF,MATCH('Historical scenario - input'!$GI8,'Age Profile-24RIN'!$J:$J,0)) -> 123.6248173 | AD8: =INDEX('Age Profile-24RIN'!AG:AG,MATCH('Historical scenario - input'!$GI8,'Age Profile-24RIN'!$J:$J,0)) -> 79.10754035 | AE8: =INDEX('Age Profile-24RIN'!AH:AH,MATCH('Historical scenario - input'!$GI8,'Age Profile-24RIN'!$J:$J,0)) -> 60.79875705 | AF8: =INDEX('Age Profile-24RIN'!AI:AI,MATCH('Historical scenario - input'!$GI8,'Age Profile-24RIN'!$J:$J,0)) -> 87.60904139 | AG8: =INDEX('Age Profile-24RIN'!AJ:AJ,MATCH('Historical scenario - input'!$GI8,'Age Profile-24RIN'!$J:$J,0)) -> 118.7095675 | AH8: =INDEX('Age Profile-24RIN'!AK:AK,MATCH('Historical scenario - input'!$GI8,'Age Profile-24RIN'!$J:$J,0)) -> 114.1960096 | AI8: =INDEX('Age Profile-24RIN'!AL:AL,MATCH('Historical scenario - input'!$GI8,'Age Profile-24RIN'!$J:$J,0)) -> 170.3231709 | AJ8: =INDEX('Age Profile-24RIN'!AM:AM,MATCH('Historical scenario - input'!$GI8,'Age Profile-24RIN'!$J:$J,0)) -> 39.15375485 | AK8: =INDEX('Age Profile-24RIN'!AN:AN,MATCH('Historical scenario - input'!$GI8,'Age Profile-24RIN'!$J:$J,0)) -> 48.7025124 | AL8: =INDEX('Age Profile-24RIN'!AO:AO,MATCH('Historical scenario - input'!$GI8,'Age Profile-24RIN'!$J:$J,0)) -> 74.23916253 | AM8: =INDEX('Age Profile-24RIN'!AP:AP,MATCH('Historical scenario - input'!$GI8,'Age Profile-24RIN'!$J:$J,0)) -> 101.4524874 | AN8: =INDEX('Age Profile-24RIN'!AQ:AQ,MATCH('Historical scenario - input'!$GI8,'Age Profile-24RIN'!$J:$J,0)) -> 101.6136963 | AO8: =INDEX('Age Profile-24RIN'!AR:AR,MATCH('Historical scenario - input'!$GI8,'Age Profile-24RIN'!$J:$J,0)) -> 101.6138785 | AP8: =INDEX('Age Profile-24RIN'!AS:AS,MATCH('Historical scenario - input'!$GI8,'Age Profile-24RIN'!$J:$J,0)) -> 152.0265612 | AQ8: =INDEX('Age Profile-24RIN'!AT:AT,MATCH('Historical scenario - input'!$GI8,'Age Profile-24RIN'!$J:$J,0)) -> 168.1491286 | AR8: =INDEX('Age Profile-24RIN'!AU:AU,MATCH('Historical scenario - input'!$GI8,'Age Profile-24RIN'!$J:$J,0)) -> 155.9250613 | AS8: =INDEX('Age Profile-24RIN'!AV:AV,MATCH('Historical scenario - input'!$GI8,'Age Profile-24RIN'!$J:$J,0)) -> 149.2309735 | AT8: =INDEX('Age Profile-24RIN'!AW:AW,MATCH('Historical scenario - input'!$GI8,'Age Profile-24RIN'!$J:$J,0)) -> 171.4657386 | AU8: =INDEX('Age Profile-24RIN'!AX:AX,MATCH('Historical scenario - input'!$GI8,'Age Profile-24RIN'!$J:$J,0)) -> 184.8111974 | AV8: =INDEX('Age Profile-24RIN'!AY:AY,MATCH('Historical scenario - input'!$GI8,'Age Profile-24RIN'!$J:$J,0)) -> 208.9153006 | AW8: =INDEX('Age Profile-24RIN'!AZ:AZ,MATCH('Historical scenario - input'!$GI8,'Age Profile-24RIN'!$J:$J,0)) -> 126.9441608 | AX8: =INDEX('Age Profile-24RIN'!BA:BA,MATCH('Historical scenario - input'!$GI8,'Age Profile-24RIN'!$J:$J,0)) -> 87.45574166 | AY8: =INDEX('Age Profile-24RIN'!BB:BB,MATCH('Historical scenario - input'!$GI8,'Age Profile-24RIN'!$J:$J,0)) -> 251.6516255 | AZ8: =INDEX('Age Profile-24RIN'!BC:BC,MATCH('Historical scenario - input'!$GI8,'Age Profile-24RIN'!$J:$J,0)) -> 188.0377811 | BA8: =INDEX('Age Profile-24RIN'!BD:BD,MATCH('Historical scenario - input'!$GI8,'Age Profile-24RIN'!$J:$J,0)) -> 68.40068833 | BB8: =INDEX('Age Profile-24RIN'!BE:BE,MATCH('Historical scenario - input'!$GI8,'Age Profile-24RIN'!$J:$J,0)) -> 144.7056065 | BC8: =INDEX('Age Profile-24RIN'!BF:BF,MATCH('Historical scenario - input'!$GI8,'Age Profile-24RIN'!$J:$J,0)) -> 186.4635978 | BD8: =INDEX('Age Profile-24RIN'!BG:BG,MATCH('Historical scenario - input'!$GI8,'Age Profile-24RIN'!$J:$J,0)) -> 186.6937296 | BE8: =INDEX('Age Profile-24RIN'!BH:BH,MATCH('Historical scenario - input'!$GI8,'Age Profile-24RIN'!$J:$J,0)) -> 169.5134816 | BF8: =INDEX('Age Profile-24RIN'!BI:BI,MATCH('Historical scenario - input'!$GI8,'Age Profile-24RIN'!$J:$J,0)) -> 149.8055012 | BG8: =INDEX('Age Profile-24RIN'!BJ:BJ,MATCH('Historical scenario - input'!$GI8,'Age Profile-24RIN'!$J:$J,0)) -> 117.2065304 | BH8: =INDEX('Age Profile-24RIN'!BK:BK,MATCH('Historical scenario - input'!$GI8,'Age Profile-24RIN'!$J:$J,0)) -> 119.2890157 | BI8: =INDEX('Age Profile-24RIN'!BL:BL,MATCH('Historical scenario - input'!$GI8,'Age Profile-24RIN'!$J:$J,0)) -> 166.0958381 | BJ8: =INDEX('Age Profile-24RIN'!BM:BM,MATCH('Historical scenario - input'!$GI8,'Age Profile-24RIN'!$J:$J,0)) -> 188.7815362 | BK8: =INDEX('Age Profile-24RIN'!BN:BN,MATCH('Historical scenario - input'!$GI8,'Age Profile-24RIN'!$J:$J,0)) -> 232.8211274 | BL8: =INDEX('Age Profile-24RIN'!BO:BO,MATCH('Historical scenario - input'!$GI8,'Age Profile-24RIN'!$J:$J,0)) -> 256.9110524 | BM8: =INDEX('Age Profile-24RIN'!BP:BP,MATCH('Historical scenario - input'!$GI8,'Age Profile-24RIN'!$J:$J,0)) -> 247.8232146 | BN8: =INDEX('Age Profile-24RIN'!BQ:BQ,MATCH('Historical scenario - input'!$GI8,'Age Profile-24RIN'!$J:$J,0)) -> 233.0702122 | BO8: =INDEX('Age Profile-24RIN'!BR:BR,MATCH('Historical scenario - input'!$GI8,'Age Profile-24RIN'!$J:$J,0)) -> 252.0683339 | BP8: =INDEX('Age Profile-24RIN'!BS:BS,MATCH('Historical scenario - input'!$GI8,'Age Profile-24RIN'!$J:$J,0)) -> 183.1224949 | BQ8: =INDEX('Age Profile-24RIN'!BT:BT,MATCH('Historical scenario - input'!$GI8,'Age Profile-24RIN'!$J:$J,0)) -> 109.2623173 | BR8: =INDEX('Age Profile-24RIN'!BU:BU,MATCH('Historical scenario - input'!$GI8,'Age Profile-24RIN'!$J:$J,0)) -> 103.0435096 | BS8: =INDEX('Age Profile-24RIN'!BV:BV,MATCH('Historical scenario - input'!$GI8,'Age Profile-24RIN'!$J:$J,0)) -> 144.2968073 | BT8: =INDEX('Age Profile-24RIN'!BW:BW,MATCH('Historical scenario - input'!$GI8,'Age Profile-24RIN'!$J:$J,0)) -> 98.39199655 | BU8: =INDEX('Age Profile-24RIN'!BX:BX,MATCH('Historical scenario - input'!$GI8,'Age Profile-24RIN'!$J:$J,0)) -> 70.508031 | BV8: =INDEX('Age Profile-24RIN'!BY:BY,MATCH('Historical scenario - input'!$GI8,'Age Profile-24RIN'!$J:$J,0)) -> 70.93304956 | BW8: =INDEX('Age Profile-24RIN'!BZ:BZ,MATCH('Historical scenario - input'!$GI8,'Age Profile-24RIN'!$J:$J,0)) -> 113.3923342 | BX8: =INDEX('Age Profile-24RIN'!CA:CA,MATCH('Historical scenario - input'!$GI8,'Age Profile-24RIN'!$J:$J,0)) -> 99.26732849 | BY8: =INDEX('Age Profile-24RIN'!CB:CB,MATCH('Historical scenario - input'!$GI8,'Age Profile-24RIN'!$J:$J,0)) -> 116.3722388 | BZ8: =INDEX('Age Profile-24RIN'!CC:CC,MATCH('Historical scenario - input'!$GI8,'Age Profile-24RIN'!$J:$J,0)) -> 109.5398677 | CA8: =INDEX('Age Profile-24RIN'!CD:CD,MATCH('Historical scenario - input'!$GI8,'Age Profile-24RIN'!$J:$J,0)) -> 86.27122249 | CB8: =INDEX('Age Profile-24RIN'!CE:CE,MATCH('Historical scenario - input'!$GI8,'Age Profile-24RIN'!$J:$J,0)) -> 62.90715672 | CC8: =INDEX('Age Profile-24RIN'!CF:CF,MATCH('Historical scenario - input'!$GI8,'Age Profile-24RIN'!$J:$J,0)) -> 37.94729406 | CD8: =INDEX('Age Profile-24RIN'!CG:CG,MATCH('Historical scenario - input'!$GI8,'Age Profile-24RIN'!$J:$J,0)) -> 49.42877257 | CE8: =INDEX('Age Profile-24RIN'!CH:CH,MATCH('Historical scenario - input'!$GI8,'Age Profile-24RIN'!$J:$J,0)) -> 53.94309582 | CF8: =INDEX('Age Profile-24RIN'!CI:CI,MATCH('Historical scenario - input'!$GI8,'Age Profile-24RIN'!$J:$J,0)) -> 71.68493258 | CG8: =INDEX('Age Profile-24RIN'!CJ:CJ,MATCH('Historical scenario - input'!$GI8,'Age Profile-24RIN'!$J:$J,0)) -> 45.42741657 | CH8: =INDEX('Age Profile-24RIN'!CK:CK,MATCH('Historical scenario - input'!$GI8,'Age Profile-24RIN'!$J:$J,0)) -> 31.96736569 | CI8: =INDEX('Age Profile-24RIN'!CL:CL,MATCH('Historical scenario - input'!$GI8,'Age Profile-24RIN'!$J:$J,0)) -> 11.88178541 | CJ8: =INDEX('Age Profile-24RIN'!CM:CM,MATCH('Historical scenario - input'!$GI8,'Age Profile-24RIN'!$J:$J,0)) -> 7.512050836 | CK8: =INDEX('Age Profile-24RIN'!CN:CN,MATCH('Historical scenario - input'!$GI8,'Age Profile-24RIN'!$J:$J,0)) -> 5.184380813 | CL8: =INDEX('Age Profile-24RIN'!CO:CO,MATCH('Historical scenario - input'!$GI8,'Age Profile-24RIN'!$J:$J,0)) -> 8.902427555 | CM8: =INDEX('Age Profile-24RIN'!CP:CP,MATCH('Historical scenario - input'!$GI8,'Age Profile-24RIN'!$J:$J,0)) -> 19.53594647 | CN8: =INDEX('Age Profile-24RIN'!CQ:CQ,MATCH('Historical scenario - input'!$GI8,'Age Profile-24RIN'!$J:$J,0)) -> 61.94187145 | CO8: =INDEX('Age Profile-24RIN'!CR:CR,MATCH('Historical scenario - input'!$GI8,'Age Profile-24RIN'!$J:$J,0)) -> 2.53877606 | CP8: =INDEX('Age Profile-24RIN'!CS:CS,MATCH('Historical scenario - input'!$GI8,'Age Profile-24RIN'!$J:$J,0)) -> 10.76666297 | CQ8: =INDEX('Age Profile-24RIN'!CT:CT,MATCH('Historical scenario - input'!$GI8,'Age Profile-24RIN'!$J:$J,0)) -> 3.671284131 | CR8: =INDEX('Age Profile-24RIN'!CU:CU,MATCH('Historical scenario - input'!$GI8,'Age Profile-24RIN'!$J:$J,0)) -> 6.056323095 | CS8: =INDEX('Age Profile-24RIN'!CV:CV,MATCH('Historical scenario - input'!$GI8,'Age Profile-24RIN'!$J:$J,0)) -> 9.880469573 | CT8: =INDEX('Age Profile-24RIN'!CW:CW,MATCH('Historical scenario - input'!$GI8,'Age Profile-24RIN'!$J:$J,0)) -> 3.905133635 | CV8: 6663.115412 | CW8: 3648.703551 | CX8: 8768.522761 | CY8: 7402.728957 | CZ8: 6924.49508 | DA8: 6936.547235 | DB8: 7374.309664 | DC8: 7294.756224 | DD8: 0 | DE8: 12984.92895 | DF8: 13565.39306 | DG8: 1148.3222 | DH8: 10121.9311 | DI8: 4956.816238 | DJ8: 6673.181959 | DK8: 6154.818058 | DL8: 6820.841886 | DM8: 5180.016461 | DN8: 5929.949403 | DO8: 7123.418272 | DP8: 5075.678594 | DQ8: 12920.15224 | DR8: 8267.607488 | DS8: 6354.13839 | DT8: 9156.107792 | DU8: 12406.45462 | DV8: 11934.73821 | DW8: 17800.64349 | DX8: 4091.997746 | DY8: 5089.947867 | DZ8: 7758.808494 | EA8: 10602.90006 | EB8: 10619.74816 | EC8: 10619.76721 | ED8: 15888.44667 | EE8: 17573.43218 | EF8: 16295.88278 | EG8: 15596.27702 | EH8: 17920.05437 | EI8: 19314.8015 | EJ8: 21833.94523 | EK8: 13267.06013 | EL8: 9140.086286 | EM8: 26300.36093 | EN8: 19652.01497 | EO8: 7148.623766 | EP8: 15123.32643 | EQ8: 19487.49551 | ER8: 19511.54682 | ES8: 17716.02206 | ET8: 15656.32148 | EU8: 12249.37072 | EV8: 12467.01332 | EW8: 17358.84075 | EX8: 19729.74556 | EY8: 24332.3669 | EZ8: 26850.02885 | FA8: 25900.24991 | FB8: 24358.39899 | FC8: 26343.91154 | FD8: 19138.31353 | FE8: 11419.11312 | FF8: 10769.17937 | FG8: 15080.60242 | FH8: 10283.04513 | FI8: 7368.864239 | FJ8: 7413.28335 | FK8: 11850.74529 | FL8: 10374.52694 | FM8: 12162.17808 | FN8: 11448.1202 | FO8: 9016.291012 | FP8: 6574.48933 | FQ8: 3965.909332 | FR8: 5165.850037 | FS8: 5637.646437 | FT8: 7491.863389 | FU8: 4747.664353 | FV8: 3340.941089 | FW8: 1241.777176 | FX8: 785.0918821 | FY8: 541.8247797 | FZ8: 930.4015318 | GA8: 2041.721139 | GB8: 6473.60641 | GC8: 265.3300035 | GD8: 1125.234624 | GE8: 383.6895451 | GF8: 632.9523323 | GG8: 1032.617673 | GH8: 408.1293887 | GI8: OVERHEAD CONDUCTORS - ˃ 11 kV & < = 22 kV; single-phase
A9: 1 | B9: OVERHEAD CONDUCTORS | C9: ˃ 11 kV & < = 22 kV; SWER | D9: =IFERROR(IF(ISBLANK(INDEX('Unit Cost - Historical'!C:C,MATCH('Historical scenario - input'!GI9,'Unit Cost - Historical'!D:D,0))),INDEX('Cost scenario - input'!$E$6:$E$71,MATCH('Historical scenario - input'!GI9,'Cost scenario - input'!$GL$6:$GL$71,0)),INDEX('Unit Cost - Historical'!C:C,MATCH('Historical scenario - input'!GI9,'Unit Cost - Historical'!D:D,0))),"") -> 55.28820686 | E9: =INDEX('Mean Life - Calibrated'!E:E,MATCH('Historical scenario - input'!GI9,'Mean Life - Calibrated'!G:G,0)) -> 79.237 | F9: =INDEX('Mean Life - Calibrated'!F:F,MATCH('Historical scenario - input'!GI9,'Mean Life - Calibrated'!G:G,0)) -> 8.901516725 | G9: 2 | H9: =INDEX('Age Profile-24RIN'!K:K,MATCH('Historical scenario - input'!$GI9,'Age Profile-24RIN'!$J:$J,0)) -> 33.388507 | I9: =INDEX('Age Profile-24RIN'!L:L,MATCH('Historical scenario - input'!$GI9,'Age Profile-24RIN'!$J:$J,0)) -> 31.72309959 | J9: =INDEX('Age Profile-24RIN'!M:M,MATCH('Historical scenario - input'!$GI9,'Age Profile-24RIN'!$J:$J,0)) -> 34.30712815 | K9: =INDEX('Age Profile-24RIN'!N:N,MATCH('Historical scenario - input'!$GI9,'Age Profile-24RIN'!$J:$J,0)) -> 28.89649127 | L9: =INDEX('Age Profile-24RIN'!O:O,MATCH('Historical scenario - input'!$GI9,'Age Profile-24RIN'!$J:$J,0)) -> 37.14905711 | M9: =INDEX('Age Profile-24RIN'!P:P,MATCH('Historical scenario - input'!$GI9,'Age Profile-24RIN'!$J:$J,0)) -> 17.12609013 | N9: =INDEX('Age Profile-24RIN'!Q:Q,MATCH('Historical scenario - input'!$GI9,'Age Profile-24RIN'!$J:$J,0)) -> 56.09271901 | O9: =INDEX('Age Profile-24RIN'!R:R,MATCH('Historical scenario - input'!$GI9,'Age Profile-24RIN'!$J:$J,0)) -> 55.59809617 | P9: =INDEX('Age Profile-24RIN'!S:S,MATCH('Historical scenario - input'!$GI9,'Age Profile-24RIN'!$J:$J,0)) -> 2.574890332 | Q9: =INDEX('Age Profile-24RIN'!T:T,MATCH('Historical scenario - input'!$GI9,'Age Profile-24RIN'!$J:$J,0)) -> 330.9509623 | R9: =INDEX('Age Profile-24RIN'!U:U,MATCH('Historical scenario - input'!$GI9,'Age Profile-24RIN'!$J:$J,0)) -> 196.9209655 | S9: =INDEX('Age Profile-24RIN'!V:V,MATCH('Historical scenario - input'!$GI9,'Age Profile-24RIN'!$J:$J,0)) -> 4.295312123 | T9: =INDEX('Age Profile-24RIN'!W:W,MATCH('Historical scenario - input'!$GI9,'Age Profile-24RIN'!$J:$J,0)) -> 61.01936371 | U9: =INDEX('Age Profile-24RIN'!X:X,MATCH('Historical scenario - input'!$GI9,'Age Profile-24RIN'!$J:$J,0)) -> 14.61264619 | V9: =INDEX('Age Profile-24RIN'!Y:Y,MATCH('Historical scenario - input'!$GI9,'Age Profile-24RIN'!$J:$J,0)) -> 12.26414419 | W9: =INDEX('Age Profile-24RIN'!Z:Z,MATCH('Historical scenario - input'!$GI9,'Age Profile-24RIN'!$J:$J,0)) -> 13.55639439 | X9: =INDEX('Age Profile-24RIN'!AA:AA,MATCH('Historical scenario - input'!$GI9,'Age Profile-24RIN'!$J:$J,0)) -> 21.81545502 | Y9: =INDEX('Age Profile-24RIN'!AB:AB,MATCH('Historical scenario - input'!$GI9,'Age Profile-24RIN'!$J:$J,0)) -> 34.13126802 | Z9: =INDEX('Age Profile-24RIN'!AC:AC,MATCH('Historical scenario - input'!$GI9,'Age Profile-24RIN'!$J:$J,0)) -> 30.22908047 | AA9: =INDEX('Age Profile-24RIN'!AD:AD,MATCH('Historical scenario - input'!$GI9,'Age Profile-24RIN'!$J:$J,0)) -> 26.98675221 | AB9: =INDEX('Age Profile-24RIN'!AE:AE,MATCH('Historical scenario - input'!$GI9,'Age Profile-24RIN'!$J:$J,0)) -> 27.88128505 | AC9: =INDEX('Age Profile-24RIN'!AF:AF,MATCH('Historical scenario - input'!$GI9,'Age Profile-24RIN'!$J:$J,0)) -> 27.09989365 | AD9: =INDEX('Age Profile-24RIN'!AG:AG,MATCH('Historical scenario - input'!$GI9,'Age Profile-24RIN'!$J:$J,0)) -> 37.73218666 | AE9: =INDEX('Age Profile-24RIN'!AH:AH,MATCH('Historical scenario - input'!$GI9,'Age Profile-24RIN'!$J:$J,0)) -> 28.98205152 | AF9: =INDEX('Age Profile-24RIN'!AI:AI,MATCH('Historical scenario - input'!$GI9,'Age Profile-24RIN'!$J:$J,0)) -> 43.31780588 | AG9: =INDEX('Age Profile-24RIN'!AJ:AJ,MATCH('Historical scenario - input'!$GI9,'Age Profile-24RIN'!$J:$J,0)) -> 55.41122219 | AH9: =INDEX('Age Profile-24RIN'!AK:AK,MATCH('Historical scenario - input'!$GI9,'Age Profile-24RIN'!$J:$J,0)) -> 52.12782385 | AI9: =INDEX('Age Profile-24RIN'!AL:AL,MATCH('Historical scenario - input'!$GI9,'Age Profile-24RIN'!$J:$J,0)) -> 65.94627184 | AJ9: =INDEX('Age Profile-24RIN'!AM:AM,MATCH('Historical scenario - input'!$GI9,'Age Profile-24RIN'!$J:$J,0)) -> 25.18373153 | AK9: =INDEX('Age Profile-24RIN'!AN:AN,MATCH('Historical scenario - input'!$GI9,'Age Profile-24RIN'!$J:$J,0)) -> 19.8853379 | AL9: =INDEX('Age Profile-24RIN'!AO:AO,MATCH('Historical scenario - input'!$GI9,'Age Profile-24RIN'!$J:$J,0)) -> 56.19605817 | AM9: =INDEX('Age Profile-24RIN'!AP:AP,MATCH('Historical scenario - input'!$GI9,'Age Profile-24RIN'!$J:$J,0)) -> 44.2534088 | AN9: =INDEX('Age Profile-24RIN'!AQ:AQ,MATCH('Historical scenario - input'!$GI9,'Age Profile-24RIN'!$J:$J,0)) -> 50.85959744 | AO9: =INDEX('Age Profile-24RIN'!AR:AR,MATCH('Historical scenario - input'!$GI9,'Age Profile-24RIN'!$J:$J,0)) -> 45.84180519 | AP9: =INDEX('Age Profile-24RIN'!AS:AS,MATCH('Historical scenario - input'!$GI9,'Age Profile-24RIN'!$J:$J,0)) -> 107.8596576 | AQ9: =INDEX('Age Profile-24RIN'!AT:AT,MATCH('Historical scenario - input'!$GI9,'Age Profile-24RIN'!$J:$J,0)) -> 74.64403159 | AR9: =INDEX('Age Profile-24RIN'!AU:AU,MATCH('Historical scenario - input'!$GI9,'Age Profile-24RIN'!$J:$J,0)) -> 65.63740717 | AS9: =INDEX('Age Profile-24RIN'!AV:AV,MATCH('Historical scenario - input'!$GI9,'Age Profile-24RIN'!$J:$J,0)) -> 38.4617326 | AT9: =INDEX('Age Profile-24RIN'!AW:AW,MATCH('Historical scenario - input'!$GI9,'Age Profile-24RIN'!$J:$J,0)) -> 132.2890245 | AU9: =INDEX('Age Profile-24RIN'!AX:AX,MATCH('Historical scenario - input'!$GI9,'Age Profile-24RIN'!$J:$J,0)) -> 83.06322137 | AV9: =INDEX('Age Profile-24RIN'!AY:AY,MATCH('Historical scenario - input'!$GI9,'Age Profile-24RIN'!$J:$J,0)) -> 86.03183742 | AW9: =INDEX('Age Profile-24RIN'!AZ:AZ,MATCH('Historical scenario - input'!$GI9,'Age Profile-24RIN'!$J:$J,0)) -> 73.6216074 | AX9: =INDEX('Age Profile-24RIN'!BA:BA,MATCH('Historical scenario - input'!$GI9,'Age Profile-24RIN'!$J:$J,0)) -> 51.04666503 | AY9: =INDEX('Age Profile-24RIN'!BB:BB,MATCH('Historical scenario - input'!$GI9,'Age Profile-24RIN'!$J:$J,0)) -> 105.9858021 | AZ9: =INDEX('Age Profile-24RIN'!BC:BC,MATCH('Historical scenario - input'!$GI9,'Age Profile-24RIN'!$J:$J,0)) -> 105.2402697 | BA9: =INDEX('Age Profile-24RIN'!BD:BD,MATCH('Historical scenario - input'!$GI9,'Age Profile-24RIN'!$J:$J,0)) -> 41.90702655 | BB9: =INDEX('Age Profile-24RIN'!BE:BE,MATCH('Historical scenario - input'!$GI9,'Age Profile-24RIN'!$J:$J,0)) -> 84.99510495 | BC9: =INDEX('Age Profile-24RIN'!BF:BF,MATCH('Historical scenario - input'!$GI9,'Age Profile-24RIN'!$J:$J,0)) -> 100.5418526 | BD9: =INDEX('Age Profile-24RIN'!BG:BG,MATCH('Historical scenario - input'!$GI9,'Age Profile-24RIN'!$J:$J,0)) -> 108.0749885 | BE9: =INDEX('Age Profile-24RIN'!BH:BH,MATCH('Historical scenario - input'!$GI9,'Age Profile-24RIN'!$J:$J,0)) -> 124.4027742 | BF9: =INDEX('Age Profile-24RIN'!BI:BI,MATCH('Historical scenario - input'!$GI9,'Age Profile-24RIN'!$J:$J,0)) -> 87.40454965 | BG9: =INDEX('Age Profile-24RIN'!BJ:BJ,MATCH('Historical scenario - input'!$GI9,'Age Profile-24RIN'!$J:$J,0)) -> 63.26973914 | BH9: =INDEX('Age Profile-24RIN'!BK:BK,MATCH('Historical scenario - input'!$GI9,'Age Profile-24RIN'!$J:$J,0)) -> 92.02153324 | BI9: =INDEX('Age Profile-24RIN'!BL:BL,MATCH('Historical scenario - input'!$GI9,'Age Profile-24RIN'!$J:$J,0)) -> 84.57654342 | BJ9: =INDEX('Age Profile-24RIN'!BM:BM,MATCH('Historical scenario - input'!$GI9,'Age Profile-24RIN'!$J:$J,0)) -> 72.73484696 | BK9: =INDEX('Age Profile-24RIN'!BN:BN,MATCH('Historical scenario - input'!$GI9,'Age Profile-24RIN'!$J:$J,0)) -> 108.3265317 | BL9: =INDEX('Age Profile-24RIN'!BO:BO,MATCH('Historical scenario - input'!$GI9,'Age Profile-24RIN'!$J:$J,0)) -> 258.1532753 | BM9: =INDEX('Age Profile-24RIN'!BP:BP,MATCH('Historical scenario - input'!$GI9,'Age Profile-24RIN'!$J:$J,0)) -> 198.7470384 | BN9: =INDEX('Age Profile-24RIN'!BQ:BQ,MATCH('Historical scenario - input'!$GI9,'Age Profile-24RIN'!$J:$J,0)) -> 325.2233659 | BO9: =INDEX('Age Profile-24RIN'!BR:BR,MATCH('Historical scenario - input'!$GI9,'Age Profile-24RIN'!$J:$J,0)) -> 238.5370569 | BP9: =INDEX('Age Profile-24RIN'!BS:BS,MATCH('Historical scenario - input'!$GI9,'Age Profile-24RIN'!$J:$J,0)) -> 279.5843497 | BQ9: =INDEX('Age Profile-24RIN'!BT:BT,MATCH('Historical scenario - input'!$GI9,'Age Profile-24RIN'!$J:$J,0)) -> 253.9773756 | BR9: =INDEX('Age Profile-24RIN'!BU:BU,MATCH('Historical scenario - input'!$GI9,'Age Profile-24RIN'!$J:$J,0)) -> 144.0573248 | BS9: =INDEX('Age Profile-24RIN'!BV:BV,MATCH('Historical scenario - input'!$GI9,'Age Profile-24RIN'!$J:$J,0)) -> 170.2814983 | BT9: =INDEX('Age Profile-24RIN'!BW:BW,MATCH('Historical scenario - input'!$GI9,'Age Profile-24RIN'!$J:$J,0)) -> 226.3639734 | BU9: =INDEX('Age Profile-24RIN'!BX:BX,MATCH('Historical scenario - input'!$GI9,'Age Profile-24RIN'!$J:$J,0)) -> 132.9368719 | BV9: =INDEX('Age Profile-24RIN'!BY:BY,MATCH('Historical scenario - input'!$GI9,'Age Profile-24RIN'!$J:$J,0)) -> 175.1683079 | BW9: =INDEX('Age Profile-24RIN'!BZ:BZ,MATCH('Historical scenario - input'!$GI9,'Age Profile-24RIN'!$J:$J,0)) -> 236.4530815 | BX9: =INDEX('Age Profile-24RIN'!CA:CA,MATCH('Historical scenario - input'!$GI9,'Age Profile-24RIN'!$J:$J,0)) -> 70.47413777 | BY9: =INDEX('Age Profile-24RIN'!CB:CB,MATCH('Historical scenario - input'!$GI9,'Age Profile-24RIN'!$J:$J,0)) -> 39.64075303 | BZ9: =INDEX('Age Profile-24RIN'!CC:CC,MATCH('Historical scenario - input'!$GI9,'Age Profile-24RIN'!$J:$J,0)) -> 3.591291459 | CA9: =INDEX('Age Profile-24RIN'!CD:CD,MATCH('Historical scenario - input'!$GI9,'Age Profile-24RIN'!$J:$J,0)) -> 0.8463086191 | CB9: =INDEX('Age Profile-24RIN'!CE:CE,MATCH('Historical scenario - input'!$GI9,'Age Profile-24RIN'!$J:$J,0)) -> 1.688907683 | CC9: =INDEX('Age Profile-24RIN'!CF:CF,MATCH('Historical scenario - input'!$GI9,'Age Profile-24RIN'!$J:$J,0)) -> 0.3689241392 | CD9: =INDEX('Age Profile-24RIN'!CG:CG,MATCH('Historical scenario - input'!$GI9,'Age Profile-24RIN'!$J:$J,0)) -> 1.092022518 | CE9: =INDEX('Age Profile-24RIN'!CH:CH,MATCH('Historical scenario - input'!$GI9,'Age Profile-24RIN'!$J:$J,0)) -> 5.728437113 | CF9: =INDEX('Age Profile-24RIN'!CI:CI,MATCH('Historical scenario - input'!$GI9,'Age Profile-24RIN'!$J:$J,0)) -> 0.4114073834 | CG9: =INDEX('Age Profile-24RIN'!CJ:CJ,MATCH('Historical scenario - input'!$GI9,'Age Profile-24RIN'!$J:$J,0)) -> 0.3792579013 | CH9: =INDEX('Age Profile-24RIN'!CK:CK,MATCH('Historical scenario - input'!$GI9,'Age Profile-24RIN'!$J:$J,0)) -> 18.19174911 | CI9: =INDEX('Age Profile-24RIN'!CL:CL,MATCH('Historical scenario - input'!$GI9,'Age Profile-24RIN'!$J:$J,0)) -> 0.2032306546 | CJ9: =INDEX('Age Profile-24RIN'!CM:CM,MATCH('Historical scenario - input'!$GI9,'Age Profile-24RIN'!$J:$J,0)) -> 1.019244569 | CK9: =INDEX('Age Profile-24RIN'!CN:CN,MATCH('Historical scenario - input'!$GI9,'Age Profile-24RIN'!$J:$J,0)) -> 0 | CL9: =INDEX('Age Profile-24RIN'!CO:CO,MATCH('Historical scenario - input'!$GI9,'Age Profile-24RIN'!$J:$J,0)) -> 0.3787279648 | CM9: =INDEX('Age Profile-24RIN'!CP:CP,MATCH('Historical scenario - input'!$GI9,'Age Profile-24RIN'!$J:$J,0)) -> 5.365253953 | CN9: =INDEX('Age Profile-24RIN'!CQ:CQ,MATCH('Historical scenario - input'!$GI9,'Age Profile-24RIN'!$J:$J,0)) -> 23.58809267 | CO9: =INDEX('Age Profile-24RIN'!CR:CR,MATCH('Historical scenario - input'!$GI9,'Age Profile-24RIN'!$J:$J,0)) -> 0.006624206474 | CP9: =INDEX('Age Profile-24RIN'!CS:CS,MATCH('Historical scenario - input'!$GI9,'Age Profile-24RIN'!$J:$J,0)) -> 0.2872255927 | CQ9: =INDEX('Age Profile-24RIN'!CT:CT,MATCH('Historical scenario - input'!$GI9,'Age Profile-24RIN'!$J:$J,0)) -> 0.1217970764 | CR9: =INDEX('Age Profile-24RIN'!CU:CU,MATCH('Historical scenario - input'!$GI9,'Age Profile-24RIN'!$J:$J,0)) -> 0.1311592882 | CS9: =INDEX('Age Profile-24RIN'!CV:CV,MATCH('Historical scenario - input'!$GI9,'Age Profile-24RIN'!$J:$J,0)) -> 0 | CT9: =INDEX('Age Profile-24RIN'!CW:CW,MATCH('Historical scenario - input'!$GI9,'Age Profile-24RIN'!$J:$J,0)) -> 0 | CV9: 1845.990682 | CW9: 1753.913292 | CX9: 1896.779598 | CY9: 1597.635187 | CZ9: 2053.904754 | DA9: 946.8708137 | DB9: 3101.265852 | DC9: 3073.919042 | DD9: 142.3610693 | DE9: 18297.68526 | DF9: 10887.40707 | DG9: 237.4801052 | DH9: 3373.651203 | DI9: 807.9070054 | DJ9: 678.0625409 | DK9: 749.5087372 | DL9: 1206.13739 | DM9: 1887.056607 | DN9: 1671.311654 | DO9: 1492.049139 | DP9: 1541.506255 | DQ9: 1498.304526 | DR9: 2086.144941 | DS9: 1602.36566 | DT9: 2394.963812 | DU9: 3063.587115 | DV9: 2882.053908 | DW9: 3646.051119 | DX9: 1392.363358 | DY9: 1099.424675 | DZ9: 3106.979289 | EA9: 2446.69162 | EB9: 2811.935944 | EC9: 2534.511208 | ED9: 5963.367063 | EE9: 4126.934659 | EF9: 3628.974546 | EG9: 2126.480228 | EH9: 7314.022953 | EI9: 4592.416566 | EJ9: 4756.546024 | EK9: 4070.406659 | EL9: 2822.278575 | EM9: 5859.764951 | EN9: 5818.545803 | EO9: 2316.964353 | EP9: 4699.226944 | EQ9: 5558.778743 | ER9: 5975.27232 | ES9: 6878.006315 | ET9: 4832.440821 | EU9: 3498.070425 | EV9: 5087.705565 | EW9: 4676.085428 | EX9: 4021.379265 | EY9: 5989.179693 | EZ9: 14272.83169 | FA9: 10988.36737 | FB9: 17981.01673 | FC9: 13188.28614 | FD9: 15457.71736 | FE9: 14041.95368 | FF9: 7964.671172 | FG9: 9414.558704 | FH9: 12515.25819 | FI9: 7349.841274 | FJ9: 9684.741644 | FK9: 13073.06688 | FL9: 3896.388707 | FM9: 2191.666153 | FN9: 198.5560651 | FO9: 46.790886 | FP9: 93.37667732 | FQ9: 20.39715413 | FR9: 60.37596687 | FS9: 316.7150161 | FT9: 22.74597652 | FU9: 20.9684893 | FV9: 1005.789188 | FW9: 11.23625847 | FX9: 56.3522046 | FY9: 0 | FZ9: 20.93919006 | GA9: 296.6352704 | GB9: 1304.143347 | GC9: 0.3662404978 | GD9: 15.88018799 | GE9: 6.733941953 | GF9: 7.251561857 | GG9: 0 | GH9: 0 | GI9: OVERHEAD CONDUCTORS - ˃ 11 kV & < = 22 kV; SWER
A10: 1 | B10: OVERHEAD CONDUCTORS | C10: > 1 kV & < = 11 kV | D10: =IFERROR(IF(ISBLANK(INDEX('Unit Cost - Historical'!C:C,MATCH('Historical scenario - input'!GI10,'Unit Cost - Historical'!D:D,0))),INDEX('Cost scenario - input'!$E$6:$E$71,MATCH('Historical scenario - input'!GI10,'Cost scenario - input'!$GL$6:$GL$71,0)),INDEX('Unit Cost - Historical'!C:C,MATCH('Historical scenario - input'!GI10,'Unit Cost - Historical'!D:D,0))),"") -> 59.28920965 | E10: =INDEX('Mean Life - Calibrated'!E:E,MATCH('Historical scenario - input'!GI10,'Mean Life - Calibrated'!G:G,0)) -> 85 | F10: =INDEX('Mean Life - Calibrated'!F:F,MATCH('Historical scenario - input'!GI10,'Mean Life - Calibrated'!G:G,0)) -> 9.219544457 | G10: 2 | H10: =INDEX('Age Profile-24RIN'!K:K,MATCH('Historical scenario - input'!$GI10,'Age Profile-24RIN'!$J:$J,0)) -> 0 | I10: =INDEX('Age Profile-24RIN'!L:L,MATCH('Historical scenario - input'!$GI10,'Age Profile-24RIN'!$J:$J,0)) -> 0 | J10: =INDEX('Age Profile-24RIN'!M:M,MATCH('Historical scenario - input'!$GI10,'Age Profile-24RIN'!$J:$J,0)) -> 0.4933817264 | K10: =INDEX('Age Profile-24RIN'!N:N,MATCH('Historical scenario - input'!$GI10,'Age Profile-24RIN'!$J:$J,0)) -> 0.4821504644 | L10: =INDEX('Age Profile-24RIN'!O:O,MATCH('Historical scenario - input'!$GI10,'Age Profile-24RIN'!$J:$J,0)) -> 0.2624989181 | M10: =INDEX('Age Profile-24RIN'!P:P,MATCH('Historical scenario - input'!$GI10,'Age Profile-24RIN'!$J:$J,0)) -> 0 | N10: =INDEX('Age Profile-24RIN'!Q:Q,MATCH('Historical scenario - input'!$GI10,'Age Profile-24RIN'!$J:$J,0)) -> 0.5302833072 | O10: =INDEX('Age Profile-24RIN'!R:R,MATCH('Historical scenario - input'!$GI10,'Age Profile-24RIN'!$J:$J,0)) -> 0.5353450638 | P10: =INDEX('Age Profile-24RIN'!S:S,MATCH('Historical scenario - input'!$GI10,'Age Profile-24RIN'!$J:$J,0)) -> 0 | Q10: =INDEX('Age Profile-24RIN'!T:T,MATCH('Historical scenario - input'!$GI10,'Age Profile-24RIN'!$J:$J,0)) -> 1.399794145 | R10: =INDEX('Age Profile-24RIN'!U:U,MATCH('Historical scenario - input'!$GI10,'Age Profile-24RIN'!$J:$J,0)) -> 1.22578957 | S10: =INDEX('Age Profile-24RIN'!V:V,MATCH('Historical scenario - input'!$GI10,'Age Profile-24RIN'!$J:$J,0)) -> 0.3305599755 | T10: =INDEX('Age Profile-24RIN'!W:W,MATCH('Historical scenario - input'!$GI10,'Age Profile-24RIN'!$J:$J,0)) -> 0.08555600296 | U10: =INDEX('Age Profile-24RIN'!X:X,MATCH('Historical scenario - input'!$GI10,'Age Profile-24RIN'!$J:$J,0)) -> 0.002013082423 | V10: =INDEX('Age Profile-24RIN'!Y:Y,MATCH('Historical scenario - input'!$GI10,'Age Profile-24RIN'!$J:$J,0)) -> 0.06175426373 | W10: =INDEX('Age Profile-24RIN'!Z:Z,MATCH('Historical scenario - input'!$GI10,'Age Profile-24RIN'!$J:$J,0)) -> 0.07626029883 | X10: =INDEX('Age Profile-24RIN'!AA:AA,MATCH('Historical scenario - input'!$GI10,'Age Profile-24RIN'!$J:$J,0)) -> 0 | Y10: =INDEX('Age Profile-24RIN'!AB:AB,MATCH('Historical scenario - input'!$GI10,'Age Profile-24RIN'!$J:$J,0)) -> 1.172857344 | Z10: =INDEX('Age Profile-24RIN'!AC:AC,MATCH('Historical scenario - input'!$GI10,'Age Profile-24RIN'!$J:$J,0)) -> 0.9458526971 | AA10: =INDEX('Age Profile-24RIN'!AD:AD,MATCH('Historical scenario - input'!$GI10,'Age Profile-24RIN'!$J:$J,0)) -> 0.7103220537 | AB10: =INDEX('Age Profile-24RIN'!AE:AE,MATCH('Historical scenario - input'!$GI10,'Age Profile-24RIN'!$J:$J,0)) -> 0 | AC10: =INDEX('Age Profile-24RIN'!AF:AF,MATCH('Historical scenario - input'!$GI10,'Age Profile-24RIN'!$J:$J,0)) -> 0.04482068806 | AD10: =INDEX('Age Profile-24RIN'!AG:AG,MATCH('Historical scenario - input'!$GI10,'Age Profile-24RIN'!$J:$J,0)) -> 0.003552498393 | AE10: =INDEX('Age Profile-24RIN'!AH:AH,MATCH('Historical scenario - input'!$GI10,'Age Profile-24RIN'!$J:$J,0)) -> 0 | AF10: =INDEX('Age Profile-24RIN'!AI:AI,MATCH('Historical scenario - input'!$GI10,'Age Profile-24RIN'!$J:$J,0)) -> 0.4175369778 | AG10: =INDEX('Age Profile-24RIN'!AJ:AJ,MATCH('Historical scenario - input'!$GI10,'Age Profile-24RIN'!$J:$J,0)) -> 0.1320345236 | AH10: =INDEX('Age Profile-24RIN'!AK:AK,MATCH('Historical scenario - input'!$GI10,'Age Profile-24RIN'!$J:$J,0)) -> 1.69466015 | AI10: =INDEX('Age Profile-24RIN'!AL:AL,MATCH('Historical scenario - input'!$GI10,'Age Profile-24RIN'!$J:$J,0)) -> 2.867931953 | AJ10: =INDEX('Age Profile-24RIN'!AM:AM,MATCH('Historical scenario - input'!$GI10,'Age Profile-24RIN'!$J:$J,0)) -> 1.575947495 | AK10: =INDEX('Age Profile-24RIN'!AN:AN,MATCH('Historical scenario - input'!$GI10,'Age Profile-24RIN'!$J:$J,0)) -> 0.9320571617 | AL10: =INDEX('Age Profile-24RIN'!AO:AO,MATCH('Historical scenario - input'!$GI10,'Age Profile-24RIN'!$J:$J,0)) -> 0.06045168099 | AM10: =INDEX('Age Profile-24RIN'!AP:AP,MATCH('Historical scenario - input'!$GI10,'Age Profile-24RIN'!$J:$J,0)) -> 0.7374986664 | AN10: =INDEX('Age Profile-24RIN'!AQ:AQ,MATCH('Historical scenario - input'!$GI10,'Age Profile-24RIN'!$J:$J,0)) -> 1.378014127 | AO10: =INDEX('Age Profile-24RIN'!AR:AR,MATCH('Historical scenario - input'!$GI10,'Age Profile-24RIN'!$J:$J,0)) -> 0.8383896207 | AP10: =INDEX('Age Profile-24RIN'!AS:AS,MATCH('Historical scenario - input'!$GI10,'Age Profile-24RIN'!$J:$J,0)) -> 1.621360267 | AQ10: =INDEX('Age Profile-24RIN'!AT:AT,MATCH('Historical scenario - input'!$GI10,'Age Profile-24RIN'!$J:$J,0)) -> 1.153851478 | AR10: =INDEX('Age Profile-24RIN'!AU:AU,MATCH('Historical scenario - input'!$GI10,'Age Profile-24RIN'!$J:$J,0)) -> 1.584769533 | AS10: =INDEX('Age Profile-24RIN'!AV:AV,MATCH('Historical scenario - input'!$GI10,'Age Profile-24RIN'!$J:$J,0)) -> 0.9911470516 | AT10: =INDEX('Age Profile-24RIN'!AW:AW,MATCH('Historical scenario - input'!$GI10,'Age Profile-24RIN'!$J:$J,0)) -> 0.5455453365 | AU10: =INDEX('Age Profile-24RIN'!AX:AX,MATCH('Historical scenario - input'!$GI10,'Age Profile-24RIN'!$J:$J,0)) -> 0.625594967 | AV10: =INDEX('Age Profile-24RIN'!AY:AY,MATCH('Historical scenario - input'!$GI10,'Age Profile-24RIN'!$J:$J,0)) -> 0.7239399642 | AW10: =INDEX('Age Profile-24RIN'!AZ:AZ,MATCH('Historical scenario - input'!$GI10,'Age Profile-24RIN'!$J:$J,0)) -> 0.2284256467 | AX10: =INDEX('Age Profile-24RIN'!BA:BA,MATCH('Historical scenario - input'!$GI10,'Age Profile-24RIN'!$J:$J,0)) -> 0.2655492549 | AY10: =INDEX('Age Profile-24RIN'!BB:BB,MATCH('Historical scenario - input'!$GI10,'Age Profile-24RIN'!$J:$J,0)) -> 0.3010742388 | AZ10: =INDEX('Age Profile-24RIN'!BC:BC,MATCH('Historical scenario - input'!$GI10,'Age Profile-24RIN'!$J:$J,0)) -> 1.553270714 | BA10: =INDEX('Age Profile-24RIN'!BD:BD,MATCH('Historical scenario - input'!$GI10,'Age Profile-24RIN'!$J:$J,0)) -> 0.01302582744 | BB10: =INDEX('Age Profile-24RIN'!BE:BE,MATCH('Historical scenario - input'!$GI10,'Age Profile-24RIN'!$J:$J,0)) -> 0.07519454932 | BC10: =INDEX('Age Profile-24RIN'!BF:BF,MATCH('Historical scenario - input'!$GI10,'Age Profile-24RIN'!$J:$J,0)) -> 1.18700813 | BD10: =INDEX('Age Profile-24RIN'!BG:BG,MATCH('Historical scenario - input'!$GI10,'Age Profile-24RIN'!$J:$J,0)) -> 1.389559746 | BE10: =INDEX('Age Profile-24RIN'!BH:BH,MATCH('Historical scenario - input'!$GI10,'Age Profile-24RIN'!$J:$J,0)) -> 1.254387183 | BF10: =INDEX('Age Profile-24RIN'!BI:BI,MATCH('Historical scenario - input'!$GI10,'Age Profile-24RIN'!$J:$J,0)) -> 0.675625986 | BG10: =INDEX('Age Profile-24RIN'!BJ:BJ,MATCH('Historical scenario - input'!$GI10,'Age Profile-24RIN'!$J:$J,0)) -> 0.2014266589 | BH10: =INDEX('Age Profile-24RIN'!BK:BK,MATCH('Historical scenario - input'!$GI10,'Age Profile-24RIN'!$J:$J,0)) -> 0.2328662697 | BI10: =INDEX('Age Profile-24RIN'!BL:BL,MATCH('Historical scenario - input'!$GI10,'Age Profile-24RIN'!$J:$J,0)) -> 0.8228178361 | BJ10: =INDEX('Age Profile-24RIN'!BM:BM,MATCH('Historical scenario - input'!$GI10,'Age Profile-24RIN'!$J:$J,0)) -> 1.768966575 | BK10: =INDEX('Age Profile-24RIN'!BN:BN,MATCH('Historical scenario - input'!$GI10,'Age Profile-24RIN'!$J:$J,0)) -> 0.7281437539 | BL10: =INDEX('Age Profile-24RIN'!BO:BO,MATCH('Historical scenario - input'!$GI10,'Age Profile-24RIN'!$J:$J,0)) -> 0.3666770425 | BM10: =INDEX('Age Profile-24RIN'!BP:BP,MATCH('Historical scenario - input'!$GI10,'Age Profile-24RIN'!$J:$J,0)) -> 0.3844395344 | BN10: =INDEX('Age Profile-24RIN'!BQ:BQ,MATCH('Historical scenario - input'!$GI10,'Age Profile-24RIN'!$J:$J,0)) -> 0.3207906049 | BO10: =INDEX('Age Profile-24RIN'!BR:BR,MATCH('Historical scenario - input'!$GI10,'Age Profile-24RIN'!$J:$J,0)) -> 0.6427061676 | BP10: =INDEX('Age Profile-24RIN'!BS:BS,MATCH('Historical scenario - input'!$GI10,'Age Profile-24RIN'!$J:$J,0)) -> 0.3611706699 | BQ10: =INDEX('Age Profile-24RIN'!BT:BT,MATCH('Historical scenario - input'!$GI10,'Age Profile-24RIN'!$J:$J,0)) -> 0.2560759258 | BR10: =INDEX('Age Profile-24RIN'!BU:BU,MATCH('Historical scenario - input'!$GI10,'Age Profile-24RIN'!$J:$J,0)) -> 0.05459005864 | BS10: =INDEX('Age Profile-24RIN'!BV:BV,MATCH('Historical scenario - input'!$GI10,'Age Profile-24RIN'!$J:$J,0)) -> 0.3604601703 | BT10: =INDEX('Age Profile-24RIN'!BW:BW,MATCH('Historical scenario - input'!$GI10,'Age Profile-24RIN'!$J:$J,0)) -> 0.6138717223 | BU10: =INDEX('Age Profile-24RIN'!BX:BX,MATCH('Historical scenario - input'!$GI10,'Age Profile-24RIN'!$J:$J,0)) -> 0.2134459451 | BV10: =INDEX('Age Profile-24RIN'!BY:BY,MATCH('Historical scenario - input'!$GI10,'Age Profile-24RIN'!$J:$J,0)) -> 0.2042094493 | BW10: =INDEX('Age Profile-24RIN'!BZ:BZ,MATCH('Historical scenario - input'!$GI10,'Age Profile-24RIN'!$J:$J,0)) -> 0.1519285146 | BX10: =INDEX('Age Profile-24RIN'!CA:CA,MATCH('Historical scenario - input'!$GI10,'Age Profile-24RIN'!$J:$J,0)) -> 0.1518693063 | BY10: =INDEX('Age Profile-24RIN'!CB:CB,MATCH('Historical scenario - input'!$GI10,'Age Profile-24RIN'!$J:$J,0)) -> 0 | BZ10: =INDEX('Age Profile-24RIN'!CC:CC,MATCH('Historical scenario - input'!$GI10,'Age Profile-24RIN'!$J:$J,0)) -> 0.05417560049 | CA10: =INDEX('Age Profile-24RIN'!CD:CD,MATCH('Historical scenario - input'!$GI10,'Age Profile-24RIN'!$J:$J,0)) -> 0.01284820252 | CB10: =INDEX('Age Profile-24RIN'!CE:CE,MATCH('Historical scenario - input'!$GI10,'Age Profile-24RIN'!$J:$J,0)) -> 0.09502933201 | CC10: =INDEX('Age Profile-24RIN'!CF:CF,MATCH('Historical scenario - input'!$GI10,'Age Profile-24RIN'!$J:$J,0)) -> 0 | CD10: =INDEX('Age Profile-24RIN'!CG:CG,MATCH('Historical scenario - input'!$GI10,'Age Profile-24RIN'!$J:$J,0)) -> 0.03457765102 | CE10: =INDEX('Age Profile-24RIN'!CH:CH,MATCH('Historical scenario - input'!$GI10,'Age Profile-24RIN'!$J:$J,0)) -> 0.2135051534 | CF10: =INDEX('Age Profile-24RIN'!CI:CI,MATCH('Historical scenario - input'!$GI10,'Age Profile-24RIN'!$J:$J,0)) -> 0.03919589894 | CG10: =INDEX('Age Profile-24RIN'!CJ:CJ,MATCH('Historical scenario - input'!$GI10,'Age Profile-24RIN'!$J:$J,0)) -> 0.03659073345 | CH10: =INDEX('Age Profile-24RIN'!CK:CK,MATCH('Historical scenario - input'!$GI10,'Age Profile-24RIN'!$J:$J,0)) -> 0.3317441416 | CI10: =INDEX('Age Profile-24RIN'!CL:CL,MATCH('Historical scenario - input'!$GI10,'Age Profile-24RIN'!$J:$J,0)) -> 0 | CJ10: =INDEX('Age Profile-24RIN'!CM:CM,MATCH('Historical scenario - input'!$GI10,'Age Profile-24RIN'!$J:$J,0)) -> 0 | CK10: =INDEX('Age Profile-24RIN'!CN:CN,MATCH('Historical scenario - input'!$GI10,'Age Profile-24RIN'!$J:$J,0)) -> 0 | CL10: =INDEX('Age Profile-24RIN'!CO:CO,MATCH('Historical scenario - input'!$GI10,'Age Profile-24RIN'!$J:$J,0)) -> 0 | CM10: =INDEX('Age Profile-24RIN'!CP:CP,MATCH('Historical scenario - input'!$GI10,'Age Profile-24RIN'!$J:$J,0)) -> 0.3889393657 | CN10: =INDEX('Age Profile-24RIN'!CQ:CQ,MATCH('Historical scenario - input'!$GI10,'Age Profile-24RIN'!$J:$J,0)) -> 0.3040346541 | CO10: =INDEX('Age Profile-24RIN'!CR:CR,MATCH('Historical scenario - input'!$GI10,'Age Profile-24RIN'!$J:$J,0)) -> 0.4316285547 | CP10: =INDEX('Age Profile-24RIN'!CS:CS,MATCH('Historical scenario - input'!$GI10,'Age Profile-24RIN'!$J:$J,0)) -> 0.4997181073 | CQ10: =INDEX('Age Profile-24RIN'!CT:CT,MATCH('Historical scenario - input'!$GI10,'Age Profile-24RIN'!$J:$J,0)) -> 0 | CR10: =INDEX('Age Profile-24RIN'!CU:CU,MATCH('Historical scenario - input'!$GI10,'Age Profile-24RIN'!$J:$J,0)) -> 0.1686844654 | CS10: =INDEX('Age Profile-24RIN'!CV:CV,MATCH('Historical scenario - input'!$GI10,'Age Profile-24RIN'!$J:$J,0)) -> 0.1593887612 | CT10: =INDEX('Age Profile-24RIN'!CW:CW,MATCH('Historical scenario - input'!$GI10,'Age Profile-24RIN'!$J:$J,0)) -> 0.1898810391 | CV10: 0 | CW10: 0 | CX10: 29.25221261 | CY10: 28.58631997 | CZ10: 15.56335339 | DA10: 0 | DB10: 31.44007817 | DC10: 31.74018573 | DD10: 0 | DE10: 82.99268854 | DF10: 72.67609483 | DG10: 19.59863969 | DH10: 5.072547797 | DI10: 0.1193540658 | DJ10: 3.661361489 | DK10: 4.521412846 | DL10: 0 | DM10: 69.53778499 | DN10: 56.07885886 | DO10: 42.11443316 | DP10: 0 | DQ10: 2.657383171 | DR10: 0.210624822 | DS10: 0 | DT10: 24.75543741 | DU10: 7.828222551 | DV10: 100.4750609 | DW10: 170.0374188 | DX10: 93.43668146 | DY10: 55.26093247 | DZ10: 3.584132388 | EA10: 43.72571305 | EB10: 81.70136846 | EC10: 49.70745799 | ED10: 96.12916876 | EE10: 68.41094219 | EF10: 93.9597331 | EG10: 58.76432534 | EH10: 32.34495183 | EI10: 37.09103116 | EJ10: 42.92182831 | EK10: 13.54317606 | EL10: 15.74420545 | EM10: 17.85045367 | EN10: 92.09219301 | EO10: 0.772291014 | EP10: 4.458225399 | EQ10: 70.37677386 | ER10: 82.38589913 | ES10: 74.37162465 | ET10: 40.05733073 | EU10: 11.94242741 | EV10: 13.80645708 | EW10: 48.78421919 | EX10: 104.8806301 | EY10: 43.17106768 | EZ10: 21.73999204 | FA10: 22.79311615 | FB10: 19.01942143 | FC10: 38.10554071 | FD10: 21.41352357 | FE10: 15.18253925 | FF10: 3.236601432 | FG10: 21.37139861 | FH10: 36.39596924 | FI10: 12.65504139 | FJ10: 12.10741685 | FK10: 9.007721555 | FL10: 9.004211141 | FM10: 0 | FN10: 3.212028536 | FO10: 0.7617597729 | FP10: 5.634213989 | FQ10: 0 | FR10: 2.050081601 | FS10: 12.6585518 | FT10: 2.323893869 | FU10: 2.169435667 | FV10: 19.66884796 | FW10: 0 | FX10: 0 | FY10: 0 | FZ10: 0 | GA10: 23.0599076 | GB10: 18.02597435 | GC10: 25.59091587 | GD10: 29.62789163 | GE10: 0 | GF10: 10.00116863 | GG10: 9.450033681 | GH10: 11.25789674 | GI10: OVERHEAD CONDUCTORS - > 1 kV & < = 11 kV
A11: 1 | B11: OVERHEAD CONDUCTORS | C11: > 132 kV | D11: =IFERROR(IF(ISBLANK(INDEX('Unit Cost - Historical'!C:C,MATCH('Historical scenario - input'!GI11,'Unit Cost - Historical'!D:D,0))),INDEX('Cost scenario - input'!$E$6:$E$71,MATCH('Historical scenario - input'!GI11,'Cost scenario - input'!$GL$6:$GL$71,0)),INDEX('Unit Cost - Historical'!C:C,MATCH('Historical scenario - input'!GI11,'Unit Cost - Historical'!D:D,0))),"") -> 0 | E11: =INDEX('Mean Life - Calibrated'!E:E,MATCH('Historical scenario - input'!GI11,'Mean Life - Calibrated'!G:G,0)) -> 0 | F11: =INDEX('Mean Life - Calibrated'!F:F,MATCH('Historical scenario - input'!GI11,'Mean Life - Calibrated'!G:G,0)) -> 0 | G11: 2 | H11: =INDEX('Age Profile-24RIN'!K:K,MATCH('Historical scenario - input'!$GI11,'Age Profile-24RIN'!$J:$J,0)) -> 0 | I11: =INDEX('Age Profile-24RIN'!L:L,MATCH('Historical scenario - input'!$GI11,'Age Profile-24RIN'!$J:$J,0)) -> 0 | J11: =INDEX('Age Profile-24RIN'!M:M,MATCH('Historical scenario - input'!$GI11,'Age Profile-24RIN'!$J:$J,0)) -> 0 | K11: =INDEX('Age Profile-24RIN'!N:N,MATCH('Historical scenario - input'!$GI11,'Age Profile-24RIN'!$J:$J,0)) -> 0 | L11: =INDEX('Age Profile-24RIN'!O:O,MATCH('Historical scenario - input'!$GI11,'Age Profile-24RIN'!$J:$J,0)) -> 0 | M11: =INDEX('Age Profile-24RIN'!P:P,MATCH('Historical scenario - input'!$GI11,'Age Profile-24RIN'!$J:$J,0)) -> 0 | N11: =INDEX('Age Profile-24RIN'!Q:Q,MATCH('Historical scenario - input'!$GI11,'Age Profile-24RIN'!$J:$J,0)) -> 0 | O11: =INDEX('Age Profile-24RIN'!R:R,MATCH('Historical scenario - input'!$GI11,'Age Profile-24RIN'!$J:$J,0)) -> 0 | P11: =INDEX('Age Profile-24RIN'!S:S,MATCH('Historical scenario - input'!$GI11,'Age Profile-24RIN'!$J:$J,0)) -> 0 | Q11: =INDEX('Age Profile-24RIN'!T:T,MATCH('Historical scenario - input'!$GI11,'Age Profile-24RIN'!$J:$J,0)) -> 0 | R11: =INDEX('Age Profile-24RIN'!U:U,MATCH('Historical scenario - input'!$GI11,'Age Profile-24RIN'!$J:$J,0)) -> 0 | S11: =INDEX('Age Profile-24RIN'!V:V,MATCH('Historical scenario - input'!$GI11,'Age Profile-24RIN'!$J:$J,0)) -> 0 | T11: =INDEX('Age Profile-24RIN'!W:W,MATCH('Historical scenario - input'!$GI11,'Age Profile-24RIN'!$J:$J,0)) -> 0 | U11: =INDEX('Age Profile-24RIN'!X:X,MATCH('Historical scenario - input'!$GI11,'Age Profile-24RIN'!$J:$J,0)) -> 0 | V11: =INDEX('Age Profile-24RIN'!Y:Y,MATCH('Historical scenario - input'!$GI11,'Age Profile-24RIN'!$J:$J,0)) -> 0 | W11: =INDEX('Age Profile-24RIN'!Z:Z,MATCH('Historical scenario - input'!$GI11,'Age Profile-24RIN'!$J:$J,0)) -> 0 | X11: =INDEX('Age Profile-24RIN'!AA:AA,MATCH('Historical scenario - input'!$GI11,'Age Profile-24RIN'!$J:$J,0)) -> 0 | Y11: =INDEX('Age Profile-24RIN'!AB:AB,MATCH('Historical scenario - input'!$GI11,'Age Profile-24RIN'!$J:$J,0)) -> 0 | Z11: =INDEX('Age Profile-24RIN'!AC:AC,MATCH('Historical scenario - input'!$GI11,'Age Profile-24RIN'!$J:$J,0)) -> 0 | AA11: =INDEX('Age Profile-24RIN'!AD:AD,MATCH('Historical scenario - input'!$GI11,'Age Profile-24RIN'!$J:$J,0)) -> 0 | AB11: =INDEX('Age Profile-24RIN'!AE:AE,MATCH('Historical scenario - input'!$GI11,'Age Profile-24RIN'!$J:$J,0)) -> 0 | AC11: =INDEX('Age Profile-24RIN'!AF:AF,MATCH('Historical scenario - input'!$GI11,'Age Profile-24RIN'!$J:$J,0)) -> 0 | AD11: =INDEX('Age Profile-24RIN'!AG:AG,MATCH('Historical scenario - input'!$GI11,'Age Profile-24RIN'!$J:$J,0)) -> 0 | AE11: =INDEX('Age Profile-24RIN'!AH:AH,MATCH('Historical scenario - input'!$GI11,'Age Profile-24RIN'!$J:$J,0)) -> 0 | AF11: =INDEX('Age Profile-24RIN'!AI:AI,MATCH('Historical scenario - input'!$GI11,'Age Profile-24RIN'!$J:$J,0)) -> 0 | AG11: =INDEX('Age Profile-24RIN'!AJ:AJ,MATCH('Historical scenario - input'!$GI11,'Age Profile-24RIN'!$J:$J,0)) -> 0 | AH11: =INDEX('Age Profile-24RIN'!AK:AK,MATCH('Historical scenario - input'!$GI11,'Age Profile-24RIN'!$J:$J,0)) -> 0 | AI11: =INDEX('Age Profile-24RIN'!AL:AL,MATCH('Historical scenario - input'!$GI11,'Age Profile-24RIN'!$J:$J,0)) -> 0 | AJ11: =INDEX('Age Profile-24RIN'!AM:AM,MATCH('Historical scenario - input'!$GI11,'Age Profile-24RIN'!$J:$J,0)) -> 0 | AK11: =INDEX('Age Profile-24RIN'!AN:AN,MATCH('Historical scenario - input'!$GI11,'Age Profile-24RIN'!$J:$J,0)) -> 0 | AL11: =INDEX('Age Profile-24RIN'!AO:AO,MATCH('Historical scenario - input'!$GI11,'Age Profile-24RIN'!$J:$J,0)) -> 0 | AM11: =INDEX('Age Profile-24RIN'!AP:AP,MATCH('Historical scenario - input'!$GI11,'Age Profile-24RIN'!$J:$J,0)) -> 0 | AN11: =INDEX('Age Profile-24RIN'!AQ:AQ,MATCH('Historical scenario - input'!$GI11,'Age Profile-24RIN'!$J:$J,0)) -> 0 | AO11: =INDEX('Age Profile-24RIN'!AR:AR,MATCH('Historical scenario - input'!$GI11,'Age Profile-24RIN'!$J:$J,0)) -> 0 | AP11: =INDEX('Age Profile-24RIN'!AS:AS,MATCH('Historical scenario - input'!$GI11,'Age Profile-24RIN'!$J:$J,0)) -> 0 | AQ11: =INDEX('Age Profile-24RIN'!AT:AT,MATCH('Historical scenario - input'!$GI11,'Age Profile-24RIN'!$J:$J,0)) -> 0 | AR11: =INDEX('Age Profile-24RIN'!AU:AU,MATCH('Historical scenario - input'!$GI11,'Age Profile-24RIN'!$J:$J,0)) -> 0 | AS11: =INDEX('Age Profile-24RIN'!AV:AV,MATCH('Historical scenario - input'!$GI11,'Age Profile-24RIN'!$J:$J,0)) -> 0 | AT11: =INDEX('Age Profile-24RIN'!AW:AW,MATCH('Historical scenario - input'!$GI11,'Age Profile-24RIN'!$J:$J,0)) -> 0 | AU11: =INDEX('Age Profile-24RIN'!AX:AX,MATCH('Historical scenario - input'!$GI11,'Age Profile-24RIN'!$J:$J,0)) -> 0 | AV11: =INDEX('Age Profile-24RIN'!AY:AY,MATCH('Historical scenario - input'!$GI11,'Age Profile-24RIN'!$J:$J,0)) -> 0 | AW11: =INDEX('Age Profile-24RIN'!AZ:AZ,MATCH('Historical scenario - input'!$GI11,'Age Profile-24RIN'!$J:$J,0)) -> 0 | AX11: =INDEX('Age Profile-24RIN'!BA:BA,MATCH('Historical scenario - input'!$GI11,'Age Profile-24RIN'!$J:$J,0)) -> 0 | AY11: =INDEX('Age Profile-24RIN'!BB:BB,MATCH('Historical scenario - input'!$GI11,'Age Profile-24RIN'!$J:$J,0)) -> 0 | AZ11: =INDEX('Age Profile-24RIN'!BC:BC,MATCH('Historical scenario - input'!$GI11,'Age Profile-24RIN'!$J:$J,0)) -> 0 | BA11: =INDEX('Age Profile-24RIN'!BD:BD,MATCH('Historical scenario - input'!$GI11,'Age Profile-24RIN'!$J:$J,0)) -> 0 | BB11: =INDEX('Age Profile-24RIN'!BE:BE,MATCH('Historical scenario - input'!$GI11,'Age Profile-24RIN'!$J:$J,0)) -> 0 | BC11: =INDEX('Age Profile-24RIN'!BF:BF,MATCH('Historical scenario - input'!$GI11,'Age Profile-24RIN'!$J:$J,0)) -> 0 | BD11: =INDEX('Age Profile-24RIN'!BG:BG,MATCH('Historical scenario - input'!$GI11,'Age Profile-24RIN'!$J:$J,0)) -> 0 | BE11: =INDEX('Age Profile-24RIN'!BH:BH,MATCH('Historical scenario - input'!$GI11,'Age Profile-24RIN'!$J:$J,0)) -> 0 | BF11: =INDEX('Age Profile-24RIN'!BI:BI,MATCH('Historical scenario - input'!$GI11,'Age Profile-24RIN'!$J:$J,0)) -> 0 | BG11: =INDEX('Age Profile-24RIN'!BJ:BJ,MATCH('Historical scenario - input'!$GI11,'Age Profile-24RIN'!$J:$J,0)) -> 0 | BH11: =INDEX('Age Profile-24RIN'!BK:BK,MATCH('Historical scenario - input'!$GI11,'Age Profile-24RIN'!$J:$J,0)) -> 0 | BI11: =INDEX('Age Profile-24RIN'!BL:BL,MATCH('Historical scenario - input'!$GI11,'Age Profile-24RIN'!$J:$J,0)) -> 0 | BJ11: =INDEX('Age Profile-24RIN'!BM:BM,MATCH('Historical scenario - input'!$GI11,'Age Profile-24RIN'!$J:$J,0)) -> 0 | BK11: =INDEX('Age Profile-24RIN'!BN:BN,MATCH('Historical scenario - input'!$GI11,'Age Profile-24RIN'!$J:$J,0)) -> 0 | BL11: =INDEX('Age Profile-24RIN'!BO:BO,MATCH('Historical scenario - input'!$GI11,'Age Profile-24RIN'!$J:$J,0)) -> 0 | BM11: =INDEX('Age Profile-24RIN'!BP:BP,MATCH('Historical scenario - input'!$GI11,'Age Profile-24RIN'!$J:$J,0)) -> 0 | BN11: =INDEX('Age Profile-24RIN'!BQ:BQ,MATCH('Historical scenario - input'!$GI11,'Age Profile-24RIN'!$J:$J,0)) -> 0 | BO11: =INDEX('Age Profile-24RIN'!BR:BR,MATCH('Historical scenario - input'!$GI11,'Age Profile-24RIN'!$J:$J,0)) -> 0 | BP11: =INDEX('Age Profile-24RIN'!BS:BS,MATCH('Historical scenario - input'!$GI11,'Age Profile-24RIN'!$J:$J,0)) -> 0 | BQ11: =INDEX('Age Profile-24RIN'!BT:BT,MATCH('Historical scenario - input'!$GI11,'Age Profile-24RIN'!$J:$J,0)) -> 0 | BR11: =INDEX('Age Profile-24RIN'!BU:BU,MATCH('Historical scenario - input'!$GI11,'Age Profile-24RIN'!$J:$J,0)) -> 0 | BS11: =INDEX('Age Profile-24RIN'!BV:BV,MATCH('Historical scenario - input'!$GI11,'Age Profile-24RIN'!$J:$J,0)) -> 0 | BT11: =INDEX('Age Profile-24RIN'!BW:BW,MATCH('Historical scenario - input'!$GI11,'Age Profile-24RIN'!$J:$J,0)) -> 0 | BU11: =INDEX('Age Profile-24RIN'!BX:BX,MATCH('Historical scenario - input'!$GI11,'Age Profile-24RIN'!$J:$J,0)) -> 0 | BV11: =INDEX('Age Profile-24RIN'!BY:BY,MATCH('Historical scenario - input'!$GI11,'Age Profile-24RIN'!$J:$J,0)) -> 0 | BW11: =INDEX('Age Profile-24RIN'!BZ:BZ,MATCH('Historical scenario - input'!$GI11,'Age Profile-24RIN'!$J:$J,0)) -> 0 | BX11: =INDEX('Age Profile-24RIN'!CA:CA,MATCH('Historical scenario - input'!$GI11,'Age Profile-24RIN'!$J:$J,0)) -> 0 | BY11: =INDEX('Age Profile-24RIN'!CB:CB,MATCH('Historical scenario - input'!$GI11,'Age Profile-24RIN'!$J:$J,0)) -> 0 | BZ11: =INDEX('Age Profile-24RIN'!CC:CC,MATCH('Historical scenario - input'!$GI11,'Age Profile-24RIN'!$J:$J,0)) -> 0 | CA11: =INDEX('Age Profile-24RIN'!CD:CD,MATCH('Historical scenario - input'!$GI11,'Age Profile-24RIN'!$J:$J,0)) -> 0 | CB11: =INDEX('Age Profile-24RIN'!CE:CE,MATCH('Historical scenario - input'!$GI11,'Age Profile-24RIN'!$J:$J,0)) -> 0 | CC11: =INDEX('Age Profile-24RIN'!CF:CF,MATCH('Historical scenario - input'!$GI11,'Age Profile-24RIN'!$J:$J,0)) -> 0 | CD11: =INDEX('Age Profile-24RIN'!CG:CG,MATCH('Historical scenario - input'!$GI11,'Age Profile-24RIN'!$J:$J,0)) -> 0 | CE11: =INDEX('Age Profile-24RIN'!CH:CH,MATCH('Historical scenario - input'!$GI11,'Age Profile-24RIN'!$J:$J,0)) -> 0 | CF11: =INDEX('Age Profile-24RIN'!CI:CI,MATCH('Historical scenario - input'!$GI11,'Age Profile-24RIN'!$J:$J,0)) -> 0 | CG11: =INDEX('Age Profile-24RIN'!CJ:CJ,MATCH('Historical scenario - input'!$GI11,'Age Profile-24RIN'!$J:$J,0)) -> 0 | CH11: =INDEX('Age Profile-24RIN'!CK:CK,MATCH('Historical scenario - input'!$GI11,'Age Profile-24RIN'!$J:$J,0)) -> 0 | CI11: =INDEX('Age Profile-24RIN'!CL:CL,MATCH('Historical scenario - input'!$GI11,'Age Profile-24RIN'!$J:$J,0)) -> 0 | CJ11: =INDEX('Age Profile-24RIN'!CM:CM,MATCH('Historical scenario - input'!$GI11,'Age Profile-24RIN'!$J:$J,0)) -> 0 | CK11: =INDEX('Age Profile-24RIN'!CN:CN,MATCH('Historical scenario - input'!$GI11,'Age Profile-24RIN'!$J:$J,0)) -> 0 | CL11: =INDEX('Age Profile-24RIN'!CO:CO,MATCH('Historical scenario - input'!$GI11,'Age Profile-24RIN'!$J:$J,0)) -> 0 | CM11: =INDEX('Age Profile-24RIN'!CP:CP,MATCH('Historical scenario - input'!$GI11,'Age Profile-24RIN'!$J:$J,0)) -> 0 | CN11: =INDEX('Age Profile-24RIN'!CQ:CQ,MATCH('Historical scenario - input'!$GI11,'Age Profile-24RIN'!$J:$J,0)) -> 0 | CO11: =INDEX('Age Profile-24RIN'!CR:CR,MATCH('Historical scenario - input'!$GI11,'Age Profile-24RIN'!$J:$J,0)) -> 0 | CP11: =INDEX('Age Profile-24RIN'!CS:CS,MATCH('Historical scenario - input'!$GI11,'Age Profile-24RIN'!$J:$J,0)) -> 0 | CQ11: =INDEX('Age Profile-24RIN'!CT:CT,MATCH('Historical scenario - input'!$GI11,'Age Profile-24RIN'!$J:$J,0)) -> 0 | CR11: =INDEX('Age Profile-24RIN'!CU:CU,MATCH('Historical scenario - input'!$GI11,'Age Profile-24RIN'!$J:$J,0)) -> 0 | CS11: =INDEX('Age Profile-24RIN'!CV:CV,MATCH('Historical scenario - input'!$GI11,'Age Profile-24RIN'!$J:$J,0)) -> 0 | CT11: =INDEX('Age Profile-24RIN'!CW:CW,MATCH('Historical scenario - input'!$GI11,'Age Profile-24RIN'!$J:$J,0)) -> 0 | CV11: 0 | CW11: 0 | CX11: 0 | CY11: 0 | CZ11: 0 | DA11: 0 | DB11: 0 | DC11: 0 | DD11: 0 | DE11: 0 | DF11: 0 | DG11: 0 | DH11: 0 | DI11: 0 | DJ11: 0 | DK11: 0 | DL11: 0 | DM11: 0 | DN11: 0 | DO11: 0 | DP11: 0 | DQ11: 0 | DR11: 0 | DS11: 0 | DT11: 0 | DU11: 0 | DV11: 0 | DW11: 0 | DX11: 0 | DY11: 0 | DZ11: 0 | EA11: 0 | EB11: 0 | EC11: 0 | ED11: 0 | EE11: 0 | EF11: 0 | EG11: 0 | EH11: 0 | EI11: 0 | EJ11: 0 | EK11: 0 | EL11: 0 | EM11: 0 | EN11: 0 | EO11: 0 | EP11: 0 | EQ11: 0 | ER11: 0 | ES11: 0 | ET11: 0 | EU11: 0 | EV11: 0 | EW11: 0 | EX11: 0 | EY11: 0 | EZ11: 0 | FA11: 0 | FB11: 0 | FC11: 0 | FD11: 0 | FE11: 0 | FF11: 0 | FG11: 0 | FH11: 0 | FI11: 0 | FJ11: 0 | FK11: 0 | FL11: 0 | FM11: 0 | FN11: 0 | FO11: 0 | FP11: 0 | FQ11: 0 | FR11: 0 | FS11: 0 | FT11: 0 | FU11: 0 | FV11: 0 | FW11: 0 | FX11: 0 | FY11: 0 | FZ11: 0 | GA11: 0 | GB11: 0 | GC11: 0 | GD11: 0 | GE11: 0 | GF11: 0 | GG11: 0 | GH11: 0 | GI11: OVERHEAD CONDUCTORS - > 132 kV
A12: 1 | B12: OVERHEAD CONDUCTORS | C12: > 22 kV & < = 66 kV | D12: =IFERROR(IF(ISBLANK(INDEX('Unit Cost - Historical'!C:C,MATCH('Historical scenario - input'!GI12,'Unit Cost - Historical'!D:D,0))),INDEX('Cost scenario - input'!$E$6:$E$71,MATCH('Historical scenario - input'!GI12,'Cost scenario - input'!$GL$6:$GL$71,0)),INDEX('Unit Cost - Historical'!C:C,MATCH('Historical scenario - input'!GI12,'Unit Cost - Historical'!D:D,0))),"") -> 43.69899237 | E12: =INDEX('Mean Life - Calibrated'!E:E,MATCH('Historical scenario - input'!GI12,'Mean Life - Calibrated'!G:G,0)) -> 89.96 | F12: =INDEX('Mean Life - Calibrated'!F:F,MATCH('Historical scenario - input'!GI12,'Mean Life - Calibrated'!G:G,0)) -> 9.484724561 | G12: 2 | H12: =INDEX('Age Profile-24RIN'!K:K,MATCH('Historical scenario - input'!$GI12,'Age Profile-24RIN'!$J:$J,0)) -> 0.095546 | I12: =INDEX('Age Profile-24RIN'!L:L,MATCH('Historical scenario - input'!$GI12,'Age Profile-24RIN'!$J:$J,0)) -> 1.619921932 | J12: =INDEX('Age Profile-24RIN'!M:M,MATCH('Historical scenario - input'!$GI12,'Age Profile-24RIN'!$J:$J,0)) -> 1.755247288 | K12: =INDEX('Age Profile-24RIN'!N:N,MATCH('Historical scenario - input'!$GI12,'Age Profile-24RIN'!$J:$J,0)) -> 19.34808471 | L12: =INDEX('Age Profile-24RIN'!O:O,MATCH('Historical scenario - input'!$GI12,'Age Profile-24RIN'!$J:$J,0)) -> 15.21483847 | M12: =INDEX('Age Profile-24RIN'!P:P,MATCH('Historical scenario - input'!$GI12,'Age Profile-24RIN'!$J:$J,0)) -> 2.471047859 | N12: =INDEX('Age Profile-24RIN'!Q:Q,MATCH('Historical scenario - input'!$GI12,'Age Profile-24RIN'!$J:$J,0)) -> 0.3506436792 | O12: =INDEX('Age Profile-24RIN'!R:R,MATCH('Historical scenario - input'!$GI12,'Age Profile-24RIN'!$J:$J,0)) -> 0.3414455143 | P12: =INDEX('Age Profile-24RIN'!S:S,MATCH('Historical scenario - input'!$GI12,'Age Profile-24RIN'!$J:$J,0)) -> 96.12192415 | Q12: =INDEX('Age Profile-24RIN'!T:T,MATCH('Historical scenario - input'!$GI12,'Age Profile-24RIN'!$J:$J,0)) -> 24.50928589 | R12: =INDEX('Age Profile-24RIN'!U:U,MATCH('Historical scenario - input'!$GI12,'Age Profile-24RIN'!$J:$J,0)) -> 55.58356544 | S12: =INDEX('Age Profile-24RIN'!V:V,MATCH('Historical scenario - input'!$GI12,'Age Profile-24RIN'!$J:$J,0)) -> 0 | T12: =INDEX('Age Profile-24RIN'!W:W,MATCH('Historical scenario - input'!$GI12,'Age Profile-24RIN'!$J:$J,0)) -> 36.22883924 | U12: =INDEX('Age Profile-24RIN'!X:X,MATCH('Historical scenario - input'!$GI12,'Age Profile-24RIN'!$J:$J,0)) -> 7.675090924 | V12: =INDEX('Age Profile-24RIN'!Y:Y,MATCH('Historical scenario - input'!$GI12,'Age Profile-24RIN'!$J:$J,0)) -> 0.7667008358 | W12: =INDEX('Age Profile-24RIN'!Z:Z,MATCH('Historical scenario - input'!$GI12,'Age Profile-24RIN'!$J:$J,0)) -> 2.661532025 | X12: =INDEX('Age Profile-24RIN'!AA:AA,MATCH('Historical scenario - input'!$GI12,'Age Profile-24RIN'!$J:$J,0)) -> 9.997073511 | Y12: =INDEX('Age Profile-24RIN'!AB:AB,MATCH('Historical scenario - input'!$GI12,'Age Profile-24RIN'!$J:$J,0)) -> 3.023369753 | Z12: =INDEX('Age Profile-24RIN'!AC:AC,MATCH('Historical scenario - input'!$GI12,'Age Profile-24RIN'!$J:$J,0)) -> 6.997788173 | AA12: =INDEX('Age Profile-24RIN'!AD:AD,MATCH('Historical scenario - input'!$GI12,'Age Profile-24RIN'!$J:$J,0)) -> 19.62969675 | AB12: =INDEX('Age Profile-24RIN'!AE:AE,MATCH('Historical scenario - input'!$GI12,'Age Profile-24RIN'!$J:$J,0)) -> 6.611621104 | AC12: =INDEX('Age Profile-24RIN'!AF:AF,MATCH('Historical scenario - input'!$GI12,'Age Profile-24RIN'!$J:$J,0)) -> 55.66839156 | AD12: =INDEX('Age Profile-24RIN'!AG:AG,MATCH('Historical scenario - input'!$GI12,'Age Profile-24RIN'!$J:$J,0)) -> 12.02677743 | AE12: =INDEX('Age Profile-24RIN'!AH:AH,MATCH('Historical scenario - input'!$GI12,'Age Profile-24RIN'!$J:$J,0)) -> 15.7917839 | AF12: =INDEX('Age Profile-24RIN'!AI:AI,MATCH('Historical scenario - input'!$GI12,'Age Profile-24RIN'!$J:$J,0)) -> 17.06940091 | AG12: =INDEX('Age Profile-24RIN'!AJ:AJ,MATCH('Historical scenario - input'!$GI12,'Age Profile-24RIN'!$J:$J,0)) -> 2.811508538 | AH12: =INDEX('Age Profile-24RIN'!AK:AK,MATCH('Historical scenario - input'!$GI12,'Age Profile-24RIN'!$J:$J,0)) -> 68.62441922 | AI12: =INDEX('Age Profile-24RIN'!AL:AL,MATCH('Historical scenario - input'!$GI12,'Age Profile-24RIN'!$J:$J,0)) -> 27.10615247 | AJ12: =INDEX('Age Profile-24RIN'!AM:AM,MATCH('Historical scenario - input'!$GI12,'Age Profile-24RIN'!$J:$J,0)) -> 1.539443186 | AK12: =INDEX('Age Profile-24RIN'!AN:AN,MATCH('Historical scenario - input'!$GI12,'Age Profile-24RIN'!$J:$J,0)) -> 3.683935876 | AL12: =INDEX('Age Profile-24RIN'!AO:AO,MATCH('Historical scenario - input'!$GI12,'Age Profile-24RIN'!$J:$J,0)) -> 0.2111264361 | AM12: =INDEX('Age Profile-24RIN'!AP:AP,MATCH('Historical scenario - input'!$GI12,'Age Profile-24RIN'!$J:$J,0)) -> 0.6844056124 | AN12: =INDEX('Age Profile-24RIN'!AQ:AQ,MATCH('Historical scenario - input'!$GI12,'Age Profile-24RIN'!$J:$J,0)) -> 6.308157467 | AO12: =INDEX('Age Profile-24RIN'!AR:AR,MATCH('Historical scenario - input'!$GI12,'Age Profile-24RIN'!$J:$J,0)) -> 2.664389498 | AP12: =INDEX('Age Profile-24RIN'!AS:AS,MATCH('Historical scenario - input'!$GI12,'Age Profile-24RIN'!$J:$J,0)) -> 25.0790611 | AQ12: =INDEX('Age Profile-24RIN'!AT:AT,MATCH('Historical scenario - input'!$GI12,'Age Profile-24RIN'!$J:$J,0)) -> 5.531251371 | AR12: =INDEX('Age Profile-24RIN'!AU:AU,MATCH('Historical scenario - input'!$GI12,'Age Profile-24RIN'!$J:$J,0)) -> 10.81880111 | AS12: =INDEX('Age Profile-24RIN'!AV:AV,MATCH('Historical scenario - input'!$GI12,'Age Profile-24RIN'!$J:$J,0)) -> 36.27986554 | AT12: =INDEX('Age Profile-24RIN'!AW:AW,MATCH('Historical scenario - input'!$GI12,'Age Profile-24RIN'!$J:$J,0)) -> 10.0601012 | AU12: =INDEX('Age Profile-24RIN'!AX:AX,MATCH('Historical scenario - input'!$GI12,'Age Profile-24RIN'!$J:$J,0)) -> 46.01266362 | AV12: =INDEX('Age Profile-24RIN'!AY:AY,MATCH('Historical scenario - input'!$GI12,'Age Profile-24RIN'!$J:$J,0)) -> 95.43453749 | AW12: =INDEX('Age Profile-24RIN'!AZ:AZ,MATCH('Historical scenario - input'!$GI12,'Age Profile-24RIN'!$J:$J,0)) -> 13.86560214 | AX12: =INDEX('Age Profile-24RIN'!BA:BA,MATCH('Historical scenario - input'!$GI12,'Age Profile-24RIN'!$J:$J,0)) -> 0 | AY12: =INDEX('Age Profile-24RIN'!BB:BB,MATCH('Historical scenario - input'!$GI12,'Age Profile-24RIN'!$J:$J,0)) -> 49.36758188 | AZ12: =INDEX('Age Profile-24RIN'!BC:BC,MATCH('Historical scenario - input'!$GI12,'Age Profile-24RIN'!$J:$J,0)) -> 28.39062742 | BA12: =INDEX('Age Profile-24RIN'!BD:BD,MATCH('Historical scenario - input'!$GI12,'Age Profile-24RIN'!$J:$J,0)) -> 30.39477737 | BB12: =INDEX('Age Profile-24RIN'!BE:BE,MATCH('Historical scenario - input'!$GI12,'Age Profile-24RIN'!$J:$J,0)) -> 30.16503654 | BC12: =INDEX('Age Profile-24RIN'!BF:BF,MATCH('Historical scenario - input'!$GI12,'Age Profile-24RIN'!$J:$J,0)) -> 2.794935195 | BD12: =INDEX('Age Profile-24RIN'!BG:BG,MATCH('Historical scenario - input'!$GI12,'Age Profile-24RIN'!$J:$J,0)) -> 31.85576251 | BE12: =INDEX('Age Profile-24RIN'!BH:BH,MATCH('Historical scenario - input'!$GI12,'Age Profile-24RIN'!$J:$J,0)) -> 67.3731726 | BF12: =INDEX('Age Profile-24RIN'!BI:BI,MATCH('Historical scenario - input'!$GI12,'Age Profile-24RIN'!$J:$J,0)) -> 59.69065225 | BG12: =INDEX('Age Profile-24RIN'!BJ:BJ,MATCH('Historical scenario - input'!$GI12,'Age Profile-24RIN'!$J:$J,0)) -> 87.932936 | BH12: =INDEX('Age Profile-24RIN'!BK:BK,MATCH('Historical scenario - input'!$GI12,'Age Profile-24RIN'!$J:$J,0)) -> 6.875733254 | BI12: =INDEX('Age Profile-24RIN'!BL:BL,MATCH('Historical scenario - input'!$GI12,'Age Profile-24RIN'!$J:$J,0)) -> 60.27145405 | BJ12: =INDEX('Age Profile-24RIN'!BM:BM,MATCH('Historical scenario - input'!$GI12,'Age Profile-24RIN'!$J:$J,0)) -> 67.27879435 | BK12: =INDEX('Age Profile-24RIN'!BN:BN,MATCH('Historical scenario - input'!$GI12,'Age Profile-24RIN'!$J:$J,0)) -> 44.86289811 | BL12: =INDEX('Age Profile-24RIN'!BO:BO,MATCH('Historical scenario - input'!$GI12,'Age Profile-24RIN'!$J:$J,0)) -> 54.4238396 | BM12: =INDEX('Age Profile-24RIN'!BP:BP,MATCH('Historical scenario - input'!$GI12,'Age Profile-24RIN'!$J:$J,0)) -> 99.50251774 | BN12: =INDEX('Age Profile-24RIN'!BQ:BQ,MATCH('Historical scenario - input'!$GI12,'Age Profile-24RIN'!$J:$J,0)) -> 51.27719029 | BO12: =INDEX('Age Profile-24RIN'!BR:BR,MATCH('Historical scenario - input'!$GI12,'Age Profile-24RIN'!$J:$J,0)) -> 47.27305415 | BP12: =INDEX('Age Profile-24RIN'!BS:BS,MATCH('Historical scenario - input'!$GI12,'Age Profile-24RIN'!$J:$J,0)) -> 11.53194474 | BQ12: =INDEX('Age Profile-24RIN'!BT:BT,MATCH('Historical scenario - input'!$GI12,'Age Profile-24RIN'!$J:$J,0)) -> 23.21296793 | BR12: =INDEX('Age Profile-24RIN'!BU:BU,MATCH('Historical scenario - input'!$GI12,'Age Profile-24RIN'!$J:$J,0)) -> 22.29563744 | BS12: =INDEX('Age Profile-24RIN'!BV:BV,MATCH('Historical scenario - input'!$GI12,'Age Profile-24RIN'!$J:$J,0)) -> 64.54688685 | BT12: =INDEX('Age Profile-24RIN'!BW:BW,MATCH('Historical scenario - input'!$GI12,'Age Profile-24RIN'!$J:$J,0)) -> 25.59397775 | BU12: =INDEX('Age Profile-24RIN'!BX:BX,MATCH('Historical scenario - input'!$GI12,'Age Profile-24RIN'!$J:$J,0)) -> 10.91946581 | BV12: =INDEX('Age Profile-24RIN'!BY:BY,MATCH('Historical scenario - input'!$GI12,'Age Profile-24RIN'!$J:$J,0)) -> 27.50236152 | BW12: =INDEX('Age Profile-24RIN'!BZ:BZ,MATCH('Historical scenario - input'!$GI12,'Age Profile-24RIN'!$J:$J,0)) -> 63.63233219 | BX12: =INDEX('Age Profile-24RIN'!CA:CA,MATCH('Historical scenario - input'!$GI12,'Age Profile-24RIN'!$J:$J,0)) -> 5.352291917 | BY12: =INDEX('Age Profile-24RIN'!CB:CB,MATCH('Historical scenario - input'!$GI12,'Age Profile-24RIN'!$J:$J,0)) -> 59.44009268 | BZ12: =INDEX('Age Profile-24RIN'!CC:CC,MATCH('Historical scenario - input'!$GI12,'Age Profile-24RIN'!$J:$J,0)) -> 10.58554967 | CA12: =INDEX('Age Profile-24RIN'!CD:CD,MATCH('Historical scenario - input'!$GI12,'Age Profile-24RIN'!$J:$J,0)) -> 6.863813509 | CB12: =INDEX('Age Profile-24RIN'!CE:CE,MATCH('Historical scenario - input'!$GI12,'Age Profile-24RIN'!$J:$J,0)) -> 11.63024181 | CC12: =INDEX('Age Profile-24RIN'!CF:CF,MATCH('Historical scenario - input'!$GI12,'Age Profile-24RIN'!$J:$J,0)) -> 19.72644262 | CD12: =INDEX('Age Profile-24RIN'!CG:CG,MATCH('Historical scenario - input'!$GI12,'Age Profile-24RIN'!$J:$J,0)) -> 7.16197041 | CE12: =INDEX('Age Profile-24RIN'!CH:CH,MATCH('Historical scenario - input'!$GI12,'Age Profile-24RIN'!$J:$J,0)) -> 38.61327802 | CF12: =INDEX('Age Profile-24RIN'!CI:CI,MATCH('Historical scenario - input'!$GI12,'Age Profile-24RIN'!$J:$J,0)) -> 27.68197411 | CG12: =INDEX('Age Profile-24RIN'!CJ:CJ,MATCH('Historical scenario - input'!$GI12,'Age Profile-24RIN'!$J:$J,0)) -> 11.40939997 | CH12: =INDEX('Age Profile-24RIN'!CK:CK,MATCH('Historical scenario - input'!$GI12,'Age Profile-24RIN'!$J:$J,0)) -> 3.695692337 | CI12: =INDEX('Age Profile-24RIN'!CL:CL,MATCH('Historical scenario - input'!$GI12,'Age Profile-24RIN'!$J:$J,0)) -> 36.25276037 | CJ12: =INDEX('Age Profile-24RIN'!CM:CM,MATCH('Historical scenario - input'!$GI12,'Age Profile-24RIN'!$J:$J,0)) -> 0.9466399948 | CK12: =INDEX('Age Profile-24RIN'!CN:CN,MATCH('Historical scenario - input'!$GI12,'Age Profile-24RIN'!$J:$J,0)) -> 21.4259043 | CL12: =INDEX('Age Profile-24RIN'!CO:CO,MATCH('Historical scenario - input'!$GI12,'Age Profile-24RIN'!$J:$J,0)) -> 7.669620905 | CM12: =INDEX('Age Profile-24RIN'!CP:CP,MATCH('Historical scenario - input'!$GI12,'Age Profile-24RIN'!$J:$J,0)) -> 20.98601673 | CN12: =INDEX('Age Profile-24RIN'!CQ:CQ,MATCH('Historical scenario - input'!$GI12,'Age Profile-24RIN'!$J:$J,0)) -> 35.77801163 | CO12: =INDEX('Age Profile-24RIN'!CR:CR,MATCH('Historical scenario - input'!$GI12,'Age Profile-24RIN'!$J:$J,0)) -> 0 | CP12: =INDEX('Age Profile-24RIN'!CS:CS,MATCH('Historical scenario - input'!$GI12,'Age Profile-24RIN'!$J:$J,0)) -> 0 | CQ12: =INDEX('Age Profile-24RIN'!CT:CT,MATCH('Historical scenario - input'!$GI12,'Age Profile-24RIN'!$J:$J,0)) -> 0 | CR12: =INDEX('Age Profile-24RIN'!CU:CU,MATCH('Historical scenario - input'!$GI12,'Age Profile-24RIN'!$J:$J,0)) -> 0 | CS12: =INDEX('Age Profile-24RIN'!CV:CV,MATCH('Historical scenario - input'!$GI12,'Age Profile-24RIN'!$J:$J,0)) -> 0 | CT12: =INDEX('Age Profile-24RIN'!CW:CW,MATCH('Historical scenario - input'!$GI12,'Age Profile-24RIN'!$J:$J,0)) -> 0.02212500548 | CV12: 4.175263925 | CW12: 70.78895615 | CX12: 76.70253783 | CY12: 845.4918059 | CZ12: 664.8731104 | DA12: 107.9823015 | DB12: 15.32277546 | DC12: 14.92082492 | DD12: 4200.43123 | DE12: 1071.031097 | DF12: 2428.945802 | DG12: 0 | DH12: 1583.163769 | DI12: 335.3937397 | DJ12: 33.50405397 | DK12: 116.3062677 | DL12: 436.8620391 | DM12: 132.1182118 | DN12: 305.796292 | DO12: 857.7979684 | DP12: 288.9211802 | DQ12: 2432.652618 | DR12: 525.558055 | DS12: 690.085044 | DT12: 745.9156201 | DU12: 122.8600902 | DV12: 2998.817972 | DW12: 1184.51155 | DX12: 67.27211604 | DY12: 160.9842857 | DZ12: 9.22601252 | EA12: 29.90783564 | EB12: 275.660125 | EC12: 116.4311363 | ED12: 1095.9297 | EE12: 241.7101115 | EF12: 472.7707073 | EG12: 1585.393568 | EH12: 439.6162857 | EI12: 2010.707036 | EJ12: 4170.393126 | EK12: 605.9128424 | EL12: 0 | EM12: 2157.313584 | EN12: 1240.641811 | EO12: 1328.221144 | EP12: 1318.181701 | EQ12: 122.1358517 | ER12: 1392.064723 | ES12: 2944.139756 | ET12: 2608.421357 | EU12: 3842.580699 | EV12: 300.462615 | EW12: 2633.801811 | EX12: 2940.015521 | EY12: 1960.463442 | EZ12: 2378.266951 | FA12: 4348.159764 | FB12: 2240.761547 | FC12: 2065.784833 | FD12: 503.9343652 | FE12: 1014.383308 | FF12: 974.2968906 | FG12: 2820.633916 | FH12: 1118.431038 | FI12: 477.1696529 | FJ12: 1201.825486 | FK12: 2780.668799 | FL12: 233.8897636 | FM12: 2597.472157 | FN12: 462.5778543 | FO12: 299.9417342 | FP12: 508.2298482 | FQ12: 862.0256655 | FR12: 312.9708903 | FS12: 1687.361342 | FT12: 1209.674376 | FU12: 498.5792822 | FV12: 161.4980312 | FW12: 1584.209099 | FX12: 41.36721391 | FY12: 936.2904283 | FZ12: 335.1547054 | GA12: 917.0677851 | GB12: 1563.463057 | GC12: 0 | GD12: 0 | GE12: 0 | GF12: 0 | GG12: 0 | GH12: 0.9668404458 | GI12: OVERHEAD CONDUCTORS - > 22 kV & < = 66 kV
